Workbook

Sheet 战斗节奏
A1: 两种伤害模式的区别 | F1: 0.1
F2: 0.15 | G2: 100 | H2: 50 | I2: 1500 | J2: =G2^2/(H2*2+G2) -> 50 | K2: =I2/J2 -> 30 | N2: 10 | O2: 22.5 | P2: =O2*N2 -> 225
C3: 物理 | D3: 魔法 | F3: 2.25 | G3: =G2*0.999 -> 99.9 | H3: 50 | I3: 1500 | J3: =G3^2/(H3*2+G3) -> 49.92501251 | K3: =I3/J3 -> 30.04506008 | L3: =K3/$K$2 -> 1.001502003 | N3: 15 | O3: =N4/N3 -> 15 | P3: 225
B4: 伤害公式一致 | C4: 是 | D4: 是 | G4: 100 | H4: =50*1.003 -> 50.15 | I4: 1500 | J4: =G4^2/(H4*2+G4) -> 49.92511233 | K4: =I4/J4 -> 30.045 | L4: =K4/$K$2 -> 1.0015 | N4: 225 | O4: 1 | P4: 225
B5: 是否计算闪避 | C5: 是 | D5: 否 | G5: 100 | H5: 50 | I5: =1500*1.0015 -> 1502.25 | J5: =G5^2/(H5*2+G5) -> 50 | K5: =I5/J5 -> 30.045 | L5: =K5/K2 -> 1.0015
B6: 计算物理抗性 | C6: 是 | D6: 否 | M6: 攻击 | N6: 0.1 | O6: 22.5 | P6: 2.25
B7: 计算魔法抗性 | C7: 否 | D7: 是 | H7: =H4/H3 -> 1.003 | M7: 防御 | N7: 0.15 | O7: =N8/N7 -> 15 | P7: 2.25
B8: ICON | M8: 血量 | N8: 2.25 | O8: 1 | P8: 2.25
A11: 战斗公式 | E11: =100^2/(100+50*2) -> 50
B13: 伤害=攻击^2/(攻击+防御*2) | G13: 攻击 | H13: 防御 | I13: 血量 | K13: 时间
B14: 伤害需要最小值限制，最小值为1 | G14: 100 | H14: 50 | I14: 1500 | J14: =G14^2/(G14+2*H14) -> 50 | K14: =I14/J14 -> 30
B15: dmg=atk^2/(atk+def*2) | G15: 110 | H15: 50 | I15: 1500 | J15: 57.61904762 | K15: 26.03305785 | L15: =K15/$K$14 -> 0.867768595
G16: 100 | H16: =H14*1.15 -> 57.5 | I16: 1500 | J16: 46.51162791 | K16: 32.25 | L16: =K16/K14 -> 1.075
A17: 回能公式 | G17: 100 | H17: 50 | I17: =I15*1.15 -> 1725 | J17: 50 | K17: 34.5 | L17: =K17/K14 -> 1.15
B18: 攻击回能：配置在英雄属性上
B19: 受击回能：2+掉血百分比*100 | G19: 1
B20: 举例：一个单位血量为100，被攻击一下掉了50点血，回能为2+50%*100=52点
B21: 注：因任何形式产生的掉血都会回蓝，若某种伤害技能不能回蓝，在技能配置里说明
J22: =250*15*4 -> 15000
J23: =300*15*4 -> 18000
A24: 标准比值 | C24: 2 | D24: 1 | E24: 30
C25: 攻击 | D25: 防御 | E25: 血量
B26: 比例 | C26: 100 | D26: 50 | E26: 1500 | G26: =E26*0.05 -> 75
B27: 投放比例 | C27: 50 | D27: 25 | E27: =C27*15 -> 750 | F27: 4933 | G27: 1480 | H27: 34500
B28: 战力价值 | C28: 2.25 | D28: 1.5 | E28: 0.1 | F28: 2.25 | G28: 1.5 | H28: 0.1
B29: 标准战斗时长：30s | C29: =C27*C28 -> 112.5 | D29: 37.5 | E29: 75 | F29: 11099.25 | G29: 2220 | H29: 3450
B30: BUFF等价换算：攻击+10%=防御+30%=血量+15%
C31: =C27*C28 -> 112.5 | D31: =D27*D28 -> 37.5 | E31: =E27*E28 -> 75 | F31: =C27*2.25*2 -> 225
A32: 技能强度设定
B33: 价值为2~6倍的普攻，范围给的大是因为技能效果千奇百怪，技能效果过强的手动下调属性
A35: 变强路径说明
B36: 条目 | C36: 重点期 | D36: 复杂度
B37: 局外-升级数值 | C37: 全日期 | D37: 简单
B38: 局外-升级技能 | C38: 后期 | D38: 困难
B39: 局外-装备 | C39: 中期 | D39: 中等
B40: 局外-天赋 | C40: 前期 | D40: 简单
B41: 局内-羁绊 | C41: 前期 | D41: 简单
B42: 局内-技能组合 | C42: 后期 | D42: 困难
B43: 局内-同名升星 | C43: 全日期 | D43: 简单
B44: 局内-布阵前后排 | C44: 全日期 | D44: 简单
A46: 职业模板
B49: 职业 | C49: 细分枚举 | D49: 职业细分 | E49: 细分备注 | F49: 职业描述 | G49: 攻击系数 | H49: 防御系数 | I49: 生命系数 | J49: 战斗力 | K49: 最终攻击 | L49: 最终防御 | M49: 最终生命
B50: 盾 | C50: 近战 | D50: 血盾 | E50: 以硬抗、血厚为扛伤手段。 | F50: 通过承受伤害来保护队友存活，几乎没有主动造成大量伤害的前排近战物理。 | G50: 0.65 | H50: 1.05 | I50: 1.5 | J50: =K50*$C$28+L50*$D$28+M50*$E$28 -> 225 | K50: =G50*$C$27 -> 32.5 | L50: =H50*$D$27 -> 26.25 | M50: =I50*$E$27 -> 1125 | N50: =G50*100&","&H50*100&","&I50*100 -> 65,105,150
C51: 近战 | D51: 物盾 | E51: 以防御和血厚为抗伤手段。 | G51: 0.65 | H51: 1.65 | I51: 1.2 | J51: =K51*$C$28+L51*$D$28+M51*$E$28 -> 225 | K51: =G51*$C$27 -> 32.5 | L51: =H51*$D$27 -> 41.25 | M51: =I51*$E$27 -> 900 | N51: =G51*100&","&H51*100&","&I51*100 -> 65,165,120
C52: 近战 | D52: 魔盾 | E52: 以防御和魔法抗性为抗伤手段。 | G52: 0.65 | H52: 1.05 | I52: 1.5 | J52: =K52*$C$28+L52*$D$28+M52*$E$28 -> 225 | K52: =G52*$C$27 -> 32.5 | L52: =H52*$D$27 -> 26.25 | M52: =I52*$E$27 -> 1125 | N52: 65,105,150
B53: 近辅 | C53: 近战 | D53: 近辅 | F53: 以对友方产生增益或对敌方产生减益为核心职责的前排近战英雄。 | G53: 1 | H53: 1 | I53: 1 | J53: =K53*$C$28+L53*$D$28+M53*$E$28 -> 225 | K53: =G53*$C$27 -> 50 | L53: =H53*$D$27 -> 25 | M53: =I53*$E$27 -> 750 | N53: 100,100,100
B54: 战 | C54: 近战 | D54: 物战 | E54: 核心输出手段是物理伤害。 | F54: 近战肉搏，虽能拼刺刀能抗伤，还能针对刺客，但核心能力是制造伤害的前排近战英雄。 | G54: 1 | H54: 1 | I54: 1 | J54: =K54*$C$28+L54*$D$28+M54*$E$28 -> 225 | K54: =G54*$C$27 -> 50 | L54: =H54*$D$27 -> 25 | M54: =I54*$E$27 -> 750 | N54: 100,100,100
C55: 近战 | D55: 魔战 | E55: 核心输出手段是魔法伤害。 | G55: 1 | H55: 1 | I55: 1 | J55: 225 | K55: 50 | L55: 25 | M55: 750 | N55: 100,100,100
B56: 刺 | C56: 近战 | D56: 爆发刺 | E56: 以造成快速秒杀为主要目的。 | F56: 有预谋地针对击杀（限制）单个高价值目标。 | G56: 1.28 | H56: 0.75 | I56: 0.7 | J56: 224.625 | K56: 64 | L56: 18.75 | M56: 525 | N56: 128,75,70
C57: 近战 | D57: 限制刺 | E57: 以干扰为主要目，不擅长一波带走。 | G57: 1.28 | H57: 0.75 | I57: 0.7 | J57: 224.625 | K57: 64 | L57: 18.75 | M57: 525 | N57: 128,75,70
B58: 远物 | C58: 远程 | D58: 远物 | F58: 后排脆皮，纯粹的输出，除了输出之外几乎不做任何事情，输出手段以物理为主。 | G58: 1.4 | H58: 0.6 | I58: 0.6 | J58: 225 | K58: 70 | L58: 15 | M58: 450 | N58: 140,60,60
B59: 法 | C59: 远程 | D59: 法 | F59: 后排脆皮，主要职责是输出，辅以自身增强或目标削弱，魔法输出。 | G59: 1.4 | H59: 0.6 | I59: 0.6 | J59: 225 | K59: 70 | L59: 15 | M59: 450 | N59: 140,60,60
B60: 辅 | C60: 远程 | D60: 奶辅 | E60: 提供治疗或者血量护盾。 | F60: 后排脆皮，为队友施加增益或者治疗，为对手施加负面效果。 | G60: 1 | H60: 0.8 | I60: 0.8 | J60: 202.5 | K60: 50 | L60: 20 | M60: 600 | N60: 100,80,80
C61: 远程 | D61: 增辅 | E61: 提供增强或保护 | G61: 1 | H61: 0.8 | I61: 0.8 | J61: 202.5 | K61: 50 | L61: 20 | M61: 600 | N61: 100,80,80
C62: 远程 | D62: 减辅 | E62: 造成控制和限制。 | G62: 1 | H62: 0.8 | I62: 0.8 | J62: 202.5 | K62: 50 | L62: 20 | M62: 600 | N62: 100,80,80
A64: 稀有度模板
C66: 属性修正
B67: 绿 | C67: 0.75
B68: 蓝 | C68: 0.85
B69: 紫 | C69: 1
B70: 橙 | C70: 1.2
A72: 攻击距离模板
B74: 攻击距离 | C74: 属性修正
B75: 1 | C75: 1 | E75: 最大攻击距离是7
B76: 2 | C76: 0.9
B77: 3 | C77: 0.8
B78: 4 | C78: 0.7
B79: 5 | C79: 0.65
B80: 6 | C80: 0.6
B81: 7 | C81: 0.55
B82: 8 | C82: 0.55
B83: 9 | C83: 0.55
B84: 10 | C84: 0.55
A86: 攻击速度模板
B87: 攻击速度 | C87: 属性修正
B88: 50 | C88: =100/B88 -> 2
B89: 60 | C89: 1.666666667
B90: 70 | C90: 1.428571429
B91: 80 | C91: 1.25
B92: 90 | C92: 1.111111111
B93: 100 | C93: 1
B94: 110 | C94: =100/B94 -> 0.9090909091
B95: 120 | C95: 0.8333333333
B96: 130 | C96: 0.7692307692
B97: 140 | C97: 0.7142857143
B98: 150 | C98: 0.6666666667
B99: 160 | C99: 0.625
B100: 170 | C100: 0.5882352941
B101: 180 | C101: 0.5555555556
B102: 190 | C102: 0.5263157895
B103: 200 | C103: 0.5

Sheet 战力统计
A1: 极限统计：该系统理论能达到的数值极限 | H1: 标准统计：正常游戏行为1年后能达到的数值预估
A2: 系统 | B2: 攻击 | C2: 防御 | D2: 血量 | E2: 比例 | F2: 备注 | H2: 系统 | I2: 攻击 | J2: 防御 | K2: 血量 | M2: 备注
A3: 宠物等级 | B3: =宠物!$AT$145*30*3 -> 28179630 | C3: =B3/2 -> 14089815 | D3: =B3*15 -> 422694450 | F3: 3个最高品质满级 | H3: 宠物等级 | I3: =宠物!AH85*30*3 -> 118710 | J3: =I3/2 -> 59355 | K3: =I3*15 -> 1780650 | L3: =I3/SUM($I$3:$I$7) -> 0.1912738458 | M3: 3个红品质60级
A4: 装备升级 | B4: =装备!X121*18 -> 3665880 | C4: =B4/2 -> 1832940 | D4: =B4*15 -> 54988200 | F4: 100级红+4 | H4: 装备升级 | I4: =装备!X71*10 -> 147800 | J4: =I4/2 -> 73900 | K4: =I4*15 -> 2217000 | L4: =I4/SUM($I$3:$I$7) -> 0.2381456862 | M4: 50级红
A5: 卡牌升级 | B5: =卡牌养成!D329 -> 229783.5 | C5: =B5/2 -> 114891.75 | D5: =B5*15 -> 3446752.5 | F5: 300级 | H5: 卡牌升级 | I5: =卡牌养成!D269 -> 134108.5 | J5: =I5/2 -> 67054.25 | K5: =I5*15 -> 2011627.5 | L5: =I5/SUM($I$3:$I$7) -> 0.2160849848 | M5: 240级
A6: 天赋 | B6: =天赋!H74 -> 155210 | C6: =B6/2 -> 77605 | D6: =B6*15 -> 2328150 | F6: 2700级 | H6: 天赋 | I6: =天赋!H74 -> 155210 | J6: =I6/2 -> 77605 | K6: =I6*15 -> 2328150 | L6: =I6/SUM($I$3:$I$7) -> 0.2500851959 | M6: 2700级
A7: 藏品 | B7: =(藏品!B13+藏品!E13+藏品!H13+藏品!K13)*10*30 -> 324000 | C7: =B7/2 -> 162000 | D7: =B7*15 -> 4860000 | F7: 全收集满级 | H7: 藏品 | I7: =(藏品!B8+藏品!E8+藏品!H8+藏品!K8)*10*30 -> 64800 | J7: =I7/2 -> 32400 | K7: =I7*15 -> 972000 | L7: =I7/SUM($I$3:$I$7) -> 0.1044102873 | M7: 全收集5级
A8: 宠物被动 | B8: =215%*6 -> 12.9 | C8: =215%*5 -> 10.75 | D8: =215%*5 -> 10.75 | F8: 全收集全满级 | H8: 宠物被动 | I8: =SUM(宠物!$H$2:$H$26,宠物!H27*2,宠物!H32)*2 -> 3.02 | J8: =I8 -> 3.02 | K8: =I8 -> 3.02 | M8: 红色以下全收集40级+2红+1不朽
A9: 宠物培育 | B9: =宠物!P149/100*3 -> 0.9 | C9: =B9 -> 0.9 | D9: 0.9 | F9: 不朽最高品质 | H9: 宠物培育 | I9: =20%*3 -> 0.6 | J9: =I9 -> 0.6 | K9: =J9 -> 0.6 | M9: 红色最高品质
A10: 坐骑升级 | B10: =坐骑!C173+坐骑!I3+坐骑!I6 -> 19.54 | C10: 19.54 | D10: 19.54 | F10: 满级 | H10: 坐骑升级 | I10: =坐骑!C73 -> 2.94 | J10: =I10 -> 2.94 | K10: =J10 -> 2.94 | M10: 5阶
A11: 坐骑升星 | B11: =坐骑!I3+坐骑!I6 -> 0.5 | C11: 0.5 | D11: 0.5 | F11: 全收集满级 | H11: 坐骑升星 | I11: =坐骑!G3+坐骑!G6 -> 0.4 | J11: =I11 -> 0.4 | K11: =J11 -> 0.4 | M11: 全收集3级
A12: 神器升级 | B12: =B10 -> 19.54 | C12: =C10 -> 19.54 | D12: 19.54 | F12: 满级 | H12: 神器升级 | I12: =I10 -> 2.94 | J12: =J10 -> 2.94 | K12: 2.94 | M12: 5阶
A13: 神器生星 | B13: =B11 -> 0.5 | C13: 0.5 | D13: 0.5 | F13: 全收集满级 | H13: 神器生星 | I13: =I11 -> 0.4 | J13: 0.4 | K13: 0.4 | M13: 全收集3级
A14: 固定值总计 | B14: =SUM(B3:B7) -> 32554503.5 | C14: =SUM(C3:C7) -> 16277251.75 | D14: =SUM(D3:D7) -> 488317552.5 | H14: 固定值总计 | I14: =SUM(I3:I7) -> 620628.5 | J14: =SUM(J3:J7) -> 310314.25 | K14: =SUM(K3:K7) -> 9309427.5
A15: 百分比总计 | B15: =SUM(B8:B13) -> 53.88 | C15: =SUM(C8:C13) -> 51.73 | D15: =SUM(D8:D13) -> 51.73 | H15: 百分比总计 | I15: =SUM(I8:I13) -> 10.3 | J15: =SUM(J8:J13) -> 10.3 | K15: =SUM(K8:K13) -> 10.3

Sheet 主线关卡难度
B1: 章节 | C1: 攻击倍率 | D1: 防御倍率 | E1: 血量倍率 | F1: 命中增加 | G1: 闪避增加 | H1: 属性ID列表 | I1: 属性值列表 | J1: 线上 | K1: 上一版本 | N1: 关卡战力 | O1: 章节 | P1: 关卡 | Q1: 攻击倍率 | R1: 防御倍率 | S1: 血量倍率 | T1: 难度系数 | U1: 怪物列表 | V1: 位置1 | W1: 怪物ID | X1: 局外等级(影响技能等级) | Y1: 局内星级(每星+30%属性) | Z1: 战斗力 | AA1: 位置2 | AB1: 怪物ID | AC1: 局外等级(影响技能等级) | AD1: 局内星级(每星+30%属性) | AE1: 战斗力 | AF1: 位置3 | AG1: 怪物ID | AH1: 局外等级(影响技能等级) | AI1: 局内星级(每星+30%属性) | AJ1: 战斗力 | AK1: 位置4 | AL1: 怪物ID | AM1: 局外等级(影响技能等级) | AN1: 局内星级(每星+30%属性) | AO1: 战斗力 | AP1: 位置5 | AQ1: 怪物ID | AR1: 局外等级(影响技能等级) | AS1: 局内星级(每星+30%属性) | AT1: 战斗力 | AU1: 位置6 | AV1: 怪物ID | AW1: 局外等级(影响技能等级) | AX1: 局内星级(每星+30%属性) | AY1: 战斗力 | AZ1: 位置7 | BA1: 怪物ID | BB1: 局外等级(影响技能等级) | BC1: 局内星级(每星+30%属性) | BD1: 战斗力 | BE1: 位置8 | BF1: 怪物ID | BG1: 局外等级(影响技能等级) | BH1: 局内星级(每星+30%属性) | BI1: 战斗力 | BJ1: 辅助配置 | BK1: 辅助配置 | BL1: 辅助配置 | BM1: 辅助配置 | BN1: 辅助配置 | BO1: 辅助配置 | BP1: 辅助配置 | BQ1: 辅助配置 | BT1: 白 | BU1: 20
B2: 0 | C2: 0 | D2: =C2 -> 0 | E2: 0 | F2: 0 | G2: 0 | H2: 4,100,102 | I2: =INT(E2*100)&","&INT(C2*100)&","&INT(D2*100) -> 0,0,0 | J2: 0 | N2: =Z2+AE2+AJ2+AO2+AT2+AY2+BD2+BI2 -> 188.5 | O2: 0 | P2: 1 | Q2: =VLOOKUP(O2,$B:$E,2,0)+1 -> 1 | R2: =VLOOKUP(O2,$B:$E,3,0)+1 -> 1 | S2: =VLOOKUP(O2,$B:$E,4,0)+1 -> 1 | T2: 10000 | U2: =_xlfn.TEXTJOIN(";",1,BJ2:BQ2) -> 3&130101&1&1 | V2: 3 | W2: 130101 | X2: 1 | Y2: 1 | Z2: =IFERROR(VLOOKUP(W2,'[4]英雄技能-过程'!$A:$P,14,0)*T2/10000*Q2*(1+(Y2-1)*30%)*[4]战斗节奏!$C$28+VLOOKUP(W2,'[4]英雄技能-过程'!$A:$P,15,0)*T2/10000*R2*(1+(Y2-1)*30%)*[4]战斗节奏!$D$28+VLOOKUP(W2,'[4]英雄技能-过程'!$A:$P,16,0)*T2/10000*S2*(1+(Y2-1)*30%)*[4]战斗节奏!$E$28,0) -> 188.5 | AE2: =IFERROR(VLOOKUP(AB2,'[4]英雄技能-过程'!$A:$P,14,0)*T2/10000*Q2*(1+(AD2-1)*30%)*[4]战斗节奏!$C$28+VLOOKUP(AB2,'[4]英雄技能-过程'!$A:$P,15,0)*T2/10000*R2*(1+(AD2-1)*30%)*[4]战斗节奏!$D$28+VLOOKUP(AB2,'[4]英雄技能-过程'!$A:$P,16,0)*T2/10000*S2*(1+(AD2-1)*30%)*[4]战斗节奏!$E$28,0) -> 0 | AJ2: =IFERROR(VLOOKUP(AG2,'[4]英雄技能-过程'!$A:$P,14,0)*T2/10000*Q2*(1+(AI2-1)*30%)*[4]战斗节奏!$C$28+VLOOKUP(AG2,'[4]英雄技能-过程'!$A:$P,15,0)*T2/10000*R2*(1+(AI2-1)*30%)*[4]战斗节奏!$D$28+VLOOKUP(AG2,'[4]英雄技能-过程'!$A:$P,16,0)*T2/10000*S2*(1+(AI2-1)*30%)*[4]战斗节奏!$E$28,0) -> 0 | AO2: =IFERROR(VLOOKUP(AL2,'[4]英雄技能-过程'!$A:$P,14,0)*T2/10000*Q2*(1+(AN2-1)*30%)*[4]战斗节奏!$C$28+VLOOKUP(AL2,'[4]英雄技能-过程'!$A:$P,15,0)*T2/10000*R2*(1+(AN2-1)*30%)*[4]战斗节奏!$D$28+VLOOKUP(AL2,'[4]英雄技能-过程'!$A:$P,16,0)*T2/10000*S2*(1+(AN2-1)*30%)*[4]战斗节奏!$E$28,0) -> 0 | AT2: =IFERROR(VLOOKUP(AQ2,'[4]英雄技能-过程'!$A:$P,14,0)*T2/10000*Q2*(1+(AS2-1)*30%)*[4]战斗节奏!$C$28+VLOOKUP(AQ2,'[4]英雄技能-过程'!$A:$P,15,0)*T2/10000*R2*(1+(AS2-1)*30%)*[4]战斗节奏!$D$28+VLOOKUP(AQ2,'[4]英雄技能-过程'!$A:$P,16,0)*T2/10000*S2*(1+(AS2-1)*30%)*[4]战斗节奏!$E$28,0) -> 0 | AY2: =IFERROR(VLOOKUP(AV2,'[4]英雄技能-过程'!$A:$P,14,0)*T2/10000*Q2*(1+(AX2-1)*30%)*[4]战斗节奏!$C$28+VLOOKUP(AV2,'[4]英雄技能-过程'!$A:$P,15,0)*T2/10000*R2*(1+(AX2-1)*30%)*[4]战斗节奏!$D$28+VLOOKUP(AV2,'[4]英雄技能-过程'!$A:$P,16,0)*T2/10000*S2*(1+(AX2-1)*30%)*[4]战斗节奏!$E$28,0) -> 0 | BD2: =IFERROR(VLOOKUP(BA2,'[4]英雄技能-过程'!$A:$P,14,0)*T2/10000*Q2*(1+(BC2-1)*30%)*[4]战斗节奏!$C$28+VLOOKUP(BA2,'[4]英雄技能-过程'!$A:$P,15,0)*T2/10000*R2*(1+(BC2-1)*30%)*[4]战斗节奏!$D$28+VLOOKUP(BA2,'[4]英雄技能-过程'!$A:$P,16,0)*T2/10000*S2*(1+(BC2-1)*30%)*[4]战斗节奏!$E$28,0) -> 0 | BI2: =IFERROR(VLOOKUP(BF2,'[4]英雄技能-过程'!$A:$P,14,0)*T2/10000*Q2*(1+(BH2-1)*30%)*[4]战斗节奏!$C$28+VLOOKUP(BF2,'[4]英雄技能-过程'!$A:$P,15,0)*T2/10000*R2*(1+(BH2-1)*30%)*[4]战斗节奏!$D$28+VLOOKUP(BF2,'[4]英雄技能-过程'!$A:$P,16,0)*T2/10000*S2*(1+(BH2-1)*30%)*[4]战斗节奏!$E$28,0) -> 0 | BJ2: =IF(V2>0,_xlfn.TEXTJOIN("&",1,V2:Y2),"") -> 3&130101&1&1 | BK2: =IF(AA2>0,_xlfn.TEXTJOIN("&",1,AA2:AD2),"") ->  | BL2: =IF(AF2>0,_xlfn.TEXTJOIN("&",1,AF2:AI2),"") ->  | BM2: =IF(AK2>0,_xlfn.TEXTJOIN("&",1,AK2:AN2),"") ->  | BN2: =IF(AP2>0,_xlfn.TEXTJOIN("&",1,AP2:AS2),"") ->  | BO2: =IF(AU2>0,_xlfn.TEXTJOIN("&",1,AU2:AX2),"") ->  | BP2: =IF(AZ2>0,_xlfn.TEXTJOIN("&",1,AZ2:BC2),"") ->  | BQ2: =IF(BE2>0,_xlfn.TEXTJOIN("&",1,BE2:BH2),"") ->  | BT2: 绿 | BU2: 30 | BV2: =BU2/$BU$1 -> 1.5
B3: 1 | C3: 0 | D3: 0 | E3: 0 | F3: 0 | G3: 0 | H3: 4,100,102 | I3: 0,0,0 | J3: 0 | N3: 188.5 | O3: 0 | P3: 2 | Q3: 1 | R3: 1 | S3: 1 | T3: 10000 | U3: 3&130101&1&1 | V3: 3 | W3: 130101 | X3: 1 | Y3: 1 | Z3: =IFERROR(VLOOKUP(W3,'[4]英雄技能-过程'!$A:$P,14,0)*T3/10000*Q3*(1+(Y3-1)*30%)*[4]战斗节奏!$C$28+VLOOKUP(W3,'[4]英雄技能-过程'!$A:$P,15,0)*T3/10000*R3*(1+(Y3-1)*30%)*[4]战斗节奏!$D$28+VLOOKUP(W3,'[4]英雄技能-过程'!$A:$P,16,0)*T3/10000*S3*(1+(Y3-1)*30%)*[4]战斗节奏!$E$28,0) -> 188.5 | AE3: =IFERROR(VLOOKUP(AB3,'[4]英雄技能-过程'!$A:$P,14,0)*T3/10000*Q3*(1+(AD3-1)*30%)*[4]战斗节奏!$C$28+VLOOKUP(AB3,'[4]英雄技能-过程'!$A:$P,15,0)*T3/10000*R3*(1+(AD3-1)*30%)*[4]战斗节奏!$D$28+VLOOKUP(AB3,'[4]英雄技能-过程'!$A:$P,16,0)*T3/10000*S3*(1+(AD3-1)*30%)*[4]战斗节奏!$E$28,0) -> 0 | AJ3: =IFERROR(VLOOKUP(AG3,'[4]英雄技能-过程'!$A:$P,14,0)*T3/10000*Q3*(1+(AI3-1)*30%)*[4]战斗节奏!$C$28+VLOOKUP(AG3,'[4]英雄技能-过程'!$A:$P,15,0)*T3/10000*R3*(1+(AI3-1)*30%)*[4]战斗节奏!$D$28+VLOOKUP(AG3,'[4]英雄技能-过程'!$A:$P,16,0)*T3/10000*S3*(1+(AI3-1)*30%)*[4]战斗节奏!$E$28,0) -> 0 | AO3: =IFERROR(VLOOKUP(AL3,'[4]英雄技能-过程'!$A:$P,14,0)*T3/10000*Q3*(1+(AN3-1)*30%)*[4]战斗节奏!$C$28+VLOOKUP(AL3,'[4]英雄技能-过程'!$A:$P,15,0)*T3/10000*R3*(1+(AN3-1)*30%)*[4]战斗节奏!$D$28+VLOOKUP(AL3,'[4]英雄技能-过程'!$A:$P,16,0)*T3/10000*S3*(1+(AN3-1)*30%)*[4]战斗节奏!$E$28,0) -> 0 | AT3: =IFERROR(VLOOKUP(AQ3,'[4]英雄技能-过程'!$A:$P,14,0)*T3/10000*Q3*(1+(AS3-1)*30%)*[4]战斗节奏!$C$28+VLOOKUP(AQ3,'[4]英雄技能-过程'!$A:$P,15,0)*T3/10000*R3*(1+(AS3-1)*30%)*[4]战斗节奏!$D$28+VLOOKUP(AQ3,'[4]英雄技能-过程'!$A:$P,16,0)*T3/10000*S3*(1+(AS3-1)*30%)*[4]战斗节奏!$E$28,0) -> 0 | AY3: =IFERROR(VLOOKUP(AV3,'[4]英雄技能-过程'!$A:$P,14,0)*T3/10000*Q3*(1+(AX3-1)*30%)*[4]战斗节奏!$C$28+VLOOKUP(AV3,'[4]英雄技能-过程'!$A:$P,15,0)*T3/10000*R3*(1+(AX3-1)*30%)*[4]战斗节奏!$D$28+VLOOKUP(AV3,'[4]英雄技能-过程'!$A:$P,16,0)*T3/10000*S3*(1+(AX3-1)*30%)*[4]战斗节奏!$E$28,0) -> 0 | BD3: =IFERROR(VLOOKUP(BA3,'[4]英雄技能-过程'!$A:$P,14,0)*T3/10000*Q3*(1+(BC3-1)*30%)*[4]战斗节奏!$C$28+VLOOKUP(BA3,'[4]英雄技能-过程'!$A:$P,15,0)*T3/10000*R3*(1+(BC3-1)*30%)*[4]战斗节奏!$D$28+VLOOKUP(BA3,'[4]英雄技能-过程'!$A:$P,16,0)*T3/10000*S3*(1+(BC3-1)*30%)*[4]战斗节奏!$E$28,0) -> 0 | BI3: =IFERROR(VLOOKUP(BF3,'[4]英雄技能-过程'!$A:$P,14,0)*T3/10000*Q3*(1+(BH3-1)*30%)*[4]战斗节奏!$C$28+VLOOKUP(BF3,'[4]英雄技能-过程'!$A:$P,15,0)*T3/10000*R3*(1+(BH3-1)*30%)*[4]战斗节奏!$D$28+VLOOKUP(BF3,'[4]英雄技能-过程'!$A:$P,16,0)*T3/10000*S3*(1+(BH3-1)*30%)*[4]战斗节奏!$E$28,0) -> 0 | BJ3: 3&130101&1&1 | BT3: 蓝 | BU3: 40 | BV3: =BU3/$BU$1 -> 2
A4: =(C4+1)/(C3+1) -> 2 | B4: 2 | C4: 1 | D4: 1 | E4: =D4*1.2 -> 1.2 | F4: 0 | G4: 0 | H4: 4,100,102 | I4: 120,100,100 | J4: 1 | M4: 人数 | N4: 188.5 | O4: 0 | P4: 3 | Q4: 1 | R4: 1 | S4: 1 | T4: 10000 | U4: 3&130101&1&1 | V4: 3 | W4: 130101 | X4: 1 | Y4: 1 | Z4: =IFERROR(VLOOKUP(W4,'[4]英雄技能-过程'!$A:$P,14,0)*T4/10000*Q4*(1+(Y4-1)*30%)*[4]战斗节奏!$C$28+VLOOKUP(W4,'[4]英雄技能-过程'!$A:$P,15,0)*T4/10000*R4*(1+(Y4-1)*30%)*[4]战斗节奏!$D$28+VLOOKUP(W4,'[4]英雄技能-过程'!$A:$P,16,0)*T4/10000*S4*(1+(Y4-1)*30%)*[4]战斗节奏!$E$28,0) -> 188.5 | AE4: =IFERROR(VLOOKUP(AB4,'[4]英雄技能-过程'!$A:$P,14,0)*T4/10000*Q4*(1+(AD4-1)*30%)*[4]战斗节奏!$C$28+VLOOKUP(AB4,'[4]英雄技能-过程'!$A:$P,15,0)*T4/10000*R4*(1+(AD4-1)*30%)*[4]战斗节奏!$D$28+VLOOKUP(AB4,'[4]英雄技能-过程'!$A:$P,16,0)*T4/10000*S4*(1+(AD4-1)*30%)*[4]战斗节奏!$E$28,0) -> 0 | AJ4: =IFERROR(VLOOKUP(AG4,'[4]英雄技能-过程'!$A:$P,14,0)*T4/10000*Q4*(1+(AI4-1)*30%)*[4]战斗节奏!$C$28+VLOOKUP(AG4,'[4]英雄技能-过程'!$A:$P,15,0)*T4/10000*R4*(1+(AI4-1)*30%)*[4]战斗节奏!$D$28+VLOOKUP(AG4,'[4]英雄技能-过程'!$A:$P,16,0)*T4/10000*S4*(1+(AI4-1)*30%)*[4]战斗节奏!$E$28,0) -> 0 | AO4: =IFERROR(VLOOKUP(AL4,'[4]英雄技能-过程'!$A:$P,14,0)*T4/10000*Q4*(1+(AN4-1)*30%)*[4]战斗节奏!$C$28+VLOOKUP(AL4,'[4]英雄技能-过程'!$A:$P,15,0)*T4/10000*R4*(1+(AN4-1)*30%)*[4]战斗节奏!$D$28+VLOOKUP(AL4,'[4]英雄技能-过程'!$A:$P,16,0)*T4/10000*S4*(1+(AN4-1)*30%)*[4]战斗节奏!$E$28,0) -> 0 | AT4: =IFERROR(VLOOKUP(AQ4,'[4]英雄技能-过程'!$A:$P,14,0)*T4/10000*Q4*(1+(AS4-1)*30%)*[4]战斗节奏!$C$28+VLOOKUP(AQ4,'[4]英雄技能-过程'!$A:$P,15,0)*T4/10000*R4*(1+(AS4-1)*30%)*[4]战斗节奏!$D$28+VLOOKUP(AQ4,'[4]英雄技能-过程'!$A:$P,16,0)*T4/10000*S4*(1+(AS4-1)*30%)*[4]战斗节奏!$E$28,0) -> 0 | AY4: =IFERROR(VLOOKUP(AV4,'[4]英雄技能-过程'!$A:$P,14,0)*T4/10000*Q4*(1+(AX4-1)*30%)*[4]战斗节奏!$C$28+VLOOKUP(AV4,'[4]英雄技能-过程'!$A:$P,15,0)*T4/10000*R4*(1+(AX4-1)*30%)*[4]战斗节奏!$D$28+VLOOKUP(AV4,'[4]英雄技能-过程'!$A:$P,16,0)*T4/10000*S4*(1+(AX4-1)*30%)*[4]战斗节奏!$E$28,0) -> 0 | BD4: =IFERROR(VLOOKUP(BA4,'[4]英雄技能-过程'!$A:$P,14,0)*T4/10000*Q4*(1+(BC4-1)*30%)*[4]战斗节奏!$C$28+VLOOKUP(BA4,'[4]英雄技能-过程'!$A:$P,15,0)*T4/10000*R4*(1+(BC4-1)*30%)*[4]战斗节奏!$D$28+VLOOKUP(BA4,'[4]英雄技能-过程'!$A:$P,16,0)*T4/10000*S4*(1+(BC4-1)*30%)*[4]战斗节奏!$E$28,0) -> 0 | BI4: =IFERROR(VLOOKUP(BF4,'[4]英雄技能-过程'!$A:$P,14,0)*T4/10000*Q4*(1+(BH4-1)*30%)*[4]战斗节奏!$C$28+VLOOKUP(BF4,'[4]英雄技能-过程'!$A:$P,15,0)*T4/10000*R4*(1+(BH4-1)*30%)*[4]战斗节奏!$D$28+VLOOKUP(BF4,'[4]英雄技能-过程'!$A:$P,16,0)*T4/10000*S4*(1+(BH4-1)*30%)*[4]战斗节奏!$E$28,0) -> 0 | BJ4: 3&130101&1&1 | BT4: 紫 | BU4: 50 | BV4: =BU4/$BU$1 -> 2.5
A5: =(C5+1)/(C4+1) -> 2.5 | B5: 3 | C5: 4 | D5: 4 | E5: 4.8 | F5: 0 | G5: 0 | H5: 4,100,102 | I5: 480,400,400 | J5: 4 | L5: =C5-J5 -> 0 | M5: 1 | N5: 95 | O5: 1 | P5: 1 | Q5: 1 | R5: 1 | S5: 1 | T5: 8000 | U5: 18&110201&1&1 | V5: 18 | W5: 110201 | X5: 1 | Y5: 1 | Z5: =IFERROR(VLOOKUP(W5,'[4]英雄技能-过程'!$A:$P,14,0)*T5/10000*Q5*(1+(Y5-1)*30%)*[4]战斗节奏!$C$28+VLOOKUP(W5,'[4]英雄技能-过程'!$A:$P,15,0)*T5/10000*R5*(1+(Y5-1)*30%)*[4]战斗节奏!$D$28+VLOOKUP(W5,'[4]英雄技能-过程'!$A:$P,16,0)*T5/10000*S5*(1+(Y5-1)*30%)*[4]战斗节奏!$E$28,0) -> 95 | AE5: =IFERROR(VLOOKUP(AB5,'[4]英雄技能-过程'!$A:$P,14,0)*T5/10000*Q5*(1+(AD5-1)*30%)*[4]战斗节奏!$C$28+VLOOKUP(AB5,'[4]英雄技能-过程'!$A:$P,15,0)*T5/10000*R5*(1+(AD5-1)*30%)*[4]战斗节奏!$D$28+VLOOKUP(AB5,'[4]英雄技能-过程'!$A:$P,16,0)*T5/10000*S5*(1+(AD5-1)*30%)*[4]战斗节奏!$E$28,0) -> 0 | AJ5: =IFERROR(VLOOKUP(AG5,'[4]英雄技能-过程'!$A:$P,14,0)*T5/10000*Q5*(1+(AI5-1)*30%)*[4]战斗节奏!$C$28+VLOOKUP(AG5,'[4]英雄技能-过程'!$A:$P,15,0)*T5/10000*R5*(1+(AI5-1)*30%)*[4]战斗节奏!$D$28+VLOOKUP(AG5,'[4]英雄技能-过程'!$A:$P,16,0)*T5/10000*S5*(1+(AI5-1)*30%)*[4]战斗节奏!$E$28,0) -> 0 | AO5: =IFERROR(VLOOKUP(AL5,'[4]英雄技能-过程'!$A:$P,14,0)*T5/10000*Q5*(1+(AN5-1)*30%)*[4]战斗节奏!$C$28+VLOOKUP(AL5,'[4]英雄技能-过程'!$A:$P,15,0)*T5/10000*R5*(1+(AN5-1)*30%)*[4]战斗节奏!$D$28+VLOOKUP(AL5,'[4]英雄技能-过程'!$A:$P,16,0)*T5/10000*S5*(1+(AN5-1)*30%)*[4]战斗节奏!$E$28,0) -> 0 | AT5: =IFERROR(VLOOKUP(AQ5,'[4]英雄技能-过程'!$A:$P,14,0)*T5/10000*Q5*(1+(AS5-1)*30%)*[4]战斗节奏!$C$28+VLOOKUP(AQ5,'[4]英雄技能-过程'!$A:$P,15,0)*T5/10000*R5*(1+(AS5-1)*30%)*[4]战斗节奏!$D$28+VLOOKUP(AQ5,'[4]英雄技能-过程'!$A:$P,16,0)*T5/10000*S5*(1+(AS5-1)*30%)*[4]战斗节奏!$E$28,0) -> 0 | AY5: =IFERROR(VLOOKUP(AV5,'[4]英雄技能-过程'!$A:$P,14,0)*T5/10000*Q5*(1+(AX5-1)*30%)*[4]战斗节奏!$C$28+VLOOKUP(AV5,'[4]英雄技能-过程'!$A:$P,15,0)*T5/10000*R5*(1+(AX5-1)*30%)*[4]战斗节奏!$D$28+VLOOKUP(AV5,'[4]英雄技能-过程'!$A:$P,16,0)*T5/10000*S5*(1+(AX5-1)*30%)*[4]战斗节奏!$E$28,0) -> 0 | BD5: =IFERROR(VLOOKUP(BA5,'[4]英雄技能-过程'!$A:$P,14,0)*T5/10000*Q5*(1+(BC5-1)*30%)*[4]战斗节奏!$C$28+VLOOKUP(BA5,'[4]英雄技能-过程'!$A:$P,15,0)*T5/10000*R5*(1+(BC5-1)*30%)*[4]战斗节奏!$D$28+VLOOKUP(BA5,'[4]英雄技能-过程'!$A:$P,16,0)*T5/10000*S5*(1+(BC5-1)*30%)*[4]战斗节奏!$E$28,0) -> 0 | BI5: =IFERROR(VLOOKUP(BF5,'[4]英雄技能-过程'!$A:$P,14,0)*T5/10000*Q5*(1+(BH5-1)*30%)*[4]战斗节奏!$C$28+VLOOKUP(BF5,'[4]英雄技能-过程'!$A:$P,15,0)*T5/10000*R5*(1+(BH5-1)*30%)*[4]战斗节奏!$D$28+VLOOKUP(BF5,'[4]英雄技能-过程'!$A:$P,16,0)*T5/10000*S5*(1+(BH5-1)*30%)*[4]战斗节奏!$E$28,0) -> 0 | BJ5: 18&110201&1&1 | BT5: 橙 | BU5: 100 | BV5: =BU5/$BU$1 -> 5
A6: 1.8 | B6: 4 | C6: 8 | D6: 8 | E6: 9.6 | F6: 0 | G6: 0 | H6: 4,100,102 | I6: 960,800,800 | J6: 8 | L6: 0 | M6: 2 | N6: 275 | O6: 1 | P6: 2 | Q6: 1 | R6: 1 | S6: 1 | T6: =T5 -> 8000 | U6: 14&110201&1&1;2&130401&1&1 | V6: 14 | W6: 110201 | X6: 1 | Y6: 1 | Z6: =IFERROR(VLOOKUP(W6,'[4]英雄技能-过程'!$A:$P,14,0)*T6/10000*Q6*(1+(Y6-1)*30%)*[4]战斗节奏!$C$28+VLOOKUP(W6,'[4]英雄技能-过程'!$A:$P,15,0)*T6/10000*R6*(1+(Y6-1)*30%)*[4]战斗节奏!$D$28+VLOOKUP(W6,'[4]英雄技能-过程'!$A:$P,16,0)*T6/10000*S6*(1+(Y6-1)*30%)*[4]战斗节奏!$E$28,0) -> 95 | AA6: 2 | AB6: 130401 | AC6: 1 | AD6: 1 | AE6: =IFERROR(VLOOKUP(AB6,'[4]英雄技能-过程'!$A:$P,14,0)*T6/10000*Q6*(1+(AD6-1)*30%)*[4]战斗节奏!$C$28+VLOOKUP(AB6,'[4]英雄技能-过程'!$A:$P,15,0)*T6/10000*R6*(1+(AD6-1)*30%)*[4]战斗节奏!$D$28+VLOOKUP(AB6,'[4]英雄技能-过程'!$A:$P,16,0)*T6/10000*S6*(1+(AD6-1)*30%)*[4]战斗节奏!$E$28,0) -> 180 | AJ6: =IFERROR(VLOOKUP(AG6,'[4]英雄技能-过程'!$A:$P,14,0)*T6/10000*Q6*(1+(AI6-1)*30%)*[4]战斗节奏!$C$28+VLOOKUP(AG6,'[4]英雄技能-过程'!$A:$P,15,0)*T6/10000*R6*(1+(AI6-1)*30%)*[4]战斗节奏!$D$28+VLOOKUP(AG6,'[4]英雄技能-过程'!$A:$P,16,0)*T6/10000*S6*(1+(AI6-1)*30%)*[4]战斗节奏!$E$28,0) -> 0 | AO6: =IFERROR(VLOOKUP(AL6,'[4]英雄技能-过程'!$A:$P,14,0)*T6/10000*Q6*(1+(AN6-1)*30%)*[4]战斗节奏!$C$28+VLOOKUP(AL6,'[4]英雄技能-过程'!$A:$P,15,0)*T6/10000*R6*(1+(AN6-1)*30%)*[4]战斗节奏!$D$28+VLOOKUP(AL6,'[4]英雄技能-过程'!$A:$P,16,0)*T6/10000*S6*(1+(AN6-1)*30%)*[4]战斗节奏!$E$28,0) -> 0 | AT6: =IFERROR(VLOOKUP(AQ6,'[4]英雄技能-过程'!$A:$P,14,0)*T6/10000*Q6*(1+(AS6-1)*30%)*[4]战斗节奏!$C$28+VLOOKUP(AQ6,'[4]英雄技能-过程'!$A:$P,15,0)*T6/10000*R6*(1+(AS6-1)*30%)*[4]战斗节奏!$D$28+VLOOKUP(AQ6,'[4]英雄技能-过程'!$A:$P,16,0)*T6/10000*S6*(1+(AS6-1)*30%)*[4]战斗节奏!$E$28,0) -> 0 | AY6: =IFERROR(VLOOKUP(AV6,'[4]英雄技能-过程'!$A:$P,14,0)*T6/10000*Q6*(1+(AX6-1)*30%)*[4]战斗节奏!$C$28+VLOOKUP(AV6,'[4]英雄技能-过程'!$A:$P,15,0)*T6/10000*R6*(1+(AX6-1)*30%)*[4]战斗节奏!$D$28+VLOOKUP(AV6,'[4]英雄技能-过程'!$A:$P,16,0)*T6/10000*S6*(1+(AX6-1)*30%)*[4]战斗节奏!$E$28,0) -> 0 | BD6: =IFERROR(VLOOKUP(BA6,'[4]英雄技能-过程'!$A:$P,14,0)*T6/10000*Q6*(1+(BC6-1)*30%)*[4]战斗节奏!$C$28+VLOOKUP(BA6,'[4]英雄技能-过程'!$A:$P,15,0)*T6/10000*R6*(1+(BC6-1)*30%)*[4]战斗节奏!$D$28+VLOOKUP(BA6,'[4]英雄技能-过程'!$A:$P,16,0)*T6/10000*S6*(1+(BC6-1)*30%)*[4]战斗节奏!$E$28,0) -> 0 | BI6: =IFERROR(VLOOKUP(BF6,'[4]英雄技能-过程'!$A:$P,14,0)*T6/10000*Q6*(1+(BH6-1)*30%)*[4]战斗节奏!$C$28+VLOOKUP(BF6,'[4]英雄技能-过程'!$A:$P,15,0)*T6/10000*R6*(1+(BH6-1)*30%)*[4]战斗节奏!$D$28+VLOOKUP(BF6,'[4]英雄技能-过程'!$A:$P,16,0)*T6/10000*S6*(1+(BH6-1)*30%)*[4]战斗节奏!$E$28,0) -> 0 | BJ6: 14&110201&1&1 | BK6: 2&130401&1&1
A7: 1.888888889 | B7: 5 | C7: 16 | D7: 16 | E7: 19.2 | F7: 0 | G7: 0 | H7: 4,100,102 | I7: 1920,1600,1600 | J7: 14 | L7: 2 | M7: 3 | N7: 410.0825 | O7: 1 | P7: 3 | Q7: 1 | R7: 1 | S7: 1 | T7: =T5+500 -> 8500 | U7: 14&110201&1&1;15&110501&1&1;2&120401&1&1 | V7: 14 | W7: 110201 | X7: 1 | Y7: 1 | Z7: =IFERROR(VLOOKUP(W7,'[4]英雄技能-过程'!$A:$P,14,0)*T7/10000*Q7*(1+(Y7-1)*30%)*[4]战斗节奏!$C$28+VLOOKUP(W7,'[4]英雄技能-过程'!$A:$P,15,0)*T7/10000*R7*(1+(Y7-1)*30%)*[4]战斗节奏!$D$28+VLOOKUP(W7,'[4]英雄技能-过程'!$A:$P,16,0)*T7/10000*S7*(1+(Y7-1)*30%)*[4]战斗节奏!$E$28,0) -> 100.9375 | AA7: 15 | AB7: 110501 | AC7: 1 | AD7: 1 | AE7: =IFERROR(VLOOKUP(AB7,'[4]英雄技能-过程'!$A:$P,14,0)*T7/10000*Q7*(1+(AD7-1)*30%)*[4]战斗节奏!$C$28+VLOOKUP(AB7,'[4]英雄技能-过程'!$A:$P,15,0)*T7/10000*R7*(1+(AD7-1)*30%)*[4]战斗节奏!$D$28+VLOOKUP(AB7,'[4]英雄技能-过程'!$A:$P,16,0)*T7/10000*S7*(1+(AD7-1)*30%)*[4]战斗节奏!$E$28,0) -> 117.2575 | AF7: 2 | AG7: 120401 | AH7: 1 | AI7: 1 | AJ7: =IFERROR(VLOOKUP(AG7,'[4]英雄技能-过程'!$A:$P,14,0)*T7/10000*Q7*(1+(AI7-1)*30%)*[4]战斗节奏!$C$28+VLOOKUP(AG7,'[4]英雄技能-过程'!$A:$P,15,0)*T7/10000*R7*(1+(AI7-1)*30%)*[4]战斗节奏!$D$28+VLOOKUP(AG7,'[4]英雄技能-过程'!$A:$P,16,0)*T7/10000*S7*(1+(AI7-1)*30%)*[4]战斗节奏!$E$28,0) -> 191.8875 | AO7: =IFERROR(VLOOKUP(AL7,'[4]英雄技能-过程'!$A:$P,14,0)*T7/10000*Q7*(1+(AN7-1)*30%)*[4]战斗节奏!$C$28+VLOOKUP(AL7,'[4]英雄技能-过程'!$A:$P,15,0)*T7/10000*R7*(1+(AN7-1)*30%)*[4]战斗节奏!$D$28+VLOOKUP(AL7,'[4]英雄技能-过程'!$A:$P,16,0)*T7/10000*S7*(1+(AN7-1)*30%)*[4]战斗节奏!$E$28,0) -> 0 | AT7: =IFERROR(VLOOKUP(AQ7,'[4]英雄技能-过程'!$A:$P,14,0)*T7/10000*Q7*(1+(AS7-1)*30%)*[4]战斗节奏!$C$28+VLOOKUP(AQ7,'[4]英雄技能-过程'!$A:$P,15,0)*T7/10000*R7*(1+(AS7-1)*30%)*[4]战斗节奏!$D$28+VLOOKUP(AQ7,'[4]英雄技能-过程'!$A:$P,16,0)*T7/10000*S7*(1+(AS7-1)*30%)*[4]战斗节奏!$E$28,0) -> 0 | AY7: =IFERROR(VLOOKUP(AV7,'[4]英雄技能-过程'!$A:$P,14,0)*T7/10000*Q7*(1+(AX7-1)*30%)*[4]战斗节奏!$C$28+VLOOKUP(AV7,'[4]英雄技能-过程'!$A:$P,15,0)*T7/10000*R7*(1+(AX7-1)*30%)*[4]战斗节奏!$D$28+VLOOKUP(AV7,'[4]英雄技能-过程'!$A:$P,16,0)*T7/10000*S7*(1+(AX7-1)*30%)*[4]战斗节奏!$E$28,0) -> 0 | BD7: =IFERROR(VLOOKUP(BA7,'[4]英雄技能-过程'!$A:$P,14,0)*T7/10000*Q7*(1+(BC7-1)*30%)*[4]战斗节奏!$C$28+VLOOKUP(BA7,'[4]英雄技能-过程'!$A:$P,15,0)*T7/10000*R7*(1+(BC7-1)*30%)*[4]战斗节奏!$D$28+VLOOKUP(BA7,'[4]英雄技能-过程'!$A:$P,16,0)*T7/10000*S7*(1+(BC7-1)*30%)*[4]战斗节奏!$E$28,0) -> 0 | BI7: =IFERROR(VLOOKUP(BF7,'[4]英雄技能-过程'!$A:$P,14,0)*T7/10000*Q7*(1+(BH7-1)*30%)*[4]战斗节奏!$C$28+VLOOKUP(BF7,'[4]英雄技能-过程'!$A:$P,15,0)*T7/10000*R7*(1+(BH7-1)*30%)*[4]战斗节奏!$D$28+VLOOKUP(BF7,'[4]英雄技能-过程'!$A:$P,16,0)*T7/10000*S7*(1+(BH7-1)*30%)*[4]战斗节奏!$E$28,0) -> 0 | BJ7: 14&110201&1&1 | BK7: 15&110501&1&1 | BL7: 2&120401&1&1
A8: 1.823529412 | B8: 6 | C8: 30 | D8: 30 | E8: 36 | F8: 0 | G8: 0 | H8: 4,100,102 | I8: 3600,3000,3000 | J8: 22 | L8: 8 | M8: 3 | N8: 552.60625 | O8: 1 | P8: 4 | Q8: 1 | R8: 1 | S8: 1 | T8: 8500 | U8: 14&110201&1&2;4&130401&1&1;2&120602&1&1 | V8: 14 | W8: 110201 | X8: 1 | Y8: 2 | Z8: =IFERROR(VLOOKUP(W8,'[4]英雄技能-过程'!$A:$P,14,0)*T8/10000*Q8*(1+(Y8-1)*30%)*[4]战斗节奏!$C$28+VLOOKUP(W8,'[4]英雄技能-过程'!$A:$P,15,0)*T8/10000*R8*(1+(Y8-1)*30%)*[4]战斗节奏!$D$28+VLOOKUP(W8,'[4]英雄技能-过程'!$A:$P,16,0)*T8/10000*S8*(1+(Y8-1)*30%)*[4]战斗节奏!$E$28,0) -> 131.21875 | AA8: 4 | AB8: 130401 | AC8: 1 | AD8: 1 | AE8: =IFERROR(VLOOKUP(AB8,'[4]英雄技能-过程'!$A:$P,14,0)*T8/10000*Q8*(1+(AD8-1)*30%)*[4]战斗节奏!$C$28+VLOOKUP(AB8,'[4]英雄技能-过程'!$A:$P,15,0)*T8/10000*R8*(1+(AD8-1)*30%)*[4]战斗节奏!$D$28+VLOOKUP(AB8,'[4]英雄技能-过程'!$A:$P,16,0)*T8/10000*S8*(1+(AD8-1)*30%)*[4]战斗节奏!$E$28,0) -> 191.25 | AF8: 2 | AG8: 120602 | AH8: 1 | AI8: 1 | AJ8: =IFERROR(VLOOKUP(AG8,'[4]英雄技能-过程'!$A:$P,14,0)*T8/10000*Q8*(1+(AI8-1)*30%)*[4]战斗节奏!$C$28+VLOOKUP(AG8,'[4]英雄技能-过程'!$A:$P,15,0)*T8/10000*R8*(1+(AI8-1)*30%)*[4]战斗节奏!$D$28+VLOOKUP(AG8,'[4]英雄技能-过程'!$A:$P,16,0)*T8/10000*S8*(1+(AI8-1)*30%)*[4]战斗节奏!$E$28,0) -> 230.1375 | AO8: =IFERROR(VLOOKUP(AL8,'[4]英雄技能-过程'!$A:$P,14,0)*T8/10000*Q8*(1+(AN8-1)*30%)*[4]战斗节奏!$C$28+VLOOKUP(AL8,'[4]英雄技能-过程'!$A:$P,15,0)*T8/10000*R8*(1+(AN8-1)*30%)*[4]战斗节奏!$D$28+VLOOKUP(AL8,'[4]英雄技能-过程'!$A:$P,16,0)*T8/10000*S8*(1+(AN8-1)*30%)*[4]战斗节奏!$E$28,0) -> 0 | AT8: =IFERROR(VLOOKUP(AQ8,'[4]英雄技能-过程'!$A:$P,14,0)*T8/10000*Q8*(1+(AS8-1)*30%)*[4]战斗节奏!$C$28+VLOOKUP(AQ8,'[4]英雄技能-过程'!$A:$P,15,0)*T8/10000*R8*(1+(AS8-1)*30%)*[4]战斗节奏!$D$28+VLOOKUP(AQ8,'[4]英雄技能-过程'!$A:$P,16,0)*T8/10000*S8*(1+(AS8-1)*30%)*[4]战斗节奏!$E$28,0) -> 0 | AY8: =IFERROR(VLOOKUP(AV8,'[4]英雄技能-过程'!$A:$P,14,0)*T8/10000*Q8*(1+(AX8-1)*30%)*[4]战斗节奏!$C$28+VLOOKUP(AV8,'[4]英雄技能-过程'!$A:$P,15,0)*T8/10000*R8*(1+(AX8-1)*30%)*[4]战斗节奏!$D$28+VLOOKUP(AV8,'[4]英雄技能-过程'!$A:$P,16,0)*T8/10000*S8*(1+(AX8-1)*30%)*[4]战斗节奏!$E$28,0) -> 0 | BD8: =IFERROR(VLOOKUP(BA8,'[4]英雄技能-过程'!$A:$P,14,0)*T8/10000*Q8*(1+(BC8-1)*30%)*[4]战斗节奏!$C$28+VLOOKUP(BA8,'[4]英雄技能-过程'!$A:$P,15,0)*T8/10000*R8*(1+(BC8-1)*30%)*[4]战斗节奏!$D$28+VLOOKUP(BA8,'[4]英雄技能-过程'!$A:$P,16,0)*T8/10000*S8*(1+(BC8-1)*30%)*[4]战斗节奏!$E$28,0) -> 0 | BI8: =IFERROR(VLOOKUP(BF8,'[4]英雄技能-过程'!$A:$P,14,0)*T8/10000*Q8*(1+(BH8-1)*30%)*[4]战斗节奏!$C$28+VLOOKUP(BF8,'[4]英雄技能-过程'!$A:$P,15,0)*T8/10000*R8*(1+(BH8-1)*30%)*[4]战斗节奏!$D$28+VLOOKUP(BF8,'[4]英雄技能-过程'!$A:$P,16,0)*T8/10000*S8*(1+(BH8-1)*30%)*[4]战斗节奏!$E$28,0) -> 0 | BJ8: 14&110201&1&2 | BK8: 4&130401&1&1 | BL8: 2&120602&1&1
A9: 1.64516129 | B9: 7 | C9: 50 | D9: 50 | E9: 60 | F9: 0 | G9: 0 | H9: 4,100,102 | I9: 6000,5000,5000 | J9: 35 | L9: 15 | M9: 3 | N9: 534.9015 | O9: 1 | P9: 5 | Q9: 1 | R9: 1 | S9: 1 | T9: 9000 | U9: 14&110201&1&3;15&110402&1&2;4&130401&1&1 | V9: 14 | W9: 110201 | X9: 1 | Y9: 3 | Z9: =IFERROR(VLOOKUP(W9,'[4]英雄技能-过程'!$A:$P,14,0)*T9/10000*Q9*(1+(Y9-1)*30%)*[4]战斗节奏!$C$28+VLOOKUP(W9,'[4]英雄技能-过程'!$A:$P,15,0)*T9/10000*R9*(1+(Y9-1)*30%)*[4]战斗节奏!$D$28+VLOOKUP(W9,'[4]英雄技能-过程'!$A:$P,16,0)*T9/10000*S9*(1+(Y9-1)*30%)*[4]战斗节奏!$E$28,0) -> 171 | AA9: 15 | AB9: 110402 | AC9: 1 | AD9: 2 | AE9: =IFERROR(VLOOKUP(AB9,'[4]英雄技能-过程'!$A:$P,14,0)*T9/10000*Q9*(1+(AD9-1)*30%)*[4]战斗节奏!$C$28+VLOOKUP(AB9,'[4]英雄技能-过程'!$A:$P,15,0)*T9/10000*R9*(1+(AD9-1)*30%)*[4]战斗节奏!$D$28+VLOOKUP(AB9,'[4]英雄技能-过程'!$A:$P,16,0)*T9/10000*S9*(1+(AD9-1)*30%)*[4]战斗节奏!$E$28,0) -> 161.4015 | AF9: 4 | AG9: 130401 | AH9: 1 | AI9: 1 | AJ9: =IFERROR(VLOOKUP(AG9,'[4]英雄技能-过程'!$A:$P,14,0)*T9/10000*Q9*(1+(AI9-1)*30%)*[4]战斗节奏!$C$28+VLOOKUP(AG9,'[4]英雄技能-过程'!$A:$P,15,0)*T9/10000*R9*(1+(AI9-1)*30%)*[4]战斗节奏!$D$28+VLOOKUP(AG9,'[4]英雄技能-过程'!$A:$P,16,0)*T9/10000*S9*(1+(AI9-1)*30%)*[4]战斗节奏!$E$28,0) -> 202.5 | AO9: =IFERROR(VLOOKUP(AL9,'[4]英雄技能-过程'!$A:$P,14,0)*T9/10000*Q9*(1+(AN9-1)*30%)*[4]战斗节奏!$C$28+VLOOKUP(AL9,'[4]英雄技能-过程'!$A:$P,15,0)*T9/10000*R9*(1+(AN9-1)*30%)*[4]战斗节奏!$D$28+VLOOKUP(AL9,'[4]英雄技能-过程'!$A:$P,16,0)*T9/10000*S9*(1+(AN9-1)*30%)*[4]战斗节奏!$E$28,0) -> 0 | AT9: =IFERROR(VLOOKUP(AQ9,'[4]英雄技能-过程'!$A:$P,14,0)*T9/10000*Q9*(1+(AS9-1)*30%)*[4]战斗节奏!$C$28+VLOOKUP(AQ9,'[4]英雄技能-过程'!$A:$P,15,0)*T9/10000*R9*(1+(AS9-1)*30%)*[4]战斗节奏!$D$28+VLOOKUP(AQ9,'[4]英雄技能-过程'!$A:$P,16,0)*T9/10000*S9*(1+(AS9-1)*30%)*[4]战斗节奏!$E$28,0) -> 0 | AY9: =IFERROR(VLOOKUP(AV9,'[4]英雄技能-过程'!$A:$P,14,0)*T9/10000*Q9*(1+(AX9-1)*30%)*[4]战斗节奏!$C$28+VLOOKUP(AV9,'[4]英雄技能-过程'!$A:$P,15,0)*T9/10000*R9*(1+(AX9-1)*30%)*[4]战斗节奏!$D$28+VLOOKUP(AV9,'[4]英雄技能-过程'!$A:$P,16,0)*T9/10000*S9*(1+(AX9-1)*30%)*[4]战斗节奏!$E$28,0) -> 0 | BD9: =IFERROR(VLOOKUP(BA9,'[4]英雄技能-过程'!$A:$P,14,0)*T9/10000*Q9*(1+(BC9-1)*30%)*[4]战斗节奏!$C$28+VLOOKUP(BA9,'[4]英雄技能-过程'!$A:$P,15,0)*T9/10000*R9*(1+(BC9-1)*30%)*[4]战斗节奏!$D$28+VLOOKUP(BA9,'[4]英雄技能-过程'!$A:$P,16,0)*T9/10000*S9*(1+(BC9-1)*30%)*[4]战斗节奏!$E$28,0) -> 0 | BI9: =IFERROR(VLOOKUP(BF9,'[4]英雄技能-过程'!$A:$P,14,0)*T9/10000*Q9*(1+(BH9-1)*30%)*[4]战斗节奏!$C$28+VLOOKUP(BF9,'[4]英雄技能-过程'!$A:$P,15,0)*T9/10000*R9*(1+(BH9-1)*30%)*[4]战斗节奏!$D$28+VLOOKUP(BF9,'[4]英雄技能-过程'!$A:$P,16,0)*T9/10000*S9*(1+(BH9-1)*30%)*[4]战斗节奏!$E$28,0) -> 0 | BJ9: 14&110201&1&3 | BK9: 15&110402&1&2 | BL9: 4&130401&1&1
A10: =(C10+1)/(C9+1) -> 1.647058824 | B10: 8 | C10: 83 | D10: =C10 -> 83 | E10: 99.6 | F10: 0 | G10: 0 | H10: 4,100,102 | I10: 9960,8300,8300 | J10: 54 | L10: 29 | M10: 4 | N10: 700.2315 | O10: 1 | P10: 6 | Q10: 1 | R10: 1 | S10: 1 | T10: 9000 | U10: 14&110201&1&3;13&110402&1&2;1&110501&1&1;4&120602&1&1 | V10: 14 | W10: 110201 | X10: 1 | Y10: 3 | Z10: =IFERROR(VLOOKUP(W10,'[4]英雄技能-过程'!$A:$P,14,0)*T10/10000*Q10*(1+(Y10-1)*30%)*[4]战斗节奏!$C$28+VLOOKUP(W10,'[4]英雄技能-过程'!$A:$P,15,0)*T10/10000*R10*(1+(Y10-1)*30%)*[4]战斗节奏!$D$28+VLOOKUP(W10,'[4]英雄技能-过程'!$A:$P,16,0)*T10/10000*S10*(1+(Y10-1)*30%)*[4]战斗节奏!$E$28,0) -> 171 | AA10: 13 | AB10: 110402 | AC10: 1 | AD10: 2 | AE10: =IFERROR(VLOOKUP(AB10,'[4]英雄技能-过程'!$A:$P,14,0)*T10/10000*Q10*(1+(AD10-1)*30%)*[4]战斗节奏!$C$28+VLOOKUP(AB10,'[4]英雄技能-过程'!$A:$P,15,0)*T10/10000*R10*(1+(AD10-1)*30%)*[4]战斗节奏!$D$28+VLOOKUP(AB10,'[4]英雄技能-过程'!$A:$P,16,0)*T10/10000*S10*(1+(AD10-1)*30%)*[4]战斗节奏!$E$28,0) -> 161.4015 | AF10: 1 | AG10: 110501 | AH10: 1 | AI10: 1 | AJ10: =IFERROR(VLOOKUP(AG10,'[4]英雄技能-过程'!$A:$P,14,0)*T10/10000*Q10*(1+(AI10-1)*30%)*[4]战斗节奏!$C$28+VLOOKUP(AG10,'[4]英雄技能-过程'!$A:$P,15,0)*T10/10000*R10*(1+(AI10-1)*30%)*[4]战斗节奏!$D$28+VLOOKUP(AG10,'[4]英雄技能-过程'!$A:$P,16,0)*T10/10000*S10*(1+(AI10-1)*30%)*[4]战斗节奏!$E$28,0) -> 124.155 | AK10: 4 | AL10: 120602 | AM10: 1 | AN10: 1 | AO10: =IFERROR(VLOOKUP(AL10,'[4]英雄技能-过程'!$A:$P,14,0)*T10/10000*Q10*(1+(AN10-1)*30%)*[4]战斗节奏!$C$28+VLOOKUP(AL10,'[4]英雄技能-过程'!$A:$P,15,0)*T10/10000*R10*(1+(AN10-1)*30%)*[4]战斗节奏!$D$28+VLOOKUP(AL10,'[4]英雄技能-过程'!$A:$P,16,0)*T10/10000*S10*(1+(AN10-1)*30%)*[4]战斗节奏!$E$28,0) -> 243.675 | AT10: =IFERROR(VLOOKUP(AQ10,'[4]英雄技能-过程'!$A:$P,14,0)*T10/10000*Q10*(1+(AS10-1)*30%)*[4]战斗节奏!$C$28+VLOOKUP(AQ10,'[4]英雄技能-过程'!$A:$P,15,0)*T10/10000*R10*(1+(AS10-1)*30%)*[4]战斗节奏!$D$28+VLOOKUP(AQ10,'[4]英雄技能-过程'!$A:$P,16,0)*T10/10000*S10*(1+(AS10-1)*30%)*[4]战斗节奏!$E$28,0) -> 0 | AY10: =IFERROR(VLOOKUP(AV10,'[4]英雄技能-过程'!$A:$P,14,0)*T10/10000*Q10*(1+(AX10-1)*30%)*[4]战斗节奏!$C$28+VLOOKUP(AV10,'[4]英雄技能-过程'!$A:$P,15,0)*T10/10000*R10*(1+(AX10-1)*30%)*[4]战斗节奏!$D$28+VLOOKUP(AV10,'[4]英雄技能-过程'!$A:$P,16,0)*T10/10000*S10*(1+(AX10-1)*30%)*[4]战斗节奏!$E$28,0) -> 0 | BD10: =IFERROR(VLOOKUP(BA10,'[4]英雄技能-过程'!$A:$P,14,0)*T10/10000*Q10*(1+(BC10-1)*30%)*[4]战斗节奏!$C$28+VLOOKUP(BA10,'[4]英雄技能-过程'!$A:$P,15,0)*T10/10000*R10*(1+(BC10-1)*30%)*[4]战斗节奏!$D$28+VLOOKUP(BA10,'[4]英雄技能-过程'!$A:$P,16,0)*T10/10000*S10*(1+(BC10-1)*30%)*[4]战斗节奏!$E$28,0) -> 0 | BI10: =IFERROR(VLOOKUP(BF10,'[4]英雄技能-过程'!$A:$P,14,0)*T10/10000*Q10*(1+(BH10-1)*30%)*[4]战斗节奏!$C$28+VLOOKUP(BF10,'[4]英雄技能-过程'!$A:$P,15,0)*T10/10000*R10*(1+(BH10-1)*30%)*[4]战斗节奏!$D$28+VLOOKUP(BF10,'[4]英雄技能-过程'!$A:$P,16,0)*T10/10000*S10*(1+(BH10-1)*30%)*[4]战斗节奏!$E$28,0) -> 0 | BJ10: 14&110201&1&3 | BK10: 13&110402&1&2 | BL10: 1&110501&1&1 | BM10: 4&120602&1&1
A11: 1.55952381 | B11: 9 | C11: 130 | D11: 130 | E11: 156 | F11: 0 | G11: 0 | H11: 4,100,102 | I11: 15600,13000,13000 | J11: 81 | K11: 135 | L11: 49 | M11: 4 | N11: 905.179 | O11: 1 | P11: 7 | Q11: 1 | R11: 1 | S11: 1 | T11: 9500 | U11: 13&110402&1&3;1&110201&1&2;4&120602&1&2;2&120401&1&1 | V11: 13 | W11: 110402 | X11: 1 | Y11: 3 | Z11: =IFERROR(VLOOKUP(W11,'[4]英雄技能-过程'!$A:$P,14,0)*T11/10000*Q11*(1+(Y11-1)*30%)*[4]战斗节奏!$C$28+VLOOKUP(W11,'[4]英雄技能-过程'!$A:$P,15,0)*T11/10000*R11*(1+(Y11-1)*30%)*[4]战斗节奏!$D$28+VLOOKUP(W11,'[4]英雄技能-过程'!$A:$P,16,0)*T11/10000*S11*(1+(Y11-1)*30%)*[4]战斗节奏!$E$28,0) -> 209.684 | AA11: 1 | AB11: 110201 | AC11: 1 | AD11: 2 | AE11: =IFERROR(VLOOKUP(AB11,'[4]英雄技能-过程'!$A:$P,14,0)*T11/10000*Q11*(1+(AD11-1)*30%)*[4]战斗节奏!$C$28+VLOOKUP(AB11,'[4]英雄技能-过程'!$A:$P,15,0)*T11/10000*R11*(1+(AD11-1)*30%)*[4]战斗节奏!$D$28+VLOOKUP(AB11,'[4]英雄技能-过程'!$A:$P,16,0)*T11/10000*S11*(1+(AD11-1)*30%)*[4]战斗节奏!$E$28,0) -> 146.65625 | AF11: 4 | AG11: 120602 | AH11: 1 | AI11: 2 | AJ11: =IFERROR(VLOOKUP(AG11,'[4]英雄技能-过程'!$A:$P,14,0)*T11/10000*Q11*(1+(AI11-1)*30%)*[4]战斗节奏!$C$28+VLOOKUP(AG11,'[4]英雄技能-过程'!$A:$P,15,0)*T11/10000*R11*(1+(AI11-1)*30%)*[4]战斗节奏!$D$28+VLOOKUP(AG11,'[4]英雄技能-过程'!$A:$P,16,0)*T11/10000*S11*(1+(AI11-1)*30%)*[4]战斗节奏!$E$28,0) -> 334.37625 | AK11: 2 | AL11: 120401 | AM11: 1 | AN11: 1 | AO11: =IFERROR(VLOOKUP(AL11,'[4]英雄技能-过程'!$A:$P,14,0)*T11/10000*Q11*(1+(AN11-1)*30%)*[4]战斗节奏!$C$28+VLOOKUP(AL11,'[4]英雄技能-过程'!$A:$P,15,0)*T11/10000*R11*(1+(AN11-1)*30%)*[4]战斗节奏!$D$28+VLOOKUP(AL11,'[4]英雄技能-过程'!$A:$P,16,0)*T11/10000*S11*(1+(AN11-1)*30%)*[4]战斗节奏!$E$28,0) -> 214.4625 | AT11: =IFERROR(VLOOKUP(AQ11,'[4]英雄技能-过程'!$A:$P,14,0)*T11/10000*Q11*(1+(AS11-1)*30%)*[4]战斗节奏!$C$28+VLOOKUP(AQ11,'[4]英雄技能-过程'!$A:$P,15,0)*T11/10000*R11*(1+(AS11-1)*30%)*[4]战斗节奏!$D$28+VLOOKUP(AQ11,'[4]英雄技能-过程'!$A:$P,16,0)*T11/10000*S11*(1+(AS11-1)*30%)*[4]战斗节奏!$E$28,0) -> 0 | AY11: =IFERROR(VLOOKUP(AV11,'[4]英雄技能-过程'!$A:$P,14,0)*T11/10000*Q11*(1+(AX11-1)*30%)*[4]战斗节奏!$C$28+VLOOKUP(AV11,'[4]英雄技能-过程'!$A:$P,15,0)*T11/10000*R11*(1+(AX11-1)*30%)*[4]战斗节奏!$D$28+VLOOKUP(AV11,'[4]英雄技能-过程'!$A:$P,16,0)*T11/10000*S11*(1+(AX11-1)*30%)*[4]战斗节奏!$E$28,0) -> 0 | BD11: =IFERROR(VLOOKUP(BA11,'[4]英雄技能-过程'!$A:$P,14,0)*T11/10000*Q11*(1+(BC11-1)*30%)*[4]战斗节奏!$C$28+VLOOKUP(BA11,'[4]英雄技能-过程'!$A:$P,15,0)*T11/10000*R11*(1+(BC11-1)*30%)*[4]战斗节奏!$D$28+VLOOKUP(BA11,'[4]英雄技能-过程'!$A:$P,16,0)*T11/10000*S11*(1+(BC11-1)*30%)*[4]战斗节奏!$E$28,0) -> 0 | BI11: =IFERROR(VLOOKUP(BF11,'[4]英雄技能-过程'!$A:$P,14,0)*T11/10000*Q11*(1+(BH11-1)*30%)*[4]战斗节奏!$C$28+VLOOKUP(BF11,'[4]英雄技能-过程'!$A:$P,15,0)*T11/10000*R11*(1+(BH11-1)*30%)*[4]战斗节奏!$D$28+VLOOKUP(BF11,'[4]英雄技能-过程'!$A:$P,16,0)*T11/10000*S11*(1+(BH11-1)*30%)*[4]战斗节奏!$E$28,0) -> 0 | BJ11: 13&110402&1&3 | BK11: 1&110201&1&2 | BL11: 4&120602&1&2 | BM11: 2&120401&1&1
A12: 1.34351145 | B12: 10 | C12: =C11+45 -> 175 | D12: 175 | E12: 210 | F12: 0.1 | G12: 0 | H12: 4,100,102 | I12: 21000,17500,17500 | J12: 122 | K12: =K11+45 -> 180 | L12: 53 | M12: 4 | N12: 993.22975 | O12: 1 | P12: 8 | Q12: 1 | R12: 1 | S12: 1 | T12: 9500 | U12: 14&110501&1&3;12&110402&1&2;4&120602&1&2;2&120401&1&2 | V12: 14 | W12: 110501 | X12: 1 | Y12: 3 | Z12: =IFERROR(VLOOKUP(W12,'[4]英雄技能-过程'!$A:$P,14,0)*T12/10000*Q12*(1+(Y12-1)*30%)*[4]战斗节奏!$C$28+VLOOKUP(W12,'[4]英雄技能-过程'!$A:$P,15,0)*T12/10000*R12*(1+(Y12-1)*30%)*[4]战斗节奏!$D$28+VLOOKUP(W12,'[4]英雄技能-过程'!$A:$P,16,0)*T12/10000*S12*(1+(Y12-1)*30%)*[4]战斗节奏!$E$28,0) -> 209.684 | AA12: 12 | AB12: 110402 | AC12: 1 | AD12: 2 | AE12: =IFERROR(VLOOKUP(AB12,'[4]英雄技能-过程'!$A:$P,14,0)*T12/10000*Q12*(1+(AD12-1)*30%)*[4]战斗节奏!$C$28+VLOOKUP(AB12,'[4]英雄技能-过程'!$A:$P,15,0)*T12/10000*R12*(1+(AD12-1)*30%)*[4]战斗节奏!$D$28+VLOOKUP(AB12,'[4]英雄技能-过程'!$A:$P,16,0)*T12/10000*S12*(1+(AD12-1)*30%)*[4]战斗节奏!$E$28,0) -> 170.36825 | AF12: 4 | AG12: 120602 | AH12: 1 | AI12: 2 | AJ12: =IFERROR(VLOOKUP(AG12,'[4]英雄技能-过程'!$A:$P,14,0)*T12/10000*Q12*(1+(AI12-1)*30%)*[4]战斗节奏!$C$28+VLOOKUP(AG12,'[4]英雄技能-过程'!$A:$P,15,0)*T12/10000*R12*(1+(AI12-1)*30%)*[4]战斗节奏!$D$28+VLOOKUP(AG12,'[4]英雄技能-过程'!$A:$P,16,0)*T12/10000*S12*(1+(AI12-1)*30%)*[4]战斗节奏!$E$28,0) -> 334.37625 | AK12: 2 | AL12: 120401 | AM12: 1 | AN12: 2 | AO12: =IFERROR(VLOOKUP(AL12,'[4]英雄技能-过程'!$A:$P,14,0)*T12/10000*Q12*(1+(AN12-1)*30%)*[4]战斗节奏!$C$28+VLOOKUP(AL12,'[4]英雄技能-过程'!$A:$P,15,0)*T12/10000*R12*(1+(AN12-1)*30%)*[4]战斗节奏!$D$28+VLOOKUP(AL12,'[4]英雄技能-过程'!$A:$P,16,0)*T12/10000*S12*(1+(AN12-1)*30%)*[4]战斗节奏!$E$28,0) -> 278.80125 | AT12: =IFERROR(VLOOKUP(AQ12,'[4]英雄技能-过程'!$A:$P,14,0)*T12/10000*Q12*(1+(AS12-1)*30%)*[4]战斗节奏!$C$28+VLOOKUP(AQ12,'[4]英雄技能-过程'!$A:$P,15,0)*T12/10000*R12*(1+(AS12-1)*30%)*[4]战斗节奏!$D$28+VLOOKUP(AQ12,'[4]英雄技能-过程'!$A:$P,16,0)*T12/10000*S12*(1+(AS12-1)*30%)*[4]战斗节奏!$E$28,0) -> 0 | AY12: =IFERROR(VLOOKUP(AV12,'[4]英雄技能-过程'!$A:$P,14,0)*T12/10000*Q12*(1+(AX12-1)*30%)*[4]战斗节奏!$C$28+VLOOKUP(AV12,'[4]英雄技能-过程'!$A:$P,15,0)*T12/10000*R12*(1+(AX12-1)*30%)*[4]战斗节奏!$D$28+VLOOKUP(AV12,'[4]英雄技能-过程'!$A:$P,16,0)*T12/10000*S12*(1+(AX12-1)*30%)*[4]战斗节奏!$E$28,0) -> 0 | BD12: =IFERROR(VLOOKUP(BA12,'[4]英雄技能-过程'!$A:$P,14,0)*T12/10000*Q12*(1+(BC12-1)*30%)*[4]战斗节奏!$C$28+VLOOKUP(BA12,'[4]英雄技能-过程'!$A:$P,15,0)*T12/10000*R12*(1+(BC12-1)*30%)*[4]战斗节奏!$D$28+VLOOKUP(BA12,'[4]英雄技能-过程'!$A:$P,16,0)*T12/10000*S12*(1+(BC12-1)*30%)*[4]战斗节奏!$E$28,0) -> 0 | BI12: =IFERROR(VLOOKUP(BF12,'[4]英雄技能-过程'!$A:$P,14,0)*T12/10000*Q12*(1+(BH12-1)*30%)*[4]战斗节奏!$C$28+VLOOKUP(BF12,'[4]英雄技能-过程'!$A:$P,15,0)*T12/10000*R12*(1+(BH12-1)*30%)*[4]战斗节奏!$D$28+VLOOKUP(BF12,'[4]英雄技能-过程'!$A:$P,16,0)*T12/10000*S12*(1+(BH12-1)*30%)*[4]战斗节奏!$E$28,0) -> 0 | BJ12: 14&110501&1&3 | BK12: 12&110402&1&2 | BL12: 4&120602&1&2 | BM12: 2&120401&1&2
A13: 1.284090909 | B13: 11 | C13: =C12+50 -> 225 | D13: 225 | E13: =D13*1.3 -> 292.5 | F13: 0.15 | G13: 0.03 | H13: 4,100,102 | I13: 29250,22500,22500 | J13: 171 | K13: =K12+50 -> 230 | L13: 54 | M13: 5 | N13: 1194.49 | O13: 1 | P13: 9 | Q13: 1 | R13: 1 | S13: 1 | T13: 10000 | U13: 14&110501&1&3;12&110402&1&2;18&430301&1&2;4&120602&1&2;2&120401&1&1 | V13: 14 | W13: 110501 | X13: 1 | Y13: 3 | Z13: =IFERROR(VLOOKUP(W13,'[4]英雄技能-过程'!$A:$P,14,0)*T13/10000*Q13*(1+(Y13-1)*30%)*[4]战斗节奏!$C$28+VLOOKUP(W13,'[4]英雄技能-过程'!$A:$P,15,0)*T13/10000*R13*(1+(Y13-1)*30%)*[4]战斗节奏!$D$28+VLOOKUP(W13,'[4]英雄技能-过程'!$A:$P,16,0)*T13/10000*S13*(1+(Y13-1)*30%)*[4]战斗节奏!$E$28,0) -> 220.72 | AA13: 12 | AB13: 110402 | AC13: 1 | AD13: 2 | AE13: =IFERROR(VLOOKUP(AB13,'[4]英雄技能-过程'!$A:$P,14,0)*T13/10000*Q13*(1+(AD13-1)*30%)*[4]战斗节奏!$C$28+VLOOKUP(AB13,'[4]英雄技能-过程'!$A:$P,15,0)*T13/10000*R13*(1+(AD13-1)*30%)*[4]战斗节奏!$D$28+VLOOKUP(AB13,'[4]英雄技能-过程'!$A:$P,16,0)*T13/10000*S13*(1+(AD13-1)*30%)*[4]战斗节奏!$E$28,0) -> 179.335 | AF13: 18 | AG13: 430301 | AH13: 1 | AI13: 2 | AJ13: =IFERROR(VLOOKUP(AG13,'[4]英雄技能-过程'!$A:$P,14,0)*T13/10000*Q13*(1+(AI13-1)*30%)*[4]战斗节奏!$C$28+VLOOKUP(AG13,'[4]英雄技能-过程'!$A:$P,15,0)*T13/10000*R13*(1+(AI13-1)*30%)*[4]战斗节奏!$D$28+VLOOKUP(AG13,'[4]英雄技能-过程'!$A:$P,16,0)*T13/10000*S13*(1+(AI13-1)*30%)*[4]战斗节奏!$E$28,0) -> 216.71 | AK13: 4 | AL13: 120602 | AM13: 1 | AN13: 2 | AO13: =IFERROR(VLOOKUP(AL13,'[4]英雄技能-过程'!$A:$P,14,0)*T13/10000*Q13*(1+(AN13-1)*30%)*[4]战斗节奏!$C$28+VLOOKUP(AL13,'[4]英雄技能-过程'!$A:$P,15,0)*T13/10000*R13*(1+(AN13-1)*30%)*[4]战斗节奏!$D$28+VLOOKUP(AL13,'[4]英雄技能-过程'!$A:$P,16,0)*T13/10000*S13*(1+(AN13-1)*30%)*[4]战斗节奏!$E$28,0) -> 351.975 | AP13: 2 | AQ13: 120401 | AR13: 1 | AS13: 1 | AT13: =IFERROR(VLOOKUP(AQ13,'[4]英雄技能-过程'!$A:$P,14,0)*T13/10000*Q13*(1+(AS13-1)*30%)*[4]战斗节奏!$C$28+VLOOKUP(AQ13,'[4]英雄技能-过程'!$A:$P,15,0)*T13/10000*R13*(1+(AS13-1)*30%)*[4]战斗节奏!$D$28+VLOOKUP(AQ13,'[4]英雄技能-过程'!$A:$P,16,0)*T13/10000*S13*(1+(AS13-1)*30%)*[4]战斗节奏!$E$28,0) -> 225.75 | AY13: =IFERROR(VLOOKUP(AV13,'[4]英雄技能-过程'!$A:$P,14,0)*T13/10000*Q13*(1+(AX13-1)*30%)*[4]战斗节奏!$C$28+VLOOKUP(AV13,'[4]英雄技能-过程'!$A:$P,15,0)*T13/10000*R13*(1+(AX13-1)*30%)*[4]战斗节奏!$D$28+VLOOKUP(AV13,'[4]英雄技能-过程'!$A:$P,16,0)*T13/10000*S13*(1+(AX13-1)*30%)*[4]战斗节奏!$E$28,0) -> 0 | BD13: =IFERROR(VLOOKUP(BA13,'[4]英雄技能-过程'!$A:$P,14,0)*T13/10000*Q13*(1+(BC13-1)*30%)*[4]战斗节奏!$C$28+VLOOKUP(BA13,'[4]英雄技能-过程'!$A:$P,15,0)*T13/10000*R13*(1+(BC13-1)*30%)*[4]战斗节奏!$D$28+VLOOKUP(BA13,'[4]英雄技能-过程'!$A:$P,16,0)*T13/10000*S13*(1+(BC13-1)*30%)*[4]战斗节奏!$E$28,0) -> 0 | BI13: =IFERROR(VLOOKUP(BF13,'[4]英雄技能-过程'!$A:$P,14,0)*T13/10000*Q13*(1+(BH13-1)*30%)*[4]战斗节奏!$C$28+VLOOKUP(BF13,'[4]英雄技能-过程'!$A:$P,15,0)*T13/10000*R13*(1+(BH13-1)*30%)*[4]战斗节奏!$D$28+VLOOKUP(BF13,'[4]英雄技能-过程'!$A:$P,16,0)*T13/10000*S13*(1+(BH13-1)*30%)*[4]战斗节奏!$E$28,0) -> 0 | BJ13: 14&110501&1&3 | BK13: 12&110402&1&2 | BL13: 18&430301&1&2 | BM13: 4&120602&1&2 | BN13: 2&120401&1&1
A14: 1.221238938 | B14: 12 | C14: =C13+50 -> 275 | D14: 275 | E14: 357.5 | F14: 0.15 | G14: 0.03 | H14: 4,100,102 | I14: 35750,27500,27500 | J14: 231 | K14: =K13+50 -> 280 | L14: 44 | M14: 5 | N14: 1316.99 | O14: 1 | P14: 10 | Q14: 1 | R14: 1 | S14: 1 | T14: 10000 | U14: 12&110402&1&4;16&110201&1&2;18&430301&1&2;2&120401&1&2;5&130603&1&2 | V14: 12 | W14: 110402 | X14: 1 | Y14: 4 | Z14: =IFERROR(VLOOKUP(W14,'[4]英雄技能-过程'!$A:$P,14,0)*T14/10000*Q14*(1+(Y14-1)*30%)*[4]战斗节奏!$C$28+VLOOKUP(W14,'[4]英雄技能-过程'!$A:$P,15,0)*T14/10000*R14*(1+(Y14-1)*30%)*[4]战斗节奏!$D$28+VLOOKUP(W14,'[4]英雄技能-过程'!$A:$P,16,0)*T14/10000*S14*(1+(Y14-1)*30%)*[4]战斗节奏!$E$28,0) -> 262.105 | AA14: 16 | AB14: 110201 | AC14: 1 | AD14: 2 | AE14: =IFERROR(VLOOKUP(AB14,'[4]英雄技能-过程'!$A:$P,14,0)*T14/10000*Q14*(1+(AD14-1)*30%)*[4]战斗节奏!$C$28+VLOOKUP(AB14,'[4]英雄技能-过程'!$A:$P,15,0)*T14/10000*R14*(1+(AD14-1)*30%)*[4]战斗节奏!$D$28+VLOOKUP(AB14,'[4]英雄技能-过程'!$A:$P,16,0)*T14/10000*S14*(1+(AD14-1)*30%)*[4]战斗节奏!$E$28,0) -> 154.375 | AF14: 18 | AG14: 430301 | AH14: 1 | AI14: 2 | AJ14: =IFERROR(VLOOKUP(AG14,'[4]英雄技能-过程'!$A:$P,14,0)*T14/10000*Q14*(1+(AI14-1)*30%)*[4]战斗节奏!$C$28+VLOOKUP(AG14,'[4]英雄技能-过程'!$A:$P,15,0)*T14/10000*R14*(1+(AI14-1)*30%)*[4]战斗节奏!$D$28+VLOOKUP(AG14,'[4]英雄技能-过程'!$A:$P,16,0)*T14/10000*S14*(1+(AI14-1)*30%)*[4]战斗节奏!$E$28,0) -> 216.71 | AK14: 2 | AL14: 120401 | AM14: 1 | AN14: 2 | AO14: =IFERROR(VLOOKUP(AL14,'[4]英雄技能-过程'!$A:$P,14,0)*T14/10000*Q14*(1+(AN14-1)*30%)*[4]战斗节奏!$C$28+VLOOKUP(AL14,'[4]英雄技能-过程'!$A:$P,15,0)*T14/10000*R14*(1+(AN14-1)*30%)*[4]战斗节奏!$D$28+VLOOKUP(AL14,'[4]英雄技能-过程'!$A:$P,16,0)*T14/10000*S14*(1+(AN14-1)*30%)*[4]战斗节奏!$E$28,0) -> 293.475 | AP14: 5 | AQ14: 130603 | AR14: 1 | AS14: 2 | AT14: =IFERROR(VLOOKUP(AQ14,'[4]英雄技能-过程'!$A:$P,14,0)*T14/10000*Q14*(1+(AS14-1)*30%)*[4]战斗节奏!$C$28+VLOOKUP(AQ14,'[4]英雄技能-过程'!$A:$P,15,0)*T14/10000*R14*(1+(AS14-1)*30%)*[4]战斗节奏!$D$28+VLOOKUP(AQ14,'[4]英雄技能-过程'!$A:$P,16,0)*T14/10000*S14*(1+(AS14-1)*30%)*[4]战斗节奏!$E$28,0) -> 390.325 | AY14: =IFERROR(VLOOKUP(AV14,'[4]英雄技能-过程'!$A:$P,14,0)*T14/10000*Q14*(1+(AX14-1)*30%)*[4]战斗节奏!$C$28+VLOOKUP(AV14,'[4]英雄技能-过程'!$A:$P,15,0)*T14/10000*R14*(1+(AX14-1)*30%)*[4]战斗节奏!$D$28+VLOOKUP(AV14,'[4]英雄技能-过程'!$A:$P,16,0)*T14/10000*S14*(1+(AX14-1)*30%)*[4]战斗节奏!$E$28,0) -> 0 | BD14: =IFERROR(VLOOKUP(BA14,'[4]英雄技能-过程'!$A:$P,14,0)*T14/10000*Q14*(1+(BC14-1)*30%)*[4]战斗节奏!$C$28+VLOOKUP(BA14,'[4]英雄技能-过程'!$A:$P,15,0)*T14/10000*R14*(1+(BC14-1)*30%)*[4]战斗节奏!$D$28+VLOOKUP(BA14,'[4]英雄技能-过程'!$A:$P,16,0)*T14/10000*S14*(1+(BC14-1)*30%)*[4]战斗节奏!$E$28,0) -> 0 | BI14: =IFERROR(VLOOKUP(BF14,'[4]英雄技能-过程'!$A:$P,14,0)*T14/10000*Q14*(1+(BH14-1)*30%)*[4]战斗节奏!$C$28+VLOOKUP(BF14,'[4]英雄技能-过程'!$A:$P,15,0)*T14/10000*R14*(1+(BH14-1)*30%)*[4]战斗节奏!$D$28+VLOOKUP(BF14,'[4]英雄技能-过程'!$A:$P,16,0)*T14/10000*S14*(1+(BH14-1)*30%)*[4]战斗节奏!$E$28,0) -> 0 | BJ14: 12&110402&1&4 | BK14: 16&110201&1&2 | BL14: 18&430301&1&2 | BM14: 2&120401&1&2 | BN14: 5&130603&1&2
A15: 1.18115942 | B15: 13 | C15: =C14+50 -> 325 | D15: 325 | E15: 422.5 | F15: 0.15 | G15: 0.03 | H15: 4,100,102 | I15: 42250,32500,32500 | J15: 300 | K15: =K14+50 -> 330 | L15: 25 | M15: 6 | N15: 1476.5625 | O15: 1 | P15: 11 | Q15: 1 | R15: 1 | S15: 1 | T15: 10500 | U15: 12&110402&1&4;16&110501&1&2;18&430301&1&2;13&140201&1&2;2&120401&1&2;5&130603&1&1 | V15: 12 | W15: 110402 | X15: 1 | Y15: 4 | Z15: =IFERROR(VLOOKUP(W15,'[4]英雄技能-过程'!$A:$P,14,0)*T15/10000*Q15*(1+(Y15-1)*30%)*[4]战斗节奏!$C$28+VLOOKUP(W15,'[4]英雄技能-过程'!$A:$P,15,0)*T15/10000*R15*(1+(Y15-1)*30%)*[4]战斗节奏!$D$28+VLOOKUP(W15,'[4]英雄技能-过程'!$A:$P,16,0)*T15/10000*S15*(1+(Y15-1)*30%)*[4]战斗节奏!$E$28,0) -> 275.21025 | AA15: 16 | AB15: 110501 | AC15: 1 | AD15: 2 | AE15: =IFERROR(VLOOKUP(AB15,'[4]英雄技能-过程'!$A:$P,14,0)*T15/10000*Q15*(1+(AD15-1)*30%)*[4]战斗节奏!$C$28+VLOOKUP(AB15,'[4]英雄技能-过程'!$A:$P,15,0)*T15/10000*R15*(1+(AD15-1)*30%)*[4]战斗节奏!$D$28+VLOOKUP(AB15,'[4]英雄技能-过程'!$A:$P,16,0)*T15/10000*S15*(1+(AD15-1)*30%)*[4]战斗节奏!$E$28,0) -> 188.30175 | AF15: 18 | AG15: 430301 | AH15: 1 | AI15: 2 | AJ15: =IFERROR(VLOOKUP(AG15,'[4]英雄技能-过程'!$A:$P,14,0)*T15/10000*Q15*(1+(AI15-1)*30%)*[4]战斗节奏!$C$28+VLOOKUP(AG15,'[4]英雄技能-过程'!$A:$P,15,0)*T15/10000*R15*(1+(AI15-1)*30%)*[4]战斗节奏!$D$28+VLOOKUP(AG15,'[4]英雄技能-过程'!$A:$P,16,0)*T15/10000*S15*(1+(AI15-1)*30%)*[4]战斗节奏!$E$28,0) -> 227.5455 | AK15: 13 | AL15: 140201 | AM15: 1 | AN15: 2 | AO15: =IFERROR(VLOOKUP(AL15,'[4]英雄技能-过程'!$A:$P,14,0)*T15/10000*Q15*(1+(AN15-1)*30%)*[4]战斗节奏!$C$28+VLOOKUP(AL15,'[4]英雄技能-过程'!$A:$P,15,0)*T15/10000*R15*(1+(AN15-1)*30%)*[4]战斗节奏!$D$28+VLOOKUP(AL15,'[4]英雄技能-过程'!$A:$P,16,0)*T15/10000*S15*(1+(AN15-1)*30%)*[4]战斗节奏!$E$28,0) -> 162.09375 | AP15: 2 | AQ15: 120401 | AR15: 1 | AS15: 2 | AT15: =IFERROR(VLOOKUP(AQ15,'[4]英雄技能-过程'!$A:$P,14,0)*T15/10000*Q15*(1+(AS15-1)*30%)*[4]战斗节奏!$C$28+VLOOKUP(AQ15,'[4]英雄技能-过程'!$A:$P,15,0)*T15/10000*R15*(1+(AS15-1)*30%)*[4]战斗节奏!$D$28+VLOOKUP(AQ15,'[4]英雄技能-过程'!$A:$P,16,0)*T15/10000*S15*(1+(AS15-1)*30%)*[4]战斗节奏!$E$28,0) -> 308.14875 | AU15: 5 | AV15: 130603 | AW15: 1 | AX15: 1 | AY15: =IFERROR(VLOOKUP(AV15,'[4]英雄技能-过程'!$A:$P,14,0)*T15/10000*Q15*(1+(AX15-1)*30%)*[4]战斗节奏!$C$28+VLOOKUP(AV15,'[4]英雄技能-过程'!$A:$P,15,0)*T15/10000*R15*(1+(AX15-1)*30%)*[4]战斗节奏!$D$28+VLOOKUP(AV15,'[4]英雄技能-过程'!$A:$P,16,0)*T15/10000*S15*(1+(AX15-1)*30%)*[4]战斗节奏!$E$28,0) -> 315.2625 | BD15: =IFERROR(VLOOKUP(BA15,'[4]英雄技能-过程'!$A:$P,14,0)*T15/10000*Q15*(1+(BC15-1)*30%)*[4]战斗节奏!$C$28+VLOOKUP(BA15,'[4]英雄技能-过程'!$A:$P,15,0)*T15/10000*R15*(1+(BC15-1)*30%)*[4]战斗节奏!$D$28+VLOOKUP(BA15,'[4]英雄技能-过程'!$A:$P,16,0)*T15/10000*S15*(1+(BC15-1)*30%)*[4]战斗节奏!$E$28,0) -> 0 | BI15: =IFERROR(VLOOKUP(BF15,'[4]英雄技能-过程'!$A:$P,14,0)*T15/10000*Q15*(1+(BH15-1)*30%)*[4]战斗节奏!$C$28+VLOOKUP(BF15,'[4]英雄技能-过程'!$A:$P,15,0)*T15/10000*R15*(1+(BH15-1)*30%)*[4]战斗节奏!$D$28+VLOOKUP(BF15,'[4]英雄技能-过程'!$A:$P,16,0)*T15/10000*S15*(1+(BH15-1)*30%)*[4]战斗节奏!$E$28,0) -> 0 | BJ15: 12&110402&1&4 | BK15: 16&110501&1&2 | BL15: 18&430301&1&2 | BM15: 13&140201&1&2 | BN15: 2&120401&1&2 | BO15: 5&130603&1&1
A16: 1.199386503 | B16: 14 | C16: 390 | D16: 390 | E16: 507 | F16: 0.15 | G16: 0.03 | H16: 4,100,102 | I16: 50700,39000,39000 | J16: 375 | K16: 390 | L16: 15 | M16: 6 | N16: 1751.3895 | O16: 1 | P16: 12 | Q16: 1 | R16: 1 | S16: 1 | T16: 10500 | U16: 12&110402&1&4;18&430301&1&2;13&140201&1&2;4&120602&1&2;2&130401&1&2;5&130603&1&2 | V16: 12 | W16: 110402 | X16: 1 | Y16: 4 | Z16: =IFERROR(VLOOKUP(W16,'[4]英雄技能-过程'!$A:$P,14,0)*T16/10000*Q16*(1+(Y16-1)*30%)*[4]战斗节奏!$C$28+VLOOKUP(W16,'[4]英雄技能-过程'!$A:$P,15,0)*T16/10000*R16*(1+(Y16-1)*30%)*[4]战斗节奏!$D$28+VLOOKUP(W16,'[4]英雄技能-过程'!$A:$P,16,0)*T16/10000*S16*(1+(Y16-1)*30%)*[4]战斗节奏!$E$28,0) -> 275.21025 | AA16: 18 | AB16: 430301 | AC16: 1 | AD16: 2 | AE16: =IFERROR(VLOOKUP(AB16,'[4]英雄技能-过程'!$A:$P,14,0)*T16/10000*Q16*(1+(AD16-1)*30%)*[4]战斗节奏!$C$28+VLOOKUP(AB16,'[4]英雄技能-过程'!$A:$P,15,0)*T16/10000*R16*(1+(AD16-1)*30%)*[4]战斗节奏!$D$28+VLOOKUP(AB16,'[4]英雄技能-过程'!$A:$P,16,0)*T16/10000*S16*(1+(AD16-1)*30%)*[4]战斗节奏!$E$28,0) -> 227.5455 | AF16: 13 | AG16: 140201 | AH16: 1 | AI16: 2 | AJ16: =IFERROR(VLOOKUP(AG16,'[4]英雄技能-过程'!$A:$P,14,0)*T16/10000*Q16*(1+(AI16-1)*30%)*[4]战斗节奏!$C$28+VLOOKUP(AG16,'[4]英雄技能-过程'!$A:$P,15,0)*T16/10000*R16*(1+(AI16-1)*30%)*[4]战斗节奏!$D$28+VLOOKUP(AG16,'[4]英雄技能-过程'!$A:$P,16,0)*T16/10000*S16*(1+(AI16-1)*30%)*[4]战斗节奏!$E$28,0) -> 162.09375 | AK16: 4 | AL16: 120602 | AM16: 1 | AN16: 2 | AO16: =IFERROR(VLOOKUP(AL16,'[4]英雄技能-过程'!$A:$P,14,0)*T16/10000*Q16*(1+(AN16-1)*30%)*[4]战斗节奏!$C$28+VLOOKUP(AL16,'[4]英雄技能-过程'!$A:$P,15,0)*T16/10000*R16*(1+(AN16-1)*30%)*[4]战斗节奏!$D$28+VLOOKUP(AL16,'[4]英雄技能-过程'!$A:$P,16,0)*T16/10000*S16*(1+(AN16-1)*30%)*[4]战斗节奏!$E$28,0) -> 369.57375 | AP16: 2 | AQ16: 130401 | AR16: 1 | AS16: 2 | AT16: =IFERROR(VLOOKUP(AQ16,'[4]英雄技能-过程'!$A:$P,14,0)*T16/10000*Q16*(1+(AS16-1)*30%)*[4]战斗节奏!$C$28+VLOOKUP(AQ16,'[4]英雄技能-过程'!$A:$P,15,0)*T16/10000*R16*(1+(AS16-1)*30%)*[4]战斗节奏!$D$28+VLOOKUP(AQ16,'[4]英雄技能-过程'!$A:$P,16,0)*T16/10000*S16*(1+(AS16-1)*30%)*[4]战斗节奏!$E$28,0) -> 307.125 | AU16: 5 | AV16: 130603 | AW16: 1 | AX16: 2 | AY16: =IFERROR(VLOOKUP(AV16,'[4]英雄技能-过程'!$A:$P,14,0)*T16/10000*Q16*(1+(AX16-1)*30%)*[4]战斗节奏!$C$28+VLOOKUP(AV16,'[4]英雄技能-过程'!$A:$P,15,0)*T16/10000*R16*(1+(AX16-1)*30%)*[4]战斗节奏!$D$28+VLOOKUP(AV16,'[4]英雄技能-过程'!$A:$P,16,0)*T16/10000*S16*(1+(AX16-1)*30%)*[4]战斗节奏!$E$28,0) -> 409.84125 | BD16: =IFERROR(VLOOKUP(BA16,'[4]英雄技能-过程'!$A:$P,14,0)*T16/10000*Q16*(1+(BC16-1)*30%)*[4]战斗节奏!$C$28+VLOOKUP(BA16,'[4]英雄技能-过程'!$A:$P,15,0)*T16/10000*R16*(1+(BC16-1)*30%)*[4]战斗节奏!$D$28+VLOOKUP(BA16,'[4]英雄技能-过程'!$A:$P,16,0)*T16/10000*S16*(1+(BC16-1)*30%)*[4]战斗节奏!$E$28,0) -> 0 | BI16: =IFERROR(VLOOKUP(BF16,'[4]英雄技能-过程'!$A:$P,14,0)*T16/10000*Q16*(1+(BH16-1)*30%)*[4]战斗节奏!$C$28+VLOOKUP(BF16,'[4]英雄技能-过程'!$A:$P,15,0)*T16/10000*R16*(1+(BH16-1)*30%)*[4]战斗节奏!$D$28+VLOOKUP(BF16,'[4]英雄技能-过程'!$A:$P,16,0)*T16/10000*S16*(1+(BH16-1)*30%)*[4]战斗节奏!$E$28,0) -> 0 | BJ16: 12&110402&1&4 | BK16: 18&430301&1&2 | BL16: 13&140201&1&2 | BM16: 4&120602&1&2 | BN16: 2&130401&1&2 | BO16: 5&130603&1&2
A17: 1.153452685 | B17: 15 | C17: 450 | D17: 450 | E17: 585 | F17: 0.15 | G17: 0.03 | H17: 4,100,102 | I17: 58500,45000,45000 | J17: 450 | K17: 450 | L17: 0 | M17: 6 | N17: 1987.799 | O17: 1 | P17: 13 | Q17: 1 | R17: 1 | S17: 1 | T17: 11000 | U17: 12&110402&1&4;17&430301&1&2;4&120602&1&2;2&120401&1&2;5&130603&1&2;6&130401&1&2 | V17: 12 | W17: 110402 | X17: 1 | Y17: 4 | Z17: =IFERROR(VLOOKUP(W17,'[4]英雄技能-过程'!$A:$P,14,0)*T17/10000*Q17*(1+(Y17-1)*30%)*[4]战斗节奏!$C$28+VLOOKUP(W17,'[4]英雄技能-过程'!$A:$P,15,0)*T17/10000*R17*(1+(Y17-1)*30%)*[4]战斗节奏!$D$28+VLOOKUP(W17,'[4]英雄技能-过程'!$A:$P,16,0)*T17/10000*S17*(1+(Y17-1)*30%)*[4]战斗节奏!$E$28,0) -> 288.3155 | AA17: 17 | AB17: 430301 | AC17: 1 | AD17: 2 | AE17: =IFERROR(VLOOKUP(AB17,'[4]英雄技能-过程'!$A:$P,14,0)*T17/10000*Q17*(1+(AD17-1)*30%)*[4]战斗节奏!$C$28+VLOOKUP(AB17,'[4]英雄技能-过程'!$A:$P,15,0)*T17/10000*R17*(1+(AD17-1)*30%)*[4]战斗节奏!$D$28+VLOOKUP(AB17,'[4]英雄技能-过程'!$A:$P,16,0)*T17/10000*S17*(1+(AD17-1)*30%)*[4]战斗节奏!$E$28,0) -> 238.381 | AF17: 4 | AG17: 120602 | AH17: 1 | AI17: 2 | AJ17: =IFERROR(VLOOKUP(AG17,'[4]英雄技能-过程'!$A:$P,14,0)*T17/10000*Q17*(1+(AI17-1)*30%)*[4]战斗节奏!$C$28+VLOOKUP(AG17,'[4]英雄技能-过程'!$A:$P,15,0)*T17/10000*R17*(1+(AI17-1)*30%)*[4]战斗节奏!$D$28+VLOOKUP(AG17,'[4]英雄技能-过程'!$A:$P,16,0)*T17/10000*S17*(1+(AI17-1)*30%)*[4]战斗节奏!$E$28,0) -> 387.1725 | AK17: 2 | AL17: 120401 | AM17: 1 | AN17: 2 | AO17: =IFERROR(VLOOKUP(AL17,'[4]英雄技能-过程'!$A:$P,14,0)*T17/10000*Q17*(1+(AN17-1)*30%)*[4]战斗节奏!$C$28+VLOOKUP(AL17,'[4]英雄技能-过程'!$A:$P,15,0)*T17/10000*R17*(1+(AN17-1)*30%)*[4]战斗节奏!$D$28+VLOOKUP(AL17,'[4]英雄技能-过程'!$A:$P,16,0)*T17/10000*S17*(1+(AN17-1)*30%)*[4]战斗节奏!$E$28,0) -> 322.8225 | AP17: 5 | AQ17: 130603 | AR17: 1 | AS17: 2 | AT17: =IFERROR(VLOOKUP(AQ17,'[4]英雄技能-过程'!$A:$P,14,0)*T17/10000*Q17*(1+(AS17-1)*30%)*[4]战斗节奏!$C$28+VLOOKUP(AQ17,'[4]英雄技能-过程'!$A:$P,15,0)*T17/10000*R17*(1+(AS17-1)*30%)*[4]战斗节奏!$D$28+VLOOKUP(AQ17,'[4]英雄技能-过程'!$A:$P,16,0)*T17/10000*S17*(1+(AS17-1)*30%)*[4]战斗节奏!$E$28,0) -> 429.3575 | AU17: 6 | AV17: 130401 | AW17: 1 | AX17: 2 | AY17: =IFERROR(VLOOKUP(AV17,'[4]英雄技能-过程'!$A:$P,14,0)*T17/10000*Q17*(1+(AX17-1)*30%)*[4]战斗节奏!$C$28+VLOOKUP(AV17,'[4]英雄技能-过程'!$A:$P,15,0)*T17/10000*R17*(1+(AX17-1)*30%)*[4]战斗节奏!$D$28+VLOOKUP(AV17,'[4]英雄技能-过程'!$A:$P,16,0)*T17/10000*S17*(1+(AX17-1)*30%)*[4]战斗节奏!$E$28,0) -> 321.75 | BD17: =IFERROR(VLOOKUP(BA17,'[4]英雄技能-过程'!$A:$P,14,0)*T17/10000*Q17*(1+(BC17-1)*30%)*[4]战斗节奏!$C$28+VLOOKUP(BA17,'[4]英雄技能-过程'!$A:$P,15,0)*T17/10000*R17*(1+(BC17-1)*30%)*[4]战斗节奏!$D$28+VLOOKUP(BA17,'[4]英雄技能-过程'!$A:$P,16,0)*T17/10000*S17*(1+(BC17-1)*30%)*[4]战斗节奏!$E$28,0) -> 0 | BI17: =IFERROR(VLOOKUP(BF17,'[4]英雄技能-过程'!$A:$P,14,0)*T17/10000*Q17*(1+(BH17-1)*30%)*[4]战斗节奏!$C$28+VLOOKUP(BF17,'[4]英雄技能-过程'!$A:$P,15,0)*T17/10000*R17*(1+(BH17-1)*30%)*[4]战斗节奏!$D$28+VLOOKUP(BF17,'[4]英雄技能-过程'!$A:$P,16,0)*T17/10000*S17*(1+(BH17-1)*30%)*[4]战斗节奏!$E$28,0) -> 0 | BJ17: 12&110402&1&4 | BK17: 17&430301&1&2 | BL17: 4&120602&1&2 | BM17: 2&120401&1&2 | BN17: 5&130603&1&2 | BO17: 6&130401&1&2
A18: 1.199556541 | B18: 16 | C18: 540 | D18: 540 | E18: =D18*1.5 -> 810 | F18: =F13+5% -> 0.2 | G18: =G13+3% -> 0.06 | H18: 4,100,102 | I18: 81000,54000,54000 | J18: 540 | K18: 540 | L18: 0 | M18: 6 | N18: 1577.5375 | O18: 1 | P18: 14 | Q18: 1 | R18: 1 | S18: 1 | T18: 11000 | U18: 12&110402&1&4;15&110201&1&3;17&430301&1&2;11&110501&1&2;2&120401&1&2;1&130401&1&2 | V18: 12 | W18: 110402 | X18: 1 | Y18: 4 | Z18: =IFERROR(VLOOKUP(W18,'[4]英雄技能-过程'!$A:$P,14,0)*T18/10000*Q18*(1+(Y18-1)*30%)*[4]战斗节奏!$C$28+VLOOKUP(W18,'[4]英雄技能-过程'!$A:$P,15,0)*T18/10000*R18*(1+(Y18-1)*30%)*[4]战斗节奏!$D$28+VLOOKUP(W18,'[4]英雄技能-过程'!$A:$P,16,0)*T18/10000*S18*(1+(Y18-1)*30%)*[4]战斗节奏!$E$28,0) -> 288.3155 | AA18: 15 | AB18: 110201 | AC18: 1 | AD18: 3 | AE18: =IFERROR(VLOOKUP(AB18,'[4]英雄技能-过程'!$A:$P,14,0)*T18/10000*Q18*(1+(AD18-1)*30%)*[4]战斗节奏!$C$28+VLOOKUP(AB18,'[4]英雄技能-过程'!$A:$P,15,0)*T18/10000*R18*(1+(AD18-1)*30%)*[4]战斗节奏!$D$28+VLOOKUP(AB18,'[4]英雄技能-过程'!$A:$P,16,0)*T18/10000*S18*(1+(AD18-1)*30%)*[4]战斗节奏!$E$28,0) -> 209 | AF18: 17 | AG18: 430301 | AH18: 1 | AI18: 2 | AJ18: =IFERROR(VLOOKUP(AG18,'[4]英雄技能-过程'!$A:$P,14,0)*T18/10000*Q18*(1+(AI18-1)*30%)*[4]战斗节奏!$C$28+VLOOKUP(AG18,'[4]英雄技能-过程'!$A:$P,15,0)*T18/10000*R18*(1+(AI18-1)*30%)*[4]战斗节奏!$D$28+VLOOKUP(AG18,'[4]英雄技能-过程'!$A:$P,16,0)*T18/10000*S18*(1+(AI18-1)*30%)*[4]战斗节奏!$E$28,0) -> 238.381 | AK18: 11 | AL18: 110501 | AM18: 1 | AN18: 2 | AO18: =IFERROR(VLOOKUP(AL18,'[4]英雄技能-过程'!$A:$P,14,0)*T18/10000*Q18*(1+(AN18-1)*30%)*[4]战斗节奏!$C$28+VLOOKUP(AL18,'[4]英雄技能-过程'!$A:$P,15,0)*T18/10000*R18*(1+(AN18-1)*30%)*[4]战斗节奏!$D$28+VLOOKUP(AL18,'[4]英雄技能-过程'!$A:$P,16,0)*T18/10000*S18*(1+(AN18-1)*30%)*[4]战斗节奏!$E$28,0) -> 197.2685 | AP18: 2 | AQ18: 120401 | AR18: 1 | AS18: 2 | AT18: =IFERROR(VLOOKUP(AQ18,'[4]英雄技能-过程'!$A:$P,14,0)*T18/10000*Q18*(1+(AS18-1)*30%)*[4]战斗节奏!$C$28+VLOOKUP(AQ18,'[4]英雄技能-过程'!$A:$P,15,0)*T18/10000*R18*(1+(AS18-1)*30%)*[4]战斗节奏!$D$28+VLOOKUP(AQ18,'[4]英雄技能-过程'!$A:$P,16,0)*T18/10000*S18*(1+(AS18-1)*30%)*[4]战斗节奏!$E$28,0) -> 322.8225 | AU18: 1 | AV18: 130401 | AW18: 1 | AX18: 2 | AY18: =IFERROR(VLOOKUP(AV18,'[4]英雄技能-过程'!$A:$P,14,0)*T18/10000*Q18*(1+(AX18-1)*30%)*[4]战斗节奏!$C$28+VLOOKUP(AV18,'[4]英雄技能-过程'!$A:$P,15,0)*T18/10000*R18*(1+(AX18-1)*30%)*[4]战斗节奏!$D$28+VLOOKUP(AV18,'[4]英雄技能-过程'!$A:$P,16,0)*T18/10000*S18*(1+(AX18-1)*30%)*[4]战斗节奏!$E$28,0) -> 321.75 | BD18: =IFERROR(VLOOKUP(BA18,'[4]英雄技能-过程'!$A:$P,14,0)*T18/10000*Q18*(1+(BC18-1)*30%)*[4]战斗节奏!$C$28+VLOOKUP(BA18,'[4]英雄技能-过程'!$A:$P,15,0)*T18/10000*R18*(1+(BC18-1)*30%)*[4]战斗节奏!$D$28+VLOOKUP(BA18,'[4]英雄技能-过程'!$A:$P,16,0)*T18/10000*S18*(1+(BC18-1)*30%)*[4]战斗节奏!$E$28,0) -> 0 | BI18: =IFERROR(VLOOKUP(BF18,'[4]英雄技能-过程'!$A:$P,14,0)*T18/10000*Q18*(1+(BH18-1)*30%)*[4]战斗节奏!$C$28+VLOOKUP(BF18,'[4]英雄技能-过程'!$A:$P,15,0)*T18/10000*R18*(1+(BH18-1)*30%)*[4]战斗节奏!$D$28+VLOOKUP(BF18,'[4]英雄技能-过程'!$A:$P,16,0)*T18/10000*S18*(1+(BH18-1)*30%)*[4]战斗节奏!$E$28,0) -> 0 | BJ18: 12&110402&1&4 | BK18: 15&110201&1&3 | BL18: 17&430301&1&2 | BM18: 11&110501&1&2 | BN18: 2&120401&1&2 | BO18: 1&130401&1&2
A19: 1.199630314 | B19: 17 | C19: 648 | D19: 648 | E19: =D19*1.5 -> 972 | F19: =F14+5% -> 0.2 | G19: =G14+3% -> 0.06 | H19: 4,100,102 | I19: 97200,64800,64800 | J19: 648 | K19: 648 | L19: 0 | M19: 7 | N19: 1933.23625 | O19: 1 | P19: 15 | Q19: 1 | R19: 1 | S19: 1 | T19: 11500 | U19: 16&110201&1&5;14&140403&1&3;12&430301&1&2;11&110501&1&2;13&110402&1&2;4&120602&1&2;2&120401&1&1 | V19: 16 | W19: 110201 | X19: 1 | Y19: 5 | Z19: =IFERROR(VLOOKUP(W19,'[4]英雄技能-过程'!$A:$P,14,0)*T19/10000*Q19*(1+(Y19-1)*30%)*[4]战斗节奏!$C$28+VLOOKUP(W19,'[4]英雄技能-过程'!$A:$P,15,0)*T19/10000*R19*(1+(Y19-1)*30%)*[4]战斗节奏!$D$28+VLOOKUP(W19,'[4]英雄技能-过程'!$A:$P,16,0)*T19/10000*S19*(1+(Y19-1)*30%)*[4]战斗节奏!$E$28,0) -> 300.4375 | AA19: 14 | AB19: 140403 | AC19: 1 | AD19: 3 | AE19: =IFERROR(VLOOKUP(AB19,'[4]英雄技能-过程'!$A:$P,14,0)*T19/10000*Q19*(1+(AD19-1)*30%)*[4]战斗节奏!$C$28+VLOOKUP(AB19,'[4]英雄技能-过程'!$A:$P,15,0)*T19/10000*R19*(1+(AD19-1)*30%)*[4]战斗节奏!$D$28+VLOOKUP(AB19,'[4]英雄技能-过程'!$A:$P,16,0)*T19/10000*S19*(1+(AD19-1)*30%)*[4]战斗节奏!$E$28,0) -> 306.728 | AF19: 12 | AG19: 430301 | AH19: 1 | AI19: 2 | AJ19: =IFERROR(VLOOKUP(AG19,'[4]英雄技能-过程'!$A:$P,14,0)*T19/10000*Q19*(1+(AI19-1)*30%)*[4]战斗节奏!$C$28+VLOOKUP(AG19,'[4]英雄技能-过程'!$A:$P,15,0)*T19/10000*R19*(1+(AI19-1)*30%)*[4]战斗节奏!$D$28+VLOOKUP(AG19,'[4]英雄技能-过程'!$A:$P,16,0)*T19/10000*S19*(1+(AI19-1)*30%)*[4]战斗节奏!$E$28,0) -> 249.2165 | AK19: 11 | AL19: 110501 | AM19: 1 | AN19: 2 | AO19: =IFERROR(VLOOKUP(AL19,'[4]英雄技能-过程'!$A:$P,14,0)*T19/10000*Q19*(1+(AN19-1)*30%)*[4]战斗节奏!$C$28+VLOOKUP(AL19,'[4]英雄技能-过程'!$A:$P,15,0)*T19/10000*R19*(1+(AN19-1)*30%)*[4]战斗节奏!$D$28+VLOOKUP(AL19,'[4]英雄技能-过程'!$A:$P,16,0)*T19/10000*S19*(1+(AN19-1)*30%)*[4]战斗节奏!$E$28,0) -> 206.23525 | AP19: 13 | AQ19: 110402 | AR19: 1 | AS19: 2 | AT19: =IFERROR(VLOOKUP(AQ19,'[4]英雄技能-过程'!$A:$P,14,0)*T19/10000*Q19*(1+(AS19-1)*30%)*[4]战斗节奏!$C$28+VLOOKUP(AQ19,'[4]英雄技能-过程'!$A:$P,15,0)*T19/10000*R19*(1+(AS19-1)*30%)*[4]战斗节奏!$D$28+VLOOKUP(AQ19,'[4]英雄技能-过程'!$A:$P,16,0)*T19/10000*S19*(1+(AS19-1)*30%)*[4]战斗节奏!$E$28,0) -> 206.23525 | AU19: 4 | AV19: 120602 | AW19: 1 | AX19: 2 | AY19: =IFERROR(VLOOKUP(AV19,'[4]英雄技能-过程'!$A:$P,14,0)*T19/10000*Q19*(1+(AX19-1)*30%)*[4]战斗节奏!$C$28+VLOOKUP(AV19,'[4]英雄技能-过程'!$A:$P,15,0)*T19/10000*R19*(1+(AX19-1)*30%)*[4]战斗节奏!$D$28+VLOOKUP(AV19,'[4]英雄技能-过程'!$A:$P,16,0)*T19/10000*S19*(1+(AX19-1)*30%)*[4]战斗节奏!$E$28,0) -> 404.77125 | AZ19: 2 | BA19: 120401 | BB19: 1 | BC19: 1 | BD19: =IFERROR(VLOOKUP(BA19,'[4]英雄技能-过程'!$A:$P,14,0)*T19/10000*Q19*(1+(BC19-1)*30%)*[4]战斗节奏!$C$28+VLOOKUP(BA19,'[4]英雄技能-过程'!$A:$P,15,0)*T19/10000*R19*(1+(BC19-1)*30%)*[4]战斗节奏!$D$28+VLOOKUP(BA19,'[4]英雄技能-过程'!$A:$P,16,0)*T19/10000*S19*(1+(BC19-1)*30%)*[4]战斗节奏!$E$28,0) -> 259.6125 | BI19: =IFERROR(VLOOKUP(BF19,'[4]英雄技能-过程'!$A:$P,14,0)*T19/10000*Q19*(1+(BH19-1)*30%)*[4]战斗节奏!$C$28+VLOOKUP(BF19,'[4]英雄技能-过程'!$A:$P,15,0)*T19/10000*R19*(1+(BH19-1)*30%)*[4]战斗节奏!$D$28+VLOOKUP(BF19,'[4]英雄技能-过程'!$A:$P,16,0)*T19/10000*S19*(1+(BH19-1)*30%)*[4]战斗节奏!$E$28,0) -> 0 | BJ19: 16&110201&1&5 | BK19: 14&140403&1&3 | BL19: 12&430301&1&2 | BM19: 11&110501&1&2 | BN19: 13&110402&1&2 | BO19: 4&120602&1&2 | BP19: 2&120401&1&1
A20: 1.200308166 | B20: 18 | C20: 778 | D20: 778 | E20: =D20*1.5 -> 1167 | F20: 0.2 | G20: 0.06 | H20: 4,100,102 | I20: 116700,77800,77800 | J20: 778 | K20: 778 | L20: 0 | M20: 8 | N20: 2320.69425 | O20: 1 | P20: 16 | Q20: 1 | R20: 1 | S20: 1 | T20: 11500 | U20: 16&140201&1&5;15&110201&1&3;12&430301&1&2;11&110402&1&2;4&120602&1&2;2&120401&1&2;5&130603&1&1;1&130401&1&1 | V20: 16 | W20: 140201 | X20: 1 | Y20: 5 | Z20: =IFERROR(VLOOKUP(W20,'[4]英雄技能-过程'!$A:$P,14,0)*T20/10000*Q20*(1+(Y20-1)*30%)*[4]战斗节奏!$C$28+VLOOKUP(W20,'[4]英雄技能-过程'!$A:$P,15,0)*T20/10000*R20*(1+(Y20-1)*30%)*[4]战斗节奏!$D$28+VLOOKUP(W20,'[4]英雄技能-过程'!$A:$P,16,0)*T20/10000*S20*(1+(Y20-1)*30%)*[4]战斗节奏!$E$28,0) -> 300.4375 | AA20: 15 | AB20: 110201 | AC20: 1 | AD20: 3 | AE20: =IFERROR(VLOOKUP(AB20,'[4]英雄技能-过程'!$A:$P,14,0)*T20/10000*Q20*(1+(AD20-1)*30%)*[4]战斗节奏!$C$28+VLOOKUP(AB20,'[4]英雄技能-过程'!$A:$P,15,0)*T20/10000*R20*(1+(AD20-1)*30%)*[4]战斗节奏!$D$28+VLOOKUP(AB20,'[4]英雄技能-过程'!$A:$P,16,0)*T20/10000*S20*(1+(AD20-1)*30%)*[4]战斗节奏!$E$28,0) -> 218.5 | AF20: 12 | AG20: 430301 | AH20: 1 | AI20: 2 | AJ20: =IFERROR(VLOOKUP(AG20,'[4]英雄技能-过程'!$A:$P,14,0)*T20/10000*Q20*(1+(AI20-1)*30%)*[4]战斗节奏!$C$28+VLOOKUP(AG20,'[4]英雄技能-过程'!$A:$P,15,0)*T20/10000*R20*(1+(AI20-1)*30%)*[4]战斗节奏!$D$28+VLOOKUP(AG20,'[4]英雄技能-过程'!$A:$P,16,0)*T20/10000*S20*(1+(AI20-1)*30%)*[4]战斗节奏!$E$28,0) -> 249.2165 | AK20: 11 | AL20: 110402 | AM20: 1 | AN20: 2 | AO20: =IFERROR(VLOOKUP(AL20,'[4]英雄技能-过程'!$A:$P,14,0)*T20/10000*Q20*(1+(AN20-1)*30%)*[4]战斗节奏!$C$28+VLOOKUP(AL20,'[4]英雄技能-过程'!$A:$P,15,0)*T20/10000*R20*(1+(AN20-1)*30%)*[4]战斗节奏!$D$28+VLOOKUP(AL20,'[4]英雄技能-过程'!$A:$P,16,0)*T20/10000*S20*(1+(AN20-1)*30%)*[4]战斗节奏!$E$28,0) -> 206.23525 | AP20: 4 | AQ20: 120602 | AR20: 1 | AS20: 2 | AT20: =IFERROR(VLOOKUP(AQ20,'[4]英雄技能-过程'!$A:$P,14,0)*T20/10000*Q20*(1+(AS20-1)*30%)*[4]战斗节奏!$C$28+VLOOKUP(AQ20,'[4]英雄技能-过程'!$A:$P,15,0)*T20/10000*R20*(1+(AS20-1)*30%)*[4]战斗节奏!$D$28+VLOOKUP(AQ20,'[4]英雄技能-过程'!$A:$P,16,0)*T20/10000*S20*(1+(AS20-1)*30%)*[4]战斗节奏!$E$28,0) -> 404.77125 | AU20: 2 | AV20: 120401 | AW20: 1 | AX20: 2 | AY20: =IFERROR(VLOOKUP(AV20,'[4]英雄技能-过程'!$A:$P,14,0)*T20/10000*Q20*(1+(AX20-1)*30%)*[4]战斗节奏!$C$28+VLOOKUP(AV20,'[4]英雄技能-过程'!$A:$P,15,0)*T20/10000*R20*(1+(AX20-1)*30%)*[4]战斗节奏!$D$28+VLOOKUP(AV20,'[4]英雄技能-过程'!$A:$P,16,0)*T20/10000*S20*(1+(AX20-1)*30%)*[4]战斗节奏!$E$28,0) -> 337.49625 | AZ20: 5 | BA20: 130603 | BB20: 1 | BC20: 1 | BD20: =IFERROR(VLOOKUP(BA20,'[4]英雄技能-过程'!$A:$P,14,0)*T20/10000*Q20*(1+(BC20-1)*30%)*[4]战斗节奏!$C$28+VLOOKUP(BA20,'[4]英雄技能-过程'!$A:$P,15,0)*T20/10000*R20*(1+(BC20-1)*30%)*[4]战斗节奏!$D$28+VLOOKUP(BA20,'[4]英雄技能-过程'!$A:$P,16,0)*T20/10000*S20*(1+(BC20-1)*30%)*[4]战斗节奏!$E$28,0) -> 345.2875 | BE20: 1 | BF20: 130401 | BG20: 1 | BH20: 1 | BI20: =IFERROR(VLOOKUP(BF20,'[4]英雄技能-过程'!$A:$P,14,0)*T20/10000*Q20*(1+(BH20-1)*30%)*[4]战斗节奏!$C$28+VLOOKUP(BF20,'[4]英雄技能-过程'!$A:$P,15,0)*T20/10000*R20*(1+(BH20-1)*30%)*[4]战斗节奏!$D$28+VLOOKUP(BF20,'[4]英雄技能-过程'!$A:$P,16,0)*T20/10000*S20*(1+(BH20-1)*30%)*[4]战斗节奏!$E$28,0) -> 258.75 | BJ20: 16&140201&1&5 | BK20: 15&110201&1&3 | BL20: 12&430301&1&2 | BM20: 11&110402&1&2 | BN20: 4&120602&1&2 | BO20: 2&120401&1&2 | BP20: 5&130603&1&1 | BQ20: 1&130401&1&1
A21: 1.200256739 | B21: 19 | C21: 934 | D21: 934 | E21: =D21*1.5 -> 1401 | F21: 0.2 | G21: 0.06 | H21: 4,100,102 | I21: 140100,93400,93400 | J21: 934 | K21: 934 | L21: 0 | M21: 8 | N21: 2433.72 | O21: 1 | P21: 17 | Q21: 1 | R21: 1 | S21: 1 | T21: 12000 | U21: 16&140201&1&5;15&110501&1&3;12&430301&1&3;11&110201&1&2;14&110402&1&2;4&120602&1&2;2&120401&1&2;5&130603&1&1 | V21: 16 | W21: 140201 | X21: 1 | Y21: 5 | Z21: =IFERROR(VLOOKUP(W21,'[4]英雄技能-过程'!$A:$P,14,0)*T21/10000*Q21*(1+(Y21-1)*30%)*[4]战斗节奏!$C$28+VLOOKUP(W21,'[4]英雄技能-过程'!$A:$P,15,0)*T21/10000*R21*(1+(Y21-1)*30%)*[4]战斗节奏!$D$28+VLOOKUP(W21,'[4]英雄技能-过程'!$A:$P,16,0)*T21/10000*S21*(1+(Y21-1)*30%)*[4]战斗节奏!$E$28,0) -> 313.5 | AA21: 15 | AB21: 110501 | AC21: 1 | AD21: 3 | AE21: =IFERROR(VLOOKUP(AB21,'[4]英雄技能-过程'!$A:$P,14,0)*T21/10000*Q21*(1+(AD21-1)*30%)*[4]战斗节奏!$C$28+VLOOKUP(AB21,'[4]英雄技能-过程'!$A:$P,15,0)*T21/10000*R21*(1+(AD21-1)*30%)*[4]战斗节奏!$D$28+VLOOKUP(AB21,'[4]英雄技能-过程'!$A:$P,16,0)*T21/10000*S21*(1+(AD21-1)*30%)*[4]战斗节奏!$E$28,0) -> 264.864 | AF21: 12 | AG21: 430301 | AH21: 1 | AI21: 3 | AJ21: =IFERROR(VLOOKUP(AG21,'[4]英雄技能-过程'!$A:$P,14,0)*T21/10000*Q21*(1+(AI21-1)*30%)*[4]战斗节奏!$C$28+VLOOKUP(AG21,'[4]英雄技能-过程'!$A:$P,15,0)*T21/10000*R21*(1+(AI21-1)*30%)*[4]战斗节奏!$D$28+VLOOKUP(AG21,'[4]英雄技能-过程'!$A:$P,16,0)*T21/10000*S21*(1+(AI21-1)*30%)*[4]战斗节奏!$E$28,0) -> 320.064 | AK21: 11 | AL21: 110201 | AM21: 1 | AN21: 2 | AO21: =IFERROR(VLOOKUP(AL21,'[4]英雄技能-过程'!$A:$P,14,0)*T21/10000*Q21*(1+(AN21-1)*30%)*[4]战斗节奏!$C$28+VLOOKUP(AL21,'[4]英雄技能-过程'!$A:$P,15,0)*T21/10000*R21*(1+(AN21-1)*30%)*[4]战斗节奏!$D$28+VLOOKUP(AL21,'[4]英雄技能-过程'!$A:$P,16,0)*T21/10000*S21*(1+(AN21-1)*30%)*[4]战斗节奏!$E$28,0) -> 185.25 | AP21: 14 | AQ21: 110402 | AR21: 1 | AS21: 2 | AT21: =IFERROR(VLOOKUP(AQ21,'[4]英雄技能-过程'!$A:$P,14,0)*T21/10000*Q21*(1+(AS21-1)*30%)*[4]战斗节奏!$C$28+VLOOKUP(AQ21,'[4]英雄技能-过程'!$A:$P,15,0)*T21/10000*R21*(1+(AS21-1)*30%)*[4]战斗节奏!$D$28+VLOOKUP(AQ21,'[4]英雄技能-过程'!$A:$P,16,0)*T21/10000*S21*(1+(AS21-1)*30%)*[4]战斗节奏!$E$28,0) -> 215.202 | AU21: 4 | AV21: 120602 | AW21: 1 | AX21: 2 | AY21: =IFERROR(VLOOKUP(AV21,'[4]英雄技能-过程'!$A:$P,14,0)*T21/10000*Q21*(1+(AX21-1)*30%)*[4]战斗节奏!$C$28+VLOOKUP(AV21,'[4]英雄技能-过程'!$A:$P,15,0)*T21/10000*R21*(1+(AX21-1)*30%)*[4]战斗节奏!$D$28+VLOOKUP(AV21,'[4]英雄技能-过程'!$A:$P,16,0)*T21/10000*S21*(1+(AX21-1)*30%)*[4]战斗节奏!$E$28,0) -> 422.37 | AZ21: 2 | BA21: 120401 | BB21: 1 | BC21: 2 | BD21: =IFERROR(VLOOKUP(BA21,'[4]英雄技能-过程'!$A:$P,14,0)*T21/10000*Q21*(1+(BC21-1)*30%)*[4]战斗节奏!$C$28+VLOOKUP(BA21,'[4]英雄技能-过程'!$A:$P,15,0)*T21/10000*R21*(1+(BC21-1)*30%)*[4]战斗节奏!$D$28+VLOOKUP(BA21,'[4]英雄技能-过程'!$A:$P,16,0)*T21/10000*S21*(1+(BC21-1)*30%)*[4]战斗节奏!$E$28,0) -> 352.17 | BE21: 5 | BF21: 130603 | BG21: 1 | BH21: 1 | BI21: =IFERROR(VLOOKUP(BF21,'[4]英雄技能-过程'!$A:$P,14,0)*T21/10000*Q21*(1+(BH21-1)*30%)*[4]战斗节奏!$C$28+VLOOKUP(BF21,'[4]英雄技能-过程'!$A:$P,15,0)*T21/10000*R21*(1+(BH21-1)*30%)*[4]战斗节奏!$D$28+VLOOKUP(BF21,'[4]英雄技能-过程'!$A:$P,16,0)*T21/10000*S21*(1+(BH21-1)*30%)*[4]战斗节奏!$E$28,0) -> 360.3 | BJ21: 16&140201&1&5 | BK21: 15&110501&1&3 | BL21: 12&430301&1&3 | BM21: 11&110201&1&2 | BN21: 14&110402&1&2 | BO21: 4&120602&1&2 | BP21: 2&120401&1&2 | BQ21: 5&130603&1&1
A22: 1.2 | B22: 20 | C22: =ROUND(C21*1.2,0) -> 1121 | D22: 1121 | E22: =D22*1.5 -> 1681.5 | F22: 0.2 | G22: 0.06 | H22: 4,100,102 | I22: 168150,112100,112100 | J22: 1121 | K22: =ROUND(K21*1.2,0) -> 1121 | L22: 0 | M22: 8 | N22: 2417.508 | O22: 1 | P22: 18 | Q22: 1 | R22: 1 | S22: 1 | T22: 12000 | U22: 16&140201&1&5;13&110201&1&3;12&430301&1&3;11&110402&1&2;1&110501&1&2;2&120401&1&2;3&120602&1&2;1&130401&1&2 | V22: 16 | W22: 140201 | X22: 1 | Y22: 5 | Z22: =IFERROR(VLOOKUP(W22,'[4]英雄技能-过程'!$A:$P,14,0)*T22/10000*Q22*(1+(Y22-1)*30%)*[4]战斗节奏!$C$28+VLOOKUP(W22,'[4]英雄技能-过程'!$A:$P,15,0)*T22/10000*R22*(1+(Y22-1)*30%)*[4]战斗节奏!$D$28+VLOOKUP(W22,'[4]英雄技能-过程'!$A:$P,16,0)*T22/10000*S22*(1+(Y22-1)*30%)*[4]战斗节奏!$E$28,0) -> 313.5 | AA22: 13 | AB22: 110201 | AC22: 1 | AD22: 3 | AE22: =IFERROR(VLOOKUP(AB22,'[4]英雄技能-过程'!$A:$P,14,0)*T22/10000*Q22*(1+(AD22-1)*30%)*[4]战斗节奏!$C$28+VLOOKUP(AB22,'[4]英雄技能-过程'!$A:$P,15,0)*T22/10000*R22*(1+(AD22-1)*30%)*[4]战斗节奏!$D$28+VLOOKUP(AB22,'[4]英雄技能-过程'!$A:$P,16,0)*T22/10000*S22*(1+(AD22-1)*30%)*[4]战斗节奏!$E$28,0) -> 228 | AF22: 12 | AG22: 430301 | AH22: 1 | AI22: 3 | AJ22: =IFERROR(VLOOKUP(AG22,'[4]英雄技能-过程'!$A:$P,14,0)*T22/10000*Q22*(1+(AI22-1)*30%)*[4]战斗节奏!$C$28+VLOOKUP(AG22,'[4]英雄技能-过程'!$A:$P,15,0)*T22/10000*R22*(1+(AI22-1)*30%)*[4]战斗节奏!$D$28+VLOOKUP(AG22,'[4]英雄技能-过程'!$A:$P,16,0)*T22/10000*S22*(1+(AI22-1)*30%)*[4]战斗节奏!$E$28,0) -> 320.064 | AK22: 11 | AL22: 110402 | AM22: 1 | AN22: 2 | AO22: =IFERROR(VLOOKUP(AL22,'[4]英雄技能-过程'!$A:$P,14,0)*T22/10000*Q22*(1+(AN22-1)*30%)*[4]战斗节奏!$C$28+VLOOKUP(AL22,'[4]英雄技能-过程'!$A:$P,15,0)*T22/10000*R22*(1+(AN22-1)*30%)*[4]战斗节奏!$D$28+VLOOKUP(AL22,'[4]英雄技能-过程'!$A:$P,16,0)*T22/10000*S22*(1+(AN22-1)*30%)*[4]战斗节奏!$E$28,0) -> 215.202 | AP22: 1 | AQ22: 110501 | AR22: 1 | AS22: 2 | AT22: =IFERROR(VLOOKUP(AQ22,'[4]英雄技能-过程'!$A:$P,14,0)*T22/10000*Q22*(1+(AS22-1)*30%)*[4]战斗节奏!$C$28+VLOOKUP(AQ22,'[4]英雄技能-过程'!$A:$P,15,0)*T22/10000*R22*(1+(AS22-1)*30%)*[4]战斗节奏!$D$28+VLOOKUP(AQ22,'[4]英雄技能-过程'!$A:$P,16,0)*T22/10000*S22*(1+(AS22-1)*30%)*[4]战斗节奏!$E$28,0) -> 215.202 | AU22: 2 | AV22: 120401 | AW22: 1 | AX22: 2 | AY22: =IFERROR(VLOOKUP(AV22,'[4]英雄技能-过程'!$A:$P,14,0)*T22/10000*Q22*(1+(AX22-1)*30%)*[4]战斗节奏!$C$28+VLOOKUP(AV22,'[4]英雄技能-过程'!$A:$P,15,0)*T22/10000*R22*(1+(AX22-1)*30%)*[4]战斗节奏!$D$28+VLOOKUP(AV22,'[4]英雄技能-过程'!$A:$P,16,0)*T22/10000*S22*(1+(AX22-1)*30%)*[4]战斗节奏!$E$28,0) -> 352.17 | AZ22: 3 | BA22: 120602 | BB22: 1 | BC22: 2 | BD22: =IFERROR(VLOOKUP(BA22,'[4]英雄技能-过程'!$A:$P,14,0)*T22/10000*Q22*(1+(BC22-1)*30%)*[4]战斗节奏!$C$28+VLOOKUP(BA22,'[4]英雄技能-过程'!$A:$P,15,0)*T22/10000*R22*(1+(BC22-1)*30%)*[4]战斗节奏!$D$28+VLOOKUP(BA22,'[4]英雄技能-过程'!$A:$P,16,0)*T22/10000*S22*(1+(BC22-1)*30%)*[4]战斗节奏!$E$28,0) -> 422.37 | BE22: 1 | BF22: 130401 | BG22: 1 | BH22: 2 | BI22: =IFERROR(VLOOKUP(BF22,'[4]英雄技能-过程'!$A:$P,14,0)*T22/10000*Q22*(1+(BH22-1)*30%)*[4]战斗节奏!$C$28+VLOOKUP(BF22,'[4]英雄技能-过程'!$A:$P,15,0)*T22/10000*R22*(1+(BH22-1)*30%)*[4]战斗节奏!$D$28+VLOOKUP(BF22,'[4]英雄技能-过程'!$A:$P,16,0)*T22/10000*S22*(1+(BH22-1)*30%)*[4]战斗节奏!$E$28,0) -> 351 | BJ22: 16&140201&1&5 | BK22: 13&110201&1&3 | BL22: 12&430301&1&3 | BM22: 11&110402&1&2 | BN22: 1&110501&1&2 | BO22: 2&120401&1&2 | BP22: 3&120602&1&2 | BQ22: 1&130401&1&2
A23: 1.199643494 | B23: 21 | C23: 1345 | D23: 1345 | E23: =D23*2 -> 2690 | F23: 0.25 | G23: 0.09 | H23: 4,100,102 | I23: 269000,134500,134500 | J23: 1345 | K23: 1345 | L23: 0 | M23: 8 | N23: 2826.50625 | O23: 1 | P23: 19 | Q23: 1 | R23: 1 | S23: 1 | T23: 12500 | U23: 17&140201&1&5;13&110201&1&4;12&430301&1&3;1&110402&1&2;2&120401&1&2;3&120602&1&2;5&130603&1&2;1&130401&1&2 | V23: 17 | W23: 140201 | X23: 1 | Y23: 5 | Z23: =IFERROR(VLOOKUP(W23,'[4]英雄技能-过程'!$A:$P,14,0)*T23/10000*Q23*(1+(Y23-1)*30%)*[4]战斗节奏!$C$28+VLOOKUP(W23,'[4]英雄技能-过程'!$A:$P,15,0)*T23/10000*R23*(1+(Y23-1)*30%)*[4]战斗节奏!$D$28+VLOOKUP(W23,'[4]英雄技能-过程'!$A:$P,16,0)*T23/10000*S23*(1+(Y23-1)*30%)*[4]战斗节奏!$E$28,0) -> 326.5625 | AA23: 13 | AB23: 110201 | AC23: 1 | AD23: 4 | AE23: =IFERROR(VLOOKUP(AB23,'[4]英雄技能-过程'!$A:$P,14,0)*T23/10000*Q23*(1+(AD23-1)*30%)*[4]战斗节奏!$C$28+VLOOKUP(AB23,'[4]英雄技能-过程'!$A:$P,15,0)*T23/10000*R23*(1+(AD23-1)*30%)*[4]战斗节奏!$D$28+VLOOKUP(AB23,'[4]英雄技能-过程'!$A:$P,16,0)*T23/10000*S23*(1+(AD23-1)*30%)*[4]战斗节奏!$E$28,0) -> 282.03125 | AF23: 12 | AG23: 430301 | AH23: 1 | AI23: 3 | AJ23: =IFERROR(VLOOKUP(AG23,'[4]英雄技能-过程'!$A:$P,14,0)*T23/10000*Q23*(1+(AI23-1)*30%)*[4]战斗节奏!$C$28+VLOOKUP(AG23,'[4]英雄技能-过程'!$A:$P,15,0)*T23/10000*R23*(1+(AI23-1)*30%)*[4]战斗节奏!$D$28+VLOOKUP(AG23,'[4]英雄技能-过程'!$A:$P,16,0)*T23/10000*S23*(1+(AI23-1)*30%)*[4]战斗节奏!$E$28,0) -> 333.4 | AK23: 1 | AL23: 110402 | AM23: 1 | AN23: 2 | AO23: =IFERROR(VLOOKUP(AL23,'[4]英雄技能-过程'!$A:$P,14,0)*T23/10000*Q23*(1+(AN23-1)*30%)*[4]战斗节奏!$C$28+VLOOKUP(AL23,'[4]英雄技能-过程'!$A:$P,15,0)*T23/10000*R23*(1+(AN23-1)*30%)*[4]战斗节奏!$D$28+VLOOKUP(AL23,'[4]英雄技能-过程'!$A:$P,16,0)*T23/10000*S23*(1+(AN23-1)*30%)*[4]战斗节奏!$E$28,0) -> 224.16875 | AP23: 2 | AQ23: 120401 | AR23: 1 | AS23: 2 | AT23: =IFERROR(VLOOKUP(AQ23,'[4]英雄技能-过程'!$A:$P,14,0)*T23/10000*Q23*(1+(AS23-1)*30%)*[4]战斗节奏!$C$28+VLOOKUP(AQ23,'[4]英雄技能-过程'!$A:$P,15,0)*T23/10000*R23*(1+(AS23-1)*30%)*[4]战斗节奏!$D$28+VLOOKUP(AQ23,'[4]英雄技能-过程'!$A:$P,16,0)*T23/10000*S23*(1+(AS23-1)*30%)*[4]战斗节奏!$E$28,0) -> 366.84375 | AU23: 3 | AV23: 120602 | AW23: 1 | AX23: 2 | AY23: =IFERROR(VLOOKUP(AV23,'[4]英雄技能-过程'!$A:$P,14,0)*T23/10000*Q23*(1+(AX23-1)*30%)*[4]战斗节奏!$C$28+VLOOKUP(AV23,'[4]英雄技能-过程'!$A:$P,15,0)*T23/10000*R23*(1+(AX23-1)*30%)*[4]战斗节奏!$D$28+VLOOKUP(AV23,'[4]英雄技能-过程'!$A:$P,16,0)*T23/10000*S23*(1+(AX23-1)*30%)*[4]战斗节奏!$E$28,0) -> 439.96875 | AZ23: 5 | BA23: 130603 | BB23: 1 | BC23: 2 | BD23: =IFERROR(VLOOKUP(BA23,'[4]英雄技能-过程'!$A:$P,14,0)*T23/10000*Q23*(1+(BC23-1)*30%)*[4]战斗节奏!$C$28+VLOOKUP(BA23,'[4]英雄技能-过程'!$A:$P,15,0)*T23/10000*R23*(1+(BC23-1)*30%)*[4]战斗节奏!$D$28+VLOOKUP(BA23,'[4]英雄技能-过程'!$A:$P,16,0)*T23/10000*S23*(1+(BC23-1)*30%)*[4]战斗节奏!$E$28,0) -> 487.90625 | BE23: 1 | BF23: 130401 | BG23: 1 | BH23: 2 | BI23: =IFERROR(VLOOKUP(BF23,'[4]英雄技能-过程'!$A:$P,14,0)*T23/10000*Q23*(1+(BH23-1)*30%)*[4]战斗节奏!$C$28+VLOOKUP(BF23,'[4]英雄技能-过程'!$A:$P,15,0)*T23/10000*R23*(1+(BH23-1)*30%)*[4]战斗节奏!$D$28+VLOOKUP(BF23,'[4]英雄技能-过程'!$A:$P,16,0)*T23/10000*S23*(1+(BH23-1)*30%)*[4]战斗节奏!$E$28,0) -> 365.625 | BJ23: 17&140201&1&5 | BK23: 13&110201&1&4 | BL23: 12&430301&1&3 | BM23: 1&110402&1&2 | BN23: 2&120401&1&2 | BO23: 3&120602&1&2 | BP23: 5&130603&1&2 | BQ23: 1&130401&1&2
A24: 1.199851412 | B24: 22 | C24: 1614 | D24: 1614 | E24: 3228 | F24: 0.25 | G24: 0.09 | H24: 4,100,102 | I24: 322800,161400,161400 | J24: 1614 | K24: 1614 | L24: 0 | M24: 8 | N24: 2729.58125 | O24: 1 | P24: 20 | Q24: 1 | R24: 1 | S24: 1 | T24: 12500 | U24: 16&140201&1&5;13&110201&1&5;12&430301&1&3;11&110402&1&2;1&110501&1&2;2&120401&1&2;3&120602&1&2;1&130603&1&2 | V24: 16 | W24: 140201 | X24: 1 | Y24: 5 | Z24: =IFERROR(VLOOKUP(W24,'[4]英雄技能-过程'!$A:$P,14,0)*T24/10000*Q24*(1+(Y24-1)*30%)*[4]战斗节奏!$C$28+VLOOKUP(W24,'[4]英雄技能-过程'!$A:$P,15,0)*T24/10000*R24*(1+(Y24-1)*30%)*[4]战斗节奏!$D$28+VLOOKUP(W24,'[4]英雄技能-过程'!$A:$P,16,0)*T24/10000*S24*(1+(Y24-1)*30%)*[4]战斗节奏!$E$28,0) -> 326.5625 | AA24: 13 | AB24: 110201 | AC24: 1 | AD24: 5 | AE24: =IFERROR(VLOOKUP(AB24,'[4]英雄技能-过程'!$A:$P,14,0)*T24/10000*Q24*(1+(AD24-1)*30%)*[4]战斗节奏!$C$28+VLOOKUP(AB24,'[4]英雄技能-过程'!$A:$P,15,0)*T24/10000*R24*(1+(AD24-1)*30%)*[4]战斗节奏!$D$28+VLOOKUP(AB24,'[4]英雄技能-过程'!$A:$P,16,0)*T24/10000*S24*(1+(AD24-1)*30%)*[4]战斗节奏!$E$28,0) -> 326.5625 | AF24: 12 | AG24: 430301 | AH24: 1 | AI24: 3 | AJ24: =IFERROR(VLOOKUP(AG24,'[4]英雄技能-过程'!$A:$P,14,0)*T24/10000*Q24*(1+(AI24-1)*30%)*[4]战斗节奏!$C$28+VLOOKUP(AG24,'[4]英雄技能-过程'!$A:$P,15,0)*T24/10000*R24*(1+(AI24-1)*30%)*[4]战斗节奏!$D$28+VLOOKUP(AG24,'[4]英雄技能-过程'!$A:$P,16,0)*T24/10000*S24*(1+(AI24-1)*30%)*[4]战斗节奏!$E$28,0) -> 333.4 | AK24: 11 | AL24: 110402 | AM24: 1 | AN24: 2 | AO24: =IFERROR(VLOOKUP(AL24,'[4]英雄技能-过程'!$A:$P,14,0)*T24/10000*Q24*(1+(AN24-1)*30%)*[4]战斗节奏!$C$28+VLOOKUP(AL24,'[4]英雄技能-过程'!$A:$P,15,0)*T24/10000*R24*(1+(AN24-1)*30%)*[4]战斗节奏!$D$28+VLOOKUP(AL24,'[4]英雄技能-过程'!$A:$P,16,0)*T24/10000*S24*(1+(AN24-1)*30%)*[4]战斗节奏!$E$28,0) -> 224.16875 | AP24: 1 | AQ24: 110501 | AR24: 1 | AS24: 2 | AT24: =IFERROR(VLOOKUP(AQ24,'[4]英雄技能-过程'!$A:$P,14,0)*T24/10000*Q24*(1+(AS24-1)*30%)*[4]战斗节奏!$C$28+VLOOKUP(AQ24,'[4]英雄技能-过程'!$A:$P,15,0)*T24/10000*R24*(1+(AS24-1)*30%)*[4]战斗节奏!$D$28+VLOOKUP(AQ24,'[4]英雄技能-过程'!$A:$P,16,0)*T24/10000*S24*(1+(AS24-1)*30%)*[4]战斗节奏!$E$28,0) -> 224.16875 | AU24: 2 | AV24: 120401 | AW24: 1 | AX24: 2 | AY24: =IFERROR(VLOOKUP(AV24,'[4]英雄技能-过程'!$A:$P,14,0)*T24/10000*Q24*(1+(AX24-1)*30%)*[4]战斗节奏!$C$28+VLOOKUP(AV24,'[4]英雄技能-过程'!$A:$P,15,0)*T24/10000*R24*(1+(AX24-1)*30%)*[4]战斗节奏!$D$28+VLOOKUP(AV24,'[4]英雄技能-过程'!$A:$P,16,0)*T24/10000*S24*(1+(AX24-1)*30%)*[4]战斗节奏!$E$28,0) -> 366.84375 | AZ24: 3 | BA24: 120602 | BB24: 1 | BC24: 2 | BD24: =IFERROR(VLOOKUP(BA24,'[4]英雄技能-过程'!$A:$P,14,0)*T24/10000*Q24*(1+(BC24-1)*30%)*[4]战斗节奏!$C$28+VLOOKUP(BA24,'[4]英雄技能-过程'!$A:$P,15,0)*T24/10000*R24*(1+(BC24-1)*30%)*[4]战斗节奏!$D$28+VLOOKUP(BA24,'[4]英雄技能-过程'!$A:$P,16,0)*T24/10000*S24*(1+(BC24-1)*30%)*[4]战斗节奏!$E$28,0) -> 439.96875 | BE24: 1 | BF24: 130603 | BG24: 1 | BH24: 2 | BI24: =IFERROR(VLOOKUP(BF24,'[4]英雄技能-过程'!$A:$P,14,0)*T24/10000*Q24*(1+(BH24-1)*30%)*[4]战斗节奏!$C$28+VLOOKUP(BF24,'[4]英雄技能-过程'!$A:$P,15,0)*T24/10000*R24*(1+(BH24-1)*30%)*[4]战斗节奏!$D$28+VLOOKUP(BF24,'[4]英雄技能-过程'!$A:$P,16,0)*T24/10000*S24*(1+(BH24-1)*30%)*[4]战斗节奏!$E$28,0) -> 487.90625 | BJ24: 16&140201&1&5 | BK24: 13&110201&1&5 | BL24: 12&430301&1&3 | BM24: 11&110402&1&2 | BN24: 1&110501&1&2 | BO24: 2&120401&1&2 | BP24: 3&120602&1&2 | BQ24: 1&130603&1&2
A25: 1.2 | B25: 23 | C25: 1937 | D25: 1937 | E25: 3874 | F25: 0.25 | G25: 0.09 | H25: 4,100,102 | I25: 387400,193700,193700 | J25: 1937 | K25: 1937 | L25: 0 | N25: 313.32 | O25: =O5+1 -> 2 | P25: =P5 -> 1 | Q25: 2 | R25: 2 | S25: 2.2 | T25: 10000 | U25: 2&120201&1&1 | V25: 2 | W25: 120201 | X25: 1 | Y25: =Y2 -> 1 | Z25: =IFERROR(VLOOKUP(W25,'[4]英雄技能-过程'!$A:$P,14,0)*T25/10000*Q25*(1+(Y25-1)*30%)*[4]战斗节奏!$C$28+VLOOKUP(W25,'[4]英雄技能-过程'!$A:$P,15,0)*T25/10000*R25*(1+(Y25-1)*30%)*[4]战斗节奏!$D$28+VLOOKUP(W25,'[4]英雄技能-过程'!$A:$P,16,0)*T25/10000*S25*(1+(Y25-1)*30%)*[4]战斗节奏!$E$28,0) -> 313.32 | AD25: =AD5 -> 0 | AI25: =AI5 -> 0 | AJ25: =IFERROR(VLOOKUP(AG25,'[4]英雄技能-过程'!$A:$P,14,0)*T25/10000*Q25*(1+(AI25-1)*30%)*[4]战斗节奏!$C$28+VLOOKUP(AG25,'[4]英雄技能-过程'!$A:$P,15,0)*T25/10000*R25*(1+(AI25-1)*30%)*[4]战斗节奏!$D$28+VLOOKUP(AG25,'[4]英雄技能-过程'!$A:$P,16,0)*T25/10000*S25*(1+(AI25-1)*30%)*[4]战斗节奏!$E$28,0) -> 0 | AN25: =AN5 -> 0 | AO25: =IFERROR(VLOOKUP(AL25,'[4]英雄技能-过程'!$A:$P,14,0)*T25/10000*Q25*(1+(AN25-1)*30%)*[4]战斗节奏!$C$28+VLOOKUP(AL25,'[4]英雄技能-过程'!$A:$P,15,0)*T25/10000*R25*(1+(AN25-1)*30%)*[4]战斗节奏!$D$28+VLOOKUP(AL25,'[4]英雄技能-过程'!$A:$P,16,0)*T25/10000*S25*(1+(AN25-1)*30%)*[4]战斗节奏!$E$28,0) -> 0 | AS25: =AS5 -> 0 | AT25: =IFERROR(VLOOKUP(AQ25,'[4]英雄技能-过程'!$A:$P,14,0)*T25/10000*Q25*(1+(AS25-1)*30%)*[4]战斗节奏!$C$28+VLOOKUP(AQ25,'[4]英雄技能-过程'!$A:$P,15,0)*T25/10000*R25*(1+(AS25-1)*30%)*[4]战斗节奏!$D$28+VLOOKUP(AQ25,'[4]英雄技能-过程'!$A:$P,16,0)*T25/10000*S25*(1+(AS25-1)*30%)*[4]战斗节奏!$E$28,0) -> 0 | AX25: =AX5 -> 0 | AY25: =IFERROR(VLOOKUP(AV25,'[4]英雄技能-过程'!$A:$P,14,0)*T25/10000*Q25*(1+(AX25-1)*30%)*[4]战斗节奏!$C$28+VLOOKUP(AV25,'[4]英雄技能-过程'!$A:$P,15,0)*T25/10000*R25*(1+(AX25-1)*30%)*[4]战斗节奏!$D$28+VLOOKUP(AV25,'[4]英雄技能-过程'!$A:$P,16,0)*T25/10000*S25*(1+(AX25-1)*30%)*[4]战斗节奏!$E$28,0) -> 0 | BC25: =BC5 -> 0 | BD25: =IFERROR(VLOOKUP(BA25,'[4]英雄技能-过程'!$A:$P,14,0)*T25/10000*Q25*(1+(BC25-1)*30%)*[4]战斗节奏!$C$28+VLOOKUP(BA25,'[4]英雄技能-过程'!$A:$P,15,0)*T25/10000*R25*(1+(BC25-1)*30%)*[4]战斗节奏!$D$28+VLOOKUP(BA25,'[4]英雄技能-过程'!$A:$P,16,0)*T25/10000*S25*(1+(BC25-1)*30%)*[4]战斗节奏!$E$28,0) -> 0 | BH25: =BH5 -> 0 | BI25: =IFERROR(VLOOKUP(BF25,'[4]英雄技能-过程'!$A:$P,14,0)*T25/10000*Q25*(1+(BH25-1)*30%)*[4]战斗节奏!$C$28+VLOOKUP(BF25,'[4]英雄技能-过程'!$A:$P,15,0)*T25/10000*R25*(1+(BH25-1)*30%)*[4]战斗节奏!$D$28+VLOOKUP(BF25,'[4]英雄技能-过程'!$A:$P,16,0)*T25/10000*S25*(1+(BH25-1)*30%)*[4]战斗节奏!$E$28,0) -> 0 | BJ25: 2&120201&1&1
A26: 1.199690402 | B26: 24 | C26: =ROUND(C25*1.2,0) -> 2324 | D26: 2324 | E26: 4648 | F26: 0.25 | G26: 0.09 | H26: 4,100,102 | I26: 464800,232400,232400 | J26: 2324 | K26: 2324 | L26: 0 | N26: 857.703 | O26: 2 | P26: 2 | Q26: 2 | R26: 2 | S26: 2.2 | T26: =T25+500 -> 10500 | U26: 3&120101&1&1;2&140303&1&1 | V26: 3 | W26: 120101 | X26: 1 | Y26: 1 | Z26: =IFERROR(VLOOKUP(W26,'[4]英雄技能-过程'!$A:$P,14,0)*T26/10000*Q26*(1+(Y26-1)*30%)*[4]战斗节奏!$C$28+VLOOKUP(W26,'[4]英雄技能-过程'!$A:$P,15,0)*T26/10000*R26*(1+(Y26-1)*30%)*[4]战斗节奏!$D$28+VLOOKUP(W26,'[4]英雄技能-过程'!$A:$P,16,0)*T26/10000*S26*(1+(Y26-1)*30%)*[4]战斗节奏!$E$28,0) -> 369.453 | AA26: 2 | AB26: 140303 | AC26: 1 | AD26: 1 | AE26: =IFERROR(VLOOKUP(AB26,'[4]英雄技能-过程'!$A:$P,14,0)*T26/10000*Q26*(1+(AD26-1)*30%)*[4]战斗节奏!$C$28+VLOOKUP(AB26,'[4]英雄技能-过程'!$A:$P,15,0)*T26/10000*R26*(1+(AD26-1)*30%)*[4]战斗节奏!$D$28+VLOOKUP(AB26,'[4]英雄技能-过程'!$A:$P,16,0)*T26/10000*S26*(1+(AD26-1)*30%)*[4]战斗节奏!$E$28,0) -> 488.25 | AI26: 0 | AJ26: =IFERROR(VLOOKUP(AG26,'[4]英雄技能-过程'!$A:$P,14,0)*T26/10000*Q26*(1+(AI26-1)*30%)*[4]战斗节奏!$C$28+VLOOKUP(AG26,'[4]英雄技能-过程'!$A:$P,15,0)*T26/10000*R26*(1+(AI26-1)*30%)*[4]战斗节奏!$D$28+VLOOKUP(AG26,'[4]英雄技能-过程'!$A:$P,16,0)*T26/10000*S26*(1+(AI26-1)*30%)*[4]战斗节奏!$E$28,0) -> 0 | AN26: 0 | AO26: =IFERROR(VLOOKUP(AL26,'[4]英雄技能-过程'!$A:$P,14,0)*T26/10000*Q26*(1+(AN26-1)*30%)*[4]战斗节奏!$C$28+VLOOKUP(AL26,'[4]英雄技能-过程'!$A:$P,15,0)*T26/10000*R26*(1+(AN26-1)*30%)*[4]战斗节奏!$D$28+VLOOKUP(AL26,'[4]英雄技能-过程'!$A:$P,16,0)*T26/10000*S26*(1+(AN26-1)*30%)*[4]战斗节奏!$E$28,0) -> 0 | AS26: 0 | AT26: =IFERROR(VLOOKUP(AQ26,'[4]英雄技能-过程'!$A:$P,14,0)*T26/10000*Q26*(1+(AS26-1)*30%)*[4]战斗节奏!$C$28+VLOOKUP(AQ26,'[4]英雄技能-过程'!$A:$P,15,0)*T26/10000*R26*(1+(AS26-1)*30%)*[4]战斗节奏!$D$28+VLOOKUP(AQ26,'[4]英雄技能-过程'!$A:$P,16,0)*T26/10000*S26*(1+(AS26-1)*30%)*[4]战斗节奏!$E$28,0) -> 0 | AX26: 0 | AY26: =IFERROR(VLOOKUP(AV26,'[4]英雄技能-过程'!$A:$P,14,0)*T26/10000*Q26*(1+(AX26-1)*30%)*[4]战斗节奏!$C$28+VLOOKUP(AV26,'[4]英雄技能-过程'!$A:$P,15,0)*T26/10000*R26*(1+(AX26-1)*30%)*[4]战斗节奏!$D$28+VLOOKUP(AV26,'[4]英雄技能-过程'!$A:$P,16,0)*T26/10000*S26*(1+(AX26-1)*30%)*[4]战斗节奏!$E$28,0) -> 0 | BC26: 0 | BD26: =IFERROR(VLOOKUP(BA26,'[4]英雄技能-过程'!$A:$P,14,0)*T26/10000*Q26*(1+(BC26-1)*30%)*[4]战斗节奏!$C$28+VLOOKUP(BA26,'[4]英雄技能-过程'!$A:$P,15,0)*T26/10000*R26*(1+(BC26-1)*30%)*[4]战斗节奏!$D$28+VLOOKUP(BA26,'[4]英雄技能-过程'!$A:$P,16,0)*T26/10000*S26*(1+(BC26-1)*30%)*[4]战斗节奏!$E$28,0) -> 0 | BH26: 0 | BI26: =IFERROR(VLOOKUP(BF26,'[4]英雄技能-过程'!$A:$P,14,0)*T26/10000*Q26*(1+(BH26-1)*30%)*[4]战斗节奏!$C$28+VLOOKUP(BF26,'[4]英雄技能-过程'!$A:$P,15,0)*T26/10000*R26*(1+(BH26-1)*30%)*[4]战斗节奏!$D$28+VLOOKUP(BF26,'[4]英雄技能-过程'!$A:$P,16,0)*T26/10000*S26*(1+(BH26-1)*30%)*[4]战斗节奏!$E$28,0) -> 0 | BJ26: 3&120101&1&1 | BK26: 2&140303&1&1
A27: =(C27+1)/(C26+1) -> 1.179784946 | B27: 25 | C27: =ROUND(C26*1.18,0) -> 2742 | D27: 2742 | E27: 5484 | F27: 0.25 | G27: 0.09 | H27: 4,100,102 | I27: 548400,274200,274200 | J27: 2742 | K27: =ROUND(K26*1.18,0) -> 2742 | L27: 0 | N27: 1243.198 | O27: 2 | P27: 3 | Q27: 2 | R27: 2 | S27: 2.2 | T27: 11000 | U27: 4&120201&1&1;3&120101&1&1;2&140303&1&1 | V27: 4 | W27: 120201 | X27: 1 | Y27: 1 | Z27: =IFERROR(VLOOKUP(W27,'[4]英雄技能-过程'!$A:$P,14,0)*T27/10000*Q27*(1+(Y27-1)*30%)*[4]战斗节奏!$C$28+VLOOKUP(W27,'[4]英雄技能-过程'!$A:$P,15,0)*T27/10000*R27*(1+(Y27-1)*30%)*[4]战斗节奏!$D$28+VLOOKUP(W27,'[4]英雄技能-过程'!$A:$P,16,0)*T27/10000*S27*(1+(Y27-1)*30%)*[4]战斗节奏!$E$28,0) -> 344.652 | AA27: 3 | AB27: 120101 | AC27: 1 | AD27: 1 | AE27: =IFERROR(VLOOKUP(AB27,'[4]英雄技能-过程'!$A:$P,14,0)*T27/10000*Q27*(1+(AD27-1)*30%)*[4]战斗节奏!$C$28+VLOOKUP(AB27,'[4]英雄技能-过程'!$A:$P,15,0)*T27/10000*R27*(1+(AD27-1)*30%)*[4]战斗节奏!$D$28+VLOOKUP(AB27,'[4]英雄技能-过程'!$A:$P,16,0)*T27/10000*S27*(1+(AD27-1)*30%)*[4]战斗节奏!$E$28,0) -> 387.046 | AF27: 2 | AG27: 140303 | AH27: 1 | AI27: 1 | AJ27: =IFERROR(VLOOKUP(AG27,'[4]英雄技能-过程'!$A:$P,14,0)*T27/10000*Q27*(1+(AI27-1)*30%)*[4]战斗节奏!$C$28+VLOOKUP(AG27,'[4]英雄技能-过程'!$A:$P,15,0)*T27/10000*R27*(1+(AI27-1)*30%)*[4]战斗节奏!$D$28+VLOOKUP(AG27,'[4]英雄技能-过程'!$A:$P,16,0)*T27/10000*S27*(1+(AI27-1)*30%)*[4]战斗节奏!$E$28,0) -> 511.5 | AN27: 0 | AO27: =IFERROR(VLOOKUP(AL27,'[4]英雄技能-过程'!$A:$P,14,0)*T27/10000*Q27*(1+(AN27-1)*30%)*[4]战斗节奏!$C$28+VLOOKUP(AL27,'[4]英雄技能-过程'!$A:$P,15,0)*T27/10000*R27*(1+(AN27-1)*30%)*[4]战斗节奏!$D$28+VLOOKUP(AL27,'[4]英雄技能-过程'!$A:$P,16,0)*T27/10000*S27*(1+(AN27-1)*30%)*[4]战斗节奏!$E$28,0) -> 0 | AS27: 0 | AT27: =IFERROR(VLOOKUP(AQ27,'[4]英雄技能-过程'!$A:$P,14,0)*T27/10000*Q27*(1+(AS27-1)*30%)*[4]战斗节奏!$C$28+VLOOKUP(AQ27,'[4]英雄技能-过程'!$A:$P,15,0)*T27/10000*R27*(1+(AS27-1)*30%)*[4]战斗节奏!$D$28+VLOOKUP(AQ27,'[4]英雄技能-过程'!$A:$P,16,0)*T27/10000*S27*(1+(AS27-1)*30%)*[4]战斗节奏!$E$28,0) -> 0 | AX27: 0 | AY27: =IFERROR(VLOOKUP(AV27,'[4]英雄技能-过程'!$A:$P,14,0)*T27/10000*Q27*(1+(AX27-1)*30%)*[4]战斗节奏!$C$28+VLOOKUP(AV27,'[4]英雄技能-过程'!$A:$P,15,0)*T27/10000*R27*(1+(AX27-1)*30%)*[4]战斗节奏!$D$28+VLOOKUP(AV27,'[4]英雄技能-过程'!$A:$P,16,0)*T27/10000*S27*(1+(AX27-1)*30%)*[4]战斗节奏!$E$28,0) -> 0 | BC27: 0 | BD27: =IFERROR(VLOOKUP(BA27,'[4]英雄技能-过程'!$A:$P,14,0)*T27/10000*Q27*(1+(BC27-1)*30%)*[4]战斗节奏!$C$28+VLOOKUP(BA27,'[4]英雄技能-过程'!$A:$P,15,0)*T27/10000*R27*(1+(BC27-1)*30%)*[4]战斗节奏!$D$28+VLOOKUP(BA27,'[4]英雄技能-过程'!$A:$P,16,0)*T27/10000*S27*(1+(BC27-1)*30%)*[4]战斗节奏!$E$28,0) -> 0 | BH27: 0 | BI27: =IFERROR(VLOOKUP(BF27,'[4]英雄技能-过程'!$A:$P,14,0)*T27/10000*Q27*(1+(BH27-1)*30%)*[4]战斗节奏!$C$28+VLOOKUP(BF27,'[4]英雄技能-过程'!$A:$P,15,0)*T27/10000*R27*(1+(BH27-1)*30%)*[4]战斗节奏!$D$28+VLOOKUP(BF27,'[4]英雄技能-过程'!$A:$P,16,0)*T27/10000*S27*(1+(BH27-1)*30%)*[4]战斗节奏!$E$28,0) -> 0 | BJ27: 4&120201&1&1 | BK27: 3&120101&1&1 | BL27: 2&140303&1&1
A28: 1.180094787 | B28: 26 | C28: =ROUND(C27*1.18,0) -> 3236 | D28: =C28 -> 3236 | E28: =D28*2 -> 6472 | F28: 0.3 | G28: 0.12 | H28: 4,100,102 | I28: 647200,323600,323600 | J28: 3236 | K28: =ROUND(K27*1.18,0) -> 3236 | L28: 0 | N28: 1581.089 | O28: 2 | P28: 4 | Q28: 2 | R28: 2 | S28: 2.2 | T28: 11500 | U28: 3&120101&1&1;4&140303&1&1;2&420101&1&1 | V28: 3 | W28: 120101 | X28: 1 | Y28: 1 | Z28: =IFERROR(VLOOKUP(W28,'[4]英雄技能-过程'!$A:$P,14,0)*T28/10000*Q28*(1+(Y28-1)*30%)*[4]战斗节奏!$C$28+VLOOKUP(W28,'[4]英雄技能-过程'!$A:$P,15,0)*T28/10000*R28*(1+(Y28-1)*30%)*[4]战斗节奏!$D$28+VLOOKUP(W28,'[4]英雄技能-过程'!$A:$P,16,0)*T28/10000*S28*(1+(Y28-1)*30%)*[4]战斗节奏!$E$28,0) -> 404.639 | AA28: 4 | AB28: 140303 | AC28: 1 | AD28: 1 | AE28: =IFERROR(VLOOKUP(AB28,'[4]英雄技能-过程'!$A:$P,14,0)*T28/10000*Q28*(1+(AD28-1)*30%)*[4]战斗节奏!$C$28+VLOOKUP(AB28,'[4]英雄技能-过程'!$A:$P,15,0)*T28/10000*R28*(1+(AD28-1)*30%)*[4]战斗节奏!$D$28+VLOOKUP(AB28,'[4]英雄技能-过程'!$A:$P,16,0)*T28/10000*S28*(1+(AD28-1)*30%)*[4]战斗节奏!$E$28,0) -> 534.75 | AF28: 2 | AG28: 420101 | AH28: 1 | AI28: 1 | AJ28: =IFERROR(VLOOKUP(AG28,'[4]英雄技能-过程'!$A:$P,14,0)*T28/10000*Q28*(1+(AI28-1)*30%)*[4]战斗节奏!$C$28+VLOOKUP(AG28,'[4]英雄技能-过程'!$A:$P,15,0)*T28/10000*R28*(1+(AI28-1)*30%)*[4]战斗节奏!$D$28+VLOOKUP(AG28,'[4]英雄技能-过程'!$A:$P,16,0)*T28/10000*S28*(1+(AI28-1)*30%)*[4]战斗节奏!$E$28,0) -> 641.7 | AN28: 0 | AO28: =IFERROR(VLOOKUP(AL28,'[4]英雄技能-过程'!$A:$P,14,0)*T28/10000*Q28*(1+(AN28-1)*30%)*[4]战斗节奏!$C$28+VLOOKUP(AL28,'[4]英雄技能-过程'!$A:$P,15,0)*T28/10000*R28*(1+(AN28-1)*30%)*[4]战斗节奏!$D$28+VLOOKUP(AL28,'[4]英雄技能-过程'!$A:$P,16,0)*T28/10000*S28*(1+(AN28-1)*30%)*[4]战斗节奏!$E$28,0) -> 0 | AS28: 0 | AT28: =IFERROR(VLOOKUP(AQ28,'[4]英雄技能-过程'!$A:$P,14,0)*T28/10000*Q28*(1+(AS28-1)*30%)*[4]战斗节奏!$C$28+VLOOKUP(AQ28,'[4]英雄技能-过程'!$A:$P,15,0)*T28/10000*R28*(1+(AS28-1)*30%)*[4]战斗节奏!$D$28+VLOOKUP(AQ28,'[4]英雄技能-过程'!$A:$P,16,0)*T28/10000*S28*(1+(AS28-1)*30%)*[4]战斗节奏!$E$28,0) -> 0 | AX28: 0 | AY28: =IFERROR(VLOOKUP(AV28,'[4]英雄技能-过程'!$A:$P,14,0)*T28/10000*Q28*(1+(AX28-1)*30%)*[4]战斗节奏!$C$28+VLOOKUP(AV28,'[4]英雄技能-过程'!$A:$P,15,0)*T28/10000*R28*(1+(AX28-1)*30%)*[4]战斗节奏!$D$28+VLOOKUP(AV28,'[4]英雄技能-过程'!$A:$P,16,0)*T28/10000*S28*(1+(AX28-1)*30%)*[4]战斗节奏!$E$28,0) -> 0 | BC28: 0 | BD28: =IFERROR(VLOOKUP(BA28,'[4]英雄技能-过程'!$A:$P,14,0)*T28/10000*Q28*(1+(BC28-1)*30%)*[4]战斗节奏!$C$28+VLOOKUP(BA28,'[4]英雄技能-过程'!$A:$P,15,0)*T28/10000*R28*(1+(BC28-1)*30%)*[4]战斗节奏!$D$28+VLOOKUP(BA28,'[4]英雄技能-过程'!$A:$P,16,0)*T28/10000*S28*(1+(BC28-1)*30%)*[4]战斗节奏!$E$28,0) -> 0 | BH28: 0 | BI28: =IFERROR(VLOOKUP(BF28,'[4]英雄技能-过程'!$A:$P,14,0)*T28/10000*Q28*(1+(BH28-1)*30%)*[4]战斗节奏!$C$28+VLOOKUP(BF28,'[4]英雄技能-过程'!$A:$P,15,0)*T28/10000*R28*(1+(BH28-1)*30%)*[4]战斗节奏!$D$28+VLOOKUP(BF28,'[4]英雄技能-过程'!$A:$P,16,0)*T28/10000*S28*(1+(BH28-1)*30%)*[4]战斗节奏!$E$28,0) -> 0 | BJ28: 3&120101&1&1 | BK28: 4&140303&1&1 | BL28: 2&420101&1&1
A29: 1.179796108 | B29: 27 | C29: 3818 | D29: 3818 | E29: 7636 | F29: 0.3 | G29: 0.12 | H29: 4,100,102 | I29: 763600,381800,381800 | J29: 3818 | K29: 3818 | L29: 0 | N29: 1523.616 | O29: 2 | P29: 5 | Q29: 2 | R29: 2 | S29: 2.2 | T29: 12000 | U29: 2&120101&1&1;5&140303&1&2;12&120201&1&1 | V29: 2 | W29: 120101 | X29: 1 | Y29: 1 | Z29: =IFERROR(VLOOKUP(W29,'[4]英雄技能-过程'!$A:$P,14,0)*T29/10000*Q29*(1+(Y29-1)*30%)*[4]战斗节奏!$C$28+VLOOKUP(W29,'[4]英雄技能-过程'!$A:$P,15,0)*T29/10000*R29*(1+(Y29-1)*30%)*[4]战斗节奏!$D$28+VLOOKUP(W29,'[4]英雄技能-过程'!$A:$P,16,0)*T29/10000*S29*(1+(Y29-1)*30%)*[4]战斗节奏!$E$28,0) -> 422.232 | AA29: 5 | AB29: 140303 | AC29: 1 | AD29: 2 | AE29: =IFERROR(VLOOKUP(AB29,'[4]英雄技能-过程'!$A:$P,14,0)*T29/10000*Q29*(1+(AD29-1)*30%)*[4]战斗节奏!$C$28+VLOOKUP(AB29,'[4]英雄技能-过程'!$A:$P,15,0)*T29/10000*R29*(1+(AD29-1)*30%)*[4]战斗节奏!$D$28+VLOOKUP(AB29,'[4]英雄技能-过程'!$A:$P,16,0)*T29/10000*S29*(1+(AD29-1)*30%)*[4]战斗节奏!$E$28,0) -> 725.4 | AF29: 12 | AG29: 120201 | AH29: 1 | AI29: 1 | AJ29: =IFERROR(VLOOKUP(AG29,'[4]英雄技能-过程'!$A:$P,14,0)*T29/10000*Q29*(1+(AI29-1)*30%)*[4]战斗节奏!$C$28+VLOOKUP(AG29,'[4]英雄技能-过程'!$A:$P,15,0)*T29/10000*R29*(1+(AI29-1)*30%)*[4]战斗节奏!$D$28+VLOOKUP(AG29,'[4]英雄技能-过程'!$A:$P,16,0)*T29/10000*S29*(1+(AI29-1)*30%)*[4]战斗节奏!$E$28,0) -> 375.984 | AN29: 0 | AO29: =IFERROR(VLOOKUP(AL29,'[4]英雄技能-过程'!$A:$P,14,0)*T29/10000*Q29*(1+(AN29-1)*30%)*[4]战斗节奏!$C$28+VLOOKUP(AL29,'[4]英雄技能-过程'!$A:$P,15,0)*T29/10000*R29*(1+(AN29-1)*30%)*[4]战斗节奏!$D$28+VLOOKUP(AL29,'[4]英雄技能-过程'!$A:$P,16,0)*T29/10000*S29*(1+(AN29-1)*30%)*[4]战斗节奏!$E$28,0) -> 0 | AS29: 0 | AT29: =IFERROR(VLOOKUP(AQ29,'[4]英雄技能-过程'!$A:$P,14,0)*T29/10000*Q29*(1+(AS29-1)*30%)*[4]战斗节奏!$C$28+VLOOKUP(AQ29,'[4]英雄技能-过程'!$A:$P,15,0)*T29/10000*R29*(1+(AS29-1)*30%)*[4]战斗节奏!$D$28+VLOOKUP(AQ29,'[4]英雄技能-过程'!$A:$P,16,0)*T29/10000*S29*(1+(AS29-1)*30%)*[4]战斗节奏!$E$28,0) -> 0 | AX29: 0 | AY29: =IFERROR(VLOOKUP(AV29,'[4]英雄技能-过程'!$A:$P,14,0)*T29/10000*Q29*(1+(AX29-1)*30%)*[4]战斗节奏!$C$28+VLOOKUP(AV29,'[4]英雄技能-过程'!$A:$P,15,0)*T29/10000*R29*(1+(AX29-1)*30%)*[4]战斗节奏!$D$28+VLOOKUP(AV29,'[4]英雄技能-过程'!$A:$P,16,0)*T29/10000*S29*(1+(AX29-1)*30%)*[4]战斗节奏!$E$28,0) -> 0 | BC29: 0 | BD29: =IFERROR(VLOOKUP(BA29,'[4]英雄技能-过程'!$A:$P,14,0)*T29/10000*Q29*(1+(BC29-1)*30%)*[4]战斗节奏!$C$28+VLOOKUP(BA29,'[4]英雄技能-过程'!$A:$P,15,0)*T29/10000*R29*(1+(BC29-1)*30%)*[4]战斗节奏!$D$28+VLOOKUP(BA29,'[4]英雄技能-过程'!$A:$P,16,0)*T29/10000*S29*(1+(BC29-1)*30%)*[4]战斗节奏!$E$28,0) -> 0 | BH29: 0 | BI29: =IFERROR(VLOOKUP(BF29,'[4]英雄技能-过程'!$A:$P,14,0)*T29/10000*Q29*(1+(BH29-1)*30%)*[4]战斗节奏!$C$28+VLOOKUP(BF29,'[4]英雄技能-过程'!$A:$P,15,0)*T29/10000*R29*(1+(BH29-1)*30%)*[4]战斗节奏!$D$28+VLOOKUP(BF29,'[4]英雄技能-过程'!$A:$P,16,0)*T29/10000*S29*(1+(BH29-1)*30%)*[4]战斗节奏!$E$28,0) -> 0 | BJ29: 2&120101&1&1 | BK29: 5&140303&1&2 | BL29: 12&120201&1&1
A30: 1.179890024 | B30: 28 | C30: 4505 | D30: 4505 | E30: 9010 | F30: 0.3 | G30: 0.12 | H30: 4,100,102 | I30: 901000,450500,450500 | J30: 4505 | K30: 4505 | L30: 0 | N30: 1949.22 | O30: 2 | P30: 6 | Q30: 2 | R30: 2 | S30: 2.2 | T30: 12500 | U30: 14&140201&1&1;13&120201&1&2;2&120101&1&1;4&120603&1&1 | V30: 14 | W30: 140201 | X30: 1 | Y30: 1 | Z30: =IFERROR(VLOOKUP(W30,'[4]英雄技能-过程'!$A:$P,14,0)*T30/10000*Q30*(1+(Y30-1)*30%)*[4]战斗节奏!$C$28+VLOOKUP(W30,'[4]英雄技能-过程'!$A:$P,15,0)*T30/10000*R30*(1+(Y30-1)*30%)*[4]战斗节奏!$D$28+VLOOKUP(W30,'[4]英雄技能-过程'!$A:$P,16,0)*T30/10000*S30*(1+(Y30-1)*30%)*[4]战斗节奏!$E$28,0) -> 302.75 | AA30: 13 | AB30: 120201 | AC30: 1 | AD30: 2 | AE30: =IFERROR(VLOOKUP(AB30,'[4]英雄技能-过程'!$A:$P,14,0)*T30/10000*Q30*(1+(AD30-1)*30%)*[4]战斗节奏!$C$28+VLOOKUP(AB30,'[4]英雄技能-过程'!$A:$P,15,0)*T30/10000*R30*(1+(AD30-1)*30%)*[4]战斗节奏!$D$28+VLOOKUP(AB30,'[4]英雄技能-过程'!$A:$P,16,0)*T30/10000*S30*(1+(AD30-1)*30%)*[4]战斗节奏!$E$28,0) -> 509.145 | AF30: 2 | AG30: 120101 | AH30: 1 | AI30: 1 | AJ30: =IFERROR(VLOOKUP(AG30,'[4]英雄技能-过程'!$A:$P,14,0)*T30/10000*Q30*(1+(AI30-1)*30%)*[4]战斗节奏!$C$28+VLOOKUP(AG30,'[4]英雄技能-过程'!$A:$P,15,0)*T30/10000*R30*(1+(AI30-1)*30%)*[4]战斗节奏!$D$28+VLOOKUP(AG30,'[4]英雄技能-过程'!$A:$P,16,0)*T30/10000*S30*(1+(AI30-1)*30%)*[4]战斗节奏!$E$28,0) -> 439.825 | AK30: 4 | AL30: 120603 | AM30: 1 | AN30: 1 | AO30: =IFERROR(VLOOKUP(AL30,'[4]英雄技能-过程'!$A:$P,14,0)*T30/10000*Q30*(1+(AN30-1)*30%)*[4]战斗节奏!$C$28+VLOOKUP(AL30,'[4]英雄技能-过程'!$A:$P,15,0)*T30/10000*R30*(1+(AN30-1)*30%)*[4]战斗节奏!$D$28+VLOOKUP(AL30,'[4]英雄技能-过程'!$A:$P,16,0)*T30/10000*S30*(1+(AN30-1)*30%)*[4]战斗节奏!$E$28,0) -> 697.5 | AS30: 0 | AT30: =IFERROR(VLOOKUP(AQ30,'[4]英雄技能-过程'!$A:$P,14,0)*T30/10000*Q30*(1+(AS30-1)*30%)*[4]战斗节奏!$C$28+VLOOKUP(AQ30,'[4]英雄技能-过程'!$A:$P,15,0)*T30/10000*R30*(1+(AS30-1)*30%)*[4]战斗节奏!$D$28+VLOOKUP(AQ30,'[4]英雄技能-过程'!$A:$P,16,0)*T30/10000*S30*(1+(AS30-1)*30%)*[4]战斗节奏!$E$28,0) -> 0 | AX30: 0 | AY30: =IFERROR(VLOOKUP(AV30,'[4]英雄技能-过程'!$A:$P,14,0)*T30/10000*Q30*(1+(AX30-1)*30%)*[4]战斗节奏!$C$28+VLOOKUP(AV30,'[4]英雄技能-过程'!$A:$P,15,0)*T30/10000*R30*(1+(AX30-1)*30%)*[4]战斗节奏!$D$28+VLOOKUP(AV30,'[4]英雄技能-过程'!$A:$P,16,0)*T30/10000*S30*(1+(AX30-1)*30%)*[4]战斗节奏!$E$28,0) -> 0 | BC30: 0 | BD30: =IFERROR(VLOOKUP(BA30,'[4]英雄技能-过程'!$A:$P,14,0)*T30/10000*Q30*(1+(BC30-1)*30%)*[4]战斗节奏!$C$28+VLOOKUP(BA30,'[4]英雄技能-过程'!$A:$P,15,0)*T30/10000*R30*(1+(BC30-1)*30%)*[4]战斗节奏!$D$28+VLOOKUP(BA30,'[4]英雄技能-过程'!$A:$P,16,0)*T30/10000*S30*(1+(BC30-1)*30%)*[4]战斗节奏!$E$28,0) -> 0 | BH30: 0 | BI30: =IFERROR(VLOOKUP(BF30,'[4]英雄技能-过程'!$A:$P,14,0)*T30/10000*Q30*(1+(BH30-1)*30%)*[4]战斗节奏!$C$28+VLOOKUP(BF30,'[4]英雄技能-过程'!$A:$P,15,0)*T30/10000*R30*(1+(BH30-1)*30%)*[4]战斗节奏!$D$28+VLOOKUP(BF30,'[4]英雄技能-过程'!$A:$P,16,0)*T30/10000*S30*(1+(BH30-1)*30%)*[4]战斗节奏!$E$28,0) -> 0 | BJ30: 14&140201&1&1 | BK30: 13&120201&1&2 | BL30: 2&120101&1&1 | BM30: 4&120603&1&1
A31: 1.179982246 | B31: 29 | C31: 5316 | D31: 5316 | E31: 10632 | F31: 0.3 | G31: 0.12 | H31: 4,100,102 | I31: 1063200,531600,531600 | J31: 5316 | K31: 5316 | L31: 0 | N31: 2248.4124 | O31: 2 | P31: 7 | Q31: 2 | R31: 2 | S31: 2.2 | T31: 13000 | U31: 13&110402&1&2;1&120201&1&2;4&140303&1&2;2&120101&1&1 | V31: 13 | W31: 110402 | X31: 1 | Y31: 2 | Z31: =IFERROR(VLOOKUP(W31,'[4]英雄技能-过程'!$A:$P,14,0)*T31/10000*Q31*(1+(Y31-1)*30%)*[4]战斗节奏!$C$28+VLOOKUP(W31,'[4]英雄技能-过程'!$A:$P,15,0)*T31/10000*R31*(1+(Y31-1)*30%)*[4]战斗节奏!$D$28+VLOOKUP(W31,'[4]英雄技能-过程'!$A:$P,16,0)*T31/10000*S31*(1+(Y31-1)*30%)*[4]战斗节奏!$E$28,0) -> 475.6336 | AA31: 1 | AB31: 120201 | AC31: 1 | AD31: 2 | AE31: =IFERROR(VLOOKUP(AB31,'[4]英雄技能-过程'!$A:$P,14,0)*T31/10000*Q31*(1+(AD31-1)*30%)*[4]战斗节奏!$C$28+VLOOKUP(AB31,'[4]英雄技能-过程'!$A:$P,15,0)*T31/10000*R31*(1+(AD31-1)*30%)*[4]战斗节奏!$D$28+VLOOKUP(AB31,'[4]英雄技能-过程'!$A:$P,16,0)*T31/10000*S31*(1+(AD31-1)*30%)*[4]战斗节奏!$E$28,0) -> 529.5108 | AF31: 4 | AG31: 140303 | AH31: 1 | AI31: 2 | AJ31: =IFERROR(VLOOKUP(AG31,'[4]英雄技能-过程'!$A:$P,14,0)*T31/10000*Q31*(1+(AI31-1)*30%)*[4]战斗节奏!$C$28+VLOOKUP(AG31,'[4]英雄技能-过程'!$A:$P,15,0)*T31/10000*R31*(1+(AI31-1)*30%)*[4]战斗节奏!$D$28+VLOOKUP(AG31,'[4]英雄技能-过程'!$A:$P,16,0)*T31/10000*S31*(1+(AI31-1)*30%)*[4]战斗节奏!$E$28,0) -> 785.85 | AK31: 2 | AL31: 120101 | AM31: 1 | AN31: 1 | AO31: =IFERROR(VLOOKUP(AL31,'[4]英雄技能-过程'!$A:$P,14,0)*T31/10000*Q31*(1+(AN31-1)*30%)*[4]战斗节奏!$C$28+VLOOKUP(AL31,'[4]英雄技能-过程'!$A:$P,15,0)*T31/10000*R31*(1+(AN31-1)*30%)*[4]战斗节奏!$D$28+VLOOKUP(AL31,'[4]英雄技能-过程'!$A:$P,16,0)*T31/10000*S31*(1+(AN31-1)*30%)*[4]战斗节奏!$E$28,0) -> 457.418 | AS31: 0 | AT31: =IFERROR(VLOOKUP(AQ31,'[4]英雄技能-过程'!$A:$P,14,0)*T31/10000*Q31*(1+(AS31-1)*30%)*[4]战斗节奏!$C$28+VLOOKUP(AQ31,'[4]英雄技能-过程'!$A:$P,15,0)*T31/10000*R31*(1+(AS31-1)*30%)*[4]战斗节奏!$D$28+VLOOKUP(AQ31,'[4]英雄技能-过程'!$A:$P,16,0)*T31/10000*S31*(1+(AS31-1)*30%)*[4]战斗节奏!$E$28,0) -> 0 | AX31: 0 | AY31: =IFERROR(VLOOKUP(AV31,'[4]英雄技能-过程'!$A:$P,14,0)*T31/10000*Q31*(1+(AX31-1)*30%)*[4]战斗节奏!$C$28+VLOOKUP(AV31,'[4]英雄技能-过程'!$A:$P,15,0)*T31/10000*R31*(1+(AX31-1)*30%)*[4]战斗节奏!$D$28+VLOOKUP(AV31,'[4]英雄技能-过程'!$A:$P,16,0)*T31/10000*S31*(1+(AX31-1)*30%)*[4]战斗节奏!$E$28,0) -> 0 | BC31: 0 | BD31: =IFERROR(VLOOKUP(BA31,'[4]英雄技能-过程'!$A:$P,14,0)*T31/10000*Q31*(1+(BC31-1)*30%)*[4]战斗节奏!$C$28+VLOOKUP(BA31,'[4]英雄技能-过程'!$A:$P,15,0)*T31/10000*R31*(1+(BC31-1)*30%)*[4]战斗节奏!$D$28+VLOOKUP(BA31,'[4]英雄技能-过程'!$A:$P,16,0)*T31/10000*S31*(1+(BC31-1)*30%)*[4]战斗节奏!$E$28,0) -> 0 | BH31: 0 | BI31: =IFERROR(VLOOKUP(BF31,'[4]英雄技能-过程'!$A:$P,14,0)*T31/10000*Q31*(1+(BH31-1)*30%)*[4]战斗节奏!$C$28+VLOOKUP(BF31,'[4]英雄技能-过程'!$A:$P,15,0)*T31/10000*R31*(1+(BH31-1)*30%)*[4]战斗节奏!$D$28+VLOOKUP(BF31,'[4]英雄技能-过程'!$A:$P,16,0)*T31/10000*S31*(1+(BH31-1)*30%)*[4]战斗节奏!$E$28,0) -> 0 | BJ31: 13&110402&1&2 | BK31: 1&120201&1&2 | BL31: 4&140303&1&2 | BM31: 2&120101&1&1
A32: 1.179988715 | B32: 30 | C32: 6273 | D32: 6273 | E32: 12546 | F32: 0.3 | G32: 0.12 | H32: 4,100,102 | I32: 1254600,627300,627300 | J32: 6273 | K32: 6273 | L32: 0 | N32: 2421.4302 | O32: 2 | P32: 8 | Q32: 2 | R32: 2 | S32: 2.2 | T32: 13500 | U32: 14&140201&1&3;12&110402&1&2;15&110201&1&2;2&420101&1&2 | V32: 14 | W32: 140201 | X32: 1 | Y32: 3 | Z32: =IFERROR(VLOOKUP(W32,'[4]英雄技能-过程'!$A:$P,14,0)*T32/10000*Q32*(1+(Y32-1)*30%)*[4]战斗节奏!$C$28+VLOOKUP(W32,'[4]英雄技能-过程'!$A:$P,15,0)*T32/10000*R32*(1+(Y32-1)*30%)*[4]战斗节奏!$D$28+VLOOKUP(W32,'[4]英雄技能-过程'!$A:$P,16,0)*T32/10000*S32*(1+(Y32-1)*30%)*[4]战斗节奏!$E$28,0) -> 523.152 | AA32: 12 | AB32: 110402 | AC32: 1 | AD32: 2 | AE32: =IFERROR(VLOOKUP(AB32,'[4]英雄技能-过程'!$A:$P,14,0)*T32/10000*Q32*(1+(AD32-1)*30%)*[4]战斗节奏!$C$28+VLOOKUP(AB32,'[4]英雄技能-过程'!$A:$P,15,0)*T32/10000*R32*(1+(AD32-1)*30%)*[4]战斗节奏!$D$28+VLOOKUP(AB32,'[4]英雄技能-过程'!$A:$P,16,0)*T32/10000*S32*(1+(AD32-1)*30%)*[4]战斗节奏!$E$28,0) -> 493.9272 | AF32: 15 | AG32: 110201 | AH32: 1 | AI32: 2 | AJ32: =IFERROR(VLOOKUP(AG32,'[4]英雄技能-过程'!$A:$P,14,0)*T32/10000*Q32*(1+(AI32-1)*30%)*[4]战斗节奏!$C$28+VLOOKUP(AG32,'[4]英雄技能-过程'!$A:$P,15,0)*T32/10000*R32*(1+(AI32-1)*30%)*[4]战斗节奏!$D$28+VLOOKUP(AG32,'[4]英雄技能-过程'!$A:$P,16,0)*T32/10000*S32*(1+(AI32-1)*30%)*[4]战斗节奏!$E$28,0) -> 425.061 | AK32: 2 | AL32: 420101 | AM32: 1 | AN32: 2 | AO32: =IFERROR(VLOOKUP(AL32,'[4]英雄技能-过程'!$A:$P,14,0)*T32/10000*Q32*(1+(AN32-1)*30%)*[4]战斗节奏!$C$28+VLOOKUP(AL32,'[4]英雄技能-过程'!$A:$P,15,0)*T32/10000*R32*(1+(AN32-1)*30%)*[4]战斗节奏!$D$28+VLOOKUP(AL32,'[4]英雄技能-过程'!$A:$P,16,0)*T32/10000*S32*(1+(AN32-1)*30%)*[4]战斗节奏!$E$28,0) -> 979.29 | AS32: 0 | AT32: =IFERROR(VLOOKUP(AQ32,'[4]英雄技能-过程'!$A:$P,14,0)*T32/10000*Q32*(1+(AS32-1)*30%)*[4]战斗节奏!$C$28+VLOOKUP(AQ32,'[4]英雄技能-过程'!$A:$P,15,0)*T32/10000*R32*(1+(AS32-1)*30%)*[4]战斗节奏!$D$28+VLOOKUP(AQ32,'[4]英雄技能-过程'!$A:$P,16,0)*T32/10000*S32*(1+(AS32-1)*30%)*[4]战斗节奏!$E$28,0) -> 0 | AX32: 0 | AY32: =IFERROR(VLOOKUP(AV32,'[4]英雄技能-过程'!$A:$P,14,0)*T32/10000*Q32*(1+(AX32-1)*30%)*[4]战斗节奏!$C$28+VLOOKUP(AV32,'[4]英雄技能-过程'!$A:$P,15,0)*T32/10000*R32*(1+(AX32-1)*30%)*[4]战斗节奏!$D$28+VLOOKUP(AV32,'[4]英雄技能-过程'!$A:$P,16,0)*T32/10000*S32*(1+(AX32-1)*30%)*[4]战斗节奏!$E$28,0) -> 0 | BC32: 0 | BD32: =IFERROR(VLOOKUP(BA32,'[4]英雄技能-过程'!$A:$P,14,0)*T32/10000*Q32*(1+(BC32-1)*30%)*[4]战斗节奏!$C$28+VLOOKUP(BA32,'[4]英雄技能-过程'!$A:$P,15,0)*T32/10000*R32*(1+(BC32-1)*30%)*[4]战斗节奏!$D$28+VLOOKUP(BA32,'[4]英雄技能-过程'!$A:$P,16,0)*T32/10000*S32*(1+(BC32-1)*30%)*[4]战斗节奏!$E$28,0) -> 0 | BH32: 0 | BI32: =IFERROR(VLOOKUP(BF32,'[4]英雄技能-过程'!$A:$P,14,0)*T32/10000*Q32*(1+(BH32-1)*30%)*[4]战斗节奏!$C$28+VLOOKUP(BF32,'[4]英雄技能-过程'!$A:$P,15,0)*T32/10000*R32*(1+(BH32-1)*30%)*[4]战斗节奏!$D$28+VLOOKUP(BF32,'[4]英雄技能-过程'!$A:$P,16,0)*T32/10000*S32*(1+(BH32-1)*30%)*[4]战斗节奏!$E$28,0) -> 0 | BJ32: 14&140201&1&3 | BK32: 12&110402&1&2 | BL32: 15&110201&1&2 | BM32: 2&420101&1&2
A33: 1.169907555 | B33: 31 | C33: =ROUND(C32*1.17,0) -> 7339 | D33: 7339 | E33: 14678 | F33: 0.35 | G33: 0.15 | H33: 4,100,102 | I33: 1467800,733900,733900 | J33: 7339 | K33: =ROUND(K32*1.17,0) -> 7339 | L33: 0 | N33: 3497.1104 | O33: 2 | P33: 9 | Q33: 2 | R33: 2 | S33: 2.2 | T33: 14000 | U33: 14&110501&1&3;12&110402&1&2;3&140303&1&2;4&120603&1&2;2&120101&1&1 | V33: 14 | W33: 110501 | X33: 1 | Y33: 3 | Z33: =IFERROR(VLOOKUP(W33,'[4]英雄技能-过程'!$A:$P,14,0)*T33/10000*Q33*(1+(Y33-1)*30%)*[4]战斗节奏!$C$28+VLOOKUP(W33,'[4]英雄技能-过程'!$A:$P,15,0)*T33/10000*R33*(1+(Y33-1)*30%)*[4]战斗节奏!$D$28+VLOOKUP(W33,'[4]英雄技能-过程'!$A:$P,16,0)*T33/10000*S33*(1+(Y33-1)*30%)*[4]战斗节奏!$E$28,0) -> 630.4256 | AA33: 12 | AB33: 110402 | AC33: 1 | AD33: 2 | AE33: =IFERROR(VLOOKUP(AB33,'[4]英雄技能-过程'!$A:$P,14,0)*T33/10000*Q33*(1+(AD33-1)*30%)*[4]战斗节奏!$C$28+VLOOKUP(AB33,'[4]英雄技能-过程'!$A:$P,15,0)*T33/10000*R33*(1+(AD33-1)*30%)*[4]战斗节奏!$D$28+VLOOKUP(AB33,'[4]英雄技能-过程'!$A:$P,16,0)*T33/10000*S33*(1+(AD33-1)*30%)*[4]战斗节奏!$E$28,0) -> 512.2208 | AF33: 3 | AG33: 140303 | AH33: 1 | AI33: 2 | AJ33: =IFERROR(VLOOKUP(AG33,'[4]英雄技能-过程'!$A:$P,14,0)*T33/10000*Q33*(1+(AI33-1)*30%)*[4]战斗节奏!$C$28+VLOOKUP(AG33,'[4]英雄技能-过程'!$A:$P,15,0)*T33/10000*R33*(1+(AI33-1)*30%)*[4]战斗节奏!$D$28+VLOOKUP(AG33,'[4]英雄技能-过程'!$A:$P,16,0)*T33/10000*S33*(1+(AI33-1)*30%)*[4]战斗节奏!$E$28,0) -> 846.3 | AK33: 4 | AL33: 120603 | AM33: 1 | AN33: 2 | AO33: =IFERROR(VLOOKUP(AL33,'[4]英雄技能-过程'!$A:$P,14,0)*T33/10000*Q33*(1+(AN33-1)*30%)*[4]战斗节奏!$C$28+VLOOKUP(AL33,'[4]英雄技能-过程'!$A:$P,15,0)*T33/10000*R33*(1+(AN33-1)*30%)*[4]战斗节奏!$D$28+VLOOKUP(AL33,'[4]英雄技能-过程'!$A:$P,16,0)*T33/10000*S33*(1+(AN33-1)*30%)*[4]战斗节奏!$E$28,0) -> 1015.56 | AP33: 2 | AQ33: 120101 | AR33: 1 | AS33: 1 | AT33: =IFERROR(VLOOKUP(AQ33,'[4]英雄技能-过程'!$A:$P,14,0)*T33/10000*Q33*(1+(AS33-1)*30%)*[4]战斗节奏!$C$28+VLOOKUP(AQ33,'[4]英雄技能-过程'!$A:$P,15,0)*T33/10000*R33*(1+(AS33-1)*30%)*[4]战斗节奏!$D$28+VLOOKUP(AQ33,'[4]英雄技能-过程'!$A:$P,16,0)*T33/10000*S33*(1+(AS33-1)*30%)*[4]战斗节奏!$E$28,0) -> 492.604 | AX33: 0 | AY33: =IFERROR(VLOOKUP(AV33,'[4]英雄技能-过程'!$A:$P,14,0)*T33/10000*Q33*(1+(AX33-1)*30%)*[4]战斗节奏!$C$28+VLOOKUP(AV33,'[4]英雄技能-过程'!$A:$P,15,0)*T33/10000*R33*(1+(AX33-1)*30%)*[4]战斗节奏!$D$28+VLOOKUP(AV33,'[4]英雄技能-过程'!$A:$P,16,0)*T33/10000*S33*(1+(AX33-1)*30%)*[4]战斗节奏!$E$28,0) -> 0 | BC33: 0 | BD33: =IFERROR(VLOOKUP(BA33,'[4]英雄技能-过程'!$A:$P,14,0)*T33/10000*Q33*(1+(BC33-1)*30%)*[4]战斗节奏!$C$28+VLOOKUP(BA33,'[4]英雄技能-过程'!$A:$P,15,0)*T33/10000*R33*(1+(BC33-1)*30%)*[4]战斗节奏!$D$28+VLOOKUP(BA33,'[4]英雄技能-过程'!$A:$P,16,0)*T33/10000*S33*(1+(BC33-1)*30%)*[4]战斗节奏!$E$28,0) -> 0 | BH33: 0 | BI33: =IFERROR(VLOOKUP(BF33,'[4]英雄技能-过程'!$A:$P,14,0)*T33/10000*Q33*(1+(BH33-1)*30%)*[4]战斗节奏!$C$28+VLOOKUP(BF33,'[4]英雄技能-过程'!$A:$P,15,0)*T33/10000*R33*(1+(BH33-1)*30%)*[4]战斗节奏!$D$28+VLOOKUP(BF33,'[4]英雄技能-过程'!$A:$P,16,0)*T33/10000*S33*(1+(BH33-1)*30%)*[4]战斗节奏!$E$28,0) -> 0 | BJ33: 14&110501&1&3 | BK33: 12&110402&1&2 | BL33: 3&140303&1&2 | BM33: 4&120603&1&2 | BN33: 2&120101&1&1
A34: 1.170027248 | B34: 32 | C34: =ROUND(C33*1.17,0) -> 8587 | D34: 8587 | E34: 17174 | F34: 0.35 | G34: 0.15 | H34: 4,100,102 | I34: =INT(E34*100)&","&INT(C34*100)&","&INT(D34*100) -> 1717400,858700,858700 | J34: 8587 | K34: =ROUND(K33*1.17,0) -> 8587 | L34: 0 | N34: 4521.045 | O34: 2 | P34: 10 | Q34: 2 | R34: 2 | S34: 2.2 | T34: =T33+1000 -> 15000 | U34: 12&120201&1&3;1&120603&1&2;3&420101&1&2;2&120101&1&2;5&140303&1&2 | V34: 12 | W34: 120201 | X34: 1 | Y34: 3 | Z34: =IFERROR(VLOOKUP(W34,'[4]英雄技能-过程'!$A:$P,14,0)*T34/10000*Q34*(1+(Y34-1)*30%)*[4]战斗节奏!$C$28+VLOOKUP(W34,'[4]英雄技能-过程'!$A:$P,15,0)*T34/10000*R34*(1+(Y34-1)*30%)*[4]战斗节奏!$D$28+VLOOKUP(W34,'[4]英雄技能-过程'!$A:$P,16,0)*T34/10000*S34*(1+(Y34-1)*30%)*[4]战斗节奏!$E$28,0) -> 751.968 | AA34: 1 | AB34: 120603 | AC34: 1 | AD34: 2 | AE34: =IFERROR(VLOOKUP(AB34,'[4]英雄技能-过程'!$A:$P,14,0)*T34/10000*Q34*(1+(AD34-1)*30%)*[4]战斗节奏!$C$28+VLOOKUP(AB34,'[4]英雄技能-过程'!$A:$P,15,0)*T34/10000*R34*(1+(AD34-1)*30%)*[4]战斗节奏!$D$28+VLOOKUP(AB34,'[4]英雄技能-过程'!$A:$P,16,0)*T34/10000*S34*(1+(AD34-1)*30%)*[4]战斗节奏!$E$28,0) -> 1088.1 | AF34: 3 | AG34: 420101 | AH34: 1 | AI34: 2 | AJ34: =IFERROR(VLOOKUP(AG34,'[4]英雄技能-过程'!$A:$P,14,0)*T34/10000*Q34*(1+(AI34-1)*30%)*[4]战斗节奏!$C$28+VLOOKUP(AG34,'[4]英雄技能-过程'!$A:$P,15,0)*T34/10000*R34*(1+(AI34-1)*30%)*[4]战斗节奏!$D$28+VLOOKUP(AG34,'[4]英雄技能-过程'!$A:$P,16,0)*T34/10000*S34*(1+(AI34-1)*30%)*[4]战斗节奏!$E$28,0) -> 1088.1 | AK34: 2 | AL34: 120101 | AM34: 1 | AN34: 2 | AO34: =IFERROR(VLOOKUP(AL34,'[4]英雄技能-过程'!$A:$P,14,0)*T34/10000*Q34*(1+(AN34-1)*30%)*[4]战斗节奏!$C$28+VLOOKUP(AL34,'[4]英雄技能-过程'!$A:$P,15,0)*T34/10000*R34*(1+(AN34-1)*30%)*[4]战斗节奏!$D$28+VLOOKUP(AL34,'[4]英雄技能-过程'!$A:$P,16,0)*T34/10000*S34*(1+(AN34-1)*30%)*[4]战斗节奏!$E$28,0) -> 686.127 | AP34: 5 | AQ34: 140303 | AR34: 1 | AS34: 2 | AT34: =IFERROR(VLOOKUP(AQ34,'[4]英雄技能-过程'!$A:$P,14,0)*T34/10000*Q34*(1+(AS34-1)*30%)*[4]战斗节奏!$C$28+VLOOKUP(AQ34,'[4]英雄技能-过程'!$A:$P,15,0)*T34/10000*R34*(1+(AS34-1)*30%)*[4]战斗节奏!$D$28+VLOOKUP(AQ34,'[4]英雄技能-过程'!$A:$P,16,0)*T34/10000*S34*(1+(AS34-1)*30%)*[4]战斗节奏!$E$28,0) -> 906.75 | AX34: 0 | AY34: =IFERROR(VLOOKUP(AV34,'[4]英雄技能-过程'!$A:$P,14,0)*T34/10000*Q34*(1+(AX34-1)*30%)*[4]战斗节奏!$C$28+VLOOKUP(AV34,'[4]英雄技能-过程'!$A:$P,15,0)*T34/10000*R34*(1+(AX34-1)*30%)*[4]战斗节奏!$D$28+VLOOKUP(AV34,'[4]英雄技能-过程'!$A:$P,16,0)*T34/10000*S34*(1+(AX34-1)*30%)*[4]战斗节奏!$E$28,0) -> 0 | BC34: 0 | BD34: =IFERROR(VLOOKUP(BA34,'[4]英雄技能-过程'!$A:$P,14,0)*T34/10000*Q34*(1+(BC34-1)*30%)*[4]战斗节奏!$C$28+VLOOKUP(BA34,'[4]英雄技能-过程'!$A:$P,15,0)*T34/10000*R34*(1+(BC34-1)*30%)*[4]战斗节奏!$D$28+VLOOKUP(BA34,'[4]英雄技能-过程'!$A:$P,16,0)*T34/10000*S34*(1+(BC34-1)*30%)*[4]战斗节奏!$E$28,0) -> 0 | BH34: 0 | BI34: =IFERROR(VLOOKUP(BF34,'[4]英雄技能-过程'!$A:$P,14,0)*T34/10000*Q34*(1+(BH34-1)*30%)*[4]战斗节奏!$C$28+VLOOKUP(BF34,'[4]英雄技能-过程'!$A:$P,15,0)*T34/10000*R34*(1+(BH34-1)*30%)*[4]战斗节奏!$D$28+VLOOKUP(BF34,'[4]英雄技能-过程'!$A:$P,16,0)*T34/10000*S34*(1+(BH34-1)*30%)*[4]战斗节奏!$E$28,0) -> 0 | BJ34: 12&120201&1&3 | BK34: 1&120603&1&2 | BL34: 3&420101&1&2 | BM34: 2&120101&1&2 | BN34: 5&140303&1&2
A35: 1.170004658 | B35: 33 | C35: 10047 | D35: 10047 | E35: 20094 | F35: 0.35 | G35: 0.15 | H35: 4,100,102 | I35: 2009400,1004700,1004700 | J35: 10047 | K35: 10047 | L35: 0 | N35: 4301.072 | O35: 2 | P35: 11 | Q35: 2 | R35: 2 | S35: 2.2 | T35: 16000 | U35: 12&110201&1&3;16&110501&1&2;18&140201&1&2;4&140303&1&2;2&120101&1&2;5&120603&1&1 | V35: 12 | W35: 110201 | X35: 1 | Y35: 3 | Z35: =IFERROR(VLOOKUP(W35,'[4]英雄技能-过程'!$A:$P,14,0)*T35/10000*Q35*(1+(Y35-1)*30%)*[4]战斗节奏!$C$28+VLOOKUP(W35,'[4]英雄技能-过程'!$A:$P,15,0)*T35/10000*R35*(1+(Y35-1)*30%)*[4]战斗节奏!$D$28+VLOOKUP(W35,'[4]英雄技能-过程'!$A:$P,16,0)*T35/10000*S35*(1+(Y35-1)*30%)*[4]战斗节奏!$E$28,0) -> 620.032 | AA35: 16 | AB35: 110501 | AC35: 1 | AD35: 2 | AE35: =IFERROR(VLOOKUP(AB35,'[4]英雄技能-过程'!$A:$P,14,0)*T35/10000*Q35*(1+(AD35-1)*30%)*[4]战斗节奏!$C$28+VLOOKUP(AB35,'[4]英雄技能-过程'!$A:$P,15,0)*T35/10000*R35*(1+(AD35-1)*30%)*[4]战斗节奏!$D$28+VLOOKUP(AB35,'[4]英雄技能-过程'!$A:$P,16,0)*T35/10000*S35*(1+(AD35-1)*30%)*[4]战斗节奏!$E$28,0) -> 585.3952 | AF35: 18 | AG35: 140201 | AH35: 1 | AI35: 2 | AJ35: =IFERROR(VLOOKUP(AG35,'[4]英雄技能-过程'!$A:$P,14,0)*T35/10000*Q35*(1+(AI35-1)*30%)*[4]战斗节奏!$C$28+VLOOKUP(AG35,'[4]英雄技能-过程'!$A:$P,15,0)*T35/10000*R35*(1+(AI35-1)*30%)*[4]战斗节奏!$D$28+VLOOKUP(AG35,'[4]英雄技能-过程'!$A:$P,16,0)*T35/10000*S35*(1+(AI35-1)*30%)*[4]战斗节奏!$E$28,0) -> 503.776 | AK35: 4 | AL35: 140303 | AM35: 1 | AN35: 2 | AO35: =IFERROR(VLOOKUP(AL35,'[4]英雄技能-过程'!$A:$P,14,0)*T35/10000*Q35*(1+(AN35-1)*30%)*[4]战斗节奏!$C$28+VLOOKUP(AL35,'[4]英雄技能-过程'!$A:$P,15,0)*T35/10000*R35*(1+(AN35-1)*30%)*[4]战斗节奏!$D$28+VLOOKUP(AL35,'[4]英雄技能-过程'!$A:$P,16,0)*T35/10000*S35*(1+(AN35-1)*30%)*[4]战斗节奏!$E$28,0) -> 967.2 | AP35: 2 | AQ35: 120101 | AR35: 1 | AS35: 2 | AT35: =IFERROR(VLOOKUP(AQ35,'[4]英雄技能-过程'!$A:$P,14,0)*T35/10000*Q35*(1+(AS35-1)*30%)*[4]战斗节奏!$C$28+VLOOKUP(AQ35,'[4]英雄技能-过程'!$A:$P,15,0)*T35/10000*R35*(1+(AS35-1)*30%)*[4]战斗节奏!$D$28+VLOOKUP(AQ35,'[4]英雄技能-过程'!$A:$P,16,0)*T35/10000*S35*(1+(AS35-1)*30%)*[4]战斗节奏!$E$28,0) -> 731.8688 | AU35: 5 | AV35: 120603 | AW35: 1 | AX35: 1 | AY35: =IFERROR(VLOOKUP(AV35,'[4]英雄技能-过程'!$A:$P,14,0)*T35/10000*Q35*(1+(AX35-1)*30%)*[4]战斗节奏!$C$28+VLOOKUP(AV35,'[4]英雄技能-过程'!$A:$P,15,0)*T35/10000*R35*(1+(AX35-1)*30%)*[4]战斗节奏!$D$28+VLOOKUP(AV35,'[4]英雄技能-过程'!$A:$P,16,0)*T35/10000*S35*(1+(AX35-1)*30%)*[4]战斗节奏!$E$28,0) -> 892.8 | BC35: 0 | BD35: =IFERROR(VLOOKUP(BA35,'[4]英雄技能-过程'!$A:$P,14,0)*T35/10000*Q35*(1+(BC35-1)*30%)*[4]战斗节奏!$C$28+VLOOKUP(BA35,'[4]英雄技能-过程'!$A:$P,15,0)*T35/10000*R35*(1+(BC35-1)*30%)*[4]战斗节奏!$D$28+VLOOKUP(BA35,'[4]英雄技能-过程'!$A:$P,16,0)*T35/10000*S35*(1+(BC35-1)*30%)*[4]战斗节奏!$E$28,0) -> 0 | BH35: 0 | BI35: =IFERROR(VLOOKUP(BF35,'[4]英雄技能-过程'!$A:$P,14,0)*T35/10000*Q35*(1+(BH35-1)*30%)*[4]战斗节奏!$C$28+VLOOKUP(BF35,'[4]英雄技能-过程'!$A:$P,15,0)*T35/10000*R35*(1+(BH35-1)*30%)*[4]战斗节奏!$D$28+VLOOKUP(BF35,'[4]英雄技能-过程'!$A:$P,16,0)*T35/10000*S35*(1+(BH35-1)*30%)*[4]战斗节奏!$E$28,0) -> 0 | BJ35: 12&110201&1&3 | BK35: 16&110501&1&2 | BL35: 18&140201&1&2 | BM35: 4&140303&1&2 | BN35: 2&120101&1&2 | BO35: 5&120603&1&1
A36: 1.169984076 | B36: 34 | C36: 11755 | D36: 11755 | E36: 23510 | F36: 0.35 | G36: 0.15 | H36: 4,100,102 | I36: 2351000,1175500,1175500 | J36: 11755 | K36: 11755 | L36: 0 | N36: 4874.4814 | O36: 2 | P36: 12 | Q36: 2 | R36: 2 | S36: 2.2 | T36: 17000 | U36: 12&110402&1&3;18&110201&1&2;13&140201&1&2;4&420101&1&2;2&140303&1&2;5&120101&1&2 | V36: 12 | W36: 110402 | X36: 1 | Y36: 3 | Z36: =IFERROR(VLOOKUP(W36,'[4]英雄技能-过程'!$A:$P,14,0)*T36/10000*Q36*(1+(Y36-1)*30%)*[4]战斗节奏!$C$28+VLOOKUP(W36,'[4]英雄技能-过程'!$A:$P,15,0)*T36/10000*R36*(1+(Y36-1)*30%)*[4]战斗节奏!$D$28+VLOOKUP(W36,'[4]英雄技能-过程'!$A:$P,16,0)*T36/10000*S36*(1+(Y36-1)*30%)*[4]战斗节奏!$E$28,0) -> 765.5168 | AA36: 18 | AB36: 110201 | AC36: 1 | AD36: 2 | AE36: =IFERROR(VLOOKUP(AB36,'[4]英雄技能-过程'!$A:$P,14,0)*T36/10000*Q36*(1+(AD36-1)*30%)*[4]战斗节奏!$C$28+VLOOKUP(AB36,'[4]英雄技能-过程'!$A:$P,15,0)*T36/10000*R36*(1+(AD36-1)*30%)*[4]战斗节奏!$D$28+VLOOKUP(AB36,'[4]英雄技能-过程'!$A:$P,16,0)*T36/10000*S36*(1+(AD36-1)*30%)*[4]战斗节奏!$E$28,0) -> 535.262 | AF36: 13 | AG36: 140201 | AH36: 1 | AI36: 2 | AJ36: =IFERROR(VLOOKUP(AG36,'[4]英雄技能-过程'!$A:$P,14,0)*T36/10000*Q36*(1+(AI36-1)*30%)*[4]战斗节奏!$C$28+VLOOKUP(AG36,'[4]英雄技能-过程'!$A:$P,15,0)*T36/10000*R36*(1+(AI36-1)*30%)*[4]战斗节奏!$D$28+VLOOKUP(AG36,'[4]英雄技能-过程'!$A:$P,16,0)*T36/10000*S36*(1+(AI36-1)*30%)*[4]战斗节奏!$E$28,0) -> 535.262 | AK36: 4 | AL36: 420101 | AM36: 1 | AN36: 2 | AO36: =IFERROR(VLOOKUP(AL36,'[4]英雄技能-过程'!$A:$P,14,0)*T36/10000*Q36*(1+(AN36-1)*30%)*[4]战斗节奏!$C$28+VLOOKUP(AL36,'[4]英雄技能-过程'!$A:$P,15,0)*T36/10000*R36*(1+(AN36-1)*30%)*[4]战斗节奏!$D$28+VLOOKUP(AL36,'[4]英雄技能-过程'!$A:$P,16,0)*T36/10000*S36*(1+(AN36-1)*30%)*[4]战斗节奏!$E$28,0) -> 1233.18 | AP36: 2 | AQ36: 140303 | AR36: 1 | AS36: 2 | AT36: =IFERROR(VLOOKUP(AQ36,'[4]英雄技能-过程'!$A:$P,14,0)*T36/10000*Q36*(1+(AS36-1)*30%)*[4]战斗节奏!$C$28+VLOOKUP(AQ36,'[4]英雄技能-过程'!$A:$P,15,0)*T36/10000*R36*(1+(AS36-1)*30%)*[4]战斗节奏!$D$28+VLOOKUP(AQ36,'[4]英雄技能-过程'!$A:$P,16,0)*T36/10000*S36*(1+(AS36-1)*30%)*[4]战斗节奏!$E$28,0) -> 1027.65 | AU36: 5 | AV36: 120101 | AW36: 1 | AX36: 2 | AY36: =IFERROR(VLOOKUP(AV36,'[4]英雄技能-过程'!$A:$P,14,0)*T36/10000*Q36*(1+(AX36-1)*30%)*[4]战斗节奏!$C$28+VLOOKUP(AV36,'[4]英雄技能-过程'!$A:$P,15,0)*T36/10000*R36*(1+(AX36-1)*30%)*[4]战斗节奏!$D$28+VLOOKUP(AV36,'[4]英雄技能-过程'!$A:$P,16,0)*T36/10000*S36*(1+(AX36-1)*30%)*[4]战斗节奏!$E$28,0) -> 777.6106 | BC36: 0 | BD36: =IFERROR(VLOOKUP(BA36,'[4]英雄技能-过程'!$A:$P,14,0)*T36/10000*Q36*(1+(BC36-1)*30%)*[4]战斗节奏!$C$28+VLOOKUP(BA36,'[4]英雄技能-过程'!$A:$P,15,0)*T36/10000*R36*(1+(BC36-1)*30%)*[4]战斗节奏!$D$28+VLOOKUP(BA36,'[4]英雄技能-过程'!$A:$P,16,0)*T36/10000*S36*(1+(BC36-1)*30%)*[4]战斗节奏!$E$28,0) -> 0 | BH36: 0 | BI36: =IFERROR(VLOOKUP(BF36,'[4]英雄技能-过程'!$A:$P,14,0)*T36/10000*Q36*(1+(BH36-1)*30%)*[4]战斗节奏!$C$28+VLOOKUP(BF36,'[4]英雄技能-过程'!$A:$P,15,0)*T36/10000*R36*(1+(BH36-1)*30%)*[4]战斗节奏!$D$28+VLOOKUP(BF36,'[4]英雄技能-过程'!$A:$P,16,0)*T36/10000*S36*(1+(BH36-1)*30%)*[4]战斗节奏!$E$28,0) -> 0 | BJ36: 12&110402&1&3 | BK36: 18&110201&1&2 | BL36: 13&140201&1&2 | BM36: 4&420101&1&2 | BN36: 2&140303&1&2 | BO36: 5&120101&1&2
A37: 1.169955767 | B37: 35 | C37: 13753 | D37: 13753 | E37: 27506 | F37: 0.35 | G37: 0.15 | H37: 4,100,102 | I37: 2750600,1375300,1375300 | J37: 13753 | K37: 13753 | L37: 0 | N37: 6218.586 | O37: 2 | P37: 13 | Q37: 2 | R37: 2 | S37: 2.2 | T37: 18000 | U37: 12&110402&1&4;17&120201&1&2;4&120603&1&2;2&120101&1&2;5&140303&1&2;6&420101&1&2 | V37: 12 | W37: 110402 | X37: 1 | Y37: 4 | Z37: =IFERROR(VLOOKUP(W37,'[4]英雄技能-过程'!$A:$P,14,0)*T37/10000*Q37*(1+(Y37-1)*30%)*[4]战斗节奏!$C$28+VLOOKUP(W37,'[4]英雄技能-过程'!$A:$P,15,0)*T37/10000*R37*(1+(Y37-1)*30%)*[4]战斗节奏!$D$28+VLOOKUP(W37,'[4]英雄技能-过程'!$A:$P,16,0)*T37/10000*S37*(1+(Y37-1)*30%)*[4]战斗节奏!$E$28,0) -> 962.5248 | AA37: 17 | AB37: 120201 | AC37: 1 | AD37: 2 | AE37: =IFERROR(VLOOKUP(AB37,'[4]英雄技能-过程'!$A:$P,14,0)*T37/10000*Q37*(1+(AD37-1)*30%)*[4]战斗节奏!$C$28+VLOOKUP(AB37,'[4]英雄技能-过程'!$A:$P,15,0)*T37/10000*R37*(1+(AD37-1)*30%)*[4]战斗节奏!$D$28+VLOOKUP(AB37,'[4]英雄技能-过程'!$A:$P,16,0)*T37/10000*S37*(1+(AD37-1)*30%)*[4]战斗节奏!$E$28,0) -> 733.1688 | AF37: 4 | AG37: 120603 | AH37: 1 | AI37: 2 | AJ37: =IFERROR(VLOOKUP(AG37,'[4]英雄技能-过程'!$A:$P,14,0)*T37/10000*Q37*(1+(AI37-1)*30%)*[4]战斗节奏!$C$28+VLOOKUP(AG37,'[4]英雄技能-过程'!$A:$P,15,0)*T37/10000*R37*(1+(AI37-1)*30%)*[4]战斗节奏!$D$28+VLOOKUP(AG37,'[4]英雄技能-过程'!$A:$P,16,0)*T37/10000*S37*(1+(AI37-1)*30%)*[4]战斗节奏!$E$28,0) -> 1305.72 | AK37: 2 | AL37: 120101 | AM37: 1 | AN37: 2 | AO37: =IFERROR(VLOOKUP(AL37,'[4]英雄技能-过程'!$A:$P,14,0)*T37/10000*Q37*(1+(AN37-1)*30%)*[4]战斗节奏!$C$28+VLOOKUP(AL37,'[4]英雄技能-过程'!$A:$P,15,0)*T37/10000*R37*(1+(AN37-1)*30%)*[4]战斗节奏!$D$28+VLOOKUP(AL37,'[4]英雄技能-过程'!$A:$P,16,0)*T37/10000*S37*(1+(AN37-1)*30%)*[4]战斗节奏!$E$28,0) -> 823.3524 | AP37: 5 | AQ37: 140303 | AR37: 1 | AS37: 2 | AT37: =IFERROR(VLOOKUP(AQ37,'[4]英雄技能-过程'!$A:$P,14,0)*T37/10000*Q37*(1+(AS37-1)*30%)*[4]战斗节奏!$C$28+VLOOKUP(AQ37,'[4]英雄技能-过程'!$A:$P,15,0)*T37/10000*R37*(1+(AS37-1)*30%)*[4]战斗节奏!$D$28+VLOOKUP(AQ37,'[4]英雄技能-过程'!$A:$P,16,0)*T37/10000*S37*(1+(AS37-1)*30%)*[4]战斗节奏!$E$28,0) -> 1088.1 | AU37: 6 | AV37: 420101 | AW37: 1 | AX37: 2 | AY37: =IFERROR(VLOOKUP(AV37,'[4]英雄技能-过程'!$A:$P,14,0)*T37/10000*Q37*(1+(AX37-1)*30%)*[4]战斗节奏!$C$28+VLOOKUP(AV37,'[4]英雄技能-过程'!$A:$P,15,0)*T37/10000*R37*(1+(AX37-1)*30%)*[4]战斗节奏!$D$28+VLOOKUP(AV37,'[4]英雄技能-过程'!$A:$P,16,0)*T37/10000*S37*(1+(AX37-1)*30%)*[4]战斗节奏!$E$28,0) -> 1305.72 | BC37: 0 | BD37: =IFERROR(VLOOKUP(BA37,'[4]英雄技能-过程'!$A:$P,14,0)*T37/10000*Q37*(1+(BC37-1)*30%)*[4]战斗节奏!$C$28+VLOOKUP(BA37,'[4]英雄技能-过程'!$A:$P,15,0)*T37/10000*R37*(1+(BC37-1)*30%)*[4]战斗节奏!$D$28+VLOOKUP(BA37,'[4]英雄技能-过程'!$A:$P,16,0)*T37/10000*S37*(1+(BC37-1)*30%)*[4]战斗节奏!$E$28,0) -> 0 | BH37: 0 | BI37: =IFERROR(VLOOKUP(BF37,'[4]英雄技能-过程'!$A:$P,14,0)*T37/10000*Q37*(1+(BH37-1)*30%)*[4]战斗节奏!$C$28+VLOOKUP(BF37,'[4]英雄技能-过程'!$A:$P,15,0)*T37/10000*R37*(1+(BH37-1)*30%)*[4]战斗节奏!$D$28+VLOOKUP(BF37,'[4]英雄技能-过程'!$A:$P,16,0)*T37/10000*S37*(1+(BH37-1)*30%)*[4]战斗节奏!$E$28,0) -> 0 | BJ37: 12&110402&1&4 | BK37: 17&120201&1&2 | BL37: 4&120603&1&2 | BM37: 2&120101&1&2 | BN37: 5&140303&1&2 | BO37: 6&420101&1&2
A38: 1.149992729 | B38: 36 | C38: =ROUND(C37*1.15,0) -> 15816 | D38: 15816 | E38: 31632 | F38: 0.4 | G38: =G37 -> 0.15 | H38: 4,100,102 | I38: 3163200,1581600,1581600 | J38: 15816 | K38: =ROUND(K37*1.15,0) -> 15816 | L38: 0 | N38: 5746.4246 | O38: 2 | P38: 14 | Q38: 2 | R38: 2 | S38: 2.2 | T38: 19000 | U38: 12&110402&1&4;15&110201&1&3;17&140201&1&2;4&140303&1&2;2&120603&1&2;1&120101&1&2 | V38: 12 | W38: 110402 | X38: 1 | Y38: 4 | Z38: =IFERROR(VLOOKUP(W38,'[4]英雄技能-过程'!$A:$P,14,0)*T38/10000*Q38*(1+(Y38-1)*30%)*[4]战斗节奏!$C$28+VLOOKUP(W38,'[4]英雄技能-过程'!$A:$P,15,0)*T38/10000*R38*(1+(Y38-1)*30%)*[4]战斗节奏!$D$28+VLOOKUP(W38,'[4]英雄技能-过程'!$A:$P,16,0)*T38/10000*S38*(1+(Y38-1)*30%)*[4]战斗节奏!$E$28,0) -> 1015.9984 | AA38: 15 | AB38: 110201 | AC38: 1 | AD38: 3 | AE38: =IFERROR(VLOOKUP(AB38,'[4]英雄技能-过程'!$A:$P,14,0)*T38/10000*Q38*(1+(AD38-1)*30%)*[4]战斗节奏!$C$28+VLOOKUP(AB38,'[4]英雄技能-过程'!$A:$P,15,0)*T38/10000*R38*(1+(AD38-1)*30%)*[4]战斗节奏!$D$28+VLOOKUP(AB38,'[4]英雄技能-过程'!$A:$P,16,0)*T38/10000*S38*(1+(AD38-1)*30%)*[4]战斗节奏!$E$28,0) -> 736.288 | AF38: 17 | AG38: 140201 | AH38: 1 | AI38: 2 | AJ38: =IFERROR(VLOOKUP(AG38,'[4]英雄技能-过程'!$A:$P,14,0)*T38/10000*Q38*(1+(AI38-1)*30%)*[4]战斗节奏!$C$28+VLOOKUP(AG38,'[4]英雄技能-过程'!$A:$P,15,0)*T38/10000*R38*(1+(AI38-1)*30%)*[4]战斗节奏!$D$28+VLOOKUP(AG38,'[4]英雄技能-过程'!$A:$P,16,0)*T38/10000*S38*(1+(AI38-1)*30%)*[4]战斗节奏!$E$28,0) -> 598.234 | AK38: 4 | AL38: 140303 | AM38: 1 | AN38: 2 | AO38: =IFERROR(VLOOKUP(AL38,'[4]英雄技能-过程'!$A:$P,14,0)*T38/10000*Q38*(1+(AN38-1)*30%)*[4]战斗节奏!$C$28+VLOOKUP(AL38,'[4]英雄技能-过程'!$A:$P,15,0)*T38/10000*R38*(1+(AN38-1)*30%)*[4]战斗节奏!$D$28+VLOOKUP(AL38,'[4]英雄技能-过程'!$A:$P,16,0)*T38/10000*S38*(1+(AN38-1)*30%)*[4]战斗节奏!$E$28,0) -> 1148.55 | AP38: 2 | AQ38: 120603 | AR38: 1 | AS38: 2 | AT38: =IFERROR(VLOOKUP(AQ38,'[4]英雄技能-过程'!$A:$P,14,0)*T38/10000*Q38*(1+(AS38-1)*30%)*[4]战斗节奏!$C$28+VLOOKUP(AQ38,'[4]英雄技能-过程'!$A:$P,15,0)*T38/10000*R38*(1+(AS38-1)*30%)*[4]战斗节奏!$D$28+VLOOKUP(AQ38,'[4]英雄技能-过程'!$A:$P,16,0)*T38/10000*S38*(1+(AS38-1)*30%)*[4]战斗节奏!$E$28,0) -> 1378.26 | AU38: 1 | AV38: 120101 | AW38: 1 | AX38: 2 | AY38: =IFERROR(VLOOKUP(AV38,'[4]英雄技能-过程'!$A:$P,14,0)*T38/10000*Q38*(1+(AX38-1)*30%)*[4]战斗节奏!$C$28+VLOOKUP(AV38,'[4]英雄技能-过程'!$A:$P,15,0)*T38/10000*R38*(1+(AX38-1)*30%)*[4]战斗节奏!$D$28+VLOOKUP(AV38,'[4]英雄技能-过程'!$A:$P,16,0)*T38/10000*S38*(1+(AX38-1)*30%)*[4]战斗节奏!$E$28,0) -> 869.0942 | BC38: 0 | BD38: =IFERROR(VLOOKUP(BA38,'[4]英雄技能-过程'!$A:$P,14,0)*T38/10000*Q38*(1+(BC38-1)*30%)*[4]战斗节奏!$C$28+VLOOKUP(BA38,'[4]英雄技能-过程'!$A:$P,15,0)*T38/10000*R38*(1+(BC38-1)*30%)*[4]战斗节奏!$D$28+VLOOKUP(BA38,'[4]英雄技能-过程'!$A:$P,16,0)*T38/10000*S38*(1+(BC38-1)*30%)*[4]战斗节奏!$E$28,0) -> 0 | BH38: 0 | BI38: =IFERROR(VLOOKUP(BF38,'[4]英雄技能-过程'!$A:$P,14,0)*T38/10000*Q38*(1+(BH38-1)*30%)*[4]战斗节奏!$C$28+VLOOKUP(BF38,'[4]英雄技能-过程'!$A:$P,15,0)*T38/10000*R38*(1+(BH38-1)*30%)*[4]战斗节奏!$D$28+VLOOKUP(BF38,'[4]英雄技能-过程'!$A:$P,16,0)*T38/10000*S38*(1+(BH38-1)*30%)*[4]战斗节奏!$E$28,0) -> 0 | BJ38: 12&110402&1&4 | BK38: 15&110201&1&3 | BL38: 17&140201&1&2 | BM38: 4&140303&1&2 | BN38: 2&120603&1&2 | BO38: 1&120101&1&2
A39: 1.149965227 | B39: 37 | C39: =ROUND(C38*1.15,0) -> 18188 | D39: 18188 | E39: 36376 | F39: 0.4 | G39: =G38 -> 0.15 | H39: 4,100,102 | I39: 3637600,1818800,1818800 | J39: 18188 | K39: =ROUND(K38*1.15,0) -> 18188 | L39: 0 | N39: 7326.236 | O39: 2 | P39: 15 | Q39: 2 | R39: 2 | S39: 2.2 | T39: 20000 | U39: 16&110201&1&4;14&110501&1&3;12&120201&1&2;1&140303&1&2;5&120603&1&2;4&120101&1&2;2&420101&1&1 | V39: 16 | W39: 110201 | X39: 1 | Y39: 4 | Z39: =IFERROR(VLOOKUP(W39,'[4]英雄技能-过程'!$A:$P,14,0)*T39/10000*Q39*(1+(Y39-1)*30%)*[4]战斗节奏!$C$28+VLOOKUP(W39,'[4]英雄技能-过程'!$A:$P,15,0)*T39/10000*R39*(1+(Y39-1)*30%)*[4]战斗节奏!$D$28+VLOOKUP(W39,'[4]英雄技能-过程'!$A:$P,16,0)*T39/10000*S39*(1+(Y39-1)*30%)*[4]战斗节奏!$E$28,0) -> 920.36 | AA39: 14 | AB39: 110501 | AC39: 1 | AD39: 3 | AE39: =IFERROR(VLOOKUP(AB39,'[4]英雄技能-过程'!$A:$P,14,0)*T39/10000*Q39*(1+(AD39-1)*30%)*[4]战斗节奏!$C$28+VLOOKUP(AB39,'[4]英雄技能-过程'!$A:$P,15,0)*T39/10000*R39*(1+(AD39-1)*30%)*[4]战斗节奏!$D$28+VLOOKUP(AB39,'[4]英雄技能-过程'!$A:$P,16,0)*T39/10000*S39*(1+(AD39-1)*30%)*[4]战斗节奏!$E$28,0) -> 900.608 | AF39: 12 | AG39: 120201 | AH39: 1 | AI39: 2 | AJ39: =IFERROR(VLOOKUP(AG39,'[4]英雄技能-过程'!$A:$P,14,0)*T39/10000*Q39*(1+(AI39-1)*30%)*[4]战斗节奏!$C$28+VLOOKUP(AG39,'[4]英雄技能-过程'!$A:$P,15,0)*T39/10000*R39*(1+(AI39-1)*30%)*[4]战斗节奏!$D$28+VLOOKUP(AG39,'[4]英雄技能-过程'!$A:$P,16,0)*T39/10000*S39*(1+(AI39-1)*30%)*[4]战斗节奏!$E$28,0) -> 814.632 | AK39: 1 | AL39: 140303 | AM39: 1 | AN39: 2 | AO39: =IFERROR(VLOOKUP(AL39,'[4]英雄技能-过程'!$A:$P,14,0)*T39/10000*Q39*(1+(AN39-1)*30%)*[4]战斗节奏!$C$28+VLOOKUP(AL39,'[4]英雄技能-过程'!$A:$P,15,0)*T39/10000*R39*(1+(AN39-1)*30%)*[4]战斗节奏!$D$28+VLOOKUP(AL39,'[4]英雄技能-过程'!$A:$P,16,0)*T39/10000*S39*(1+(AN39-1)*30%)*[4]战斗节奏!$E$28,0) -> 1209 | AP39: 5 | AQ39: 120603 | AR39: 1 | AS39: 2 | AT39: =IFERROR(VLOOKUP(AQ39,'[4]英雄技能-过程'!$A:$P,14,0)*T39/10000*Q39*(1+(AS39-1)*30%)*[4]战斗节奏!$C$28+VLOOKUP(AQ39,'[4]英雄技能-过程'!$A:$P,15,0)*T39/10000*R39*(1+(AS39-1)*30%)*[4]战斗节奏!$D$28+VLOOKUP(AQ39,'[4]英雄技能-过程'!$A:$P,16,0)*T39/10000*S39*(1+(AS39-1)*30%)*[4]战斗节奏!$E$28,0) -> 1450.8 | AU39: 4 | AV39: 120101 | AW39: 1 | AX39: 2 | AY39: =IFERROR(VLOOKUP(AV39,'[4]英雄技能-过程'!$A:$P,14,0)*T39/10000*Q39*(1+(AX39-1)*30%)*[4]战斗节奏!$C$28+VLOOKUP(AV39,'[4]英雄技能-过程'!$A:$P,15,0)*T39/10000*R39*(1+(AX39-1)*30%)*[4]战斗节奏!$D$28+VLOOKUP(AV39,'[4]英雄技能-过程'!$A:$P,16,0)*T39/10000*S39*(1+(AX39-1)*30%)*[4]战斗节奏!$E$28,0) -> 914.836 | AZ39: 2 | BA39: 420101 | BB39: 1 | BC39: 1 | BD39: =IFERROR(VLOOKUP(BA39,'[4]英雄技能-过程'!$A:$P,14,0)*T39/10000*Q39*(1+(BC39-1)*30%)*[4]战斗节奏!$C$28+VLOOKUP(BA39,'[4]英雄技能-过程'!$A:$P,15,0)*T39/10000*R39*(1+(BC39-1)*30%)*[4]战斗节奏!$D$28+VLOOKUP(BA39,'[4]英雄技能-过程'!$A:$P,16,0)*T39/10000*S39*(1+(BC39-1)*30%)*[4]战斗节奏!$E$28,0) -> 1116 | BH39: 0 | BI39: =IFERROR(VLOOKUP(BF39,'[4]英雄技能-过程'!$A:$P,14,0)*T39/10000*Q39*(1+(BH39-1)*30%)*[4]战斗节奏!$C$28+VLOOKUP(BF39,'[4]英雄技能-过程'!$A:$P,15,0)*T39/10000*R39*(1+(BH39-1)*30%)*[4]战斗节奏!$D$28+VLOOKUP(BF39,'[4]英雄技能-过程'!$A:$P,16,0)*T39/10000*S39*(1+(BH39-1)*30%)*[4]战斗节奏!$E$28,0) -> 0 | BJ39: 16&110201&1&4 | BK39: 14&110501&1&3 | BL39: 12&120201&1&2 | BM39: 1&140303&1&2 | BN39: 5&120603&1&2 | BO39: 4&120101&1&2 | BP39: 2&420101&1&1
A40: 1.149980758 | B40: 38 | C40: 20916 | D40: 20916 | E40: 41832 | F40: 0.4 | G40: 0.15 | H40: 4,100,102 | I40: 4183200,2091600,2091600 | J40: 20916 | K40: 20916 | L40: 0 | N40: 8288.6496 | O40: 2 | P40: 16 | Q40: 2 | R40: 2 | S40: 2.2 | T40: 21000 | U40: 16&110501&1&4;15&110402&1&3;12&110201&1&2;11&120201&1&2;4&120603&1&2;2&140303&1&2;5&120101&1&1;1&420101&1&1 | V40: 16 | W40: 110501 | X40: 1 | Y40: 4 | Z40: =IFERROR(VLOOKUP(W40,'[4]英雄技能-过程'!$A:$P,14,0)*T40/10000*Q40*(1+(Y40-1)*30%)*[4]战斗节奏!$C$28+VLOOKUP(W40,'[4]英雄技能-过程'!$A:$P,15,0)*T40/10000*R40*(1+(Y40-1)*30%)*[4]战斗节奏!$D$28+VLOOKUP(W40,'[4]英雄技能-过程'!$A:$P,16,0)*T40/10000*S40*(1+(Y40-1)*30%)*[4]战斗节奏!$E$28,0) -> 1122.9456 | AA40: 15 | AB40: 110402 | AC40: 1 | AD40: 3 | AE40: =IFERROR(VLOOKUP(AB40,'[4]英雄技能-过程'!$A:$P,14,0)*T40/10000*Q40*(1+(AD40-1)*30%)*[4]战斗节奏!$C$28+VLOOKUP(AB40,'[4]英雄技能-过程'!$A:$P,15,0)*T40/10000*R40*(1+(AD40-1)*30%)*[4]战斗节奏!$D$28+VLOOKUP(AB40,'[4]英雄技能-过程'!$A:$P,16,0)*T40/10000*S40*(1+(AD40-1)*30%)*[4]战斗节奏!$E$28,0) -> 945.6384 | AF40: 12 | AG40: 110201 | AH40: 1 | AI40: 2 | AJ40: =IFERROR(VLOOKUP(AG40,'[4]英雄技能-过程'!$A:$P,14,0)*T40/10000*Q40*(1+(AI40-1)*30%)*[4]战斗节奏!$C$28+VLOOKUP(AG40,'[4]英雄技能-过程'!$A:$P,15,0)*T40/10000*R40*(1+(AI40-1)*30%)*[4]战斗节奏!$D$28+VLOOKUP(AG40,'[4]英雄技能-过程'!$A:$P,16,0)*T40/10000*S40*(1+(AI40-1)*30%)*[4]战斗节奏!$E$28,0) -> 661.206 | AK40: 11 | AL40: 120201 | AM40: 1 | AN40: 2 | AO40: =IFERROR(VLOOKUP(AL40,'[4]英雄技能-过程'!$A:$P,14,0)*T40/10000*Q40*(1+(AN40-1)*30%)*[4]战斗节奏!$C$28+VLOOKUP(AL40,'[4]英雄技能-过程'!$A:$P,15,0)*T40/10000*R40*(1+(AN40-1)*30%)*[4]战斗节奏!$D$28+VLOOKUP(AL40,'[4]英雄技能-过程'!$A:$P,16,0)*T40/10000*S40*(1+(AN40-1)*30%)*[4]战斗节奏!$E$28,0) -> 855.3636 | AP40: 4 | AQ40: 120603 | AR40: 1 | AS40: 2 | AT40: =IFERROR(VLOOKUP(AQ40,'[4]英雄技能-过程'!$A:$P,14,0)*T40/10000*Q40*(1+(AS40-1)*30%)*[4]战斗节奏!$C$28+VLOOKUP(AQ40,'[4]英雄技能-过程'!$A:$P,15,0)*T40/10000*R40*(1+(AS40-1)*30%)*[4]战斗节奏!$D$28+VLOOKUP(AQ40,'[4]英雄技能-过程'!$A:$P,16,0)*T40/10000*S40*(1+(AS40-1)*30%)*[4]战斗节奏!$E$28,0) -> 1523.34 | AU40: 2 | AV40: 140303 | AW40: 1 | AX40: 2 | AY40: =IFERROR(VLOOKUP(AV40,'[4]英雄技能-过程'!$A:$P,14,0)*T40/10000*Q40*(1+(AX40-1)*30%)*[4]战斗节奏!$C$28+VLOOKUP(AV40,'[4]英雄技能-过程'!$A:$P,15,0)*T40/10000*R40*(1+(AX40-1)*30%)*[4]战斗节奏!$D$28+VLOOKUP(AV40,'[4]英雄技能-过程'!$A:$P,16,0)*T40/10000*S40*(1+(AX40-1)*30%)*[4]战斗节奏!$E$28,0) -> 1269.45 | AZ40: 5 | BA40: 120101 | BB40: 1 | BC40: 1 | BD40: =IFERROR(VLOOKUP(BA40,'[4]英雄技能-过程'!$A:$P,14,0)*T40/10000*Q40*(1+(BC40-1)*30%)*[4]战斗节奏!$C$28+VLOOKUP(BA40,'[4]英雄技能-过程'!$A:$P,15,0)*T40/10000*R40*(1+(BC40-1)*30%)*[4]战斗节奏!$D$28+VLOOKUP(BA40,'[4]英雄技能-过程'!$A:$P,16,0)*T40/10000*S40*(1+(BC40-1)*30%)*[4]战斗节奏!$E$28,0) -> 738.906 | BE40: 1 | BF40: 420101 | BG40: 1 | BH40: 1 | BI40: =IFERROR(VLOOKUP(BF40,'[4]英雄技能-过程'!$A:$P,14,0)*T40/10000*Q40*(1+(BH40-1)*30%)*[4]战斗节奏!$C$28+VLOOKUP(BF40,'[4]英雄技能-过程'!$A:$P,15,0)*T40/10000*R40*(1+(BH40-1)*30%)*[4]战斗节奏!$D$28+VLOOKUP(BF40,'[4]英雄技能-过程'!$A:$P,16,0)*T40/10000*S40*(1+(BH40-1)*30%)*[4]战斗节奏!$E$28,0) -> 1171.8 | BJ40: 16&110501&1&4 | BK40: 15&110402&1&3 | BL40: 12&110201&1&2 | BM40: 11&120201&1&2 | BN40: 4&120603&1&2 | BO40: 2&140303&1&2 | BP40: 5&120101&1&1 | BQ40: 1&420101&1&1
A41: 1.149973706 | B41: 39 | C41: 24053 | D41: 24053 | E41: 48106 | F41: 0.4 | G41: 0.15 | H41: 4,100,102 | I41: 4810600,2405300,2405300 | J41: 24053 | K41: 24053 | L41: 0 | N41: 9094.3952 | O41: 2 | P41: 17 | Q41: 2 | R41: 2 | S41: 2.2 | T41: 22000 | U41: 16&140201&1&4;15&110501&1&3;12&120201&1&3;11&110201&1&2;1&140303&1&2;4&120603&1&2;2&420101&1&2;5&120101&1&1 | V41: 16 | W41: 140201 | X41: 1 | Y41: 4 | Z41: =IFERROR(VLOOKUP(W41,'[4]英雄技能-过程'!$A:$P,14,0)*T41/10000*Q41*(1+(Y41-1)*30%)*[4]战斗节奏!$C$28+VLOOKUP(W41,'[4]英雄技能-过程'!$A:$P,15,0)*T41/10000*R41*(1+(Y41-1)*30%)*[4]战斗节奏!$D$28+VLOOKUP(W41,'[4]英雄技能-过程'!$A:$P,16,0)*T41/10000*S41*(1+(Y41-1)*30%)*[4]战斗节奏!$E$28,0) -> 1012.396 | AA41: 15 | AB41: 110501 | AC41: 1 | AD41: 3 | AE41: =IFERROR(VLOOKUP(AB41,'[4]英雄技能-过程'!$A:$P,14,0)*T41/10000*Q41*(1+(AD41-1)*30%)*[4]战斗节奏!$C$28+VLOOKUP(AB41,'[4]英雄技能-过程'!$A:$P,15,0)*T41/10000*R41*(1+(AD41-1)*30%)*[4]战斗节奏!$D$28+VLOOKUP(AB41,'[4]英雄技能-过程'!$A:$P,16,0)*T41/10000*S41*(1+(AD41-1)*30%)*[4]战斗节奏!$E$28,0) -> 990.6688 | AF41: 12 | AG41: 120201 | AH41: 1 | AI41: 3 | AJ41: =IFERROR(VLOOKUP(AG41,'[4]英雄技能-过程'!$A:$P,14,0)*T41/10000*Q41*(1+(AI41-1)*30%)*[4]战斗节奏!$C$28+VLOOKUP(AG41,'[4]英雄技能-过程'!$A:$P,15,0)*T41/10000*R41*(1+(AI41-1)*30%)*[4]战斗节奏!$D$28+VLOOKUP(AG41,'[4]英雄技能-过程'!$A:$P,16,0)*T41/10000*S41*(1+(AI41-1)*30%)*[4]战斗节奏!$E$28,0) -> 1102.8864 | AK41: 11 | AL41: 110201 | AM41: 1 | AN41: 2 | AO41: =IFERROR(VLOOKUP(AL41,'[4]英雄技能-过程'!$A:$P,14,0)*T41/10000*Q41*(1+(AN41-1)*30%)*[4]战斗节奏!$C$28+VLOOKUP(AL41,'[4]英雄技能-过程'!$A:$P,15,0)*T41/10000*R41*(1+(AN41-1)*30%)*[4]战斗节奏!$D$28+VLOOKUP(AL41,'[4]英雄技能-过程'!$A:$P,16,0)*T41/10000*S41*(1+(AN41-1)*30%)*[4]战斗节奏!$E$28,0) -> 692.692 | AP41: 1 | AQ41: 140303 | AR41: 1 | AS41: 2 | AT41: =IFERROR(VLOOKUP(AQ41,'[4]英雄技能-过程'!$A:$P,14,0)*T41/10000*Q41*(1+(AS41-1)*30%)*[4]战斗节奏!$C$28+VLOOKUP(AQ41,'[4]英雄技能-过程'!$A:$P,15,0)*T41/10000*R41*(1+(AS41-1)*30%)*[4]战斗节奏!$D$28+VLOOKUP(AQ41,'[4]英雄技能-过程'!$A:$P,16,0)*T41/10000*S41*(1+(AS41-1)*30%)*[4]战斗节奏!$E$28,0) -> 1329.9 | AU41: 4 | AV41: 120603 | AW41: 1 | AX41: 2 | AY41: =IFERROR(VLOOKUP(AV41,'[4]英雄技能-过程'!$A:$P,14,0)*T41/10000*Q41*(1+(AX41-1)*30%)*[4]战斗节奏!$C$28+VLOOKUP(AV41,'[4]英雄技能-过程'!$A:$P,15,0)*T41/10000*R41*(1+(AX41-1)*30%)*[4]战斗节奏!$D$28+VLOOKUP(AV41,'[4]英雄技能-过程'!$A:$P,16,0)*T41/10000*S41*(1+(AX41-1)*30%)*[4]战斗节奏!$E$28,0) -> 1595.88 | AZ41: 2 | BA41: 420101 | BB41: 1 | BC41: 2 | BD41: =IFERROR(VLOOKUP(BA41,'[4]英雄技能-过程'!$A:$P,14,0)*T41/10000*Q41*(1+(BC41-1)*30%)*[4]战斗节奏!$C$28+VLOOKUP(BA41,'[4]英雄技能-过程'!$A:$P,15,0)*T41/10000*R41*(1+(BC41-1)*30%)*[4]战斗节奏!$D$28+VLOOKUP(BA41,'[4]英雄技能-过程'!$A:$P,16,0)*T41/10000*S41*(1+(BC41-1)*30%)*[4]战斗节奏!$E$28,0) -> 1595.88 | BE41: 5 | BF41: 120101 | BG41: 1 | BH41: 1 | BI41: =IFERROR(VLOOKUP(BF41,'[4]英雄技能-过程'!$A:$P,14,0)*T41/10000*Q41*(1+(BH41-1)*30%)*[4]战斗节奏!$C$28+VLOOKUP(BF41,'[4]英雄技能-过程'!$A:$P,15,0)*T41/10000*R41*(1+(BH41-1)*30%)*[4]战斗节奏!$D$28+VLOOKUP(BF41,'[4]英雄技能-过程'!$A:$P,16,0)*T41/10000*S41*(1+(BH41-1)*30%)*[4]战斗节奏!$E$28,0) -> 774.092 | BJ41: 16&140201&1&4 | BK41: 15&110501&1&3 | BL41: 12&120201&1&3 | BM41: 11&110201&1&2 | BN41: 1&140303&1&2 | BO41: 4&120603&1&2 | BP41: 2&420101&1&2 | BQ41: 5&120101&1&1
A42: 1.149995843 | B42: 40 | C42: 27661 | D42: 27661 | E42: 55322 | F42: 0.4 | G42: 0.15 | H42: 4,100,102 | I42: 5532200,2766100,2766100 | J42: 27661 | K42: 27661 | L42: 0 | N42: 9773.2842 | O42: 2 | P42: 18 | Q42: 2 | R42: 2 | S42: 2.2 | T42: 23000 | U42: 16&140201&1&5;13&110201&1&3;12&110501&1&3;11&110402&1&2;4&120101&1&2;2&140303&1&2;3&420101&1&2;1&120603&1&2 | V42: 16 | W42: 140201 | X42: 1 | Y42: 5 | Z42: =IFERROR(VLOOKUP(W42,'[4]英雄技能-过程'!$A:$P,14,0)*T42/10000*Q42*(1+(Y42-1)*30%)*[4]战斗节奏!$C$28+VLOOKUP(W42,'[4]英雄技能-过程'!$A:$P,15,0)*T42/10000*R42*(1+(Y42-1)*30%)*[4]战斗节奏!$D$28+VLOOKUP(W42,'[4]英雄技能-过程'!$A:$P,16,0)*T42/10000*S42*(1+(Y42-1)*30%)*[4]战斗节奏!$E$28,0) -> 1225.532 | AA42: 13 | AB42: 110201 | AC42: 1 | AD42: 3 | AE42: =IFERROR(VLOOKUP(AB42,'[4]英雄技能-过程'!$A:$P,14,0)*T42/10000*Q42*(1+(AD42-1)*30%)*[4]战斗节奏!$C$28+VLOOKUP(AB42,'[4]英雄技能-过程'!$A:$P,15,0)*T42/10000*R42*(1+(AD42-1)*30%)*[4]战斗节奏!$D$28+VLOOKUP(AB42,'[4]英雄技能-过程'!$A:$P,16,0)*T42/10000*S42*(1+(AD42-1)*30%)*[4]战斗节奏!$E$28,0) -> 891.296 | AF42: 12 | AG42: 110501 | AH42: 1 | AI42: 3 | AJ42: =IFERROR(VLOOKUP(AG42,'[4]英雄技能-过程'!$A:$P,14,0)*T42/10000*Q42*(1+(AI42-1)*30%)*[4]战斗节奏!$C$28+VLOOKUP(AG42,'[4]英雄技能-过程'!$A:$P,15,0)*T42/10000*R42*(1+(AI42-1)*30%)*[4]战斗节奏!$D$28+VLOOKUP(AG42,'[4]英雄技能-过程'!$A:$P,16,0)*T42/10000*S42*(1+(AI42-1)*30%)*[4]战斗节奏!$E$28,0) -> 1035.6992 | AK42: 11 | AL42: 110402 | AM42: 1 | AN42: 2 | AO42: =IFERROR(VLOOKUP(AL42,'[4]英雄技能-过程'!$A:$P,14,0)*T42/10000*Q42*(1+(AN42-1)*30%)*[4]战斗节奏!$C$28+VLOOKUP(AL42,'[4]英雄技能-过程'!$A:$P,15,0)*T42/10000*R42*(1+(AN42-1)*30%)*[4]战斗节奏!$D$28+VLOOKUP(AL42,'[4]英雄技能-过程'!$A:$P,16,0)*T42/10000*S42*(1+(AN42-1)*30%)*[4]战斗节奏!$E$28,0) -> 841.5056 | AP42: 4 | AQ42: 120101 | AR42: 1 | AS42: 2 | AT42: =IFERROR(VLOOKUP(AQ42,'[4]英雄技能-过程'!$A:$P,14,0)*T42/10000*Q42*(1+(AS42-1)*30%)*[4]战斗节奏!$C$28+VLOOKUP(AQ42,'[4]英雄技能-过程'!$A:$P,15,0)*T42/10000*R42*(1+(AS42-1)*30%)*[4]战斗节奏!$D$28+VLOOKUP(AQ42,'[4]英雄技能-过程'!$A:$P,16,0)*T42/10000*S42*(1+(AS42-1)*30%)*[4]战斗节奏!$E$28,0) -> 1052.0614 | AU42: 2 | AV42: 140303 | AW42: 1 | AX42: 2 | AY42: =IFERROR(VLOOKUP(AV42,'[4]英雄技能-过程'!$A:$P,14,0)*T42/10000*Q42*(1+(AX42-1)*30%)*[4]战斗节奏!$C$28+VLOOKUP(AV42,'[4]英雄技能-过程'!$A:$P,15,0)*T42/10000*R42*(1+(AX42-1)*30%)*[4]战斗节奏!$D$28+VLOOKUP(AV42,'[4]英雄技能-过程'!$A:$P,16,0)*T42/10000*S42*(1+(AX42-1)*30%)*[4]战斗节奏!$E$28,0) -> 1390.35 | AZ42: 3 | BA42: 420101 | BB42: 1 | BC42: 2 | BD42: =IFERROR(VLOOKUP(BA42,'[4]英雄技能-过程'!$A:$P,14,0)*T42/10000*Q42*(1+(BC42-1)*30%)*[4]战斗节奏!$C$28+VLOOKUP(BA42,'[4]英雄技能-过程'!$A:$P,15,0)*T42/10000*R42*(1+(BC42-1)*30%)*[4]战斗节奏!$D$28+VLOOKUP(BA42,'[4]英雄技能-过程'!$A:$P,16,0)*T42/10000*S42*(1+(BC42-1)*30%)*[4]战斗节奏!$E$28,0) -> 1668.42 | BE42: 1 | BF42: 120603 | BG42: 1 | BH42: 2 | BI42: =IFERROR(VLOOKUP(BF42,'[4]英雄技能-过程'!$A:$P,14,0)*T42/10000*Q42*(1+(BH42-1)*30%)*[4]战斗节奏!$C$28+VLOOKUP(BF42,'[4]英雄技能-过程'!$A:$P,15,0)*T42/10000*R42*(1+(BH42-1)*30%)*[4]战斗节奏!$D$28+VLOOKUP(BF42,'[4]英雄技能-过程'!$A:$P,16,0)*T42/10000*S42*(1+(BH42-1)*30%)*[4]战斗节奏!$E$28,0) -> 1668.42 | BJ42: 16&140201&1&5 | BK42: 13&110201&1&3 | BL42: 12&110501&1&3 | BM42: 11&110402&1&2 | BN42: 4&120101&1&2 | BO42: 2&140303&1&2 | BP42: 3&420101&1&2 | BQ42: 1&120603&1&2
A43: 1.149989155 | B43: 41 | C43: 31810 | D43: 31810 | E43: 63620 | F43: 0.45 | G43: 0.15 | H43: 4,100,102 | I43: 6362000,3181000,3181000 | J43: 31810 | K43: 31810 | L43: 0 | N43: 10495.0128 | O43: 2 | P43: 19 | Q43: 2 | R43: 2 | S43: 2.2 | T43: 24000 | U43: 17&140201&1&5;13&110201&1&4;12&120201&1&3;1&110402&1&2;2&120101&1&2;3&140303&1&2;5&420101&1&2;1&120603&1&2 | V43: 17 | W43: 140201 | X43: 1 | Y43: 5 | Z43: =IFERROR(VLOOKUP(W43,'[4]英雄技能-过程'!$A:$P,14,0)*T43/10000*Q43*(1+(Y43-1)*30%)*[4]战斗节奏!$C$28+VLOOKUP(W43,'[4]英雄技能-过程'!$A:$P,15,0)*T43/10000*R43*(1+(Y43-1)*30%)*[4]战斗节奏!$D$28+VLOOKUP(W43,'[4]英雄技能-过程'!$A:$P,16,0)*T43/10000*S43*(1+(Y43-1)*30%)*[4]战斗节奏!$E$28,0) -> 1278.816 | AA43: 13 | AB43: 110201 | AC43: 1 | AD43: 4 | AE43: =IFERROR(VLOOKUP(AB43,'[4]英雄技能-过程'!$A:$P,14,0)*T43/10000*Q43*(1+(AD43-1)*30%)*[4]战斗节奏!$C$28+VLOOKUP(AB43,'[4]英雄技能-过程'!$A:$P,15,0)*T43/10000*R43*(1+(AD43-1)*30%)*[4]战斗节奏!$D$28+VLOOKUP(AB43,'[4]英雄技能-过程'!$A:$P,16,0)*T43/10000*S43*(1+(AD43-1)*30%)*[4]战斗节奏!$E$28,0) -> 1104.432 | AF43: 12 | AG43: 120201 | AH43: 1 | AI43: 3 | AJ43: =IFERROR(VLOOKUP(AG43,'[4]英雄技能-过程'!$A:$P,14,0)*T43/10000*Q43*(1+(AI43-1)*30%)*[4]战斗节奏!$C$28+VLOOKUP(AG43,'[4]英雄技能-过程'!$A:$P,15,0)*T43/10000*R43*(1+(AI43-1)*30%)*[4]战斗节奏!$D$28+VLOOKUP(AG43,'[4]英雄技能-过程'!$A:$P,16,0)*T43/10000*S43*(1+(AI43-1)*30%)*[4]战斗节奏!$E$28,0) -> 1203.1488 | AK43: 1 | AL43: 110402 | AM43: 1 | AN43: 2 | AO43: =IFERROR(VLOOKUP(AL43,'[4]英雄技能-过程'!$A:$P,14,0)*T43/10000*Q43*(1+(AN43-1)*30%)*[4]战斗节奏!$C$28+VLOOKUP(AL43,'[4]英雄技能-过程'!$A:$P,15,0)*T43/10000*R43*(1+(AN43-1)*30%)*[4]战斗节奏!$D$28+VLOOKUP(AL43,'[4]英雄技能-过程'!$A:$P,16,0)*T43/10000*S43*(1+(AN43-1)*30%)*[4]战斗节奏!$E$28,0) -> 878.0928 | AP43: 2 | AQ43: 120101 | AR43: 1 | AS43: 2 | AT43: =IFERROR(VLOOKUP(AQ43,'[4]英雄技能-过程'!$A:$P,14,0)*T43/10000*Q43*(1+(AS43-1)*30%)*[4]战斗节奏!$C$28+VLOOKUP(AQ43,'[4]英雄技能-过程'!$A:$P,15,0)*T43/10000*R43*(1+(AS43-1)*30%)*[4]战斗节奏!$D$28+VLOOKUP(AQ43,'[4]英雄技能-过程'!$A:$P,16,0)*T43/10000*S43*(1+(AS43-1)*30%)*[4]战斗节奏!$E$28,0) -> 1097.8032 | AU43: 3 | AV43: 140303 | AW43: 1 | AX43: 2 | AY43: =IFERROR(VLOOKUP(AV43,'[4]英雄技能-过程'!$A:$P,14,0)*T43/10000*Q43*(1+(AX43-1)*30%)*[4]战斗节奏!$C$28+VLOOKUP(AV43,'[4]英雄技能-过程'!$A:$P,15,0)*T43/10000*R43*(1+(AX43-1)*30%)*[4]战斗节奏!$D$28+VLOOKUP(AV43,'[4]英雄技能-过程'!$A:$P,16,0)*T43/10000*S43*(1+(AX43-1)*30%)*[4]战斗节奏!$E$28,0) -> 1450.8 | AZ43: 5 | BA43: 420101 | BB43: 1 | BC43: 2 | BD43: =IFERROR(VLOOKUP(BA43,'[4]英雄技能-过程'!$A:$P,14,0)*T43/10000*Q43*(1+(BC43-1)*30%)*[4]战斗节奏!$C$28+VLOOKUP(BA43,'[4]英雄技能-过程'!$A:$P,15,0)*T43/10000*R43*(1+(BC43-1)*30%)*[4]战斗节奏!$D$28+VLOOKUP(BA43,'[4]英雄技能-过程'!$A:$P,16,0)*T43/10000*S43*(1+(BC43-1)*30%)*[4]战斗节奏!$E$28,0) -> 1740.96 | BE43: 1 | BF43: 120603 | BG43: 1 | BH43: 2 | BI43: =IFERROR(VLOOKUP(BF43,'[4]英雄技能-过程'!$A:$P,14,0)*T43/10000*Q43*(1+(BH43-1)*30%)*[4]战斗节奏!$C$28+VLOOKUP(BF43,'[4]英雄技能-过程'!$A:$P,15,0)*T43/10000*R43*(1+(BH43-1)*30%)*[4]战斗节奏!$D$28+VLOOKUP(BF43,'[4]英雄技能-过程'!$A:$P,16,0)*T43/10000*S43*(1+(BH43-1)*30%)*[4]战斗节奏!$E$28,0) -> 1740.96 | BJ43: 17&140201&1&5 | BK43: 13&110201&1&4 | BL43: 12&120201&1&3 | BM43: 1&110402&1&2 | BN43: 2&120101&1&2 | BO43: 3&140303&1&2 | BP43: 5&420101&1&2 | BQ43: 1&120603&1&2
A44: 1.150011002 | B44: 42 | C44: 36582 | D44: 36582 | E44: 73164 | F44: 0.45 | G44: 0.15 | H44: 4,100,102 | I44: 7316400,3658200,3658200 | J44: 36582 | K44: 36582 | L44: 0 | N44: 11113.955 | O44: 2 | P44: 20 | Q44: 2 | R44: 2 | S44: 2.2 | T44: 25000 | U44: 16&140201&1&5;13&110201&1&5;12&120201&1&3;11&110402&1&2;4&120101&1&2;2&120603&1&2;3&420101&1&2;1&140303&1&2 | V44: 16 | W44: 140201 | X44: 1 | Y44: 5 | Z44: =IFERROR(VLOOKUP(W44,'[4]英雄技能-过程'!$A:$P,14,0)*T44/10000*Q44*(1+(Y44-1)*30%)*[4]战斗节奏!$C$28+VLOOKUP(W44,'[4]英雄技能-过程'!$A:$P,15,0)*T44/10000*R44*(1+(Y44-1)*30%)*[4]战斗节奏!$D$28+VLOOKUP(W44,'[4]英雄技能-过程'!$A:$P,16,0)*T44/10000*S44*(1+(Y44-1)*30%)*[4]战斗节奏!$E$28,0) -> 1332.1 | AA44: 13 | AB44: 110201 | AC44: 1 | AD44: 5 | AE44: =IFERROR(VLOOKUP(AB44,'[4]英雄技能-过程'!$A:$P,14,0)*T44/10000*Q44*(1+(AD44-1)*30%)*[4]战斗节奏!$C$28+VLOOKUP(AB44,'[4]英雄技能-过程'!$A:$P,15,0)*T44/10000*R44*(1+(AD44-1)*30%)*[4]战斗节奏!$D$28+VLOOKUP(AB44,'[4]英雄技能-过程'!$A:$P,16,0)*T44/10000*S44*(1+(AD44-1)*30%)*[4]战斗节奏!$E$28,0) -> 1332.1 | AF44: 12 | AG44: 120201 | AH44: 1 | AI44: 3 | AJ44: =IFERROR(VLOOKUP(AG44,'[4]英雄技能-过程'!$A:$P,14,0)*T44/10000*Q44*(1+(AI44-1)*30%)*[4]战斗节奏!$C$28+VLOOKUP(AG44,'[4]英雄技能-过程'!$A:$P,15,0)*T44/10000*R44*(1+(AI44-1)*30%)*[4]战斗节奏!$D$28+VLOOKUP(AG44,'[4]英雄技能-过程'!$A:$P,16,0)*T44/10000*S44*(1+(AI44-1)*30%)*[4]战斗节奏!$E$28,0) -> 1253.28 | AK44: 11 | AL44: 110402 | AM44: 1 | AN44: 2 | AO44: =IFERROR(VLOOKUP(AL44,'[4]英雄技能-过程'!$A:$P,14,0)*T44/10000*Q44*(1+(AN44-1)*30%)*[4]战斗节奏!$C$28+VLOOKUP(AL44,'[4]英雄技能-过程'!$A:$P,15,0)*T44/10000*R44*(1+(AN44-1)*30%)*[4]战斗节奏!$D$28+VLOOKUP(AL44,'[4]英雄技能-过程'!$A:$P,16,0)*T44/10000*S44*(1+(AN44-1)*30%)*[4]战斗节奏!$E$28,0) -> 914.68 | AP44: 4 | AQ44: 120101 | AR44: 1 | AS44: 2 | AT44: =IFERROR(VLOOKUP(AQ44,'[4]英雄技能-过程'!$A:$P,14,0)*T44/10000*Q44*(1+(AS44-1)*30%)*[4]战斗节奏!$C$28+VLOOKUP(AQ44,'[4]英雄技能-过程'!$A:$P,15,0)*T44/10000*R44*(1+(AS44-1)*30%)*[4]战斗节奏!$D$28+VLOOKUP(AQ44,'[4]英雄技能-过程'!$A:$P,16,0)*T44/10000*S44*(1+(AS44-1)*30%)*[4]战斗节奏!$E$28,0) -> 1143.545 | AU44: 2 | AV44: 120603 | AW44: 1 | AX44: 2 | AY44: =IFERROR(VLOOKUP(AV44,'[4]英雄技能-过程'!$A:$P,14,0)*T44/10000*Q44*(1+(AX44-1)*30%)*[4]战斗节奏!$C$28+VLOOKUP(AV44,'[4]英雄技能-过程'!$A:$P,15,0)*T44/10000*R44*(1+(AX44-1)*30%)*[4]战斗节奏!$D$28+VLOOKUP(AV44,'[4]英雄技能-过程'!$A:$P,16,0)*T44/10000*S44*(1+(AX44-1)*30%)*[4]战斗节奏!$E$28,0) -> 1813.5 | AZ44: 3 | BA44: 420101 | BB44: 1 | BC44: 2 | BD44: =IFERROR(VLOOKUP(BA44,'[4]英雄技能-过程'!$A:$P,14,0)*T44/10000*Q44*(1+(BC44-1)*30%)*[4]战斗节奏!$C$28+VLOOKUP(BA44,'[4]英雄技能-过程'!$A:$P,15,0)*T44/10000*R44*(1+(BC44-1)*30%)*[4]战斗节奏!$D$28+VLOOKUP(BA44,'[4]英雄技能-过程'!$A:$P,16,0)*T44/10000*S44*(1+(BC44-1)*30%)*[4]战斗节奏!$E$28,0) -> 1813.5 | BE44: 1 | BF44: 140303 | BG44: 1 | BH44: 2 | BI44: =IFERROR(VLOOKUP(BF44,'[4]英雄技能-过程'!$A:$P,14,0)*T44/10000*Q44*(1+(BH44-1)*30%)*[4]战斗节奏!$C$28+VLOOKUP(BF44,'[4]英雄技能-过程'!$A:$P,15,0)*T44/10000*R44*(1+(BH44-1)*30%)*[4]战斗节奏!$D$28+VLOOKUP(BF44,'[4]英雄技能-过程'!$A:$P,16,0)*T44/10000*S44*(1+(BH44-1)*30%)*[4]战斗节奏!$E$28,0) -> 1511.25 | BJ44: 16&140201&1&5 | BK44: 13&110201&1&5 | BL44: 12&120201&1&3 | BM44: 11&110402&1&2 | BN44: 4&120101&1&2 | BO44: 2&120603&1&2 | BP44: 3&420101&1&2 | BQ44: 1&140303&1&2
A45: 1.149987699 | B45: 43 | C45: 42069 | D45: 42069 | E45: 84138 | F45: 0.45 | G45: 0.15 | H45: 4,100,102 | I45: 8413800,4206900,4206900 | J45: 42069 | K45: 42069 | L45: 0 | N45: 1463.88 | O45: 3 | P45: 1 | Q45: 5 | R45: 5 | S45: 5.8 | T45: =T25 -> 10000 | U45: 12&130201&1&5 | V45: 12 | W45: 130201 | X45: 1 | Y45: 5 | Z45: =IFERROR(VLOOKUP(W45,'[4]英雄技能-过程'!$A:$P,14,0)*T45/10000*Q45*(1+(Y45-1)*30%)*[4]战斗节奏!$C$28+VLOOKUP(W45,'[4]英雄技能-过程'!$A:$P,15,0)*T45/10000*R45*(1+(Y45-1)*30%)*[4]战斗节奏!$D$28+VLOOKUP(W45,'[4]英雄技能-过程'!$A:$P,16,0)*T45/10000*S45*(1+(Y45-1)*30%)*[4]战斗节奏!$E$28,0) -> 1463.88 | AD45: 0 | AE45: =IFERROR(VLOOKUP(AB45,'[4]英雄技能-过程'!$A:$P,14,0)*T45/10000*Q45*(1+(AD45-1)*30%)*[4]战斗节奏!$C$28+VLOOKUP(AB45,'[4]英雄技能-过程'!$A:$P,15,0)*T45/10000*R45*(1+(AD45-1)*30%)*[4]战斗节奏!$D$28+VLOOKUP(AB45,'[4]英雄技能-过程'!$A:$P,16,0)*T45/10000*S45*(1+(AD45-1)*30%)*[4]战斗节奏!$E$28,0) -> 0 | AI45: 0 | AJ45: =IFERROR(VLOOKUP(AG45,'[4]英雄技能-过程'!$A:$P,14,0)*T45/10000*Q45*(1+(AI45-1)*30%)*[4]战斗节奏!$C$28+VLOOKUP(AG45,'[4]英雄技能-过程'!$A:$P,15,0)*T45/10000*R45*(1+(AI45-1)*30%)*[4]战斗节奏!$D$28+VLOOKUP(AG45,'[4]英雄技能-过程'!$A:$P,16,0)*T45/10000*S45*(1+(AI45-1)*30%)*[4]战斗节奏!$E$28,0) -> 0 | AN45: 0 | AO45: =IFERROR(VLOOKUP(AL45,'[4]英雄技能-过程'!$A:$P,14,0)*T45/10000*Q45*(1+(AN45-1)*30%)*[4]战斗节奏!$C$28+VLOOKUP(AL45,'[4]英雄技能-过程'!$A:$P,15,0)*T45/10000*R45*(1+(AN45-1)*30%)*[4]战斗节奏!$D$28+VLOOKUP(AL45,'[4]英雄技能-过程'!$A:$P,16,0)*T45/10000*S45*(1+(AN45-1)*30%)*[4]战斗节奏!$E$28,0) -> 0 | AS45: 0 | AT45: =IFERROR(VLOOKUP(AQ45,'[4]英雄技能-过程'!$A:$P,14,0)*T45/10000*Q45*(1+(AS45-1)*30%)*[4]战斗节奏!$C$28+VLOOKUP(AQ45,'[4]英雄技能-过程'!$A:$P,15,0)*T45/10000*R45*(1+(AS45-1)*30%)*[4]战斗节奏!$D$28+VLOOKUP(AQ45,'[4]英雄技能-过程'!$A:$P,16,0)*T45/10000*S45*(1+(AS45-1)*30%)*[4]战斗节奏!$E$28,0) -> 0 | AX45: 0 | AY45: =IFERROR(VLOOKUP(AV45,'[4]英雄技能-过程'!$A:$P,14,0)*T45/10000*Q45*(1+(AX45-1)*30%)*[4]战斗节奏!$C$28+VLOOKUP(AV45,'[4]英雄技能-过程'!$A:$P,15,0)*T45/10000*R45*(1+(AX45-1)*30%)*[4]战斗节奏!$D$28+VLOOKUP(AV45,'[4]英雄技能-过程'!$A:$P,16,0)*T45/10000*S45*(1+(AX45-1)*30%)*[4]战斗节奏!$E$28,0) -> 0 | BC45: 0 | BD45: =IFERROR(VLOOKUP(BA45,'[4]英雄技能-过程'!$A:$P,14,0)*T45/10000*Q45*(1+(BC45-1)*30%)*[4]战斗节奏!$C$28+VLOOKUP(BA45,'[4]英雄技能-过程'!$A:$P,15,0)*T45/10000*R45*(1+(BC45-1)*30%)*[4]战斗节奏!$D$28+VLOOKUP(BA45,'[4]英雄技能-过程'!$A:$P,16,0)*T45/10000*S45*(1+(BC45-1)*30%)*[4]战斗节奏!$E$28,0) -> 0 | BH45: 0 | BI45: =IFERROR(VLOOKUP(BF45,'[4]英雄技能-过程'!$A:$P,14,0)*T45/10000*Q45*(1+(BH45-1)*30%)*[4]战斗节奏!$C$28+VLOOKUP(BF45,'[4]英雄技能-过程'!$A:$P,15,0)*T45/10000*R45*(1+(BH45-1)*30%)*[4]战斗节奏!$D$28+VLOOKUP(BF45,'[4]英雄技能-过程'!$A:$P,16,0)*T45/10000*S45*(1+(BH45-1)*30%)*[4]战斗节奏!$E$28,0) -> 0 | BJ45: 12&130201&1&5
A46: 1.149988115 | B46: 44 | C46: 48379 | D46: 48379 | E46: 96758 | F46: 0.45 | G46: 0.15 | H46: 4,100,102 | I46: 9675800,4837900,4837900 | J46: 48379 | K46: 48379 | L46: 0 | N46: 2781.324 | O46: 3 | P46: 2 | Q46: 5 | R46: 5 | S46: 5.8 | T46: 10500 | U46: 13&130201&1&5;2&130401&1&1 | V46: 13 | W46: 130201 | X46: 1 | Y46: 5 | Z46: =IFERROR(VLOOKUP(W46,'[4]英雄技能-过程'!$A:$P,14,0)*T46/10000*Q46*(1+(Y46-1)*30%)*[4]战斗节奏!$C$28+VLOOKUP(W46,'[4]英雄技能-过程'!$A:$P,15,0)*T46/10000*R46*(1+(Y46-1)*30%)*[4]战斗节奏!$D$28+VLOOKUP(W46,'[4]英雄技能-过程'!$A:$P,16,0)*T46/10000*S46*(1+(Y46-1)*30%)*[4]战斗节奏!$E$28,0) -> 1537.074 | AA46: 2 | AB46: 130401 | AC46: 1 | AD46: 1 | AE46: =IFERROR(VLOOKUP(AB46,'[4]英雄技能-过程'!$A:$P,14,0)*T46/10000*Q46*(1+(AD46-1)*30%)*[4]战斗节奏!$C$28+VLOOKUP(AB46,'[4]英雄技能-过程'!$A:$P,15,0)*T46/10000*R46*(1+(AD46-1)*30%)*[4]战斗节奏!$D$28+VLOOKUP(AB46,'[4]英雄技能-过程'!$A:$P,16,0)*T46/10000*S46*(1+(AD46-1)*30%)*[4]战斗节奏!$E$28,0) -> 1244.25 | AI46: 0 | AJ46: =IFERROR(VLOOKUP(AG46,'[4]英雄技能-过程'!$A:$P,14,0)*T46/10000*Q46*(1+(AI46-1)*30%)*[4]战斗节奏!$C$28+VLOOKUP(AG46,'[4]英雄技能-过程'!$A:$P,15,0)*T46/10000*R46*(1+(AI46-1)*30%)*[4]战斗节奏!$D$28+VLOOKUP(AG46,'[4]英雄技能-过程'!$A:$P,16,0)*T46/10000*S46*(1+(AI46-1)*30%)*[4]战斗节奏!$E$28,0) -> 0 | AN46: 0 | AO46: =IFERROR(VLOOKUP(AL46,'[4]英雄技能-过程'!$A:$P,14,0)*T46/10000*Q46*(1+(AN46-1)*30%)*[4]战斗节奏!$C$28+VLOOKUP(AL46,'[4]英雄技能-过程'!$A:$P,15,0)*T46/10000*R46*(1+(AN46-1)*30%)*[4]战斗节奏!$D$28+VLOOKUP(AL46,'[4]英雄技能-过程'!$A:$P,16,0)*T46/10000*S46*(1+(AN46-1)*30%)*[4]战斗节奏!$E$28,0) -> 0 | AS46: 0 | AT46: =IFERROR(VLOOKUP(AQ46,'[4]英雄技能-过程'!$A:$P,14,0)*T46/10000*Q46*(1+(AS46-1)*30%)*[4]战斗节奏!$C$28+VLOOKUP(AQ46,'[4]英雄技能-过程'!$A:$P,15,0)*T46/10000*R46*(1+(AS46-1)*30%)*[4]战斗节奏!$D$28+VLOOKUP(AQ46,'[4]英雄技能-过程'!$A:$P,16,0)*T46/10000*S46*(1+(AS46-1)*30%)*[4]战斗节奏!$E$28,0) -> 0 | AX46: 0 | AY46: =IFERROR(VLOOKUP(AV46,'[4]英雄技能-过程'!$A:$P,14,0)*T46/10000*Q46*(1+(AX46-1)*30%)*[4]战斗节奏!$C$28+VLOOKUP(AV46,'[4]英雄技能-过程'!$A:$P,15,0)*T46/10000*R46*(1+(AX46-1)*30%)*[4]战斗节奏!$D$28+VLOOKUP(AV46,'[4]英雄技能-过程'!$A:$P,16,0)*T46/10000*S46*(1+(AX46-1)*30%)*[4]战斗节奏!$E$28,0) -> 0 | BC46: 0 | BD46: =IFERROR(VLOOKUP(BA46,'[4]英雄技能-过程'!$A:$P,14,0)*T46/10000*Q46*(1+(BC46-1)*30%)*[4]战斗节奏!$C$28+VLOOKUP(BA46,'[4]英雄技能-过程'!$A:$P,15,0)*T46/10000*R46*(1+(BC46-1)*30%)*[4]战斗节奏!$D$28+VLOOKUP(BA46,'[4]英雄技能-过程'!$A:$P,16,0)*T46/10000*S46*(1+(BC46-1)*30%)*[4]战斗节奏!$E$28,0) -> 0 | BH46: 0 | BI46: =IFERROR(VLOOKUP(BF46,'[4]英雄技能-过程'!$A:$P,14,0)*T46/10000*Q46*(1+(BH46-1)*30%)*[4]战斗节奏!$C$28+VLOOKUP(BF46,'[4]英雄技能-过程'!$A:$P,15,0)*T46/10000*R46*(1+(BH46-1)*30%)*[4]战斗节奏!$D$28+VLOOKUP(BF46,'[4]英雄技能-过程'!$A:$P,16,0)*T46/10000*S46*(1+(BH46-1)*30%)*[4]战斗节奏!$E$28,0) -> 0 | BJ46: 13&130201&1&5 | BK46: 2&130401&1&1
A47: 1.15 | B47: 45 | C47: 55636 | D47: 55636 | E47: 111272 | F47: 0.45 | G47: 0.15 | H47: 4,100,102 | I47: 11127200,5563600,5563600 | J47: 55636 | K47: 55636 | L47: 0 | N47: 4190.868 | O47: 3 | P47: 3 | Q47: 5 | R47: 5 | S47: 5.8 | T47: 11000 | U47: 14&130201&1&5;13&130501&1&1;2&130401&1&1 | V47: 14 | W47: 130201 | X47: 1 | Y47: 5 | Z47: =IFERROR(VLOOKUP(W47,'[4]英雄技能-过程'!$A:$P,14,0)*T47/10000*Q47*(1+(Y47-1)*30%)*[4]战斗节奏!$C$28+VLOOKUP(W47,'[4]英雄技能-过程'!$A:$P,15,0)*T47/10000*R47*(1+(Y47-1)*30%)*[4]战斗节奏!$D$28+VLOOKUP(W47,'[4]英雄技能-过程'!$A:$P,16,0)*T47/10000*S47*(1+(Y47-1)*30%)*[4]战斗节奏!$E$28,0) -> 1610.268 | AA47: 13 | AB47: 130501 | AC47: 1 | AD47: 1 | AE47: =IFERROR(VLOOKUP(AB47,'[4]英雄技能-过程'!$A:$P,14,0)*T47/10000*Q47*(1+(AD47-1)*30%)*[4]战斗节奏!$C$28+VLOOKUP(AB47,'[4]英雄技能-过程'!$A:$P,15,0)*T47/10000*R47*(1+(AD47-1)*30%)*[4]战斗节奏!$D$28+VLOOKUP(AB47,'[4]英雄技能-过程'!$A:$P,16,0)*T47/10000*S47*(1+(AD47-1)*30%)*[4]战斗节奏!$E$28,0) -> 1277.1 | AF47: 2 | AG47: 130401 | AH47: 1 | AI47: 1 | AJ47: =IFERROR(VLOOKUP(AG47,'[4]英雄技能-过程'!$A:$P,14,0)*T47/10000*Q47*(1+(AI47-1)*30%)*[4]战斗节奏!$C$28+VLOOKUP(AG47,'[4]英雄技能-过程'!$A:$P,15,0)*T47/10000*R47*(1+(AI47-1)*30%)*[4]战斗节奏!$D$28+VLOOKUP(AG47,'[4]英雄技能-过程'!$A:$P,16,0)*T47/10000*S47*(1+(AI47-1)*30%)*[4]战斗节奏!$E$28,0) -> 1303.5 | AN47: 0 | AO47: =IFERROR(VLOOKUP(AL47,'[4]英雄技能-过程'!$A:$P,14,0)*T47/10000*Q47*(1+(AN47-1)*30%)*[4]战斗节奏!$C$28+VLOOKUP(AL47,'[4]英雄技能-过程'!$A:$P,15,0)*T47/10000*R47*(1+(AN47-1)*30%)*[4]战斗节奏!$D$28+VLOOKUP(AL47,'[4]英雄技能-过程'!$A:$P,16,0)*T47/10000*S47*(1+(AN47-1)*30%)*[4]战斗节奏!$E$28,0) -> 0 | AS47: 0 | AT47: =IFERROR(VLOOKUP(AQ47,'[4]英雄技能-过程'!$A:$P,14,0)*T47/10000*Q47*(1+(AS47-1)*30%)*[4]战斗节奏!$C$28+VLOOKUP(AQ47,'[4]英雄技能-过程'!$A:$P,15,0)*T47/10000*R47*(1+(AS47-1)*30%)*[4]战斗节奏!$D$28+VLOOKUP(AQ47,'[4]英雄技能-过程'!$A:$P,16,0)*T47/10000*S47*(1+(AS47-1)*30%)*[4]战斗节奏!$E$28,0) -> 0 | AX47: 0 | AY47: =IFERROR(VLOOKUP(AV47,'[4]英雄技能-过程'!$A:$P,14,0)*T47/10000*Q47*(1+(AX47-1)*30%)*[4]战斗节奏!$C$28+VLOOKUP(AV47,'[4]英雄技能-过程'!$A:$P,15,0)*T47/10000*R47*(1+(AX47-1)*30%)*[4]战斗节奏!$D$28+VLOOKUP(AV47,'[4]英雄技能-过程'!$A:$P,16,0)*T47/10000*S47*(1+(AX47-1)*30%)*[4]战斗节奏!$E$28,0) -> 0 | BC47: 0 | BD47: =IFERROR(VLOOKUP(BA47,'[4]英雄技能-过程'!$A:$P,14,0)*T47/10000*Q47*(1+(BC47-1)*30%)*[4]战斗节奏!$C$28+VLOOKUP(BA47,'[4]英雄技能-过程'!$A:$P,15,0)*T47/10000*R47*(1+(BC47-1)*30%)*[4]战斗节奏!$D$28+VLOOKUP(BA47,'[4]英雄技能-过程'!$A:$P,16,0)*T47/10000*S47*(1+(BC47-1)*30%)*[4]战斗节奏!$E$28,0) -> 0 | BH47: 0 | BI47: =IFERROR(VLOOKUP(BF47,'[4]英雄技能-过程'!$A:$P,14,0)*T47/10000*Q47*(1+(BH47-1)*30%)*[4]战斗节奏!$C$28+VLOOKUP(BF47,'[4]英雄技能-过程'!$A:$P,15,0)*T47/10000*R47*(1+(BH47-1)*30%)*[4]战斗节奏!$D$28+VLOOKUP(BF47,'[4]英雄技能-过程'!$A:$P,16,0)*T47/10000*S47*(1+(BH47-1)*30%)*[4]战斗节奏!$E$28,0) -> 0 | BJ47: 14&130201&1&5 | BK47: 13&130501&1&1 | BL47: 2&130401&1&1
A48: 1.149990114 | B48: 46 | C48: 63981 | D48: 63981 | E48: 127962 | F48: 0.5 | G48: 0.15 | H48: 4,100,102 | I48: 12796200,6398100,6398100 | J48: 63981 | K48: 63981 | L48: 0 | N48: 2986.297 | O48: 3 | P48: 4 | Q48: 5 | R48: 5 | S48: 5.8 | T48: 11500 | U48: 13&130201&1&1;14&140304&1&1;12&130501&1&1 | V48: 13 | W48: 130201 | X48: 1 | Y48: 1 | Z48: =IFERROR(VLOOKUP(W48,'[4]英雄技能-过程'!$A:$P,14,0)*T48/10000*Q48*(1+(Y48-1)*30%)*[4]战斗节奏!$C$28+VLOOKUP(W48,'[4]英雄技能-过程'!$A:$P,15,0)*T48/10000*R48*(1+(Y48-1)*30%)*[4]战斗节奏!$D$28+VLOOKUP(W48,'[4]英雄技能-过程'!$A:$P,16,0)*T48/10000*S48*(1+(Y48-1)*30%)*[4]战斗节奏!$E$28,0) -> 765.21 | AA48: 14 | AB48: 140304 | AC48: 1 | AD48: 1 | AE48: =IFERROR(VLOOKUP(AB48,'[4]英雄技能-过程'!$A:$P,14,0)*T48/10000*Q48*(1+(AD48-1)*30%)*[4]战斗节奏!$C$28+VLOOKUP(AB48,'[4]英雄技能-过程'!$A:$P,15,0)*T48/10000*R48*(1+(AD48-1)*30%)*[4]战斗节奏!$D$28+VLOOKUP(AB48,'[4]英雄技能-过程'!$A:$P,16,0)*T48/10000*S48*(1+(AD48-1)*30%)*[4]战斗节奏!$E$28,0) -> 885.937 | AF48: 12 | AG48: 130501 | AH48: 1 | AI48: 1 | AJ48: =IFERROR(VLOOKUP(AG48,'[4]英雄技能-过程'!$A:$P,14,0)*T48/10000*Q48*(1+(AI48-1)*30%)*[4]战斗节奏!$C$28+VLOOKUP(AG48,'[4]英雄技能-过程'!$A:$P,15,0)*T48/10000*R48*(1+(AI48-1)*30%)*[4]战斗节奏!$D$28+VLOOKUP(AG48,'[4]英雄技能-过程'!$A:$P,16,0)*T48/10000*S48*(1+(AI48-1)*30%)*[4]战斗节奏!$E$28,0) -> 1335.15 | AN48: 0 | AO48: =IFERROR(VLOOKUP(AL48,'[4]英雄技能-过程'!$A:$P,14,0)*T48/10000*Q48*(1+(AN48-1)*30%)*[4]战斗节奏!$C$28+VLOOKUP(AL48,'[4]英雄技能-过程'!$A:$P,15,0)*T48/10000*R48*(1+(AN48-1)*30%)*[4]战斗节奏!$D$28+VLOOKUP(AL48,'[4]英雄技能-过程'!$A:$P,16,0)*T48/10000*S48*(1+(AN48-1)*30%)*[4]战斗节奏!$E$28,0) -> 0 | AS48: 0 | AT48: =IFERROR(VLOOKUP(AQ48,'[4]英雄技能-过程'!$A:$P,14,0)*T48/10000*Q48*(1+(AS48-1)*30%)*[4]战斗节奏!$C$28+VLOOKUP(AQ48,'[4]英雄技能-过程'!$A:$P,15,0)*T48/10000*R48*(1+(AS48-1)*30%)*[4]战斗节奏!$D$28+VLOOKUP(AQ48,'[4]英雄技能-过程'!$A:$P,16,0)*T48/10000*S48*(1+(AS48-1)*30%)*[4]战斗节奏!$E$28,0) -> 0 | AX48: 0 | AY48: =IFERROR(VLOOKUP(AV48,'[4]英雄技能-过程'!$A:$P,14,0)*T48/10000*Q48*(1+(AX48-1)*30%)*[4]战斗节奏!$C$28+VLOOKUP(AV48,'[4]英雄技能-过程'!$A:$P,15,0)*T48/10000*R48*(1+(AX48-1)*30%)*[4]战斗节奏!$D$28+VLOOKUP(AV48,'[4]英雄技能-过程'!$A:$P,16,0)*T48/10000*S48*(1+(AX48-1)*30%)*[4]战斗节奏!$E$28,0) -> 0 | BC48: 0 | BD48: =IFERROR(VLOOKUP(BA48,'[4]英雄技能-过程'!$A:$P,14,0)*T48/10000*Q48*(1+(BC48-1)*30%)*[4]战斗节奏!$C$28+VLOOKUP(BA48,'[4]英雄技能-过程'!$A:$P,15,0)*T48/10000*R48*(1+(BC48-1)*30%)*[4]战斗节奏!$D$28+VLOOKUP(BA48,'[4]英雄技能-过程'!$A:$P,16,0)*T48/10000*S48*(1+(BC48-1)*30%)*[4]战斗节奏!$E$28,0) -> 0 | BH48: 0 | BI48: =IFERROR(VLOOKUP(BF48,'[4]英雄技能-过程'!$A:$P,14,0)*T48/10000*Q48*(1+(BH48-1)*30%)*[4]战斗节奏!$C$28+VLOOKUP(BF48,'[4]英雄技能-过程'!$A:$P,15,0)*T48/10000*R48*(1+(BH48-1)*30%)*[4]战斗节奏!$D$28+VLOOKUP(BF48,'[4]英雄技能-过程'!$A:$P,16,0)*T48/10000*S48*(1+(BH48-1)*30%)*[4]战斗节奏!$E$28,0) -> 0 | BJ48: 13&130201&1&1 | BK48: 14&140304&1&1 | BL48: 12&130501&1&1
A49: 1.149995311 | B49: 47 | C49: 73578 | D49: 73578 | E49: 147156 | F49: 0.5 | G49: 0.15 | H49: 4,100,102 | I49: 14715600,7357800,7357800 | J49: 73578 | K49: 73578 | L49: 0 | N49: 2191.68 | O49: 3 | P49: 5 | Q49: 5 | R49: 5 | S49: 5.8 | T49: 12000 | U49: 13&130201&1&1;15&140302&1&2;12&130501&1&1 | V49: 13 | W49: 130201 | X49: 1 | Y49: 1 | Z49: =IFERROR(VLOOKUP(W49,'[4]英雄技能-过程'!$A:$P,14,0)*T49/10000*Q49*(1+(Y49-1)*30%)*[4]战斗节奏!$C$28+VLOOKUP(W49,'[4]英雄技能-过程'!$A:$P,15,0)*T49/10000*R49*(1+(Y49-1)*30%)*[4]战斗节奏!$D$28+VLOOKUP(W49,'[4]英雄技能-过程'!$A:$P,16,0)*T49/10000*S49*(1+(Y49-1)*30%)*[4]战斗节奏!$E$28,0) -> 798.48 | AA49: 15 | AB49: 140302 | AC49: 1 | AD49: 2 | AE49: =IFERROR(VLOOKUP(AB49,'[4]英雄技能-过程'!$A:$P,14,0)*T49/10000*Q49*(1+(AD49-1)*30%)*[4]战斗节奏!$C$28+VLOOKUP(AB49,'[4]英雄技能-过程'!$A:$P,15,0)*T49/10000*R49*(1+(AD49-1)*30%)*[4]战斗节奏!$D$28+VLOOKUP(AB49,'[4]英雄技能-过程'!$A:$P,16,0)*T49/10000*S49*(1+(AD49-1)*30%)*[4]战斗节奏!$E$28,0) -> 0 | AF49: 12 | AG49: 130501 | AH49: 1 | AI49: 1 | AJ49: =IFERROR(VLOOKUP(AG49,'[4]英雄技能-过程'!$A:$P,14,0)*T49/10000*Q49*(1+(AI49-1)*30%)*[4]战斗节奏!$C$28+VLOOKUP(AG49,'[4]英雄技能-过程'!$A:$P,15,0)*T49/10000*R49*(1+(AI49-1)*30%)*[4]战斗节奏!$D$28+VLOOKUP(AG49,'[4]英雄技能-过程'!$A:$P,16,0)*T49/10000*S49*(1+(AI49-1)*30%)*[4]战斗节奏!$E$28,0) -> 1393.2 | AN49: 0 | AO49: =IFERROR(VLOOKUP(AL49,'[4]英雄技能-过程'!$A:$P,14,0)*T49/10000*Q49*(1+(AN49-1)*30%)*[4]战斗节奏!$C$28+VLOOKUP(AL49,'[4]英雄技能-过程'!$A:$P,15,0)*T49/10000*R49*(1+(AN49-1)*30%)*[4]战斗节奏!$D$28+VLOOKUP(AL49,'[4]英雄技能-过程'!$A:$P,16,0)*T49/10000*S49*(1+(AN49-1)*30%)*[4]战斗节奏!$E$28,0) -> 0 | AS49: 0 | AT49: =IFERROR(VLOOKUP(AQ49,'[4]英雄技能-过程'!$A:$P,14,0)*T49/10000*Q49*(1+(AS49-1)*30%)*[4]战斗节奏!$C$28+VLOOKUP(AQ49,'[4]英雄技能-过程'!$A:$P,15,0)*T49/10000*R49*(1+(AS49-1)*30%)*[4]战斗节奏!$D$28+VLOOKUP(AQ49,'[4]英雄技能-过程'!$A:$P,16,0)*T49/10000*S49*(1+(AS49-1)*30%)*[4]战斗节奏!$E$28,0) -> 0 | AX49: 0 | AY49: =IFERROR(VLOOKUP(AV49,'[4]英雄技能-过程'!$A:$P,14,0)*T49/10000*Q49*(1+(AX49-1)*30%)*[4]战斗节奏!$C$28+VLOOKUP(AV49,'[4]英雄技能-过程'!$A:$P,15,0)*T49/10000*R49*(1+(AX49-1)*30%)*[4]战斗节奏!$D$28+VLOOKUP(AV49,'[4]英雄技能-过程'!$A:$P,16,0)*T49/10000*S49*(1+(AX49-1)*30%)*[4]战斗节奏!$E$28,0) -> 0 | BC49: 0 | BD49: =IFERROR(VLOOKUP(BA49,'[4]英雄技能-过程'!$A:$P,14,0)*T49/10000*Q49*(1+(BC49-1)*30%)*[4]战斗节奏!$C$28+VLOOKUP(BA49,'[4]英雄技能-过程'!$A:$P,15,0)*T49/10000*R49*(1+(BC49-1)*30%)*[4]战斗节奏!$D$28+VLOOKUP(BA49,'[4]英雄技能-过程'!$A:$P,16,0)*T49/10000*S49*(1+(BC49-1)*30%)*[4]战斗节奏!$E$28,0) -> 0 | BH49: 0 | BI49: =IFERROR(VLOOKUP(BF49,'[4]英雄技能-过程'!$A:$P,14,0)*T49/10000*Q49*(1+(BH49-1)*30%)*[4]战斗节奏!$C$28+VLOOKUP(BF49,'[4]英雄技能-过程'!$A:$P,15,0)*T49/10000*R49*(1+(BH49-1)*30%)*[4]战斗节奏!$D$28+VLOOKUP(BF49,'[4]英雄技能-过程'!$A:$P,16,0)*T49/10000*S49*(1+(BH49-1)*30%)*[4]战斗节奏!$E$28,0) -> 0 | BJ49: 13&130201&1&1 | BK49: 15&140302&1&2 | BL49: 12&130501&1&1
A50: 1.150002039 | B50: 48 | C50: 84615 | D50: 84615 | E50: 169230 | F50: 0.5 | G50: 0.15 | H50: 4,100,102 | I50: 16923000,8461500,8461500 | J50: 84615 | K50: 84615 | L50: 0 | N50: 4545.5625 | O50: 3 | P50: 6 | Q50: 5 | R50: 5 | S50: 5.8 | T50: 12500 | U50: 14&140302&1&1;13&130501&1&2;15&130201&1&1;4&120602&1&1 | V50: 14 | W50: 140302 | X50: 1 | Y50: 1 | Z50: =IFERROR(VLOOKUP(W50,'[4]英雄技能-过程'!$A:$P,14,0)*T50/10000*Q50*(1+(Y50-1)*30%)*[4]战斗节奏!$C$28+VLOOKUP(W50,'[4]英雄技能-过程'!$A:$P,15,0)*T50/10000*R50*(1+(Y50-1)*30%)*[4]战斗节奏!$D$28+VLOOKUP(W50,'[4]英雄技能-过程'!$A:$P,16,0)*T50/10000*S50*(1+(Y50-1)*30%)*[4]战斗节奏!$E$28,0) -> 0 | AA50: 13 | AB50: 130501 | AC50: 1 | AD50: 2 | AE50: =IFERROR(VLOOKUP(AB50,'[4]英雄技能-过程'!$A:$P,14,0)*T50/10000*Q50*(1+(AD50-1)*30%)*[4]战斗节奏!$C$28+VLOOKUP(AB50,'[4]英雄技能-过程'!$A:$P,15,0)*T50/10000*R50*(1+(AD50-1)*30%)*[4]战斗节奏!$D$28+VLOOKUP(AB50,'[4]英雄技能-过程'!$A:$P,16,0)*T50/10000*S50*(1+(AD50-1)*30%)*[4]战斗节奏!$E$28,0) -> 1886.625 | AF50: 15 | AG50: 130201 | AH50: 1 | AI50: 1 | AJ50: =IFERROR(VLOOKUP(AG50,'[4]英雄技能-过程'!$A:$P,14,0)*T50/10000*Q50*(1+(AI50-1)*30%)*[4]战斗节奏!$C$28+VLOOKUP(AG50,'[4]英雄技能-过程'!$A:$P,15,0)*T50/10000*R50*(1+(AI50-1)*30%)*[4]战斗节奏!$D$28+VLOOKUP(AG50,'[4]英雄技能-过程'!$A:$P,16,0)*T50/10000*S50*(1+(AI50-1)*30%)*[4]战斗节奏!$E$28,0) -> 831.75 | AK50: 4 | AL50: 120602 | AM50: 1 | AN50: 1 | AO50: =IFERROR(VLOOKUP(AL50,'[4]英雄技能-过程'!$A:$P,14,0)*T50/10000*Q50*(1+(AN50-1)*30%)*[4]战斗节奏!$C$28+VLOOKUP(AL50,'[4]英雄技能-过程'!$A:$P,15,0)*T50/10000*R50*(1+(AN50-1)*30%)*[4]战斗节奏!$D$28+VLOOKUP(AL50,'[4]英雄技能-过程'!$A:$P,16,0)*T50/10000*S50*(1+(AN50-1)*30%)*[4]战斗节奏!$E$28,0) -> 1827.1875 | AS50: 0 | AT50: =IFERROR(VLOOKUP(AQ50,'[4]英雄技能-过程'!$A:$P,14,0)*T50/10000*Q50*(1+(AS50-1)*30%)*[4]战斗节奏!$C$28+VLOOKUP(AQ50,'[4]英雄技能-过程'!$A:$P,15,0)*T50/10000*R50*(1+(AS50-1)*30%)*[4]战斗节奏!$D$28+VLOOKUP(AQ50,'[4]英雄技能-过程'!$A:$P,16,0)*T50/10000*S50*(1+(AS50-1)*30%)*[4]战斗节奏!$E$28,0) -> 0 | AX50: 0 | AY50: =IFERROR(VLOOKUP(AV50,'[4]英雄技能-过程'!$A:$P,14,0)*T50/10000*Q50*(1+(AX50-1)*30%)*[4]战斗节奏!$C$28+VLOOKUP(AV50,'[4]英雄技能-过程'!$A:$P,15,0)*T50/10000*R50*(1+(AX50-1)*30%)*[4]战斗节奏!$D$28+VLOOKUP(AV50,'[4]英雄技能-过程'!$A:$P,16,0)*T50/10000*S50*(1+(AX50-1)*30%)*[4]战斗节奏!$E$28,0) -> 0 | BC50: 0 | BD50: =IFERROR(VLOOKUP(BA50,'[4]英雄技能-过程'!$A:$P,14,0)*T50/10000*Q50*(1+(BC50-1)*30%)*[4]战斗节奏!$C$28+VLOOKUP(BA50,'[4]英雄技能-过程'!$A:$P,15,0)*T50/10000*R50*(1+(BC50-1)*30%)*[4]战斗节奏!$D$28+VLOOKUP(BA50,'[4]英雄技能-过程'!$A:$P,16,0)*T50/10000*S50*(1+(BC50-1)*30%)*[4]战斗节奏!$E$28,0) -> 0 | BH50: 0 | BI50: =IFERROR(VLOOKUP(BF50,'[4]英雄技能-过程'!$A:$P,14,0)*T50/10000*Q50*(1+(BH50-1)*30%)*[4]战斗节奏!$C$28+VLOOKUP(BF50,'[4]英雄技能-过程'!$A:$P,15,0)*T50/10000*R50*(1+(BH50-1)*30%)*[4]战斗节奏!$D$28+VLOOKUP(BF50,'[4]英雄技能-过程'!$A:$P,16,0)*T50/10000*S50*(1+(BH50-1)*30%)*[4]战斗节奏!$E$28,0) -> 0 | BJ50: 14&140302&1&1 | BK50: 13&130501&1&2 | BL50: 15&130201&1&1 | BM50: 4&120602&1&1
A51: 1.149995273 | B51: 49 | C51: 97307 | D51: 97307 | E51: 194614 | F51: 0.5 | G51: 0.15 | H51: 4,100,102 | I51: 19461400,9730700,9730700 | J51: 97307 | K51: 97307 | L51: 0 | N51: 6176.976 | O51: 3 | P51: 7 | Q51: 5 | R51: 5 | S51: 5.8 | T51: 13000 | U51: 13&130501&1&1;1&130201&1&2;4&140303&1&2;2&130401&1&1 | V51: 13 | W51: 130501 | X51: 1 | Y51: 1 | Z51: =IFERROR(VLOOKUP(W51,'[4]英雄技能-过程'!$A:$P,14,0)*T51/10000*Q51*(1+(Y51-1)*30%)*[4]战斗节奏!$C$28+VLOOKUP(W51,'[4]英雄技能-过程'!$A:$P,15,0)*T51/10000*R51*(1+(Y51-1)*30%)*[4]战斗节奏!$D$28+VLOOKUP(W51,'[4]英雄技能-过程'!$A:$P,16,0)*T51/10000*S51*(1+(Y51-1)*30%)*[4]战斗节奏!$E$28,0) -> 1509.3 | AA51: 1 | AB51: 130201 | AC51: 1 | AD51: 2 | AE51: =IFERROR(VLOOKUP(AB51,'[4]英雄技能-过程'!$A:$P,14,0)*T51/10000*Q51*(1+(AD51-1)*30%)*[4]战斗节奏!$C$28+VLOOKUP(AB51,'[4]英雄技能-过程'!$A:$P,15,0)*T51/10000*R51*(1+(AD51-1)*30%)*[4]战斗节奏!$D$28+VLOOKUP(AB51,'[4]英雄技能-过程'!$A:$P,16,0)*T51/10000*S51*(1+(AD51-1)*30%)*[4]战斗节奏!$E$28,0) -> 1124.526 | AF51: 4 | AG51: 140303 | AH51: 1 | AI51: 2 | AJ51: =IFERROR(VLOOKUP(AG51,'[4]英雄技能-过程'!$A:$P,14,0)*T51/10000*Q51*(1+(AI51-1)*30%)*[4]战斗节奏!$C$28+VLOOKUP(AG51,'[4]英雄技能-过程'!$A:$P,15,0)*T51/10000*R51*(1+(AI51-1)*30%)*[4]战斗节奏!$D$28+VLOOKUP(AG51,'[4]英雄技能-过程'!$A:$P,16,0)*T51/10000*S51*(1+(AI51-1)*30%)*[4]战斗节奏!$E$28,0) -> 2002.65 | AK51: 2 | AL51: 130401 | AM51: 1 | AN51: 1 | AO51: =IFERROR(VLOOKUP(AL51,'[4]英雄技能-过程'!$A:$P,14,0)*T51/10000*Q51*(1+(AN51-1)*30%)*[4]战斗节奏!$C$28+VLOOKUP(AL51,'[4]英雄技能-过程'!$A:$P,15,0)*T51/10000*R51*(1+(AN51-1)*30%)*[4]战斗节奏!$D$28+VLOOKUP(AL51,'[4]英雄技能-过程'!$A:$P,16,0)*T51/10000*S51*(1+(AN51-1)*30%)*[4]战斗节奏!$E$28,0) -> 1540.5 | AS51: 0 | AT51: =IFERROR(VLOOKUP(AQ51,'[4]英雄技能-过程'!$A:$P,14,0)*T51/10000*Q51*(1+(AS51-1)*30%)*[4]战斗节奏!$C$28+VLOOKUP(AQ51,'[4]英雄技能-过程'!$A:$P,15,0)*T51/10000*R51*(1+(AS51-1)*30%)*[4]战斗节奏!$D$28+VLOOKUP(AQ51,'[4]英雄技能-过程'!$A:$P,16,0)*T51/10000*S51*(1+(AS51-1)*30%)*[4]战斗节奏!$E$28,0) -> 0 | AX51: 0 | AY51: =IFERROR(VLOOKUP(AV51,'[4]英雄技能-过程'!$A:$P,14,0)*T51/10000*Q51*(1+(AX51-1)*30%)*[4]战斗节奏!$C$28+VLOOKUP(AV51,'[4]英雄技能-过程'!$A:$P,15,0)*T51/10000*R51*(1+(AX51-1)*30%)*[4]战斗节奏!$D$28+VLOOKUP(AV51,'[4]英雄技能-过程'!$A:$P,16,0)*T51/10000*S51*(1+(AX51-1)*30%)*[4]战斗节奏!$E$28,0) -> 0 | BC51: 0 | BD51: =IFERROR(VLOOKUP(BA51,'[4]英雄技能-过程'!$A:$P,14,0)*T51/10000*Q51*(1+(BC51-1)*30%)*[4]战斗节奏!$C$28+VLOOKUP(BA51,'[4]英雄技能-过程'!$A:$P,15,0)*T51/10000*R51*(1+(BC51-1)*30%)*[4]战斗节奏!$D$28+VLOOKUP(BA51,'[4]英雄技能-过程'!$A:$P,16,0)*T51/10000*S51*(1+(BC51-1)*30%)*[4]战斗节奏!$E$28,0) -> 0 | BH51: 0 | BI51: =IFERROR(VLOOKUP(BF51,'[4]英雄技能-过程'!$A:$P,14,0)*T51/10000*Q51*(1+(BH51-1)*30%)*[4]战斗节奏!$C$28+VLOOKUP(BF51,'[4]英雄技能-过程'!$A:$P,15,0)*T51/10000*R51*(1+(BH51-1)*30%)*[4]战斗节奏!$D$28+VLOOKUP(BF51,'[4]英雄技能-过程'!$A:$P,16,0)*T51/10000*S51*(1+(BH51-1)*30%)*[4]战斗节奏!$E$28,0) -> 0 | BJ51: 13&130501&1&1 | BK51: 1&130201&1&2 | BL51: 4&140303&1&2 | BM51: 2&130401&1&1
A52: 1.149997945 | B52: 50 | C52: 111903 | D52: 111903 | E52: 223806 | F52: 0.5 | G52: 0.15 | H52: 4,100,102 | I52: 22380600,11190300,11190300 | J52: 111903 | K52: 111903 | L52: 0 | N52: 5285.007 | O52: 3 | P52: 8 | Q52: 5 | R52: 5 | S52: 5.8 | T52: 13500 | U52: 14&140302&1&1;12&130501&1&2;15&130201&1&2;2&130401&1&2 | V52: 14 | W52: 140302 | X52: 1 | Y52: 1 | Z52: =IFERROR(VLOOKUP(W52,'[4]英雄技能-过程'!$A:$P,14,0)*T52/10000*Q52*(1+(Y52-1)*30%)*[4]战斗节奏!$C$28+VLOOKUP(W52,'[4]英雄技能-过程'!$A:$P,15,0)*T52/10000*R52*(1+(Y52-1)*30%)*[4]战斗节奏!$D$28+VLOOKUP(W52,'[4]英雄技能-过程'!$A:$P,16,0)*T52/10000*S52*(1+(Y52-1)*30%)*[4]战斗节奏!$E$28,0) -> 0 | AA52: 12 | AB52: 130501 | AC52: 1 | AD52: 2 | AE52: =IFERROR(VLOOKUP(AB52,'[4]英雄技能-过程'!$A:$P,14,0)*T52/10000*Q52*(1+(AD52-1)*30%)*[4]战斗节奏!$C$28+VLOOKUP(AB52,'[4]英雄技能-过程'!$A:$P,15,0)*T52/10000*R52*(1+(AD52-1)*30%)*[4]战斗节奏!$D$28+VLOOKUP(AB52,'[4]英雄技能-过程'!$A:$P,16,0)*T52/10000*S52*(1+(AD52-1)*30%)*[4]战斗节奏!$E$28,0) -> 2037.555 | AF52: 15 | AG52: 130201 | AH52: 1 | AI52: 2 | AJ52: =IFERROR(VLOOKUP(AG52,'[4]英雄技能-过程'!$A:$P,14,0)*T52/10000*Q52*(1+(AI52-1)*30%)*[4]战斗节奏!$C$28+VLOOKUP(AG52,'[4]英雄技能-过程'!$A:$P,15,0)*T52/10000*R52*(1+(AI52-1)*30%)*[4]战斗节奏!$D$28+VLOOKUP(AG52,'[4]英雄技能-过程'!$A:$P,16,0)*T52/10000*S52*(1+(AI52-1)*30%)*[4]战斗节奏!$E$28,0) -> 1167.777 | AK52: 2 | AL52: 130401 | AM52: 1 | AN52: 2 | AO52: =IFERROR(VLOOKUP(AL52,'[4]英雄技能-过程'!$A:$P,14,0)*T52/10000*Q52*(1+(AN52-1)*30%)*[4]战斗节奏!$C$28+VLOOKUP(AL52,'[4]英雄技能-过程'!$A:$P,15,0)*T52/10000*R52*(1+(AN52-1)*30%)*[4]战斗节奏!$D$28+VLOOKUP(AL52,'[4]英雄技能-过程'!$A:$P,16,0)*T52/10000*S52*(1+(AN52-1)*30%)*[4]战斗节奏!$E$28,0) -> 2079.675 | AS52: 0 | AT52: =IFERROR(VLOOKUP(AQ52,'[4]英雄技能-过程'!$A:$P,14,0)*T52/10000*Q52*(1+(AS52-1)*30%)*[4]战斗节奏!$C$28+VLOOKUP(AQ52,'[4]英雄技能-过程'!$A:$P,15,0)*T52/10000*R52*(1+(AS52-1)*30%)*[4]战斗节奏!$D$28+VLOOKUP(AQ52,'[4]英雄技能-过程'!$A:$P,16,0)*T52/10000*S52*(1+(AS52-1)*30%)*[4]战斗节奏!$E$28,0) -> 0 | AX52: 0 | AY52: =IFERROR(VLOOKUP(AV52,'[4]英雄技能-过程'!$A:$P,14,0)*T52/10000*Q52*(1+(AX52-1)*30%)*[4]战斗节奏!$C$28+VLOOKUP(AV52,'[4]英雄技能-过程'!$A:$P,15,0)*T52/10000*R52*(1+(AX52-1)*30%)*[4]战斗节奏!$D$28+VLOOKUP(AV52,'[4]英雄技能-过程'!$A:$P,16,0)*T52/10000*S52*(1+(AX52-1)*30%)*[4]战斗节奏!$E$28,0) -> 0 | BC52: 0 | BD52: =IFERROR(VLOOKUP(BA52,'[4]英雄技能-过程'!$A:$P,14,0)*T52/10000*Q52*(1+(BC52-1)*30%)*[4]战斗节奏!$C$28+VLOOKUP(BA52,'[4]英雄技能-过程'!$A:$P,15,0)*T52/10000*R52*(1+(BC52-1)*30%)*[4]战斗节奏!$D$28+VLOOKUP(BA52,'[4]英雄技能-过程'!$A:$P,16,0)*T52/10000*S52*(1+(BC52-1)*30%)*[4]战斗节奏!$E$28,0) -> 0 | BH52: 0 | BI52: =IFERROR(VLOOKUP(BF52,'[4]英雄技能-过程'!$A:$P,14,0)*T52/10000*Q52*(1+(BH52-1)*30%)*[4]战斗节奏!$C$28+VLOOKUP(BF52,'[4]英雄技能-过程'!$A:$P,15,0)*T52/10000*R52*(1+(BH52-1)*30%)*[4]战斗节奏!$D$28+VLOOKUP(BF52,'[4]英雄技能-过程'!$A:$P,16,0)*T52/10000*S52*(1+(BH52-1)*30%)*[4]战斗节奏!$E$28,0) -> 0 | BJ52: 14&140302&1&1 | BK52: 12&130501&1&2 | BL52: 15&130201&1&2 | BM52: 2&130401&1&2
I53: 0,0,0 | N53: 8765.645 | O53: 3 | P53: 9 | Q53: 5 | R53: 5 | S53: 5.8 | T53: 14000 | U53: 14&140304&1&1;12&130201&1&2;3&140303&1&2;4&120602&1&2;2&130401&1&1 | V53: 14 | W53: 140304 | X53: 1 | Y53: 1 | Z53: =IFERROR(VLOOKUP(W53,'[4]英雄技能-过程'!$A:$P,14,0)*T53/10000*Q53*(1+(Y53-1)*30%)*[4]战斗节奏!$C$28+VLOOKUP(W53,'[4]英雄技能-过程'!$A:$P,15,0)*T53/10000*R53*(1+(Y53-1)*30%)*[4]战斗节奏!$D$28+VLOOKUP(W53,'[4]英雄技能-过程'!$A:$P,16,0)*T53/10000*S53*(1+(Y53-1)*30%)*[4]战斗节奏!$E$28,0) -> 1078.532 | AA53: 12 | AB53: 130201 | AC53: 1 | AD53: 2 | AE53: =IFERROR(VLOOKUP(AB53,'[4]英雄技能-过程'!$A:$P,14,0)*T53/10000*Q53*(1+(AD53-1)*30%)*[4]战斗节奏!$C$28+VLOOKUP(AB53,'[4]英雄技能-过程'!$A:$P,15,0)*T53/10000*R53*(1+(AD53-1)*30%)*[4]战斗节奏!$D$28+VLOOKUP(AB53,'[4]英雄技能-过程'!$A:$P,16,0)*T53/10000*S53*(1+(AD53-1)*30%)*[4]战斗节奏!$E$28,0) -> 1211.028 | AF53: 3 | AG53: 140303 | AH53: 1 | AI53: 2 | AJ53: =IFERROR(VLOOKUP(AG53,'[4]英雄技能-过程'!$A:$P,14,0)*T53/10000*Q53*(1+(AI53-1)*30%)*[4]战斗节奏!$C$28+VLOOKUP(AG53,'[4]英雄技能-过程'!$A:$P,15,0)*T53/10000*R53*(1+(AI53-1)*30%)*[4]战斗节奏!$D$28+VLOOKUP(AG53,'[4]英雄技能-过程'!$A:$P,16,0)*T53/10000*S53*(1+(AI53-1)*30%)*[4]战斗节奏!$E$28,0) -> 2156.7 | AK53: 4 | AL53: 120602 | AM53: 1 | AN53: 2 | AO53: =IFERROR(VLOOKUP(AL53,'[4]英雄技能-过程'!$A:$P,14,0)*T53/10000*Q53*(1+(AN53-1)*30%)*[4]战斗节奏!$C$28+VLOOKUP(AL53,'[4]英雄技能-过程'!$A:$P,15,0)*T53/10000*R53*(1+(AN53-1)*30%)*[4]战斗节奏!$D$28+VLOOKUP(AL53,'[4]英雄技能-过程'!$A:$P,16,0)*T53/10000*S53*(1+(AN53-1)*30%)*[4]战斗节奏!$E$28,0) -> 2660.385 | AP53: 2 | AQ53: 130401 | AR53: 1 | AS53: 1 | AT53: =IFERROR(VLOOKUP(AQ53,'[4]英雄技能-过程'!$A:$P,14,0)*T53/10000*Q53*(1+(AS53-1)*30%)*[4]战斗节奏!$C$28+VLOOKUP(AQ53,'[4]英雄技能-过程'!$A:$P,15,0)*T53/10000*R53*(1+(AS53-1)*30%)*[4]战斗节奏!$D$28+VLOOKUP(AQ53,'[4]英雄技能-过程'!$A:$P,16,0)*T53/10000*S53*(1+(AS53-1)*30%)*[4]战斗节奏!$E$28,0) -> 1659 | AX53: 0 | AY53: =IFERROR(VLOOKUP(AV53,'[4]英雄技能-过程'!$A:$P,14,0)*T53/10000*Q53*(1+(AX53-1)*30%)*[4]战斗节奏!$C$28+VLOOKUP(AV53,'[4]英雄技能-过程'!$A:$P,15,0)*T53/10000*R53*(1+(AX53-1)*30%)*[4]战斗节奏!$D$28+VLOOKUP(AV53,'[4]英雄技能-过程'!$A:$P,16,0)*T53/10000*S53*(1+(AX53-1)*30%)*[4]战斗节奏!$E$28,0) -> 0 | BC53: 0 | BD53: =IFERROR(VLOOKUP(BA53,'[4]英雄技能-过程'!$A:$P,14,0)*T53/10000*Q53*(1+(BC53-1)*30%)*[4]战斗节奏!$C$28+VLOOKUP(BA53,'[4]英雄技能-过程'!$A:$P,15,0)*T53/10000*R53*(1+(BC53-1)*30%)*[4]战斗节奏!$D$28+VLOOKUP(BA53,'[4]英雄技能-过程'!$A:$P,16,0)*T53/10000*S53*(1+(BC53-1)*30%)*[4]战斗节奏!$E$28,0) -> 0 | BH53: 0 | BI53: =IFERROR(VLOOKUP(BF53,'[4]英雄技能-过程'!$A:$P,14,0)*T53/10000*Q53*(1+(BH53-1)*30%)*[4]战斗节奏!$C$28+VLOOKUP(BF53,'[4]英雄技能-过程'!$A:$P,15,0)*T53/10000*R53*(1+(BH53-1)*30%)*[4]战斗节奏!$D$28+VLOOKUP(BF53,'[4]英雄技能-过程'!$A:$P,16,0)*T53/10000*S53*(1+(BH53-1)*30%)*[4]战斗节奏!$E$28,0) -> 0 | BJ53: 14&140304&1&1 | BK53: 12&130201&1&2 | BL53: 3&140303&1&2 | BM53: 4&120602&1&2 | BN53: 2&130401&1&1
N54: 9989.499 | O54: 3 | P54: 10 | Q54: 5 | R54: 5 | S54: 5.8 | T54: 15000 | U54: 12&130201&1&2;15&410101&1&2;13&130501&1&2;2&130401&1&2;5&140303&1&2 | V54: 12 | W54: 130201 | X54: 1 | Y54: 2 | Z54: =IFERROR(VLOOKUP(W54,'[4]英雄技能-过程'!$A:$P,14,0)*T54/10000*Q54*(1+(Y54-1)*30%)*[4]战斗节奏!$C$28+VLOOKUP(W54,'[4]英雄技能-过程'!$A:$P,15,0)*T54/10000*R54*(1+(Y54-1)*30%)*[4]战斗节奏!$D$28+VLOOKUP(W54,'[4]英雄技能-过程'!$A:$P,16,0)*T54/10000*S54*(1+(Y54-1)*30%)*[4]战斗节奏!$E$28,0) -> 1297.53 | AA54: 15 | AB54: 410101 | AC54: 1 | AD54: 2 | AE54: =IFERROR(VLOOKUP(AB54,'[4]英雄技能-过程'!$A:$P,14,0)*T54/10000*Q54*(1+(AD54-1)*30%)*[4]战斗节奏!$C$28+VLOOKUP(AB54,'[4]英雄技能-过程'!$A:$P,15,0)*T54/10000*R54*(1+(AD54-1)*30%)*[4]战斗节奏!$D$28+VLOOKUP(AB54,'[4]英雄技能-过程'!$A:$P,16,0)*T54/10000*S54*(1+(AD54-1)*30%)*[4]战斗节奏!$E$28,0) -> 1806.519 | AF54: 13 | AG54: 130501 | AH54: 1 | AI54: 2 | AJ54: =IFERROR(VLOOKUP(AG54,'[4]英雄技能-过程'!$A:$P,14,0)*T54/10000*Q54*(1+(AI54-1)*30%)*[4]战斗节奏!$C$28+VLOOKUP(AG54,'[4]英雄技能-过程'!$A:$P,15,0)*T54/10000*R54*(1+(AI54-1)*30%)*[4]战斗节奏!$D$28+VLOOKUP(AG54,'[4]英雄技能-过程'!$A:$P,16,0)*T54/10000*S54*(1+(AI54-1)*30%)*[4]战斗节奏!$E$28,0) -> 2263.95 | AK54: 2 | AL54: 130401 | AM54: 1 | AN54: 2 | AO54: =IFERROR(VLOOKUP(AL54,'[4]英雄技能-过程'!$A:$P,14,0)*T54/10000*Q54*(1+(AN54-1)*30%)*[4]战斗节奏!$C$28+VLOOKUP(AL54,'[4]英雄技能-过程'!$A:$P,15,0)*T54/10000*R54*(1+(AN54-1)*30%)*[4]战斗节奏!$D$28+VLOOKUP(AL54,'[4]英雄技能-过程'!$A:$P,16,0)*T54/10000*S54*(1+(AN54-1)*30%)*[4]战斗节奏!$E$28,0) -> 2310.75 | AP54: 5 | AQ54: 140303 | AR54: 1 | AS54: 2 | AT54: =IFERROR(VLOOKUP(AQ54,'[4]英雄技能-过程'!$A:$P,14,0)*T54/10000*Q54*(1+(AS54-1)*30%)*[4]战斗节奏!$C$28+VLOOKUP(AQ54,'[4]英雄技能-过程'!$A:$P,15,0)*T54/10000*R54*(1+(AS54-1)*30%)*[4]战斗节奏!$D$28+VLOOKUP(AQ54,'[4]英雄技能-过程'!$A:$P,16,0)*T54/10000*S54*(1+(AS54-1)*30%)*[4]战斗节奏!$E$28,0) -> 2310.75 | AX54: 0 | AY54: =IFERROR(VLOOKUP(AV54,'[4]英雄技能-过程'!$A:$P,14,0)*T54/10000*Q54*(1+(AX54-1)*30%)*[4]战斗节奏!$C$28+VLOOKUP(AV54,'[4]英雄技能-过程'!$A:$P,15,0)*T54/10000*R54*(1+(AX54-1)*30%)*[4]战斗节奏!$D$28+VLOOKUP(AV54,'[4]英雄技能-过程'!$A:$P,16,0)*T54/10000*S54*(1+(AX54-1)*30%)*[4]战斗节奏!$E$28,0) -> 0 | BC54: 0 | BD54: =IFERROR(VLOOKUP(BA54,'[4]英雄技能-过程'!$A:$P,14,0)*T54/10000*Q54*(1+(BC54-1)*30%)*[4]战斗节奏!$C$28+VLOOKUP(BA54,'[4]英雄技能-过程'!$A:$P,15,0)*T54/10000*R54*(1+(BC54-1)*30%)*[4]战斗节奏!$D$28+VLOOKUP(BA54,'[4]英雄技能-过程'!$A:$P,16,0)*T54/10000*S54*(1+(BC54-1)*30%)*[4]战斗节奏!$E$28,0) -> 0 | BH54: 0 | BI54: =IFERROR(VLOOKUP(BF54,'[4]英雄技能-过程'!$A:$P,14,0)*T54/10000*Q54*(1+(BH54-1)*30%)*[4]战斗节奏!$C$28+VLOOKUP(BF54,'[4]英雄技能-过程'!$A:$P,15,0)*T54/10000*R54*(1+(BH54-1)*30%)*[4]战斗节奏!$D$28+VLOOKUP(BF54,'[4]英雄技能-过程'!$A:$P,16,0)*T54/10000*S54*(1+(BH54-1)*30%)*[4]战斗节奏!$E$28,0) -> 0 | BJ54: 12&130201&1&2 | BK54: 15&410101&1&2 | BL54: 13&130501&1&2 | BM54: 2&130401&1&2 | BN54: 5&140303&1&2
H55: =71*C42 -> 1963931 | N55: 12709.3776 | O55: 3 | P55: 11 | Q55: 5 | R55: 5 | S55: 5.8 | T55: 16000 | U55: 12&410101&1&3;16&130501&1&2;18&130201&1&2;14&140304&1&2;2&120602&1&2;5&130401&1&1 | V55: 12 | W55: 410101 | X55: 1 | Y55: 3 | Z55: =IFERROR(VLOOKUP(W55,'[4]英雄技能-过程'!$A:$P,14,0)*T55/10000*Q55*(1+(Y55-1)*30%)*[4]战斗节奏!$C$28+VLOOKUP(W55,'[4]英雄技能-过程'!$A:$P,15,0)*T55/10000*R55*(1+(Y55-1)*30%)*[4]战斗节奏!$D$28+VLOOKUP(W55,'[4]英雄技能-过程'!$A:$P,16,0)*T55/10000*S55*(1+(Y55-1)*30%)*[4]战斗节奏!$E$28,0) -> 2371.6352 | AA55: 16 | AB55: 130501 | AC55: 1 | AD55: 2 | AE55: =IFERROR(VLOOKUP(AB55,'[4]英雄技能-过程'!$A:$P,14,0)*T55/10000*Q55*(1+(AD55-1)*30%)*[4]战斗节奏!$C$28+VLOOKUP(AB55,'[4]英雄技能-过程'!$A:$P,15,0)*T55/10000*R55*(1+(AD55-1)*30%)*[4]战斗节奏!$D$28+VLOOKUP(AB55,'[4]英雄技能-过程'!$A:$P,16,0)*T55/10000*S55*(1+(AD55-1)*30%)*[4]战斗节奏!$E$28,0) -> 2414.88 | AF55: 18 | AG55: 130201 | AH55: 1 | AI55: 2 | AJ55: =IFERROR(VLOOKUP(AG55,'[4]英雄技能-过程'!$A:$P,14,0)*T55/10000*Q55*(1+(AI55-1)*30%)*[4]战斗节奏!$C$28+VLOOKUP(AG55,'[4]英雄技能-过程'!$A:$P,15,0)*T55/10000*R55*(1+(AI55-1)*30%)*[4]战斗节奏!$D$28+VLOOKUP(AG55,'[4]英雄技能-过程'!$A:$P,16,0)*T55/10000*S55*(1+(AI55-1)*30%)*[4]战斗节奏!$E$28,0) -> 1384.032 | AK55: 14 | AL55: 140304 | AM55: 1 | AN55: 2 | AO55: =IFERROR(VLOOKUP(AL55,'[4]英雄技能-过程'!$A:$P,14,0)*T55/10000*Q55*(1+(AN55-1)*30%)*[4]战斗节奏!$C$28+VLOOKUP(AL55,'[4]英雄技能-过程'!$A:$P,15,0)*T55/10000*R55*(1+(AN55-1)*30%)*[4]战斗节奏!$D$28+VLOOKUP(AL55,'[4]英雄技能-过程'!$A:$P,16,0)*T55/10000*S55*(1+(AN55-1)*30%)*[4]战斗节奏!$E$28,0) -> 1602.3904 | AP55: 2 | AQ55: 120602 | AR55: 1 | AS55: 2 | AT55: =IFERROR(VLOOKUP(AQ55,'[4]英雄技能-过程'!$A:$P,14,0)*T55/10000*Q55*(1+(AS55-1)*30%)*[4]战斗节奏!$C$28+VLOOKUP(AQ55,'[4]英雄技能-过程'!$A:$P,15,0)*T55/10000*R55*(1+(AS55-1)*30%)*[4]战斗节奏!$D$28+VLOOKUP(AQ55,'[4]英雄技能-过程'!$A:$P,16,0)*T55/10000*S55*(1+(AS55-1)*30%)*[4]战斗节奏!$E$28,0) -> 3040.44 | AU55: 5 | AV55: 130401 | AW55: 1 | AX55: 1 | AY55: =IFERROR(VLOOKUP(AV55,'[4]英雄技能-过程'!$A:$P,14,0)*T55/10000*Q55*(1+(AX55-1)*30%)*[4]战斗节奏!$C$28+VLOOKUP(AV55,'[4]英雄技能-过程'!$A:$P,15,0)*T55/10000*R55*(1+(AX55-1)*30%)*[4]战斗节奏!$D$28+VLOOKUP(AV55,'[4]英雄技能-过程'!$A:$P,16,0)*T55/10000*S55*(1+(AX55-1)*30%)*[4]战斗节奏!$E$28,0) -> 1896 | BC55: 0 | BD55: =IFERROR(VLOOKUP(BA55,'[4]英雄技能-过程'!$A:$P,14,0)*T55/10000*Q55*(1+(BC55-1)*30%)*[4]战斗节奏!$C$28+VLOOKUP(BA55,'[4]英雄技能-过程'!$A:$P,15,0)*T55/10000*R55*(1+(BC55-1)*30%)*[4]战斗节奏!$D$28+VLOOKUP(BA55,'[4]英雄技能-过程'!$A:$P,16,0)*T55/10000*S55*(1+(BC55-1)*30%)*[4]战斗节奏!$E$28,0) -> 0 | BH55: 0 | BI55: =IFERROR(VLOOKUP(BF55,'[4]英雄技能-过程'!$A:$P,14,0)*T55/10000*Q55*(1+(BH55-1)*30%)*[4]战斗节奏!$C$28+VLOOKUP(BF55,'[4]英雄技能-过程'!$A:$P,15,0)*T55/10000*R55*(1+(BH55-1)*30%)*[4]战斗节奏!$D$28+VLOOKUP(BF55,'[4]英雄技能-过程'!$A:$P,16,0)*T55/10000*S55*(1+(BH55-1)*30%)*[4]战斗节奏!$E$28,0) -> 0 | BJ55: 12&410101&1&3 | BK55: 16&130501&1&2 | BL55: 18&130201&1&2 | BM55: 14&140304&1&2 | BN55: 2&120602&1&2 | BO55: 5&130401&1&1
E56: 0 | N56: 13416.8658 | O56: 3 | P56: 12 | Q56: 5 | R56: 5 | S56: 5.8 | T56: 17000 | U56: 12&140304&1&3;18&130501&1&2;13&130201&1&2;14&410101&1&2;2&140303&1&2;5&130401&1&2 | V56: 12 | W56: 140304 | X56: 1 | Y56: 3 | Z56: =IFERROR(VLOOKUP(W56,'[4]英雄技能-过程'!$A:$P,14,0)*T56/10000*Q56*(1+(Y56-1)*30%)*[4]战斗节奏!$C$28+VLOOKUP(W56,'[4]英雄技能-过程'!$A:$P,15,0)*T56/10000*R56*(1+(Y56-1)*30%)*[4]战斗节奏!$D$28+VLOOKUP(W56,'[4]英雄技能-过程'!$A:$P,16,0)*T56/10000*S56*(1+(Y56-1)*30%)*[4]战斗节奏!$E$28,0) -> 2095.4336 | AA56: 18 | AB56: 130501 | AC56: 1 | AD56: 2 | AE56: =IFERROR(VLOOKUP(AB56,'[4]英雄技能-过程'!$A:$P,14,0)*T56/10000*Q56*(1+(AD56-1)*30%)*[4]战斗节奏!$C$28+VLOOKUP(AB56,'[4]英雄技能-过程'!$A:$P,15,0)*T56/10000*R56*(1+(AD56-1)*30%)*[4]战斗节奏!$D$28+VLOOKUP(AB56,'[4]英雄技能-过程'!$A:$P,16,0)*T56/10000*S56*(1+(AD56-1)*30%)*[4]战斗节奏!$E$28,0) -> 2565.81 | AF56: 13 | AG56: 130201 | AH56: 1 | AI56: 2 | AJ56: =IFERROR(VLOOKUP(AG56,'[4]英雄技能-过程'!$A:$P,14,0)*T56/10000*Q56*(1+(AI56-1)*30%)*[4]战斗节奏!$C$28+VLOOKUP(AG56,'[4]英雄技能-过程'!$A:$P,15,0)*T56/10000*R56*(1+(AI56-1)*30%)*[4]战斗节奏!$D$28+VLOOKUP(AG56,'[4]英雄技能-过程'!$A:$P,16,0)*T56/10000*S56*(1+(AI56-1)*30%)*[4]战斗节奏!$E$28,0) -> 1470.534 | AK56: 14 | AL56: 410101 | AM56: 1 | AN56: 2 | AO56: =IFERROR(VLOOKUP(AL56,'[4]英雄技能-过程'!$A:$P,14,0)*T56/10000*Q56*(1+(AN56-1)*30%)*[4]战斗节奏!$C$28+VLOOKUP(AL56,'[4]英雄技能-过程'!$A:$P,15,0)*T56/10000*R56*(1+(AN56-1)*30%)*[4]战斗节奏!$D$28+VLOOKUP(AL56,'[4]英雄技能-过程'!$A:$P,16,0)*T56/10000*S56*(1+(AN56-1)*30%)*[4]战斗节奏!$E$28,0) -> 2047.3882 | AP56: 2 | AQ56: 140303 | AR56: 1 | AS56: 2 | AT56: =IFERROR(VLOOKUP(AQ56,'[4]英雄技能-过程'!$A:$P,14,0)*T56/10000*Q56*(1+(AS56-1)*30%)*[4]战斗节奏!$C$28+VLOOKUP(AQ56,'[4]英雄技能-过程'!$A:$P,15,0)*T56/10000*R56*(1+(AS56-1)*30%)*[4]战斗节奏!$D$28+VLOOKUP(AQ56,'[4]英雄技能-过程'!$A:$P,16,0)*T56/10000*S56*(1+(AS56-1)*30%)*[4]战斗节奏!$E$28,0) -> 2618.85 | AU56: 5 | AV56: 130401 | AW56: 1 | AX56: 2 | AY56: =IFERROR(VLOOKUP(AV56,'[4]英雄技能-过程'!$A:$P,14,0)*T56/10000*Q56*(1+(AX56-1)*30%)*[4]战斗节奏!$C$28+VLOOKUP(AV56,'[4]英雄技能-过程'!$A:$P,15,0)*T56/10000*R56*(1+(AX56-1)*30%)*[4]战斗节奏!$D$28+VLOOKUP(AV56,'[4]英雄技能-过程'!$A:$P,16,0)*T56/10000*S56*(1+(AX56-1)*30%)*[4]战斗节奏!$E$28,0) -> 2618.85 | BC56: 0 | BD56: =IFERROR(VLOOKUP(BA56,'[4]英雄技能-过程'!$A:$P,14,0)*T56/10000*Q56*(1+(BC56-1)*30%)*[4]战斗节奏!$C$28+VLOOKUP(BA56,'[4]英雄技能-过程'!$A:$P,15,0)*T56/10000*R56*(1+(BC56-1)*30%)*[4]战斗节奏!$D$28+VLOOKUP(BA56,'[4]英雄技能-过程'!$A:$P,16,0)*T56/10000*S56*(1+(BC56-1)*30%)*[4]战斗节奏!$E$28,0) -> 0 | BH56: 0 | BI56: =IFERROR(VLOOKUP(BF56,'[4]英雄技能-过程'!$A:$P,14,0)*T56/10000*Q56*(1+(BH56-1)*30%)*[4]战斗节奏!$C$28+VLOOKUP(BF56,'[4]英雄技能-过程'!$A:$P,15,0)*T56/10000*R56*(1+(BH56-1)*30%)*[4]战斗节奏!$D$28+VLOOKUP(BF56,'[4]英雄技能-过程'!$A:$P,16,0)*T56/10000*S56*(1+(BH56-1)*30%)*[4]战斗节奏!$E$28,0) -> 0 | BJ56: 12&140304&1&3 | BK56: 18&130501&1&2 | BL56: 13&130201&1&2 | BM56: 14&410101&1&2 | BN56: 2&140303&1&2 | BO56: 5&130401&1&2
B57: 关卡 | C57: 关卡人数 | D57: 金币获得 | E57: 总计 | F57: 人口 | G57: 余额 | N57: 13240.071 | O57: 3 | P57: 13 | Q57: 5 | R57: 5 | S57: 5.8 | T57: 18000 | U57: 12&140302&1&3;17&130501&1&2;14&130201&1&2;2&140303&1&2;5&120602&1&2;6&130401&1&2 | V57: 12 | W57: 140302 | X57: 1 | Y57: 3 | Z57: =IFERROR(VLOOKUP(W57,'[4]英雄技能-过程'!$A:$P,14,0)*T57/10000*Q57*(1+(Y57-1)*30%)*[4]战斗节奏!$C$28+VLOOKUP(W57,'[4]英雄技能-过程'!$A:$P,15,0)*T57/10000*R57*(1+(Y57-1)*30%)*[4]战斗节奏!$D$28+VLOOKUP(W57,'[4]英雄技能-过程'!$A:$P,16,0)*T57/10000*S57*(1+(Y57-1)*30%)*[4]战斗节奏!$E$28,0) -> 0 | AA57: 17 | AB57: 130501 | AC57: 1 | AD57: 2 | AE57: =IFERROR(VLOOKUP(AB57,'[4]英雄技能-过程'!$A:$P,14,0)*T57/10000*Q57*(1+(AD57-1)*30%)*[4]战斗节奏!$C$28+VLOOKUP(AB57,'[4]英雄技能-过程'!$A:$P,15,0)*T57/10000*R57*(1+(AD57-1)*30%)*[4]战斗节奏!$D$28+VLOOKUP(AB57,'[4]英雄技能-过程'!$A:$P,16,0)*T57/10000*S57*(1+(AD57-1)*30%)*[4]战斗节奏!$E$28,0) -> 2716.74 | AF57: 14 | AG57: 130201 | AH57: 1 | AI57: 2 | AJ57: =IFERROR(VLOOKUP(AG57,'[4]英雄技能-过程'!$A:$P,14,0)*T57/10000*Q57*(1+(AI57-1)*30%)*[4]战斗节奏!$C$28+VLOOKUP(AG57,'[4]英雄技能-过程'!$A:$P,15,0)*T57/10000*R57*(1+(AI57-1)*30%)*[4]战斗节奏!$D$28+VLOOKUP(AG57,'[4]英雄技能-过程'!$A:$P,16,0)*T57/10000*S57*(1+(AI57-1)*30%)*[4]战斗节奏!$E$28,0) -> 1557.036 | AK57: 2 | AL57: 140303 | AM57: 1 | AN57: 2 | AO57: =IFERROR(VLOOKUP(AL57,'[4]英雄技能-过程'!$A:$P,14,0)*T57/10000*Q57*(1+(AN57-1)*30%)*[4]战斗节奏!$C$28+VLOOKUP(AL57,'[4]英雄技能-过程'!$A:$P,15,0)*T57/10000*R57*(1+(AN57-1)*30%)*[4]战斗节奏!$D$28+VLOOKUP(AL57,'[4]英雄技能-过程'!$A:$P,16,0)*T57/10000*S57*(1+(AN57-1)*30%)*[4]战斗节奏!$E$28,0) -> 2772.9 | AP57: 5 | AQ57: 120602 | AR57: 1 | AS57: 2 | AT57: =IFERROR(VLOOKUP(AQ57,'[4]英雄技能-过程'!$A:$P,14,0)*T57/10000*Q57*(1+(AS57-1)*30%)*[4]战斗节奏!$C$28+VLOOKUP(AQ57,'[4]英雄技能-过程'!$A:$P,15,0)*T57/10000*R57*(1+(AS57-1)*30%)*[4]战斗节奏!$D$28+VLOOKUP(AQ57,'[4]英雄技能-过程'!$A:$P,16,0)*T57/10000*S57*(1+(AS57-1)*30%)*[4]战斗节奏!$E$28,0) -> 3420.495 | AU57: 6 | AV57: 130401 | AW57: 1 | AX57: 2 | AY57: =IFERROR(VLOOKUP(AV57,'[4]英雄技能-过程'!$A:$P,14,0)*T57/10000*Q57*(1+(AX57-1)*30%)*[4]战斗节奏!$C$28+VLOOKUP(AV57,'[4]英雄技能-过程'!$A:$P,15,0)*T57/10000*R57*(1+(AX57-1)*30%)*[4]战斗节奏!$D$28+VLOOKUP(AV57,'[4]英雄技能-过程'!$A:$P,16,0)*T57/10000*S57*(1+(AX57-1)*30%)*[4]战斗节奏!$E$28,0) -> 2772.9 | BC57: 0 | BD57: =IFERROR(VLOOKUP(BA57,'[4]英雄技能-过程'!$A:$P,14,0)*T57/10000*Q57*(1+(BC57-1)*30%)*[4]战斗节奏!$C$28+VLOOKUP(BA57,'[4]英雄技能-过程'!$A:$P,15,0)*T57/10000*R57*(1+(BC57-1)*30%)*[4]战斗节奏!$D$28+VLOOKUP(BA57,'[4]英雄技能-过程'!$A:$P,16,0)*T57/10000*S57*(1+(BC57-1)*30%)*[4]战斗节奏!$E$28,0) -> 0 | BH57: 0 | BI57: =IFERROR(VLOOKUP(BF57,'[4]英雄技能-过程'!$A:$P,14,0)*T57/10000*Q57*(1+(BH57-1)*30%)*[4]战斗节奏!$C$28+VLOOKUP(BF57,'[4]英雄技能-过程'!$A:$P,15,0)*T57/10000*R57*(1+(BH57-1)*30%)*[4]战斗节奏!$D$28+VLOOKUP(BF57,'[4]英雄技能-过程'!$A:$P,16,0)*T57/10000*S57*(1+(BH57-1)*30%)*[4]战斗节奏!$E$28,0) -> 0 | BJ57: 12&140302&1&3 | BK57: 17&130501&1&2 | BL57: 14&130201&1&2 | BM57: 2&140303&1&2 | BN57: 5&120602&1&2 | BO57: 6&130401&1&2
B58: 1 | C58: 1 | D58: 15 | E58: =D58+E56 -> 15 | F58: =MATCH(E58,$D$80:$D$87,1)+1 -> 4 | G58: =SUM($D$58:D58)-VLOOKUP(F58,$B$80:$D$87,3) -> -60 | N58: 15810.1793 | O58: 3 | P58: 14 | Q58: 5 | R58: 5 | S58: 5.8 | T58: 19000 | U58: 12&130501&1&3;15&410101&1&3;17&140302&1&2;4&130401&1&2;2&120602&1&2;1&140303&1&2 | V58: 12 | W58: 130501 | X58: 1 | Y58: 3 | Z58: =IFERROR(VLOOKUP(W58,'[4]英雄技能-过程'!$A:$P,14,0)*T58/10000*Q58*(1+(Y58-1)*30%)*[4]战斗节奏!$C$28+VLOOKUP(W58,'[4]英雄技能-过程'!$A:$P,15,0)*T58/10000*R58*(1+(Y58-1)*30%)*[4]战斗节奏!$D$28+VLOOKUP(W58,'[4]英雄技能-过程'!$A:$P,16,0)*T58/10000*S58*(1+(Y58-1)*30%)*[4]战斗节奏!$E$28,0) -> 3529.44 | AA58: 15 | AB58: 410101 | AC58: 1 | AD58: 3 | AE58: =IFERROR(VLOOKUP(AB58,'[4]英雄技能-过程'!$A:$P,14,0)*T58/10000*Q58*(1+(AD58-1)*30%)*[4]战斗节奏!$C$28+VLOOKUP(AB58,'[4]英雄技能-过程'!$A:$P,15,0)*T58/10000*R58*(1+(AD58-1)*30%)*[4]战斗节奏!$D$28+VLOOKUP(AB58,'[4]英雄技能-过程'!$A:$P,16,0)*T58/10000*S58*(1+(AD58-1)*30%)*[4]战斗节奏!$E$28,0) -> 2816.3168 | AF58: 17 | AG58: 140302 | AH58: 1 | AI58: 2 | AJ58: =IFERROR(VLOOKUP(AG58,'[4]英雄技能-过程'!$A:$P,14,0)*T58/10000*Q58*(1+(AI58-1)*30%)*[4]战斗节奏!$C$28+VLOOKUP(AG58,'[4]英雄技能-过程'!$A:$P,15,0)*T58/10000*R58*(1+(AI58-1)*30%)*[4]战斗节奏!$D$28+VLOOKUP(AG58,'[4]英雄技能-过程'!$A:$P,16,0)*T58/10000*S58*(1+(AI58-1)*30%)*[4]战斗节奏!$E$28,0) -> 0 | AK58: 4 | AL58: 130401 | AM58: 1 | AN58: 2 | AO58: =IFERROR(VLOOKUP(AL58,'[4]英雄技能-过程'!$A:$P,14,0)*T58/10000*Q58*(1+(AN58-1)*30%)*[4]战斗节奏!$C$28+VLOOKUP(AL58,'[4]英雄技能-过程'!$A:$P,15,0)*T58/10000*R58*(1+(AN58-1)*30%)*[4]战斗节奏!$D$28+VLOOKUP(AL58,'[4]英雄技能-过程'!$A:$P,16,0)*T58/10000*S58*(1+(AN58-1)*30%)*[4]战斗节奏!$E$28,0) -> 2926.95 | AP58: 2 | AQ58: 120602 | AR58: 1 | AS58: 2 | AT58: =IFERROR(VLOOKUP(AQ58,'[4]英雄技能-过程'!$A:$P,14,0)*T58/10000*Q58*(1+(AS58-1)*30%)*[4]战斗节奏!$C$28+VLOOKUP(AQ58,'[4]英雄技能-过程'!$A:$P,15,0)*T58/10000*R58*(1+(AS58-1)*30%)*[4]战斗节奏!$D$28+VLOOKUP(AQ58,'[4]英雄技能-过程'!$A:$P,16,0)*T58/10000*S58*(1+(AS58-1)*30%)*[4]战斗节奏!$E$28,0) -> 3610.5225 | AU58: 1 | AV58: 140303 | AW58: 1 | AX58: 2 | AY58: =IFERROR(VLOOKUP(AV58,'[4]英雄技能-过程'!$A:$P,14,0)*T58/10000*Q58*(1+(AX58-1)*30%)*[4]战斗节奏!$C$28+VLOOKUP(AV58,'[4]英雄技能-过程'!$A:$P,15,0)*T58/10000*R58*(1+(AX58-1)*30%)*[4]战斗节奏!$D$28+VLOOKUP(AV58,'[4]英雄技能-过程'!$A:$P,16,0)*T58/10000*S58*(1+(AX58-1)*30%)*[4]战斗节奏!$E$28,0) -> 2926.95 | BC58: 0 | BD58: =IFERROR(VLOOKUP(BA58,'[4]英雄技能-过程'!$A:$P,14,0)*T58/10000*Q58*(1+(BC58-1)*30%)*[4]战斗节奏!$C$28+VLOOKUP(BA58,'[4]英雄技能-过程'!$A:$P,15,0)*T58/10000*R58*(1+(BC58-1)*30%)*[4]战斗节奏!$D$28+VLOOKUP(BA58,'[4]英雄技能-过程'!$A:$P,16,0)*T58/10000*S58*(1+(BC58-1)*30%)*[4]战斗节奏!$E$28,0) -> 0 | BH58: 0 | BI58: =IFERROR(VLOOKUP(BF58,'[4]英雄技能-过程'!$A:$P,14,0)*T58/10000*Q58*(1+(BH58-1)*30%)*[4]战斗节奏!$C$28+VLOOKUP(BF58,'[4]英雄技能-过程'!$A:$P,15,0)*T58/10000*R58*(1+(BH58-1)*30%)*[4]战斗节奏!$D$28+VLOOKUP(BF58,'[4]英雄技能-过程'!$A:$P,16,0)*T58/10000*S58*(1+(BH58-1)*30%)*[4]战斗节奏!$E$28,0) -> 0 | BJ58: 12&130501&1&3 | BK58: 15&410101&1&3 | BL58: 17&140302&1&2 | BM58: 4&130401&1&2 | BN58: 2&120602&1&2 | BO58: 1&140303&1&2
B59: 2 | C59: 2 | D59: 20 | E59: =E58+D59 -> 35 | F59: =MATCH(E59,$D$80:$D$87,1)+1 -> 5 | G59: =SUM($D$58:D59)-VLOOKUP(F59,$B$80:$D$87,3) -> -90 | N59: 19429.95 | O59: 3 | P59: 15 | Q59: 5 | R59: 5 | S59: 5.8 | T59: 20000 | U59: 16&410101&1&3;14&140304&1&3;12&130201&1&2;15&130501&1&2;5&120602&1&2;4&130401&1&2;2&140303&1&1 | V59: 16 | W59: 410101 | X59: 1 | Y59: 3 | Z59: =IFERROR(VLOOKUP(W59,'[4]英雄技能-过程'!$A:$P,14,0)*T59/10000*Q59*(1+(Y59-1)*30%)*[4]战斗节奏!$C$28+VLOOKUP(W59,'[4]英雄技能-过程'!$A:$P,15,0)*T59/10000*R59*(1+(Y59-1)*30%)*[4]战斗节奏!$D$28+VLOOKUP(W59,'[4]英雄技能-过程'!$A:$P,16,0)*T59/10000*S59*(1+(Y59-1)*30%)*[4]战斗节奏!$E$28,0) -> 2964.544 | AA59: 14 | AB59: 140304 | AC59: 1 | AD59: 3 | AE59: =IFERROR(VLOOKUP(AB59,'[4]英雄技能-过程'!$A:$P,14,0)*T59/10000*Q59*(1+(AD59-1)*30%)*[4]战斗节奏!$C$28+VLOOKUP(AB59,'[4]英雄技能-过程'!$A:$P,15,0)*T59/10000*R59*(1+(AD59-1)*30%)*[4]战斗节奏!$D$28+VLOOKUP(AB59,'[4]英雄技能-过程'!$A:$P,16,0)*T59/10000*S59*(1+(AD59-1)*30%)*[4]战斗节奏!$E$28,0) -> 2465.216 | AF59: 12 | AG59: 130201 | AH59: 1 | AI59: 2 | AJ59: =IFERROR(VLOOKUP(AG59,'[4]英雄技能-过程'!$A:$P,14,0)*T59/10000*Q59*(1+(AI59-1)*30%)*[4]战斗节奏!$C$28+VLOOKUP(AG59,'[4]英雄技能-过程'!$A:$P,15,0)*T59/10000*R59*(1+(AI59-1)*30%)*[4]战斗节奏!$D$28+VLOOKUP(AG59,'[4]英雄技能-过程'!$A:$P,16,0)*T59/10000*S59*(1+(AI59-1)*30%)*[4]战斗节奏!$E$28,0) -> 1730.04 | AK59: 15 | AL59: 130501 | AM59: 1 | AN59: 2 | AO59: =IFERROR(VLOOKUP(AL59,'[4]英雄技能-过程'!$A:$P,14,0)*T59/10000*Q59*(1+(AN59-1)*30%)*[4]战斗节奏!$C$28+VLOOKUP(AL59,'[4]英雄技能-过程'!$A:$P,15,0)*T59/10000*R59*(1+(AN59-1)*30%)*[4]战斗节奏!$D$28+VLOOKUP(AL59,'[4]英雄技能-过程'!$A:$P,16,0)*T59/10000*S59*(1+(AN59-1)*30%)*[4]战斗节奏!$E$28,0) -> 3018.6 | AP59: 5 | AQ59: 120602 | AR59: 1 | AS59: 2 | AT59: =IFERROR(VLOOKUP(AQ59,'[4]英雄技能-过程'!$A:$P,14,0)*T59/10000*Q59*(1+(AS59-1)*30%)*[4]战斗节奏!$C$28+VLOOKUP(AQ59,'[4]英雄技能-过程'!$A:$P,15,0)*T59/10000*R59*(1+(AS59-1)*30%)*[4]战斗节奏!$D$28+VLOOKUP(AQ59,'[4]英雄技能-过程'!$A:$P,16,0)*T59/10000*S59*(1+(AS59-1)*30%)*[4]战斗节奏!$E$28,0) -> 3800.55 | AU59: 4 | AV59: 130401 | AW59: 1 | AX59: 2 | AY59: =IFERROR(VLOOKUP(AV59,'[4]英雄技能-过程'!$A:$P,14,0)*T59/10000*Q59*(1+(AX59-1)*30%)*[4]战斗节奏!$C$28+VLOOKUP(AV59,'[4]英雄技能-过程'!$A:$P,15,0)*T59/10000*R59*(1+(AX59-1)*30%)*[4]战斗节奏!$D$28+VLOOKUP(AV59,'[4]英雄技能-过程'!$A:$P,16,0)*T59/10000*S59*(1+(AX59-1)*30%)*[4]战斗节奏!$E$28,0) -> 3081 | AZ59: 2 | BA59: 140303 | BB59: 1 | BC59: 1 | BD59: =IFERROR(VLOOKUP(BA59,'[4]英雄技能-过程'!$A:$P,14,0)*T59/10000*Q59*(1+(BC59-1)*30%)*[4]战斗节奏!$C$28+VLOOKUP(BA59,'[4]英雄技能-过程'!$A:$P,15,0)*T59/10000*R59*(1+(BC59-1)*30%)*[4]战斗节奏!$D$28+VLOOKUP(BA59,'[4]英雄技能-过程'!$A:$P,16,0)*T59/10000*S59*(1+(BC59-1)*30%)*[4]战斗节奏!$E$28,0) -> 2370 | BH59: 0 | BI59: =IFERROR(VLOOKUP(BF59,'[4]英雄技能-过程'!$A:$P,14,0)*T59/10000*Q59*(1+(BH59-1)*30%)*[4]战斗节奏!$C$28+VLOOKUP(BF59,'[4]英雄技能-过程'!$A:$P,15,0)*T59/10000*R59*(1+(BH59-1)*30%)*[4]战斗节奏!$D$28+VLOOKUP(BF59,'[4]英雄技能-过程'!$A:$P,16,0)*T59/10000*S59*(1+(BH59-1)*30%)*[4]战斗节奏!$E$28,0) -> 0 | BJ59: 16&410101&1&3 | BK59: 14&140304&1&3 | BL59: 12&130201&1&2 | BM59: 15&130501&1&2 | BN59: 5&120602&1&2 | BO59: 4&130401&1&2 | BP59: 2&140303&1&1
B60: 3 | C60: 3 | D60: 15 | E60: =E59+D60 -> 50 | F60: 5 | G60: =SUM($D$58:D60)-VLOOKUP(F60,$B$80:$D$87,3) -> -75 | N60: 19893.9426 | O60: 3 | P60: 16 | Q60: 5 | R60: 5 | S60: 5.8 | T60: 21000 | U60: 16&130201&1&4;15&410101&1&3;12&130501&1&2;11&120201&1&2;14&140302&1&2;2&140303&1&2;5&120602&1&1;1&130401&1&1 | V60: 16 | W60: 130201 | X60: 1 | Y60: 4 | Z60: =IFERROR(VLOOKUP(W60,'[4]英雄技能-过程'!$A:$P,14,0)*T60/10000*Q60*(1+(Y60-1)*30%)*[4]战斗节奏!$C$28+VLOOKUP(W60,'[4]英雄技能-过程'!$A:$P,15,0)*T60/10000*R60*(1+(Y60-1)*30%)*[4]战斗节奏!$D$28+VLOOKUP(W60,'[4]英雄技能-过程'!$A:$P,16,0)*T60/10000*S60*(1+(Y60-1)*30%)*[4]战斗节奏!$E$28,0) -> 2654.946 | AA60: 15 | AB60: 410101 | AC60: 1 | AD60: 3 | AE60: =IFERROR(VLOOKUP(AB60,'[4]英雄技能-过程'!$A:$P,14,0)*T60/10000*Q60*(1+(AD60-1)*30%)*[4]战斗节奏!$C$28+VLOOKUP(AB60,'[4]英雄技能-过程'!$A:$P,15,0)*T60/10000*R60*(1+(AD60-1)*30%)*[4]战斗节奏!$D$28+VLOOKUP(AB60,'[4]英雄技能-过程'!$A:$P,16,0)*T60/10000*S60*(1+(AD60-1)*30%)*[4]战斗节奏!$E$28,0) -> 3112.7712 | AF60: 12 | AG60: 130501 | AH60: 1 | AI60: 2 | AJ60: =IFERROR(VLOOKUP(AG60,'[4]英雄技能-过程'!$A:$P,14,0)*T60/10000*Q60*(1+(AI60-1)*30%)*[4]战斗节奏!$C$28+VLOOKUP(AG60,'[4]英雄技能-过程'!$A:$P,15,0)*T60/10000*R60*(1+(AI60-1)*30%)*[4]战斗节奏!$D$28+VLOOKUP(AG60,'[4]英雄技能-过程'!$A:$P,16,0)*T60/10000*S60*(1+(AI60-1)*30%)*[4]战斗节奏!$E$28,0) -> 3169.53 | AK60: 11 | AL60: 120201 | AM60: 1 | AN60: 2 | AO60: =IFERROR(VLOOKUP(AL60,'[4]英雄技能-过程'!$A:$P,14,0)*T60/10000*Q60*(1+(AN60-1)*30%)*[4]战斗节奏!$C$28+VLOOKUP(AL60,'[4]英雄技能-过程'!$A:$P,15,0)*T60/10000*R60*(1+(AN60-1)*30%)*[4]战斗节奏!$D$28+VLOOKUP(AL60,'[4]英雄技能-过程'!$A:$P,16,0)*T60/10000*S60*(1+(AN60-1)*30%)*[4]战斗节奏!$E$28,0) -> 2163.4704 | AP60: 14 | AQ60: 140302 | AR60: 1 | AS60: 2 | AT60: =IFERROR(VLOOKUP(AQ60,'[4]英雄技能-过程'!$A:$P,14,0)*T60/10000*Q60*(1+(AS60-1)*30%)*[4]战斗节奏!$C$28+VLOOKUP(AQ60,'[4]英雄技能-过程'!$A:$P,15,0)*T60/10000*R60*(1+(AS60-1)*30%)*[4]战斗节奏!$D$28+VLOOKUP(AQ60,'[4]英雄技能-过程'!$A:$P,16,0)*T60/10000*S60*(1+(AS60-1)*30%)*[4]战斗节奏!$E$28,0) -> 0 | AU60: 2 | AV60: 140303 | AW60: 1 | AX60: 2 | AY60: =IFERROR(VLOOKUP(AV60,'[4]英雄技能-过程'!$A:$P,14,0)*T60/10000*Q60*(1+(AX60-1)*30%)*[4]战斗节奏!$C$28+VLOOKUP(AV60,'[4]英雄技能-过程'!$A:$P,15,0)*T60/10000*R60*(1+(AX60-1)*30%)*[4]战斗节奏!$D$28+VLOOKUP(AV60,'[4]英雄技能-过程'!$A:$P,16,0)*T60/10000*S60*(1+(AX60-1)*30%)*[4]战斗节奏!$E$28,0) -> 3235.05 | AZ60: 5 | BA60: 120602 | BB60: 1 | BC60: 1 | BD60: =IFERROR(VLOOKUP(BA60,'[4]英雄技能-过程'!$A:$P,14,0)*T60/10000*Q60*(1+(BC60-1)*30%)*[4]战斗节奏!$C$28+VLOOKUP(BA60,'[4]英雄技能-过程'!$A:$P,15,0)*T60/10000*R60*(1+(BC60-1)*30%)*[4]战斗节奏!$D$28+VLOOKUP(BA60,'[4]英雄技能-过程'!$A:$P,16,0)*T60/10000*S60*(1+(BC60-1)*30%)*[4]战斗节奏!$E$28,0) -> 3069.675 | BE60: 1 | BF60: 130401 | BG60: 1 | BH60: 1 | BI60: =IFERROR(VLOOKUP(BF60,'[4]英雄技能-过程'!$A:$P,14,0)*T60/10000*Q60*(1+(BH60-1)*30%)*[4]战斗节奏!$C$28+VLOOKUP(BF60,'[4]英雄技能-过程'!$A:$P,15,0)*T60/10000*R60*(1+(BH60-1)*30%)*[4]战斗节奏!$D$28+VLOOKUP(BF60,'[4]英雄技能-过程'!$A:$P,16,0)*T60/10000*S60*(1+(BH60-1)*30%)*[4]战斗节奏!$E$28,0) -> 2488.5 | BJ60: 16&130201&1&4 | BK60: 15&410101&1&3 | BL60: 12&130501&1&2 | BM60: 11&120201&1&2 | BN60: 14&140302&1&2 | BO60: 2&140303&1&2 | BP60: 5&120602&1&1 | BQ60: 1&130401&1&1
B61: 4 | C61: 3 | D61: 15 | E61: 65 | F61: 5 | G61: =SUM($D$58:D61)-VLOOKUP(F61,$B$80:$D$87,3) -> -60 | N61: 22653.5232 | O61: 3 | P61: 17 | Q61: 5 | R61: 5 | S61: 5.8 | T61: 22000 | U61: 16&130501&1&4;15&130201&1&3;12&410101&1&3;11&140302&1&2;13&140304&1&2;4&130401&1&2;2&140303&1&2;5&120602&1&1 | V61: 16 | W61: 130501 | X61: 1 | Y61: 4 | Z61: =IFERROR(VLOOKUP(W61,'[4]英雄技能-过程'!$A:$P,14,0)*T61/10000*Q61*(1+(Y61-1)*30%)*[4]战斗节奏!$C$28+VLOOKUP(W61,'[4]英雄技能-过程'!$A:$P,15,0)*T61/10000*R61*(1+(Y61-1)*30%)*[4]战斗节奏!$D$28+VLOOKUP(W61,'[4]英雄技能-过程'!$A:$P,16,0)*T61/10000*S61*(1+(Y61-1)*30%)*[4]战斗节奏!$E$28,0) -> 4852.98 | AA61: 15 | AB61: 130201 | AC61: 1 | AD61: 3 | AE61: =IFERROR(VLOOKUP(AB61,'[4]英雄技能-过程'!$A:$P,14,0)*T61/10000*Q61*(1+(AD61-1)*30%)*[4]战斗节奏!$C$28+VLOOKUP(AB61,'[4]英雄技能-过程'!$A:$P,15,0)*T61/10000*R61*(1+(AD61-1)*30%)*[4]战斗节奏!$D$28+VLOOKUP(AB61,'[4]英雄技能-过程'!$A:$P,16,0)*T61/10000*S61*(1+(AD61-1)*30%)*[4]战斗节奏!$E$28,0) -> 2342.208 | AF61: 12 | AG61: 410101 | AH61: 1 | AI61: 3 | AJ61: =IFERROR(VLOOKUP(AG61,'[4]英雄技能-过程'!$A:$P,14,0)*T61/10000*Q61*(1+(AI61-1)*30%)*[4]战斗节奏!$C$28+VLOOKUP(AG61,'[4]英雄技能-过程'!$A:$P,15,0)*T61/10000*R61*(1+(AI61-1)*30%)*[4]战斗节奏!$D$28+VLOOKUP(AG61,'[4]英雄技能-过程'!$A:$P,16,0)*T61/10000*S61*(1+(AI61-1)*30%)*[4]战斗节奏!$E$28,0) -> 3260.9984 | AK61: 11 | AL61: 140302 | AM61: 1 | AN61: 2 | AO61: =IFERROR(VLOOKUP(AL61,'[4]英雄技能-过程'!$A:$P,14,0)*T61/10000*Q61*(1+(AN61-1)*30%)*[4]战斗节奏!$C$28+VLOOKUP(AL61,'[4]英雄技能-过程'!$A:$P,15,0)*T61/10000*R61*(1+(AN61-1)*30%)*[4]战斗节奏!$D$28+VLOOKUP(AL61,'[4]英雄技能-过程'!$A:$P,16,0)*T61/10000*S61*(1+(AN61-1)*30%)*[4]战斗节奏!$E$28,0) -> 0 | AP61: 13 | AQ61: 140304 | AR61: 1 | AS61: 2 | AT61: =IFERROR(VLOOKUP(AQ61,'[4]英雄技能-过程'!$A:$P,14,0)*T61/10000*Q61*(1+(AS61-1)*30%)*[4]战斗节奏!$C$28+VLOOKUP(AQ61,'[4]英雄技能-过程'!$A:$P,15,0)*T61/10000*R61*(1+(AS61-1)*30%)*[4]战斗节奏!$D$28+VLOOKUP(AQ61,'[4]英雄技能-过程'!$A:$P,16,0)*T61/10000*S61*(1+(AS61-1)*30%)*[4]战斗节奏!$E$28,0) -> 2203.2868 | AU61: 4 | AV61: 130401 | AW61: 1 | AX61: 2 | AY61: =IFERROR(VLOOKUP(AV61,'[4]英雄技能-过程'!$A:$P,14,0)*T61/10000*Q61*(1+(AX61-1)*30%)*[4]战斗节奏!$C$28+VLOOKUP(AV61,'[4]英雄技能-过程'!$A:$P,15,0)*T61/10000*R61*(1+(AX61-1)*30%)*[4]战斗节奏!$D$28+VLOOKUP(AV61,'[4]英雄技能-过程'!$A:$P,16,0)*T61/10000*S61*(1+(AX61-1)*30%)*[4]战斗节奏!$E$28,0) -> 3389.1 | AZ61: 2 | BA61: 140303 | BB61: 1 | BC61: 2 | BD61: =IFERROR(VLOOKUP(BA61,'[4]英雄技能-过程'!$A:$P,14,0)*T61/10000*Q61*(1+(BC61-1)*30%)*[4]战斗节奏!$C$28+VLOOKUP(BA61,'[4]英雄技能-过程'!$A:$P,15,0)*T61/10000*R61*(1+(BC61-1)*30%)*[4]战斗节奏!$D$28+VLOOKUP(BA61,'[4]英雄技能-过程'!$A:$P,16,0)*T61/10000*S61*(1+(BC61-1)*30%)*[4]战斗节奏!$E$28,0) -> 3389.1 | BE61: 5 | BF61: 120602 | BG61: 1 | BH61: 1 | BI61: =IFERROR(VLOOKUP(BF61,'[4]英雄技能-过程'!$A:$P,14,0)*T61/10000*Q61*(1+(BH61-1)*30%)*[4]战斗节奏!$C$28+VLOOKUP(BF61,'[4]英雄技能-过程'!$A:$P,15,0)*T61/10000*R61*(1+(BH61-1)*30%)*[4]战斗节奏!$D$28+VLOOKUP(BF61,'[4]英雄技能-过程'!$A:$P,16,0)*T61/10000*S61*(1+(BH61-1)*30%)*[4]战斗节奏!$E$28,0) -> 3215.85 | BJ61: 16&130501&1&4 | BK61: 15&130201&1&3 | BL61: 12&410101&1&3 | BM61: 11&140302&1&2 | BN61: 13&140304&1&2 | BO61: 4&130401&1&2 | BP61: 2&140303&1&2 | BQ61: 5&120602&1&1
B62: 5 | C62: 3 | D62: 15 | E62: 80 | F62: 6 | G62: =SUM($D$58:D62)-VLOOKUP(F62,$B$80:$D$87,3) -> -105 | N62: 23162.0925 | O62: 3 | P62: 18 | Q62: 5 | R62: 5 | S62: 5.8 | T62: 23000 | U62: 16&140302&1&4;13&410101&1&3;12&140304&1&3;11&130501&1&2;14&130201&1&2;2&140303&1&2;3&130401&1&2;1&120602&1&2 | V62: 16 | W62: 140302 | X62: 1 | Y62: 4 | Z62: =IFERROR(VLOOKUP(W62,'[4]英雄技能-过程'!$A:$P,14,0)*T62/10000*Q62*(1+(Y62-1)*30%)*[4]战斗节奏!$C$28+VLOOKUP(W62,'[4]英雄技能-过程'!$A:$P,15,0)*T62/10000*R62*(1+(Y62-1)*30%)*[4]战斗节奏!$D$28+VLOOKUP(W62,'[4]英雄技能-过程'!$A:$P,16,0)*T62/10000*S62*(1+(Y62-1)*30%)*[4]战斗节奏!$E$28,0) -> 0 | AA62: 13 | AB62: 410101 | AC62: 1 | AD62: 3 | AE62: =IFERROR(VLOOKUP(AB62,'[4]英雄技能-过程'!$A:$P,14,0)*T62/10000*Q62*(1+(AD62-1)*30%)*[4]战斗节奏!$C$28+VLOOKUP(AB62,'[4]英雄技能-过程'!$A:$P,15,0)*T62/10000*R62*(1+(AD62-1)*30%)*[4]战斗节奏!$D$28+VLOOKUP(AB62,'[4]英雄技能-过程'!$A:$P,16,0)*T62/10000*S62*(1+(AD62-1)*30%)*[4]战斗节奏!$E$28,0) -> 3409.2256 | AF62: 12 | AG62: 140304 | AH62: 1 | AI62: 3 | AJ62: =IFERROR(VLOOKUP(AG62,'[4]英雄技能-过程'!$A:$P,14,0)*T62/10000*Q62*(1+(AI62-1)*30%)*[4]战斗节奏!$C$28+VLOOKUP(AG62,'[4]英雄技能-过程'!$A:$P,15,0)*T62/10000*R62*(1+(AI62-1)*30%)*[4]战斗节奏!$D$28+VLOOKUP(AG62,'[4]英雄技能-过程'!$A:$P,16,0)*T62/10000*S62*(1+(AI62-1)*30%)*[4]战斗节奏!$E$28,0) -> 2834.9984 | AK62: 11 | AL62: 130501 | AM62: 1 | AN62: 2 | AO62: =IFERROR(VLOOKUP(AL62,'[4]英雄技能-过程'!$A:$P,14,0)*T62/10000*Q62*(1+(AN62-1)*30%)*[4]战斗节奏!$C$28+VLOOKUP(AL62,'[4]英雄技能-过程'!$A:$P,15,0)*T62/10000*R62*(1+(AN62-1)*30%)*[4]战斗节奏!$D$28+VLOOKUP(AL62,'[4]英雄技能-过程'!$A:$P,16,0)*T62/10000*S62*(1+(AN62-1)*30%)*[4]战斗节奏!$E$28,0) -> 3471.39 | AP62: 14 | AQ62: 130201 | AR62: 1 | AS62: 2 | AT62: =IFERROR(VLOOKUP(AQ62,'[4]英雄技能-过程'!$A:$P,14,0)*T62/10000*Q62*(1+(AS62-1)*30%)*[4]战斗节奏!$C$28+VLOOKUP(AQ62,'[4]英雄技能-过程'!$A:$P,15,0)*T62/10000*R62*(1+(AS62-1)*30%)*[4]战斗节奏!$D$28+VLOOKUP(AQ62,'[4]英雄技能-过程'!$A:$P,16,0)*T62/10000*S62*(1+(AS62-1)*30%)*[4]战斗节奏!$E$28,0) -> 1989.546 | AU62: 2 | AV62: 140303 | AW62: 1 | AX62: 2 | AY62: =IFERROR(VLOOKUP(AV62,'[4]英雄技能-过程'!$A:$P,14,0)*T62/10000*Q62*(1+(AX62-1)*30%)*[4]战斗节奏!$C$28+VLOOKUP(AV62,'[4]英雄技能-过程'!$A:$P,15,0)*T62/10000*R62*(1+(AX62-1)*30%)*[4]战斗节奏!$D$28+VLOOKUP(AV62,'[4]英雄技能-过程'!$A:$P,16,0)*T62/10000*S62*(1+(AX62-1)*30%)*[4]战斗节奏!$E$28,0) -> 3543.15 | AZ62: 3 | BA62: 130401 | BB62: 1 | BC62: 2 | BD62: =IFERROR(VLOOKUP(BA62,'[4]英雄技能-过程'!$A:$P,14,0)*T62/10000*Q62*(1+(BC62-1)*30%)*[4]战斗节奏!$C$28+VLOOKUP(BA62,'[4]英雄技能-过程'!$A:$P,15,0)*T62/10000*R62*(1+(BC62-1)*30%)*[4]战斗节奏!$D$28+VLOOKUP(BA62,'[4]英雄技能-过程'!$A:$P,16,0)*T62/10000*S62*(1+(BC62-1)*30%)*[4]战斗节奏!$E$28,0) -> 3543.15 | BE62: 1 | BF62: 120602 | BG62: 1 | BH62: 2 | BI62: =IFERROR(VLOOKUP(BF62,'[4]英雄技能-过程'!$A:$P,14,0)*T62/10000*Q62*(1+(BH62-1)*30%)*[4]战斗节奏!$C$28+VLOOKUP(BF62,'[4]英雄技能-过程'!$A:$P,15,0)*T62/10000*R62*(1+(BH62-1)*30%)*[4]战斗节奏!$D$28+VLOOKUP(BF62,'[4]英雄技能-过程'!$A:$P,16,0)*T62/10000*S62*(1+(BH62-1)*30%)*[4]战斗节奏!$E$28,0) -> 4370.6325 | BJ62: 16&140302&1&4 | BK62: 13&410101&1&3 | BL62: 12&140304&1&3 | BM62: 11&130501&1&2 | BN62: 14&130201&1&2 | BO62: 2&140303&1&2 | BP62: 3&130401&1&2 | BQ62: 1&120602&1&2
B63: 6 | C63: 4 | D63: 15 | E63: 95 | F63: 6 | G63: =SUM($D$58:D63)-VLOOKUP(F63,$B$80:$D$87,3) -> -90 | N63: 25794.3384 | O63: 3 | P63: 19 | Q63: 5 | R63: 5 | S63: 5.8 | T63: 24000 | U63: 17&410101&1&4;13&130201&1&4;12&140304&1&3;1&140302&1&2;15&130501&1&2;3&140303&1&2;5&120602&1&2;4&130401&1&2 | V63: 17 | W63: 410101 | X63: 1 | Y63: 4 | Z63: =IFERROR(VLOOKUP(W63,'[4]英雄技能-过程'!$A:$P,14,0)*T63/10000*Q63*(1+(Y63-1)*30%)*[4]战斗节奏!$C$28+VLOOKUP(W63,'[4]英雄技能-过程'!$A:$P,15,0)*T63/10000*R63*(1+(Y63-1)*30%)*[4]战斗节奏!$D$28+VLOOKUP(W63,'[4]英雄技能-过程'!$A:$P,16,0)*T63/10000*S63*(1+(Y63-1)*30%)*[4]战斗节奏!$E$28,0) -> 4224.4752 | AA63: 13 | AB63: 130201 | AC63: 1 | AD63: 4 | AE63: =IFERROR(VLOOKUP(AB63,'[4]英雄技能-过程'!$A:$P,14,0)*T63/10000*Q63*(1+(AD63-1)*30%)*[4]战斗节奏!$C$28+VLOOKUP(AB63,'[4]英雄技能-过程'!$A:$P,15,0)*T63/10000*R63*(1+(AD63-1)*30%)*[4]战斗节奏!$D$28+VLOOKUP(AB63,'[4]英雄技能-过程'!$A:$P,16,0)*T63/10000*S63*(1+(AD63-1)*30%)*[4]战斗节奏!$E$28,0) -> 3034.224 | AF63: 12 | AG63: 140304 | AH63: 1 | AI63: 3 | AJ63: =IFERROR(VLOOKUP(AG63,'[4]英雄技能-过程'!$A:$P,14,0)*T63/10000*Q63*(1+(AI63-1)*30%)*[4]战斗节奏!$C$28+VLOOKUP(AG63,'[4]英雄技能-过程'!$A:$P,15,0)*T63/10000*R63*(1+(AI63-1)*30%)*[4]战斗节奏!$D$28+VLOOKUP(AG63,'[4]英雄技能-过程'!$A:$P,16,0)*T63/10000*S63*(1+(AI63-1)*30%)*[4]战斗节奏!$E$28,0) -> 2958.2592 | AK63: 1 | AL63: 140302 | AM63: 1 | AN63: 2 | AO63: =IFERROR(VLOOKUP(AL63,'[4]英雄技能-过程'!$A:$P,14,0)*T63/10000*Q63*(1+(AN63-1)*30%)*[4]战斗节奏!$C$28+VLOOKUP(AL63,'[4]英雄技能-过程'!$A:$P,15,0)*T63/10000*R63*(1+(AN63-1)*30%)*[4]战斗节奏!$D$28+VLOOKUP(AL63,'[4]英雄技能-过程'!$A:$P,16,0)*T63/10000*S63*(1+(AN63-1)*30%)*[4]战斗节奏!$E$28,0) -> 0 | AP63: 15 | AQ63: 130501 | AR63: 1 | AS63: 2 | AT63: =IFERROR(VLOOKUP(AQ63,'[4]英雄技能-过程'!$A:$P,14,0)*T63/10000*Q63*(1+(AS63-1)*30%)*[4]战斗节奏!$C$28+VLOOKUP(AQ63,'[4]英雄技能-过程'!$A:$P,15,0)*T63/10000*R63*(1+(AS63-1)*30%)*[4]战斗节奏!$D$28+VLOOKUP(AQ63,'[4]英雄技能-过程'!$A:$P,16,0)*T63/10000*S63*(1+(AS63-1)*30%)*[4]战斗节奏!$E$28,0) -> 3622.32 | AU63: 3 | AV63: 140303 | AW63: 1 | AX63: 2 | AY63: =IFERROR(VLOOKUP(AV63,'[4]英雄技能-过程'!$A:$P,14,0)*T63/10000*Q63*(1+(AX63-1)*30%)*[4]战斗节奏!$C$28+VLOOKUP(AV63,'[4]英雄技能-过程'!$A:$P,15,0)*T63/10000*R63*(1+(AX63-1)*30%)*[4]战斗节奏!$D$28+VLOOKUP(AV63,'[4]英雄技能-过程'!$A:$P,16,0)*T63/10000*S63*(1+(AX63-1)*30%)*[4]战斗节奏!$E$28,0) -> 3697.2 | AZ63: 5 | BA63: 120602 | BB63: 1 | BC63: 2 | BD63: =IFERROR(VLOOKUP(BA63,'[4]英雄技能-过程'!$A:$P,14,0)*T63/10000*Q63*(1+(BC63-1)*30%)*[4]战斗节奏!$C$28+VLOOKUP(BA63,'[4]英雄技能-过程'!$A:$P,15,0)*T63/10000*R63*(1+(BC63-1)*30%)*[4]战斗节奏!$D$28+VLOOKUP(BA63,'[4]英雄技能-过程'!$A:$P,16,0)*T63/10000*S63*(1+(BC63-1)*30%)*[4]战斗节奏!$E$28,0) -> 4560.66 | BE63: 4 | BF63: 130401 | BG63: 1 | BH63: 2 | BI63: =IFERROR(VLOOKUP(BF63,'[4]英雄技能-过程'!$A:$P,14,0)*T63/10000*Q63*(1+(BH63-1)*30%)*[4]战斗节奏!$C$28+VLOOKUP(BF63,'[4]英雄技能-过程'!$A:$P,15,0)*T63/10000*R63*(1+(BH63-1)*30%)*[4]战斗节奏!$D$28+VLOOKUP(BF63,'[4]英雄技能-过程'!$A:$P,16,0)*T63/10000*S63*(1+(BH63-1)*30%)*[4]战斗节奏!$E$28,0) -> 3697.2 | BJ63: 17&410101&1&4 | BK63: 13&130201&1&4 | BL63: 12&140304&1&3 | BM63: 1&140302&1&2 | BN63: 15&130501&1&2 | BO63: 3&140303&1&2 | BP63: 5&120602&1&2 | BQ63: 4&130401&1&2
B64: 7 | C64: 4 | D64: 15 | E64: 110 | F64: 6 | G64: =SUM($D$58:D64)-VLOOKUP(F64,$B$80:$D$87,3) -> -75 | N64: 32056.9 | O64: 3 | P64: 20 | Q64: 5 | R64: 5 | S64: 5.8 | T64: 25000 | U64: 16&410101&1&4;13&140304&1&5;12&130501&1&3;11&130202&1&2;14&120201&1&2;2&130401&1&2;3&120602&1&2;1&140303&1&2 | V64: 16 | W64: 410101 | X64: 1 | Y64: 4 | Z64: =IFERROR(VLOOKUP(W64,'[4]英雄技能-过程'!$A:$P,14,0)*T64/10000*Q64*(1+(Y64-1)*30%)*[4]战斗节奏!$C$28+VLOOKUP(W64,'[4]英雄技能-过程'!$A:$P,15,0)*T64/10000*R64*(1+(Y64-1)*30%)*[4]战斗节奏!$D$28+VLOOKUP(W64,'[4]英雄技能-过程'!$A:$P,16,0)*T64/10000*S64*(1+(Y64-1)*30%)*[4]战斗节奏!$E$28,0) -> 4400.495 | AA64: 13 | AB64: 140304 | AC64: 1 | AD64: 5 | AE64: =IFERROR(VLOOKUP(AB64,'[4]英雄技能-过程'!$A:$P,14,0)*T64/10000*Q64*(1+(AD64-1)*30%)*[4]战斗节奏!$C$28+VLOOKUP(AB64,'[4]英雄技能-过程'!$A:$P,15,0)*T64/10000*R64*(1+(AD64-1)*30%)*[4]战斗节奏!$D$28+VLOOKUP(AB64,'[4]英雄技能-过程'!$A:$P,16,0)*T64/10000*S64*(1+(AD64-1)*30%)*[4]战斗节奏!$E$28,0) -> 4237.09 | AF64: 12 | AG64: 130501 | AH64: 1 | AI64: 3 | AJ64: =IFERROR(VLOOKUP(AG64,'[4]英雄技能-过程'!$A:$P,14,0)*T64/10000*Q64*(1+(AI64-1)*30%)*[4]战斗节奏!$C$28+VLOOKUP(AG64,'[4]英雄技能-过程'!$A:$P,15,0)*T64/10000*R64*(1+(AI64-1)*30%)*[4]战斗节奏!$D$28+VLOOKUP(AG64,'[4]英雄技能-过程'!$A:$P,16,0)*T64/10000*S64*(1+(AI64-1)*30%)*[4]战斗节奏!$E$28,0) -> 4644 | AK64: 11 | AL64: 130202 | AM64: 1 | AN64: 2 | AO64: =IFERROR(VLOOKUP(AL64,'[4]英雄技能-过程'!$A:$P,14,0)*T64/10000*Q64*(1+(AN64-1)*30%)*[4]战斗节奏!$C$28+VLOOKUP(AL64,'[4]英雄技能-过程'!$A:$P,15,0)*T64/10000*R64*(1+(AN64-1)*30%)*[4]战斗节奏!$D$28+VLOOKUP(AL64,'[4]英雄技能-过程'!$A:$P,16,0)*T64/10000*S64*(1+(AN64-1)*30%)*[4]战斗节奏!$E$28,0) -> 3746.5675 | AP64: 14 | AQ64: 120201 | AR64: 1 | AS64: 2 | AT64: =IFERROR(VLOOKUP(AQ64,'[4]英雄技能-过程'!$A:$P,14,0)*T64/10000*Q64*(1+(AS64-1)*30%)*[4]战斗节奏!$C$28+VLOOKUP(AQ64,'[4]英雄技能-过程'!$A:$P,15,0)*T64/10000*R64*(1+(AS64-1)*30%)*[4]战斗节奏!$D$28+VLOOKUP(AQ64,'[4]英雄技能-过程'!$A:$P,16,0)*T64/10000*S64*(1+(AS64-1)*30%)*[4]战斗节奏!$E$28,0) -> 2575.56 | AU64: 2 | AV64: 130401 | AW64: 1 | AX64: 2 | AY64: =IFERROR(VLOOKUP(AV64,'[4]英雄技能-过程'!$A:$P,14,0)*T64/10000*Q64*(1+(AX64-1)*30%)*[4]战斗节奏!$C$28+VLOOKUP(AV64,'[4]英雄技能-过程'!$A:$P,15,0)*T64/10000*R64*(1+(AX64-1)*30%)*[4]战斗节奏!$D$28+VLOOKUP(AV64,'[4]英雄技能-过程'!$A:$P,16,0)*T64/10000*S64*(1+(AX64-1)*30%)*[4]战斗节奏!$E$28,0) -> 3851.25 | AZ64: 3 | BA64: 120602 | BB64: 1 | BC64: 2 | BD64: =IFERROR(VLOOKUP(BA64,'[4]英雄技能-过程'!$A:$P,14,0)*T64/10000*Q64*(1+(BC64-1)*30%)*[4]战斗节奏!$C$28+VLOOKUP(BA64,'[4]英雄技能-过程'!$A:$P,15,0)*T64/10000*R64*(1+(BC64-1)*30%)*[4]战斗节奏!$D$28+VLOOKUP(BA64,'[4]英雄技能-过程'!$A:$P,16,0)*T64/10000*S64*(1+(BC64-1)*30%)*[4]战斗节奏!$E$28,0) -> 4750.6875 | BE64: 1 | BF64: 140303 | BG64: 1 | BH64: 2 | BI64: =IFERROR(VLOOKUP(BF64,'[4]英雄技能-过程'!$A:$P,14,0)*T64/10000*Q64*(1+(BH64-1)*30%)*[4]战斗节奏!$C$28+VLOOKUP(BF64,'[4]英雄技能-过程'!$A:$P,15,0)*T64/10000*R64*(1+(BH64-1)*30%)*[4]战斗节奏!$D$28+VLOOKUP(BF64,'[4]英雄技能-过程'!$A:$P,16,0)*T64/10000*S64*(1+(BH64-1)*30%)*[4]战斗节奏!$E$28,0) -> 3851.25 | BJ64: 16&410101&1&4 | BK64: 13&140304&1&5 | BL64: 12&130501&1&3 | BM64: 11&130202&1&2 | BN64: 14&120201&1&2 | BO64: 2&130401&1&2 | BP64: 3&120602&1&2 | BQ64: 1&140303&1&2
B65: 8 | C65: 4 | D65: 15 | E65: 125 | F65: 7 | G65: =SUM($D$58:D65)-VLOOKUP(F65,$B$80:$D$87,3) -> -140 | N65: 2433.97 | O65: 4 | P65: 1 | Q65: 9 | R65: 9 | S65: 10.6 | T65: 10000 | U65: 18&110201&1&5 | V65: 18 | W65: 110201 | X65: 1 | Y65: 5 | Z65: =IFERROR(VLOOKUP(W65,'[4]英雄技能-过程'!$A:$P,14,0)*T65/10000*Q65*(1+(Y65-1)*30%)*[4]战斗节奏!$C$28+VLOOKUP(W65,'[4]英雄技能-过程'!$A:$P,15,0)*T65/10000*R65*(1+(Y65-1)*30%)*[4]战斗节奏!$D$28+VLOOKUP(W65,'[4]英雄技能-过程'!$A:$P,16,0)*T65/10000*S65*(1+(Y65-1)*30%)*[4]战斗节奏!$E$28,0) -> 2433.97 | AD65: 0 | AE65: =IFERROR(VLOOKUP(AB65,'[4]英雄技能-过程'!$A:$P,14,0)*T65/10000*Q65*(1+(AD65-1)*30%)*[4]战斗节奏!$C$28+VLOOKUP(AB65,'[4]英雄技能-过程'!$A:$P,15,0)*T65/10000*R65*(1+(AD65-1)*30%)*[4]战斗节奏!$D$28+VLOOKUP(AB65,'[4]英雄技能-过程'!$A:$P,16,0)*T65/10000*S65*(1+(AD65-1)*30%)*[4]战斗节奏!$E$28,0) -> 0 | AI65: 0 | AJ65: =IFERROR(VLOOKUP(AG65,'[4]英雄技能-过程'!$A:$P,14,0)*T65/10000*Q65*(1+(AI65-1)*30%)*[4]战斗节奏!$C$28+VLOOKUP(AG65,'[4]英雄技能-过程'!$A:$P,15,0)*T65/10000*R65*(1+(AI65-1)*30%)*[4]战斗节奏!$D$28+VLOOKUP(AG65,'[4]英雄技能-过程'!$A:$P,16,0)*T65/10000*S65*(1+(AI65-1)*30%)*[4]战斗节奏!$E$28,0) -> 0 | AN65: 0 | AO65: =IFERROR(VLOOKUP(AL65,'[4]英雄技能-过程'!$A:$P,14,0)*T65/10000*Q65*(1+(AN65-1)*30%)*[4]战斗节奏!$C$28+VLOOKUP(AL65,'[4]英雄技能-过程'!$A:$P,15,0)*T65/10000*R65*(1+(AN65-1)*30%)*[4]战斗节奏!$D$28+VLOOKUP(AL65,'[4]英雄技能-过程'!$A:$P,16,0)*T65/10000*S65*(1+(AN65-1)*30%)*[4]战斗节奏!$E$28,0) -> 0 | AS65: 0 | AT65: =IFERROR(VLOOKUP(AQ65,'[4]英雄技能-过程'!$A:$P,14,0)*T65/10000*Q65*(1+(AS65-1)*30%)*[4]战斗节奏!$C$28+VLOOKUP(AQ65,'[4]英雄技能-过程'!$A:$P,15,0)*T65/10000*R65*(1+(AS65-1)*30%)*[4]战斗节奏!$D$28+VLOOKUP(AQ65,'[4]英雄技能-过程'!$A:$P,16,0)*T65/10000*S65*(1+(AS65-1)*30%)*[4]战斗节奏!$E$28,0) -> 0 | AX65: 0 | AY65: =IFERROR(VLOOKUP(AV65,'[4]英雄技能-过程'!$A:$P,14,0)*T65/10000*Q65*(1+(AX65-1)*30%)*[4]战斗节奏!$C$28+VLOOKUP(AV65,'[4]英雄技能-过程'!$A:$P,15,0)*T65/10000*R65*(1+(AX65-1)*30%)*[4]战斗节奏!$D$28+VLOOKUP(AV65,'[4]英雄技能-过程'!$A:$P,16,0)*T65/10000*S65*(1+(AX65-1)*30%)*[4]战斗节奏!$E$28,0) -> 0 | BC65: 0 | BD65: =IFERROR(VLOOKUP(BA65,'[4]英雄技能-过程'!$A:$P,14,0)*T65/10000*Q65*(1+(BC65-1)*30%)*[4]战斗节奏!$C$28+VLOOKUP(BA65,'[4]英雄技能-过程'!$A:$P,15,0)*T65/10000*R65*(1+(BC65-1)*30%)*[4]战斗节奏!$D$28+VLOOKUP(BA65,'[4]英雄技能-过程'!$A:$P,16,0)*T65/10000*S65*(1+(BC65-1)*30%)*[4]战斗节奏!$E$28,0) -> 0 | BH65: 0 | BI65: =IFERROR(VLOOKUP(BF65,'[4]英雄技能-过程'!$A:$P,14,0)*T65/10000*Q65*(1+(BH65-1)*30%)*[4]战斗节奏!$C$28+VLOOKUP(BF65,'[4]英雄技能-过程'!$A:$P,15,0)*T65/10000*R65*(1+(BH65-1)*30%)*[4]战斗节奏!$D$28+VLOOKUP(BF65,'[4]英雄技能-过程'!$A:$P,16,0)*T65/10000*S65*(1+(BH65-1)*30%)*[4]战斗节奏!$E$28,0) -> 0 | BJ65: 18&110201&1&5
B66: 9 | C66: 5 | D66: 15 | E66: 140 | F66: 7 | G66: =SUM($D$58:D66)-VLOOKUP(F66,$B$80:$D$87,3) -> -125 | N66: =Z66+AE66+AJ66+AO66+AT66+AY66+BD66+BI66 -> 4807.9185 | O66: 4 | P66: 2 | Q66: =VLOOKUP(O66,$B:$E,2,0)+1 -> 9 | R66: =VLOOKUP(O66,$B:$E,3,0)+1 -> 9 | S66: =VLOOKUP(O66,$B:$E,4,0)+1 -> 10.6 | T66: 10500 | U66: =_xlfn.TEXTJOIN(";",1,BJ66:BQ66) -> 14&110201&1&5;2&130401&1&1 | V66: 14 | W66: 110201 | X66: 1 | Y66: 5 | Z66: =IFERROR(VLOOKUP(W66,'[4]英雄技能-过程'!$A:$P,14,0)*T66/10000*Q66*(1+(Y66-1)*30%)*[4]战斗节奏!$C$28+VLOOKUP(W66,'[4]英雄技能-过程'!$A:$P,15,0)*T66/10000*R66*(1+(Y66-1)*30%)*[4]战斗节奏!$D$28+VLOOKUP(W66,'[4]英雄技能-过程'!$A:$P,16,0)*T66/10000*S66*(1+(Y66-1)*30%)*[4]战斗节奏!$E$28,0) -> 2555.6685 | AA66: 2 | AB66: 130401 | AC66: 1 | AD66: 1 | AE66: =IFERROR(VLOOKUP(AB66,'[4]英雄技能-过程'!$A:$P,14,0)*T66/10000*Q66*(1+(AD66-1)*30%)*[4]战斗节奏!$C$28+VLOOKUP(AB66,'[4]英雄技能-过程'!$A:$P,15,0)*T66/10000*R66*(1+(AD66-1)*30%)*[4]战斗节奏!$D$28+VLOOKUP(AB66,'[4]英雄技能-过程'!$A:$P,16,0)*T66/10000*S66*(1+(AD66-1)*30%)*[4]战斗节奏!$E$28,0) -> 2252.25 | AI66: 0 | AJ66: =IFERROR(VLOOKUP(AG66,'[4]英雄技能-过程'!$A:$P,14,0)*T66/10000*Q66*(1+(AI66-1)*30%)*[4]战斗节奏!$C$28+VLOOKUP(AG66,'[4]英雄技能-过程'!$A:$P,15,0)*T66/10000*R66*(1+(AI66-1)*30%)*[4]战斗节奏!$D$28+VLOOKUP(AG66,'[4]英雄技能-过程'!$A:$P,16,0)*T66/10000*S66*(1+(AI66-1)*30%)*[4]战斗节奏!$E$28,0) -> 0 | AN66: 0 | AO66: =IFERROR(VLOOKUP(AL66,'[4]英雄技能-过程'!$A:$P,14,0)*T66/10000*Q66*(1+(AN66-1)*30%)*[4]战斗节奏!$C$28+VLOOKUP(AL66,'[4]英雄技能-过程'!$A:$P,15,0)*T66/10000*R66*(1+(AN66-1)*30%)*[4]战斗节奏!$D$28+VLOOKUP(AL66,'[4]英雄技能-过程'!$A:$P,16,0)*T66/10000*S66*(1+(AN66-1)*30%)*[4]战斗节奏!$E$28,0) -> 0 | AS66: 0 | AT66: =IFERROR(VLOOKUP(AQ66,'[4]英雄技能-过程'!$A:$P,14,0)*T66/10000*Q66*(1+(AS66-1)*30%)*[4]战斗节奏!$C$28+VLOOKUP(AQ66,'[4]英雄技能-过程'!$A:$P,15,0)*T66/10000*R66*(1+(AS66-1)*30%)*[4]战斗节奏!$D$28+VLOOKUP(AQ66,'[4]英雄技能-过程'!$A:$P,16,0)*T66/10000*S66*(1+(AS66-1)*30%)*[4]战斗节奏!$E$28,0) -> 0 | AX66: 0 | AY66: =IFERROR(VLOOKUP(AV66,'[4]英雄技能-过程'!$A:$P,14,0)*T66/10000*Q66*(1+(AX66-1)*30%)*[4]战斗节奏!$C$28+VLOOKUP(AV66,'[4]英雄技能-过程'!$A:$P,15,0)*T66/10000*R66*(1+(AX66-1)*30%)*[4]战斗节奏!$D$28+VLOOKUP(AV66,'[4]英雄技能-过程'!$A:$P,16,0)*T66/10000*S66*(1+(AX66-1)*30%)*[4]战斗节奏!$E$28,0) -> 0 | BC66: 0 | BD66: =IFERROR(VLOOKUP(BA66,'[4]英雄技能-过程'!$A:$P,14,0)*T66/10000*Q66*(1+(BC66-1)*30%)*[4]战斗节奏!$C$28+VLOOKUP(BA66,'[4]英雄技能-过程'!$A:$P,15,0)*T66/10000*R66*(1+(BC66-1)*30%)*[4]战斗节奏!$D$28+VLOOKUP(BA66,'[4]英雄技能-过程'!$A:$P,16,0)*T66/10000*S66*(1+(BC66-1)*30%)*[4]战斗节奏!$E$28,0) -> 0 | BH66: 0 | BI66: =IFERROR(VLOOKUP(BF66,'[4]英雄技能-过程'!$A:$P,14,0)*T66/10000*Q66*(1+(BH66-1)*30%)*[4]战斗节奏!$C$28+VLOOKUP(BF66,'[4]英雄技能-过程'!$A:$P,15,0)*T66/10000*R66*(1+(BH66-1)*30%)*[4]战斗节奏!$D$28+VLOOKUP(BF66,'[4]英雄技能-过程'!$A:$P,16,0)*T66/10000*S66*(1+(BH66-1)*30%)*[4]战斗节奏!$E$28,0) -> 0 | BJ66: =IF(V66>0,_xlfn.TEXTJOIN("&",1,V66:Y66),"") -> 14&110201&1&5 | BK66: =IF(AA66>0,_xlfn.TEXTJOIN("&",1,AA66:AD66),"") -> 2&130401&1&1 | BL66: =IF(AF66>0,_xlfn.TEXTJOIN("&",1,AF66:AI66),"") ->  | BM66: =IF(AK66>0,_xlfn.TEXTJOIN("&",1,AK66:AN66),"") ->  | BN66: =IF(AP66>0,_xlfn.TEXTJOIN("&",1,AP66:AS66),"") ->  | BO66: =IF(AU66>0,_xlfn.TEXTJOIN("&",1,AU66:AX66),"") ->  | BP66: =IF(AZ66>0,_xlfn.TEXTJOIN("&",1,AZ66:BC66),"") ->  | BQ66: =IF(BE66>0,_xlfn.TEXTJOIN("&",1,BE66:BH66),"") -> 
B67: 10 | C67: 5 | D67: 15 | E67: 155 | F67: 7 | G67: =SUM($D$58:D67)-VLOOKUP(F67,$B$80:$D$87,3) -> -110 | N67: 6485.149 | O67: 4 | P67: 3 | Q67: 9 | R67: 9 | S67: 10.6 | T67: 11000 | U67: 14&110201&1&5;15&110501&1&1;2&120401&1&1 | V67: 14 | W67: 110201 | X67: 1 | Y67: 5 | Z67: =IFERROR(VLOOKUP(W67,'[4]英雄技能-过程'!$A:$P,14,0)*T67/10000*Q67*(1+(Y67-1)*30%)*[4]战斗节奏!$C$28+VLOOKUP(W67,'[4]英雄技能-过程'!$A:$P,15,0)*T67/10000*R67*(1+(Y67-1)*30%)*[4]战斗节奏!$D$28+VLOOKUP(W67,'[4]英雄技能-过程'!$A:$P,16,0)*T67/10000*S67*(1+(Y67-1)*30%)*[4]战斗节奏!$E$28,0) -> 2677.367 | AA67: 15 | AB67: 110501 | AC67: 1 | AD67: 1 | AE67: =IFERROR(VLOOKUP(AB67,'[4]英雄技能-过程'!$A:$P,14,0)*T67/10000*Q67*(1+(AD67-1)*30%)*[4]战斗节奏!$C$28+VLOOKUP(AB67,'[4]英雄技能-过程'!$A:$P,15,0)*T67/10000*R67*(1+(AD67-1)*30%)*[4]战斗节奏!$D$28+VLOOKUP(AB67,'[4]英雄技能-过程'!$A:$P,16,0)*T67/10000*S67*(1+(AD67-1)*30%)*[4]战斗节奏!$E$28,0) -> 1414.457 | AF67: 2 | AG67: 120401 | AH67: 1 | AI67: 1 | AJ67: =IFERROR(VLOOKUP(AG67,'[4]英雄技能-过程'!$A:$P,14,0)*T67/10000*Q67*(1+(AI67-1)*30%)*[4]战斗节奏!$C$28+VLOOKUP(AG67,'[4]英雄技能-过程'!$A:$P,15,0)*T67/10000*R67*(1+(AI67-1)*30%)*[4]战斗节奏!$D$28+VLOOKUP(AG67,'[4]英雄技能-过程'!$A:$P,16,0)*T67/10000*S67*(1+(AI67-1)*30%)*[4]战斗节奏!$E$28,0) -> 2393.325 | AN67: 0 | AO67: =IFERROR(VLOOKUP(AL67,'[4]英雄技能-过程'!$A:$P,14,0)*T67/10000*Q67*(1+(AN67-1)*30%)*[4]战斗节奏!$C$28+VLOOKUP(AL67,'[4]英雄技能-过程'!$A:$P,15,0)*T67/10000*R67*(1+(AN67-1)*30%)*[4]战斗节奏!$D$28+VLOOKUP(AL67,'[4]英雄技能-过程'!$A:$P,16,0)*T67/10000*S67*(1+(AN67-1)*30%)*[4]战斗节奏!$E$28,0) -> 0 | AS67: 0 | AT67: =IFERROR(VLOOKUP(AQ67,'[4]英雄技能-过程'!$A:$P,14,0)*T67/10000*Q67*(1+(AS67-1)*30%)*[4]战斗节奏!$C$28+VLOOKUP(AQ67,'[4]英雄技能-过程'!$A:$P,15,0)*T67/10000*R67*(1+(AS67-1)*30%)*[4]战斗节奏!$D$28+VLOOKUP(AQ67,'[4]英雄技能-过程'!$A:$P,16,0)*T67/10000*S67*(1+(AS67-1)*30%)*[4]战斗节奏!$E$28,0) -> 0 | AX67: 0 | AY67: =IFERROR(VLOOKUP(AV67,'[4]英雄技能-过程'!$A:$P,14,0)*T67/10000*Q67*(1+(AX67-1)*30%)*[4]战斗节奏!$C$28+VLOOKUP(AV67,'[4]英雄技能-过程'!$A:$P,15,0)*T67/10000*R67*(1+(AX67-1)*30%)*[4]战斗节奏!$D$28+VLOOKUP(AV67,'[4]英雄技能-过程'!$A:$P,16,0)*T67/10000*S67*(1+(AX67-1)*30%)*[4]战斗节奏!$E$28,0) -> 0 | BC67: 0 | BD67: =IFERROR(VLOOKUP(BA67,'[4]英雄技能-过程'!$A:$P,14,0)*T67/10000*Q67*(1+(BC67-1)*30%)*[4]战斗节奏!$C$28+VLOOKUP(BA67,'[4]英雄技能-过程'!$A:$P,15,0)*T67/10000*R67*(1+(BC67-1)*30%)*[4]战斗节奏!$D$28+VLOOKUP(BA67,'[4]英雄技能-过程'!$A:$P,16,0)*T67/10000*S67*(1+(BC67-1)*30%)*[4]战斗节奏!$E$28,0) -> 0 | BH67: 0 | BI67: =IFERROR(VLOOKUP(BF67,'[4]英雄技能-过程'!$A:$P,14,0)*T67/10000*Q67*(1+(BH67-1)*30%)*[4]战斗节奏!$C$28+VLOOKUP(BF67,'[4]英雄技能-过程'!$A:$P,15,0)*T67/10000*R67*(1+(BH67-1)*30%)*[4]战斗节奏!$D$28+VLOOKUP(BF67,'[4]英雄技能-过程'!$A:$P,16,0)*T67/10000*S67*(1+(BH67-1)*30%)*[4]战斗节奏!$E$28,0) -> 0 | BJ67: 14&110201&1&5 | BK67: 15&110501&1&1 | BL67: 2&120401&1&1
B68: 11 | C68: 6 | D68: 15 | E68: 170 | F68: 7 | G68: =SUM($D$58:D68)-VLOOKUP(F68,$B$80:$D$87,3) -> -95 | N68: 8316.478 | O68: 4 | P68: 4 | Q68: 9 | R68: 9 | S68: 10.6 | T68: 11500 | U68: 14&110201&1&5;4&130401&1&1;2&120602&1&1 | V68: 14 | W68: 110201 | X68: 1 | Y68: 5 | Z68: =IFERROR(VLOOKUP(W68,'[4]英雄技能-过程'!$A:$P,14,0)*T68/10000*Q68*(1+(Y68-1)*30%)*[4]战斗节奏!$C$28+VLOOKUP(W68,'[4]英雄技能-过程'!$A:$P,15,0)*T68/10000*R68*(1+(Y68-1)*30%)*[4]战斗节奏!$D$28+VLOOKUP(W68,'[4]英雄技能-过程'!$A:$P,16,0)*T68/10000*S68*(1+(Y68-1)*30%)*[4]战斗节奏!$E$28,0) -> 2799.0655 | AA68: 4 | AB68: 130401 | AC68: 1 | AD68: 1 | AE68: =IFERROR(VLOOKUP(AB68,'[4]英雄技能-过程'!$A:$P,14,0)*T68/10000*Q68*(1+(AD68-1)*30%)*[4]战斗节奏!$C$28+VLOOKUP(AB68,'[4]英雄技能-过程'!$A:$P,15,0)*T68/10000*R68*(1+(AD68-1)*30%)*[4]战斗节奏!$D$28+VLOOKUP(AB68,'[4]英雄技能-过程'!$A:$P,16,0)*T68/10000*S68*(1+(AD68-1)*30%)*[4]战斗节奏!$E$28,0) -> 2466.75 | AF68: 2 | AG68: 120602 | AH68: 1 | AI68: 1 | AJ68: =IFERROR(VLOOKUP(AG68,'[4]英雄技能-过程'!$A:$P,14,0)*T68/10000*Q68*(1+(AI68-1)*30%)*[4]战斗节奏!$C$28+VLOOKUP(AG68,'[4]英雄技能-过程'!$A:$P,15,0)*T68/10000*R68*(1+(AI68-1)*30%)*[4]战斗节奏!$D$28+VLOOKUP(AG68,'[4]英雄技能-过程'!$A:$P,16,0)*T68/10000*S68*(1+(AI68-1)*30%)*[4]战斗节奏!$E$28,0) -> 3050.6625 | AN68: 0 | AO68: =IFERROR(VLOOKUP(AL68,'[4]英雄技能-过程'!$A:$P,14,0)*T68/10000*Q68*(1+(AN68-1)*30%)*[4]战斗节奏!$C$28+VLOOKUP(AL68,'[4]英雄技能-过程'!$A:$P,15,0)*T68/10000*R68*(1+(AN68-1)*30%)*[4]战斗节奏!$D$28+VLOOKUP(AL68,'[4]英雄技能-过程'!$A:$P,16,0)*T68/10000*S68*(1+(AN68-1)*30%)*[4]战斗节奏!$E$28,0) -> 0 | AS68: 0 | AT68: =IFERROR(VLOOKUP(AQ68,'[4]英雄技能-过程'!$A:$P,14,0)*T68/10000*Q68*(1+(AS68-1)*30%)*[4]战斗节奏!$C$28+VLOOKUP(AQ68,'[4]英雄技能-过程'!$A:$P,15,0)*T68/10000*R68*(1+(AS68-1)*30%)*[4]战斗节奏!$D$28+VLOOKUP(AQ68,'[4]英雄技能-过程'!$A:$P,16,0)*T68/10000*S68*(1+(AS68-1)*30%)*[4]战斗节奏!$E$28,0) -> 0 | AX68: 0 | AY68: =IFERROR(VLOOKUP(AV68,'[4]英雄技能-过程'!$A:$P,14,0)*T68/10000*Q68*(1+(AX68-1)*30%)*[4]战斗节奏!$C$28+VLOOKUP(AV68,'[4]英雄技能-过程'!$A:$P,15,0)*T68/10000*R68*(1+(AX68-1)*30%)*[4]战斗节奏!$D$28+VLOOKUP(AV68,'[4]英雄技能-过程'!$A:$P,16,0)*T68/10000*S68*(1+(AX68-1)*30%)*[4]战斗节奏!$E$28,0) -> 0 | BC68: 0 | BD68: =IFERROR(VLOOKUP(BA68,'[4]英雄技能-过程'!$A:$P,14,0)*T68/10000*Q68*(1+(BC68-1)*30%)*[4]战斗节奏!$C$28+VLOOKUP(BA68,'[4]英雄技能-过程'!$A:$P,15,0)*T68/10000*R68*(1+(BC68-1)*30%)*[4]战斗节奏!$D$28+VLOOKUP(BA68,'[4]英雄技能-过程'!$A:$P,16,0)*T68/10000*S68*(1+(BC68-1)*30%)*[4]战斗节奏!$E$28,0) -> 0 | BH68: 0 | BI68: =IFERROR(VLOOKUP(BF68,'[4]英雄技能-过程'!$A:$P,14,0)*T68/10000*Q68*(1+(BH68-1)*30%)*[4]战斗节奏!$C$28+VLOOKUP(BF68,'[4]英雄技能-过程'!$A:$P,15,0)*T68/10000*R68*(1+(BH68-1)*30%)*[4]战斗节奏!$D$28+VLOOKUP(BF68,'[4]英雄技能-过程'!$A:$P,16,0)*T68/10000*S68*(1+(BH68-1)*30%)*[4]战斗节奏!$E$28,0) -> 0 | BJ68: 14&110201&1&5 | BK68: 4&130401&1&1 | BL68: 2&120602&1&1
B69: 12 | C69: 6 | D69: 15 | E69: 185 | F69: 8 | G69: =SUM($D$58:D69)-VLOOKUP(F69,$B$80:$D$87,3) -> -80 | N69: 7500.7212 | O69: 4 | P69: 5 | Q69: 9 | R69: 9 | S69: 10.6 | T69: 12000 | U69: 14&110201&1&5;15&110402&1&2;4&130401&1&1 | V69: 14 | W69: 110201 | X69: 1 | Y69: 5 | Z69: =IFERROR(VLOOKUP(W69,'[4]英雄技能-过程'!$A:$P,14,0)*T69/10000*Q69*(1+(Y69-1)*30%)*[4]战斗节奏!$C$28+VLOOKUP(W69,'[4]英雄技能-过程'!$A:$P,15,0)*T69/10000*R69*(1+(Y69-1)*30%)*[4]战斗节奏!$D$28+VLOOKUP(W69,'[4]英雄技能-过程'!$A:$P,16,0)*T69/10000*S69*(1+(Y69-1)*30%)*[4]战斗节奏!$E$28,0) -> 2920.764 | AA69: 15 | AB69: 110402 | AC69: 1 | AD69: 2 | AE69: =IFERROR(VLOOKUP(AB69,'[4]英雄技能-过程'!$A:$P,14,0)*T69/10000*Q69*(1+(AD69-1)*30%)*[4]战斗节奏!$C$28+VLOOKUP(AB69,'[4]英雄技能-过程'!$A:$P,15,0)*T69/10000*R69*(1+(AD69-1)*30%)*[4]战斗节奏!$D$28+VLOOKUP(AB69,'[4]英雄技能-过程'!$A:$P,16,0)*T69/10000*S69*(1+(AD69-1)*30%)*[4]战斗节奏!$E$28,0) -> 2005.9572 | AF69: 4 | AG69: 130401 | AH69: 1 | AI69: 1 | AJ69: =IFERROR(VLOOKUP(AG69,'[4]英雄技能-过程'!$A:$P,14,0)*T69/10000*Q69*(1+(AI69-1)*30%)*[4]战斗节奏!$C$28+VLOOKUP(AG69,'[4]英雄技能-过程'!$A:$P,15,0)*T69/10000*R69*(1+(AI69-1)*30%)*[4]战斗节奏!$D$28+VLOOKUP(AG69,'[4]英雄技能-过程'!$A:$P,16,0)*T69/10000*S69*(1+(AI69-1)*30%)*[4]战斗节奏!$E$28,0) -> 2574 | AN69: 0 | AO69: =IFERROR(VLOOKUP(AL69,'[4]英雄技能-过程'!$A:$P,14,0)*T69/10000*Q69*(1+(AN69-1)*30%)*[4]战斗节奏!$C$28+VLOOKUP(AL69,'[4]英雄技能-过程'!$A:$P,15,0)*T69/10000*R69*(1+(AN69-1)*30%)*[4]战斗节奏!$D$28+VLOOKUP(AL69,'[4]英雄技能-过程'!$A:$P,16,0)*T69/10000*S69*(1+(AN69-1)*30%)*[4]战斗节奏!$E$28,0) -> 0 | AS69: 0 | AT69: =IFERROR(VLOOKUP(AQ69,'[4]英雄技能-过程'!$A:$P,14,0)*T69/10000*Q69*(1+(AS69-1)*30%)*[4]战斗节奏!$C$28+VLOOKUP(AQ69,'[4]英雄技能-过程'!$A:$P,15,0)*T69/10000*R69*(1+(AS69-1)*30%)*[4]战斗节奏!$D$28+VLOOKUP(AQ69,'[4]英雄技能-过程'!$A:$P,16,0)*T69/10000*S69*(1+(AS69-1)*30%)*[4]战斗节奏!$E$28,0) -> 0 | AX69: 0 | AY69: =IFERROR(VLOOKUP(AV69,'[4]英雄技能-过程'!$A:$P,14,0)*T69/10000*Q69*(1+(AX69-1)*30%)*[4]战斗节奏!$C$28+VLOOKUP(AV69,'[4]英雄技能-过程'!$A:$P,15,0)*T69/10000*R69*(1+(AX69-1)*30%)*[4]战斗节奏!$D$28+VLOOKUP(AV69,'[4]英雄技能-过程'!$A:$P,16,0)*T69/10000*S69*(1+(AX69-1)*30%)*[4]战斗节奏!$E$28,0) -> 0 | BC69: 0 | BD69: =IFERROR(VLOOKUP(BA69,'[4]英雄技能-过程'!$A:$P,14,0)*T69/10000*Q69*(1+(BC69-1)*30%)*[4]战斗节奏!$C$28+VLOOKUP(BA69,'[4]英雄技能-过程'!$A:$P,15,0)*T69/10000*R69*(1+(BC69-1)*30%)*[4]战斗节奏!$D$28+VLOOKUP(BA69,'[4]英雄技能-过程'!$A:$P,16,0)*T69/10000*S69*(1+(BC69-1)*30%)*[4]战斗节奏!$E$28,0) -> 0 | BH69: 0 | BI69: =IFERROR(VLOOKUP(BF69,'[4]英雄技能-过程'!$A:$P,14,0)*T69/10000*Q69*(1+(BH69-1)*30%)*[4]战斗节奏!$C$28+VLOOKUP(BF69,'[4]英雄技能-过程'!$A:$P,15,0)*T69/10000*R69*(1+(BH69-1)*30%)*[4]战斗节奏!$D$28+VLOOKUP(BF69,'[4]英雄技能-过程'!$A:$P,16,0)*T69/10000*S69*(1+(BH69-1)*30%)*[4]战斗节奏!$E$28,0) -> 0 | BJ69: 14&110201&1&5 | BK69: 15&110402&1&2 | BL69: 4&130401&1&1
B70: 13 | C70: 6 | D70: 15 | E70: 200 | F70: 8 | G70: =SUM($D$58:D70)-VLOOKUP(F70,$B$80:$D$87,3) -> -65 | N70: 10055.27625 | O70: 4 | P70: 6 | Q70: 9 | R70: 9 | S70: 10.6 | T70: 12500 | U70: 14&110201&1&5;13&110402&1&2;1&110501&1&1;4&120602&1&1 | V70: 14 | W70: 110201 | X70: 1 | Y70: 5 | Z70: =IFERROR(VLOOKUP(W70,'[4]英雄技能-过程'!$A:$P,14,0)*T70/10000*Q70*(1+(Y70-1)*30%)*[4]战斗节奏!$C$28+VLOOKUP(W70,'[4]英雄技能-过程'!$A:$P,15,0)*T70/10000*R70*(1+(Y70-1)*30%)*[4]战斗节奏!$D$28+VLOOKUP(W70,'[4]英雄技能-过程'!$A:$P,16,0)*T70/10000*S70*(1+(Y70-1)*30%)*[4]战斗节奏!$E$28,0) -> 3042.4625 | AA70: 13 | AB70: 110402 | AC70: 1 | AD70: 2 | AE70: =IFERROR(VLOOKUP(AB70,'[4]英雄技能-过程'!$A:$P,14,0)*T70/10000*Q70*(1+(AD70-1)*30%)*[4]战斗节奏!$C$28+VLOOKUP(AB70,'[4]英雄技能-过程'!$A:$P,15,0)*T70/10000*R70*(1+(AD70-1)*30%)*[4]战斗节奏!$D$28+VLOOKUP(AB70,'[4]英雄技能-过程'!$A:$P,16,0)*T70/10000*S70*(1+(AD70-1)*30%)*[4]战斗节奏!$E$28,0) -> 2089.53875 | AF70: 1 | AG70: 110501 | AH70: 1 | AI70: 1 | AJ70: =IFERROR(VLOOKUP(AG70,'[4]英雄技能-过程'!$A:$P,14,0)*T70/10000*Q70*(1+(AI70-1)*30%)*[4]战斗节奏!$C$28+VLOOKUP(AG70,'[4]英雄技能-过程'!$A:$P,15,0)*T70/10000*R70*(1+(AI70-1)*30%)*[4]战斗节奏!$D$28+VLOOKUP(AG70,'[4]英雄技能-过程'!$A:$P,16,0)*T70/10000*S70*(1+(AI70-1)*30%)*[4]战斗节奏!$E$28,0) -> 1607.3375 | AK70: 4 | AL70: 120602 | AM70: 1 | AN70: 1 | AO70: =IFERROR(VLOOKUP(AL70,'[4]英雄技能-过程'!$A:$P,14,0)*T70/10000*Q70*(1+(AN70-1)*30%)*[4]战斗节奏!$C$28+VLOOKUP(AL70,'[4]英雄技能-过程'!$A:$P,15,0)*T70/10000*R70*(1+(AN70-1)*30%)*[4]战斗节奏!$D$28+VLOOKUP(AL70,'[4]英雄技能-过程'!$A:$P,16,0)*T70/10000*S70*(1+(AN70-1)*30%)*[4]战斗节奏!$E$28,0) -> 3315.9375 | AS70: 0 | AT70: =IFERROR(VLOOKUP(AQ70,'[4]英雄技能-过程'!$A:$P,14,0)*T70/10000*Q70*(1+(AS70-1)*30%)*[4]战斗节奏!$C$28+VLOOKUP(AQ70,'[4]英雄技能-过程'!$A:$P,15,0)*T70/10000*R70*(1+(AS70-1)*30%)*[4]战斗节奏!$D$28+VLOOKUP(AQ70,'[4]英雄技能-过程'!$A:$P,16,0)*T70/10000*S70*(1+(AS70-1)*30%)*[4]战斗节奏!$E$28,0) -> 0 | AX70: 0 | AY70: =IFERROR(VLOOKUP(AV70,'[4]英雄技能-过程'!$A:$P,14,0)*T70/10000*Q70*(1+(AX70-1)*30%)*[4]战斗节奏!$C$28+VLOOKUP(AV70,'[4]英雄技能-过程'!$A:$P,15,0)*T70/10000*R70*(1+(AX70-1)*30%)*[4]战斗节奏!$D$28+VLOOKUP(AV70,'[4]英雄技能-过程'!$A:$P,16,0)*T70/10000*S70*(1+(AX70-1)*30%)*[4]战斗节奏!$E$28,0) -> 0 | BC70: 0 | BD70: =IFERROR(VLOOKUP(BA70,'[4]英雄技能-过程'!$A:$P,14,0)*T70/10000*Q70*(1+(BC70-1)*30%)*[4]战斗节奏!$C$28+VLOOKUP(BA70,'[4]英雄技能-过程'!$A:$P,15,0)*T70/10000*R70*(1+(BC70-1)*30%)*[4]战斗节奏!$D$28+VLOOKUP(BA70,'[4]英雄技能-过程'!$A:$P,16,0)*T70/10000*S70*(1+(BC70-1)*30%)*[4]战斗节奏!$E$28,0) -> 0 | BH70: 0 | BI70: =IFERROR(VLOOKUP(BF70,'[4]英雄技能-过程'!$A:$P,14,0)*T70/10000*Q70*(1+(BH70-1)*30%)*[4]战斗节奏!$C$28+VLOOKUP(BF70,'[4]英雄技能-过程'!$A:$P,15,0)*T70/10000*R70*(1+(BH70-1)*30%)*[4]战斗节奏!$D$28+VLOOKUP(BF70,'[4]英雄技能-过程'!$A:$P,16,0)*T70/10000*S70*(1+(BH70-1)*30%)*[4]战斗节奏!$E$28,0) -> 0 | BJ70: 14&110201&1&5 | BK70: 13&110402&1&2 | BL70: 1&110501&1&1 | BM70: 4&120602&1&1
B71: 14 | C71: 6 | D71: 15 | E71: 215 | F71: 8 | G71: =SUM($D$58:D71)-VLOOKUP(F71,$B$80:$D$87,3) -> -50 | N71: 10852.985 | O71: 4 | P71: 7 | Q71: 9 | R71: 9 | S71: 10.6 | T71: 13000 | U71: 13&110402&1&1;1&110201&1&2;4&120602&1&2;2&120401&1&1 | V71: 13 | W71: 110402 | X71: 1 | Y71: 1 | Z71: =IFERROR(VLOOKUP(W71,'[4]英雄技能-过程'!$A:$P,14,0)*T71/10000*Q71*(1+(Y71-1)*30%)*[4]战斗节奏!$C$28+VLOOKUP(W71,'[4]英雄技能-过程'!$A:$P,15,0)*T71/10000*R71*(1+(Y71-1)*30%)*[4]战斗节奏!$D$28+VLOOKUP(W71,'[4]英雄技能-过程'!$A:$P,16,0)*T71/10000*S71*(1+(Y71-1)*30%)*[4]战斗节奏!$E$28,0) -> 1671.631 | AA71: 1 | AB71: 110201 | AC71: 1 | AD71: 2 | AE71: =IFERROR(VLOOKUP(AB71,'[4]英雄技能-过程'!$A:$P,14,0)*T71/10000*Q71*(1+(AD71-1)*30%)*[4]战斗节奏!$C$28+VLOOKUP(AB71,'[4]英雄技能-过程'!$A:$P,15,0)*T71/10000*R71*(1+(AD71-1)*30%)*[4]战斗节奏!$D$28+VLOOKUP(AB71,'[4]英雄技能-过程'!$A:$P,16,0)*T71/10000*S71*(1+(AD71-1)*30%)*[4]战斗节奏!$E$28,0) -> 1869.7315 | AF71: 4 | AG71: 120602 | AH71: 1 | AI71: 2 | AJ71: =IFERROR(VLOOKUP(AG71,'[4]英雄技能-过程'!$A:$P,14,0)*T71/10000*Q71*(1+(AI71-1)*30%)*[4]战斗节奏!$C$28+VLOOKUP(AG71,'[4]英雄技能-过程'!$A:$P,15,0)*T71/10000*R71*(1+(AI71-1)*30%)*[4]战斗节奏!$D$28+VLOOKUP(AG71,'[4]英雄技能-过程'!$A:$P,16,0)*T71/10000*S71*(1+(AI71-1)*30%)*[4]战斗节奏!$E$28,0) -> 4483.1475 | AK71: 2 | AL71: 120401 | AM71: 1 | AN71: 1 | AO71: =IFERROR(VLOOKUP(AL71,'[4]英雄技能-过程'!$A:$P,14,0)*T71/10000*Q71*(1+(AN71-1)*30%)*[4]战斗节奏!$C$28+VLOOKUP(AL71,'[4]英雄技能-过程'!$A:$P,15,0)*T71/10000*R71*(1+(AN71-1)*30%)*[4]战斗节奏!$D$28+VLOOKUP(AL71,'[4]英雄技能-过程'!$A:$P,16,0)*T71/10000*S71*(1+(AN71-1)*30%)*[4]战斗节奏!$E$28,0) -> 2828.475 | AS71: 0 | AT71: =IFERROR(VLOOKUP(AQ71,'[4]英雄技能-过程'!$A:$P,14,0)*T71/10000*Q71*(1+(AS71-1)*30%)*[4]战斗节奏!$C$28+VLOOKUP(AQ71,'[4]英雄技能-过程'!$A:$P,15,0)*T71/10000*R71*(1+(AS71-1)*30%)*[4]战斗节奏!$D$28+VLOOKUP(AQ71,'[4]英雄技能-过程'!$A:$P,16,0)*T71/10000*S71*(1+(AS71-1)*30%)*[4]战斗节奏!$E$28,0) -> 0 | AX71: 0 | AY71: =IFERROR(VLOOKUP(AV71,'[4]英雄技能-过程'!$A:$P,14,0)*T71/10000*Q71*(1+(AX71-1)*30%)*[4]战斗节奏!$C$28+VLOOKUP(AV71,'[4]英雄技能-过程'!$A:$P,15,0)*T71/10000*R71*(1+(AX71-1)*30%)*[4]战斗节奏!$D$28+VLOOKUP(AV71,'[4]英雄技能-过程'!$A:$P,16,0)*T71/10000*S71*(1+(AX71-1)*30%)*[4]战斗节奏!$E$28,0) -> 0 | BC71: 0 | BD71: =IFERROR(VLOOKUP(BA71,'[4]英雄技能-过程'!$A:$P,14,0)*T71/10000*Q71*(1+(BC71-1)*30%)*[4]战斗节奏!$C$28+VLOOKUP(BA71,'[4]英雄技能-过程'!$A:$P,15,0)*T71/10000*R71*(1+(BC71-1)*30%)*[4]战斗节奏!$D$28+VLOOKUP(BA71,'[4]英雄技能-过程'!$A:$P,16,0)*T71/10000*S71*(1+(BC71-1)*30%)*[4]战斗节奏!$E$28,0) -> 0 | BH71: 0 | BI71: =IFERROR(VLOOKUP(BF71,'[4]英雄技能-过程'!$A:$P,14,0)*T71/10000*Q71*(1+(BH71-1)*30%)*[4]战斗节奏!$C$28+VLOOKUP(BF71,'[4]英雄技能-过程'!$A:$P,15,0)*T71/10000*R71*(1+(BH71-1)*30%)*[4]战斗节奏!$D$28+VLOOKUP(BF71,'[4]英雄技能-过程'!$A:$P,16,0)*T71/10000*S71*(1+(BH71-1)*30%)*[4]战斗节奏!$E$28,0) -> 0 | BJ71: 13&110402&1&1 | BK71: 1&110201&1&2 | BL71: 4&120602&1&2 | BM71: 2&120401&1&1
B72: 15 | C72: 7 | D72: 20 | E72: 235 | F72: 8 | G72: =SUM($D$58:D72)-VLOOKUP(F72,$B$80:$D$87,3) -> -30 | N72: 12466.64385 | O72: 4 | P72: 8 | Q72: 9 | R72: 9 | S72: 10.6 | T72: 13500 | U72: 14&110501&1&1;12&110402&1&2;4&120602&1&2;2&120401&1&2 | V72: 14 | W72: 110501 | X72: 1 | Y72: 1 | Z72: =IFERROR(VLOOKUP(W72,'[4]英雄技能-过程'!$A:$P,14,0)*T72/10000*Q72*(1+(Y72-1)*30%)*[4]战斗节奏!$C$28+VLOOKUP(W72,'[4]英雄技能-过程'!$A:$P,15,0)*T72/10000*R72*(1+(Y72-1)*30%)*[4]战斗节奏!$D$28+VLOOKUP(W72,'[4]英雄技能-过程'!$A:$P,16,0)*T72/10000*S72*(1+(Y72-1)*30%)*[4]战斗节奏!$E$28,0) -> 1735.9245 | AA72: 12 | AB72: 110402 | AC72: 1 | AD72: 2 | AE72: =IFERROR(VLOOKUP(AB72,'[4]英雄技能-过程'!$A:$P,14,0)*T72/10000*Q72*(1+(AD72-1)*30%)*[4]战斗节奏!$C$28+VLOOKUP(AB72,'[4]英雄技能-过程'!$A:$P,15,0)*T72/10000*R72*(1+(AD72-1)*30%)*[4]战斗节奏!$D$28+VLOOKUP(AB72,'[4]英雄技能-过程'!$A:$P,16,0)*T72/10000*S72*(1+(AD72-1)*30%)*[4]战斗节奏!$E$28,0) -> 2256.70185 | AF72: 4 | AG72: 120602 | AH72: 1 | AI72: 2 | AJ72: =IFERROR(VLOOKUP(AG72,'[4]英雄技能-过程'!$A:$P,14,0)*T72/10000*Q72*(1+(AI72-1)*30%)*[4]战斗节奏!$C$28+VLOOKUP(AG72,'[4]英雄技能-过程'!$A:$P,15,0)*T72/10000*R72*(1+(AI72-1)*30%)*[4]战斗节奏!$D$28+VLOOKUP(AG72,'[4]英雄技能-过程'!$A:$P,16,0)*T72/10000*S72*(1+(AI72-1)*30%)*[4]战斗节奏!$E$28,0) -> 4655.57625 | AK72: 2 | AL72: 120401 | AM72: 1 | AN72: 2 | AO72: =IFERROR(VLOOKUP(AL72,'[4]英雄技能-过程'!$A:$P,14,0)*T72/10000*Q72*(1+(AN72-1)*30%)*[4]战斗节奏!$C$28+VLOOKUP(AL72,'[4]英雄技能-过程'!$A:$P,15,0)*T72/10000*R72*(1+(AN72-1)*30%)*[4]战斗节奏!$D$28+VLOOKUP(AL72,'[4]英雄技能-过程'!$A:$P,16,0)*T72/10000*S72*(1+(AN72-1)*30%)*[4]战斗节奏!$E$28,0) -> 3818.44125 | AS72: 0 | AT72: =IFERROR(VLOOKUP(AQ72,'[4]英雄技能-过程'!$A:$P,14,0)*T72/10000*Q72*(1+(AS72-1)*30%)*[4]战斗节奏!$C$28+VLOOKUP(AQ72,'[4]英雄技能-过程'!$A:$P,15,0)*T72/10000*R72*(1+(AS72-1)*30%)*[4]战斗节奏!$D$28+VLOOKUP(AQ72,'[4]英雄技能-过程'!$A:$P,16,0)*T72/10000*S72*(1+(AS72-1)*30%)*[4]战斗节奏!$E$28,0) -> 0 | AX72: 0 | AY72: =IFERROR(VLOOKUP(AV72,'[4]英雄技能-过程'!$A:$P,14,0)*T72/10000*Q72*(1+(AX72-1)*30%)*[4]战斗节奏!$C$28+VLOOKUP(AV72,'[4]英雄技能-过程'!$A:$P,15,0)*T72/10000*R72*(1+(AX72-1)*30%)*[4]战斗节奏!$D$28+VLOOKUP(AV72,'[4]英雄技能-过程'!$A:$P,16,0)*T72/10000*S72*(1+(AX72-1)*30%)*[4]战斗节奏!$E$28,0) -> 0 | BC72: 0 | BD72: =IFERROR(VLOOKUP(BA72,'[4]英雄技能-过程'!$A:$P,14,0)*T72/10000*Q72*(1+(BC72-1)*30%)*[4]战斗节奏!$C$28+VLOOKUP(BA72,'[4]英雄技能-过程'!$A:$P,15,0)*T72/10000*R72*(1+(BC72-1)*30%)*[4]战斗节奏!$D$28+VLOOKUP(BA72,'[4]英雄技能-过程'!$A:$P,16,0)*T72/10000*S72*(1+(BC72-1)*30%)*[4]战斗节奏!$E$28,0) -> 0 | BH72: 0 | BI72: =IFERROR(VLOOKUP(BF72,'[4]英雄技能-过程'!$A:$P,14,0)*T72/10000*Q72*(1+(BH72-1)*30%)*[4]战斗节奏!$C$28+VLOOKUP(BF72,'[4]英雄技能-过程'!$A:$P,15,0)*T72/10000*R72*(1+(BH72-1)*30%)*[4]战斗节奏!$D$28+VLOOKUP(BF72,'[4]英雄技能-过程'!$A:$P,16,0)*T72/10000*S72*(1+(BH72-1)*30%)*[4]战斗节奏!$E$28,0) -> 0 | BJ72: 14&110501&1&1 | BK72: 12&110402&1&2 | BL72: 4&120602&1&2 | BM72: 2&120401&1&2
B73: 16 | C73: 8 | D73: 20 | E73: 255 | F73: 8 | G73: =SUM($D$58:D73)-VLOOKUP(F73,$B$80:$D$87,3) -> -10 | N73: 14841.7808 | O73: 4 | P73: 9 | Q73: 9 | R73: 9 | S73: 10.6 | T73: 14000 | U73: 14&110501&1&1;12&110402&1&2;18&430301&1&2;4&120602&1&2;2&120401&1&1 | V73: 14 | W73: 110501 | X73: 1 | Y73: 1 | Z73: =IFERROR(VLOOKUP(W73,'[4]英雄技能-过程'!$A:$P,14,0)*T73/10000*Q73*(1+(Y73-1)*30%)*[4]战斗节奏!$C$28+VLOOKUP(W73,'[4]英雄技能-过程'!$A:$P,15,0)*T73/10000*R73*(1+(Y73-1)*30%)*[4]战斗节奏!$D$28+VLOOKUP(W73,'[4]英雄技能-过程'!$A:$P,16,0)*T73/10000*S73*(1+(Y73-1)*30%)*[4]战斗节奏!$E$28,0) -> 1800.218 | AA73: 12 | AB73: 110402 | AC73: 1 | AD73: 2 | AE73: =IFERROR(VLOOKUP(AB73,'[4]英雄技能-过程'!$A:$P,14,0)*T73/10000*Q73*(1+(AD73-1)*30%)*[4]战斗节奏!$C$28+VLOOKUP(AB73,'[4]英雄技能-过程'!$A:$P,15,0)*T73/10000*R73*(1+(AD73-1)*30%)*[4]战斗节奏!$D$28+VLOOKUP(AB73,'[4]英雄技能-过程'!$A:$P,16,0)*T73/10000*S73*(1+(AD73-1)*30%)*[4]战斗节奏!$E$28,0) -> 2340.2834 | AF73: 18 | AG73: 430301 | AH73: 1 | AI73: 2 | AJ73: =IFERROR(VLOOKUP(AG73,'[4]英雄技能-过程'!$A:$P,14,0)*T73/10000*Q73*(1+(AI73-1)*30%)*[4]战斗节奏!$C$28+VLOOKUP(AG73,'[4]英雄技能-过程'!$A:$P,15,0)*T73/10000*R73*(1+(AI73-1)*30%)*[4]战斗节奏!$D$28+VLOOKUP(AG73,'[4]英雄技能-过程'!$A:$P,16,0)*T73/10000*S73*(1+(AI73-1)*30%)*[4]战斗节奏!$E$28,0) -> 2827.2244 | AK73: 4 | AL73: 120602 | AM73: 1 | AN73: 2 | AO73: =IFERROR(VLOOKUP(AL73,'[4]英雄技能-过程'!$A:$P,14,0)*T73/10000*Q73*(1+(AN73-1)*30%)*[4]战斗节奏!$C$28+VLOOKUP(AL73,'[4]英雄技能-过程'!$A:$P,15,0)*T73/10000*R73*(1+(AN73-1)*30%)*[4]战斗节奏!$D$28+VLOOKUP(AL73,'[4]英雄技能-过程'!$A:$P,16,0)*T73/10000*S73*(1+(AN73-1)*30%)*[4]战斗节奏!$E$28,0) -> 4828.005 | AP73: 2 | AQ73: 120401 | AR73: 1 | AS73: 1 | AT73: =IFERROR(VLOOKUP(AQ73,'[4]英雄技能-过程'!$A:$P,14,0)*T73/10000*Q73*(1+(AS73-1)*30%)*[4]战斗节奏!$C$28+VLOOKUP(AQ73,'[4]英雄技能-过程'!$A:$P,15,0)*T73/10000*R73*(1+(AS73-1)*30%)*[4]战斗节奏!$D$28+VLOOKUP(AQ73,'[4]英雄技能-过程'!$A:$P,16,0)*T73/10000*S73*(1+(AS73-1)*30%)*[4]战斗节奏!$E$28,0) -> 3046.05 | AX73: 0 | AY73: =IFERROR(VLOOKUP(AV73,'[4]英雄技能-过程'!$A:$P,14,0)*T73/10000*Q73*(1+(AX73-1)*30%)*[4]战斗节奏!$C$28+VLOOKUP(AV73,'[4]英雄技能-过程'!$A:$P,15,0)*T73/10000*R73*(1+(AX73-1)*30%)*[4]战斗节奏!$D$28+VLOOKUP(AV73,'[4]英雄技能-过程'!$A:$P,16,0)*T73/10000*S73*(1+(AX73-1)*30%)*[4]战斗节奏!$E$28,0) -> 0 | BC73: 0 | BD73: =IFERROR(VLOOKUP(BA73,'[4]英雄技能-过程'!$A:$P,14,0)*T73/10000*Q73*(1+(BC73-1)*30%)*[4]战斗节奏!$C$28+VLOOKUP(BA73,'[4]英雄技能-过程'!$A:$P,15,0)*T73/10000*R73*(1+(BC73-1)*30%)*[4]战斗节奏!$D$28+VLOOKUP(BA73,'[4]英雄技能-过程'!$A:$P,16,0)*T73/10000*S73*(1+(BC73-1)*30%)*[4]战斗节奏!$E$28,0) -> 0 | BH73: 0 | BI73: =IFERROR(VLOOKUP(BF73,'[4]英雄技能-过程'!$A:$P,14,0)*T73/10000*Q73*(1+(BH73-1)*30%)*[4]战斗节奏!$C$28+VLOOKUP(BF73,'[4]英雄技能-过程'!$A:$P,15,0)*T73/10000*R73*(1+(BH73-1)*30%)*[4]战斗节奏!$D$28+VLOOKUP(BF73,'[4]英雄技能-过程'!$A:$P,16,0)*T73/10000*S73*(1+(BH73-1)*30%)*[4]战斗节奏!$E$28,0) -> 0 | BJ73: 14&110501&1&1 | BK73: 12&110402&1&2 | BL73: 18&430301&1&2 | BM73: 4&120602&1&2 | BN73: 2&120401&1&1
B74: 17 | C74: 8 | D74: 20 | E74: 275 | F74: 9 | G74: =SUM($D$58:D74)-VLOOKUP(F74,$B$80:$D$87,3) -> 10 | N74: 16939.4565 | O74: 4 | P74: 10 | Q74: 9 | R74: 9 | S74: 10.6 | T74: 15000 | U74: 12&110402&1&1;16&110201&1&2;18&430301&1&2;2&120401&1&2;5&130603&1&2 | V74: 12 | W74: 110402 | X74: 1 | Y74: 1 | Z74: =IFERROR(VLOOKUP(W74,'[4]英雄技能-过程'!$A:$P,14,0)*T74/10000*Q74*(1+(Y74-1)*30%)*[4]战斗节奏!$C$28+VLOOKUP(W74,'[4]英雄技能-过程'!$A:$P,15,0)*T74/10000*R74*(1+(Y74-1)*30%)*[4]战斗节奏!$D$28+VLOOKUP(W74,'[4]英雄技能-过程'!$A:$P,16,0)*T74/10000*S74*(1+(Y74-1)*30%)*[4]战斗节奏!$E$28,0) -> 1928.805 | AA74: 16 | AB74: 110201 | AC74: 1 | AD74: 2 | AE74: =IFERROR(VLOOKUP(AB74,'[4]英雄技能-过程'!$A:$P,14,0)*T74/10000*Q74*(1+(AD74-1)*30%)*[4]战斗节奏!$C$28+VLOOKUP(AB74,'[4]英雄技能-过程'!$A:$P,15,0)*T74/10000*R74*(1+(AD74-1)*30%)*[4]战斗节奏!$D$28+VLOOKUP(AB74,'[4]英雄技能-过程'!$A:$P,16,0)*T74/10000*S74*(1+(AD74-1)*30%)*[4]战斗节奏!$E$28,0) -> 2157.3825 | AF74: 18 | AG74: 430301 | AH74: 1 | AI74: 2 | AJ74: =IFERROR(VLOOKUP(AG74,'[4]英雄技能-过程'!$A:$P,14,0)*T74/10000*Q74*(1+(AI74-1)*30%)*[4]战斗节奏!$C$28+VLOOKUP(AG74,'[4]英雄技能-过程'!$A:$P,15,0)*T74/10000*R74*(1+(AI74-1)*30%)*[4]战斗节奏!$D$28+VLOOKUP(AG74,'[4]英雄技能-过程'!$A:$P,16,0)*T74/10000*S74*(1+(AI74-1)*30%)*[4]战斗节奏!$E$28,0) -> 3029.169 | AK74: 2 | AL74: 120401 | AM74: 1 | AN74: 2 | AO74: =IFERROR(VLOOKUP(AL74,'[4]英雄技能-过程'!$A:$P,14,0)*T74/10000*Q74*(1+(AN74-1)*30%)*[4]战斗节奏!$C$28+VLOOKUP(AL74,'[4]英雄技能-过程'!$A:$P,15,0)*T74/10000*R74*(1+(AN74-1)*30%)*[4]战斗节奏!$D$28+VLOOKUP(AL74,'[4]英雄技能-过程'!$A:$P,16,0)*T74/10000*S74*(1+(AN74-1)*30%)*[4]战斗节奏!$E$28,0) -> 4242.7125 | AP74: 5 | AQ74: 130603 | AR74: 1 | AS74: 2 | AT74: =IFERROR(VLOOKUP(AQ74,'[4]英雄技能-过程'!$A:$P,14,0)*T74/10000*Q74*(1+(AS74-1)*30%)*[4]战斗节奏!$C$28+VLOOKUP(AQ74,'[4]英雄技能-过程'!$A:$P,15,0)*T74/10000*R74*(1+(AS74-1)*30%)*[4]战斗节奏!$D$28+VLOOKUP(AQ74,'[4]英雄技能-过程'!$A:$P,16,0)*T74/10000*S74*(1+(AS74-1)*30%)*[4]战斗节奏!$E$28,0) -> 5581.3875 | AX74: 0 | AY74: =IFERROR(VLOOKUP(AV74,'[4]英雄技能-过程'!$A:$P,14,0)*T74/10000*Q74*(1+(AX74-1)*30%)*[4]战斗节奏!$C$28+VLOOKUP(AV74,'[4]英雄技能-过程'!$A:$P,15,0)*T74/10000*R74*(1+(AX74-1)*30%)*[4]战斗节奏!$D$28+VLOOKUP(AV74,'[4]英雄技能-过程'!$A:$P,16,0)*T74/10000*S74*(1+(AX74-1)*30%)*[4]战斗节奏!$E$28,0) -> 0 | BC74: 0 | BD74: =IFERROR(VLOOKUP(BA74,'[4]英雄技能-过程'!$A:$P,14,0)*T74/10000*Q74*(1+(BC74-1)*30%)*[4]战斗节奏!$C$28+VLOOKUP(BA74,'[4]英雄技能-过程'!$A:$P,15,0)*T74/10000*R74*(1+(BC74-1)*30%)*[4]战斗节奏!$D$28+VLOOKUP(BA74,'[4]英雄技能-过程'!$A:$P,16,0)*T74/10000*S74*(1+(BC74-1)*30%)*[4]战斗节奏!$E$28,0) -> 0 | BH74: 0 | BI74: =IFERROR(VLOOKUP(BF74,'[4]英雄技能-过程'!$A:$P,14,0)*T74/10000*Q74*(1+(BH74-1)*30%)*[4]战斗节奏!$C$28+VLOOKUP(BF74,'[4]英雄技能-过程'!$A:$P,15,0)*T74/10000*R74*(1+(BH74-1)*30%)*[4]战斗节奏!$D$28+VLOOKUP(BF74,'[4]英雄技能-过程'!$A:$P,16,0)*T74/10000*S74*(1+(BH74-1)*30%)*[4]战斗节奏!$E$28,0) -> 0 | BJ74: 12&110402&1&1 | BK74: 16&110201&1&2 | BL74: 18&430301&1&2 | BM74: 2&120401&1&2 | BN74: 5&130603&1&2
B75: 18 | C75: 8 | D75: 20 | E75: 295 | F75: 9 | G75: =SUM($D$58:D75)-VLOOKUP(F75,$B$80:$D$87,3) -> 30 | N75: 19369.4832 | O75: 4 | P75: 11 | Q75: 9 | R75: 9 | S75: 10.6 | T75: 16000 | U75: 12&110402&1&1;16&110501&1&2;18&430301&1&2;13&140201&1&2;2&120401&1&2;5&130603&1&1 | V75: 12 | W75: 110402 | X75: 1 | Y75: 1 | Z75: =IFERROR(VLOOKUP(W75,'[4]英雄技能-过程'!$A:$P,14,0)*T75/10000*Q75*(1+(Y75-1)*30%)*[4]战斗节奏!$C$28+VLOOKUP(W75,'[4]英雄技能-过程'!$A:$P,15,0)*T75/10000*R75*(1+(Y75-1)*30%)*[4]战斗节奏!$D$28+VLOOKUP(W75,'[4]英雄技能-过程'!$A:$P,16,0)*T75/10000*S75*(1+(Y75-1)*30%)*[4]战斗节奏!$E$28,0) -> 2057.392 | AA75: 16 | AB75: 110501 | AC75: 1 | AD75: 2 | AE75: =IFERROR(VLOOKUP(AB75,'[4]英雄技能-过程'!$A:$P,14,0)*T75/10000*Q75*(1+(AD75-1)*30%)*[4]战斗节奏!$C$28+VLOOKUP(AB75,'[4]英雄技能-过程'!$A:$P,15,0)*T75/10000*R75*(1+(AD75-1)*30%)*[4]战斗节奏!$D$28+VLOOKUP(AB75,'[4]英雄技能-过程'!$A:$P,16,0)*T75/10000*S75*(1+(AD75-1)*30%)*[4]战斗节奏!$E$28,0) -> 2674.6096 | AF75: 18 | AG75: 430301 | AH75: 1 | AI75: 2 | AJ75: =IFERROR(VLOOKUP(AG75,'[4]英雄技能-过程'!$A:$P,14,0)*T75/10000*Q75*(1+(AI75-1)*30%)*[4]战斗节奏!$C$28+VLOOKUP(AG75,'[4]英雄技能-过程'!$A:$P,15,0)*T75/10000*R75*(1+(AI75-1)*30%)*[4]战斗节奏!$D$28+VLOOKUP(AG75,'[4]英雄技能-过程'!$A:$P,16,0)*T75/10000*S75*(1+(AI75-1)*30%)*[4]战斗节奏!$E$28,0) -> 3231.1136 | AK75: 13 | AL75: 140201 | AM75: 1 | AN75: 2 | AO75: =IFERROR(VLOOKUP(AL75,'[4]英雄技能-过程'!$A:$P,14,0)*T75/10000*Q75*(1+(AN75-1)*30%)*[4]战斗节奏!$C$28+VLOOKUP(AL75,'[4]英雄技能-过程'!$A:$P,15,0)*T75/10000*R75*(1+(AN75-1)*30%)*[4]战斗节奏!$D$28+VLOOKUP(AL75,'[4]英雄技能-过程'!$A:$P,16,0)*T75/10000*S75*(1+(AN75-1)*30%)*[4]战斗节奏!$E$28,0) -> 2301.208 | AP75: 2 | AQ75: 120401 | AR75: 1 | AS75: 2 | AT75: =IFERROR(VLOOKUP(AQ75,'[4]英雄技能-过程'!$A:$P,14,0)*T75/10000*Q75*(1+(AS75-1)*30%)*[4]战斗节奏!$C$28+VLOOKUP(AQ75,'[4]英雄技能-过程'!$A:$P,15,0)*T75/10000*R75*(1+(AS75-1)*30%)*[4]战斗节奏!$D$28+VLOOKUP(AQ75,'[4]英雄技能-过程'!$A:$P,16,0)*T75/10000*S75*(1+(AS75-1)*30%)*[4]战斗节奏!$E$28,0) -> 4525.56 | AU75: 5 | AV75: 130603 | AW75: 1 | AX75: 1 | AY75: =IFERROR(VLOOKUP(AV75,'[4]英雄技能-过程'!$A:$P,14,0)*T75/10000*Q75*(1+(AX75-1)*30%)*[4]战斗节奏!$C$28+VLOOKUP(AV75,'[4]英雄技能-过程'!$A:$P,15,0)*T75/10000*R75*(1+(AX75-1)*30%)*[4]战斗节奏!$D$28+VLOOKUP(AV75,'[4]英雄技能-过程'!$A:$P,16,0)*T75/10000*S75*(1+(AX75-1)*30%)*[4]战斗节奏!$E$28,0) -> 4579.6 | BC75: 0 | BD75: =IFERROR(VLOOKUP(BA75,'[4]英雄技能-过程'!$A:$P,14,0)*T75/10000*Q75*(1+(BC75-1)*30%)*[4]战斗节奏!$C$28+VLOOKUP(BA75,'[4]英雄技能-过程'!$A:$P,15,0)*T75/10000*R75*(1+(BC75-1)*30%)*[4]战斗节奏!$D$28+VLOOKUP(BA75,'[4]英雄技能-过程'!$A:$P,16,0)*T75/10000*S75*(1+(BC75-1)*30%)*[4]战斗节奏!$E$28,0) -> 0 | BH75: 0 | BI75: =IFERROR(VLOOKUP(BF75,'[4]英雄技能-过程'!$A:$P,14,0)*T75/10000*Q75*(1+(BH75-1)*30%)*[4]战斗节奏!$C$28+VLOOKUP(BF75,'[4]英雄技能-过程'!$A:$P,15,0)*T75/10000*R75*(1+(BH75-1)*30%)*[4]战斗节奏!$D$28+VLOOKUP(BF75,'[4]英雄技能-过程'!$A:$P,16,0)*T75/10000*S75*(1+(BH75-1)*30%)*[4]战斗节奏!$E$28,0) -> 0 | BJ75: 12&110402&1&1 | BK75: 16&110501&1&2 | BL75: 18&430301&1&2 | BM75: 13&140201&1&2 | BN75: 2&120401&1&2 | BO75: 5&130603&1&1
B76: 19 | C76: 8 | D76: 20 | E76: 315 | F76: 9 | G76: =SUM($D$58:D76)-VLOOKUP(F76,$B$80:$D$87,3) -> 50 | N76: 24992.6707 | O76: 4 | P76: 12 | Q76: 9 | R76: 9 | S76: 10.6 | T76: 17000 | U76: 12&110402&1&1;18&430301&1&2;13&140201&1&2;4&120602&1&2;2&130401&1&2;5&130603&1&2 | V76: 12 | W76: 110402 | X76: 1 | Y76: 1 | Z76: =IFERROR(VLOOKUP(W76,'[4]英雄技能-过程'!$A:$P,14,0)*T76/10000*Q76*(1+(Y76-1)*30%)*[4]战斗节奏!$C$28+VLOOKUP(W76,'[4]英雄技能-过程'!$A:$P,15,0)*T76/10000*R76*(1+(Y76-1)*30%)*[4]战斗节奏!$D$28+VLOOKUP(W76,'[4]英雄技能-过程'!$A:$P,16,0)*T76/10000*S76*(1+(Y76-1)*30%)*[4]战斗节奏!$E$28,0) -> 2185.979 | AA76: 18 | AB76: 430301 | AC76: 1 | AD76: 2 | AE76: =IFERROR(VLOOKUP(AB76,'[4]英雄技能-过程'!$A:$P,14,0)*T76/10000*Q76*(1+(AD76-1)*30%)*[4]战斗节奏!$C$28+VLOOKUP(AB76,'[4]英雄技能-过程'!$A:$P,15,0)*T76/10000*R76*(1+(AD76-1)*30%)*[4]战斗节奏!$D$28+VLOOKUP(AB76,'[4]英雄技能-过程'!$A:$P,16,0)*T76/10000*S76*(1+(AD76-1)*30%)*[4]战斗节奏!$E$28,0) -> 3433.0582 | AF76: 13 | AG76: 140201 | AH76: 1 | AI76: 2 | AJ76: =IFERROR(VLOOKUP(AG76,'[4]英雄技能-过程'!$A:$P,14,0)*T76/10000*Q76*(1+(AI76-1)*30%)*[4]战斗节奏!$C$28+VLOOKUP(AG76,'[4]英雄技能-过程'!$A:$P,15,0)*T76/10000*R76*(1+(AI76-1)*30%)*[4]战斗节奏!$D$28+VLOOKUP(AG76,'[4]英雄技能-过程'!$A:$P,16,0)*T76/10000*S76*(1+(AI76-1)*30%)*[4]战斗节奏!$E$28,0) -> 2445.0335 | AK76: 4 | AL76: 120602 | AM76: 1 | AN76: 2 | AO76: =IFERROR(VLOOKUP(AL76,'[4]英雄技能-过程'!$A:$P,14,0)*T76/10000*Q76*(1+(AN76-1)*30%)*[4]战斗节奏!$C$28+VLOOKUP(AL76,'[4]英雄技能-过程'!$A:$P,15,0)*T76/10000*R76*(1+(AN76-1)*30%)*[4]战斗节奏!$D$28+VLOOKUP(AL76,'[4]英雄技能-过程'!$A:$P,16,0)*T76/10000*S76*(1+(AN76-1)*30%)*[4]战斗节奏!$E$28,0) -> 5862.5775 | AP76: 2 | AQ76: 130401 | AR76: 1 | AS76: 2 | AT76: =IFERROR(VLOOKUP(AQ76,'[4]英雄技能-过程'!$A:$P,14,0)*T76/10000*Q76*(1+(AS76-1)*30%)*[4]战斗节奏!$C$28+VLOOKUP(AQ76,'[4]英雄技能-过程'!$A:$P,15,0)*T76/10000*R76*(1+(AS76-1)*30%)*[4]战斗节奏!$D$28+VLOOKUP(AQ76,'[4]英雄技能-过程'!$A:$P,16,0)*T76/10000*S76*(1+(AS76-1)*30%)*[4]战斗节奏!$E$28,0) -> 4740.45 | AU76: 5 | AV76: 130603 | AW76: 1 | AX76: 2 | AY76: =IFERROR(VLOOKUP(AV76,'[4]英雄技能-过程'!$A:$P,14,0)*T76/10000*Q76*(1+(AX76-1)*30%)*[4]战斗节奏!$C$28+VLOOKUP(AV76,'[4]英雄技能-过程'!$A:$P,15,0)*T76/10000*R76*(1+(AX76-1)*30%)*[4]战斗节奏!$D$28+VLOOKUP(AV76,'[4]英雄技能-过程'!$A:$P,16,0)*T76/10000*S76*(1+(AX76-1)*30%)*[4]战斗节奏!$E$28,0) -> 6325.5725 | BC76: 0 | BD76: =IFERROR(VLOOKUP(BA76,'[4]英雄技能-过程'!$A:$P,14,0)*T76/10000*Q76*(1+(BC76-1)*30%)*[4]战斗节奏!$C$28+VLOOKUP(BA76,'[4]英雄技能-过程'!$A:$P,15,0)*T76/10000*R76*(1+(BC76-1)*30%)*[4]战斗节奏!$D$28+VLOOKUP(BA76,'[4]英雄技能-过程'!$A:$P,16,0)*T76/10000*S76*(1+(BC76-1)*30%)*[4]战斗节奏!$E$28,0) -> 0 | BH76: 0 | BI76: =IFERROR(VLOOKUP(BF76,'[4]英雄技能-过程'!$A:$P,14,0)*T76/10000*Q76*(1+(BH76-1)*30%)*[4]战斗节奏!$C$28+VLOOKUP(BF76,'[4]英雄技能-过程'!$A:$P,15,0)*T76/10000*R76*(1+(BH76-1)*30%)*[4]战斗节奏!$D$28+VLOOKUP(BF76,'[4]英雄技能-过程'!$A:$P,16,0)*T76/10000*S76*(1+(BH76-1)*30%)*[4]战斗节奏!$E$28,0) -> 0 | BJ76: 12&110402&1&1 | BK76: 18&430301&1&2 | BL76: 13&140201&1&2 | BM76: 4&120602&1&2 | BN76: 2&130401&1&2 | BO76: 5&130603&1&2
B77: 20 | C77: 8 | D77: 20 | E77: 335 | F77: 9 | G77: =SUM($D$58:D77)-VLOOKUP(F77,$B$80:$D$87,3) -> 70 | N77: 29659.5936 | O77: 4 | P77: 13 | Q77: 9 | R77: 9 | S77: 10.6 | T77: 18000 | U77: 12&110402&1&2;17&430301&1&2;4&120602&1&2;2&120401&1&2;5&130603&1&2;6&130401&1&2 | V77: 12 | W77: 110402 | X77: 1 | Y77: 2 | Z77: =IFERROR(VLOOKUP(W77,'[4]英雄技能-过程'!$A:$P,14,0)*T77/10000*Q77*(1+(Y77-1)*30%)*[4]战斗节奏!$C$28+VLOOKUP(W77,'[4]英雄技能-过程'!$A:$P,15,0)*T77/10000*R77*(1+(Y77-1)*30%)*[4]战斗节奏!$D$28+VLOOKUP(W77,'[4]英雄技能-过程'!$A:$P,16,0)*T77/10000*S77*(1+(Y77-1)*30%)*[4]战斗节奏!$E$28,0) -> 3008.9358 | AA77: 17 | AB77: 430301 | AC77: 1 | AD77: 2 | AE77: =IFERROR(VLOOKUP(AB77,'[4]英雄技能-过程'!$A:$P,14,0)*T77/10000*Q77*(1+(AD77-1)*30%)*[4]战斗节奏!$C$28+VLOOKUP(AB77,'[4]英雄技能-过程'!$A:$P,15,0)*T77/10000*R77*(1+(AD77-1)*30%)*[4]战斗节奏!$D$28+VLOOKUP(AB77,'[4]英雄技能-过程'!$A:$P,16,0)*T77/10000*S77*(1+(AD77-1)*30%)*[4]战斗节奏!$E$28,0) -> 3635.0028 | AF77: 4 | AG77: 120602 | AH77: 1 | AI77: 2 | AJ77: =IFERROR(VLOOKUP(AG77,'[4]英雄技能-过程'!$A:$P,14,0)*T77/10000*Q77*(1+(AI77-1)*30%)*[4]战斗节奏!$C$28+VLOOKUP(AG77,'[4]英雄技能-过程'!$A:$P,15,0)*T77/10000*R77*(1+(AI77-1)*30%)*[4]战斗节奏!$D$28+VLOOKUP(AG77,'[4]英雄技能-过程'!$A:$P,16,0)*T77/10000*S77*(1+(AI77-1)*30%)*[4]战斗节奏!$E$28,0) -> 6207.435 | AK77: 2 | AL77: 120401 | AM77: 1 | AN77: 2 | AO77: =IFERROR(VLOOKUP(AL77,'[4]英雄技能-过程'!$A:$P,14,0)*T77/10000*Q77*(1+(AN77-1)*30%)*[4]战斗节奏!$C$28+VLOOKUP(AL77,'[4]英雄技能-过程'!$A:$P,15,0)*T77/10000*R77*(1+(AN77-1)*30%)*[4]战斗节奏!$D$28+VLOOKUP(AL77,'[4]英雄技能-过程'!$A:$P,16,0)*T77/10000*S77*(1+(AN77-1)*30%)*[4]战斗节奏!$E$28,0) -> 5091.255 | AP77: 5 | AQ77: 130603 | AR77: 1 | AS77: 2 | AT77: =IFERROR(VLOOKUP(AQ77,'[4]英雄技能-过程'!$A:$P,14,0)*T77/10000*Q77*(1+(AS77-1)*30%)*[4]战斗节奏!$C$28+VLOOKUP(AQ77,'[4]英雄技能-过程'!$A:$P,15,0)*T77/10000*R77*(1+(AS77-1)*30%)*[4]战斗节奏!$D$28+VLOOKUP(AQ77,'[4]英雄技能-过程'!$A:$P,16,0)*T77/10000*S77*(1+(AS77-1)*30%)*[4]战斗节奏!$E$28,0) -> 6697.665 | AU77: 6 | AV77: 130401 | AW77: 1 | AX77: 2 | AY77: =IFERROR(VLOOKUP(AV77,'[4]英雄技能-过程'!$A:$P,14,0)*T77/10000*Q77*(1+(AX77-1)*30%)*[4]战斗节奏!$C$28+VLOOKUP(AV77,'[4]英雄技能-过程'!$A:$P,15,0)*T77/10000*R77*(1+(AX77-1)*30%)*[4]战斗节奏!$D$28+VLOOKUP(AV77,'[4]英雄技能-过程'!$A:$P,16,0)*T77/10000*S77*(1+(AX77-1)*30%)*[4]战斗节奏!$E$28,0) -> 5019.3 | BC77: 0 | BD77: =IFERROR(VLOOKUP(BA77,'[4]英雄技能-过程'!$A:$P,14,0)*T77/10000*Q77*(1+(BC77-1)*30%)*[4]战斗节奏!$C$28+VLOOKUP(BA77,'[4]英雄技能-过程'!$A:$P,15,0)*T77/10000*R77*(1+(BC77-1)*30%)*[4]战斗节奏!$D$28+VLOOKUP(BA77,'[4]英雄技能-过程'!$A:$P,16,0)*T77/10000*S77*(1+(BC77-1)*30%)*[4]战斗节奏!$E$28,0) -> 0 | BH77: 0 | BI77: =IFERROR(VLOOKUP(BF77,'[4]英雄技能-过程'!$A:$P,14,0)*T77/10000*Q77*(1+(BH77-1)*30%)*[4]战斗节奏!$C$28+VLOOKUP(BF77,'[4]英雄技能-过程'!$A:$P,15,0)*T77/10000*R77*(1+(BH77-1)*30%)*[4]战斗节奏!$D$28+VLOOKUP(BF77,'[4]英雄技能-过程'!$A:$P,16,0)*T77/10000*S77*(1+(BH77-1)*30%)*[4]战斗节奏!$E$28,0) -> 0 | BJ77: 12&110402&1&2 | BK77: 17&430301&1&2 | BL77: 4&120602&1&2 | BM77: 2&120401&1&2 | BN77: 5&130603&1&2 | BO77: 6&130401&1&2
N78: 24957.6476 | O78: 4 | P78: 14 | Q78: 9 | R78: 9 | S78: 10.6 | T78: 19000 | U78: 12&110402&1&3;15&110201&1&3;17&430301&1&2;11&110501&1&2;2&120401&1&2;1&130401&1&2 | V78: 12 | W78: 110402 | X78: 1 | Y78: 3 | Z78: =IFERROR(VLOOKUP(W78,'[4]英雄技能-过程'!$A:$P,14,0)*T78/10000*Q78*(1+(Y78-1)*30%)*[4]战斗节奏!$C$28+VLOOKUP(W78,'[4]英雄技能-过程'!$A:$P,15,0)*T78/10000*R78*(1+(Y78-1)*30%)*[4]战斗节奏!$D$28+VLOOKUP(W78,'[4]英雄技能-过程'!$A:$P,16,0)*T78/10000*S78*(1+(Y78-1)*30%)*[4]战斗节奏!$E$28,0) -> 3909.0448 | AA78: 15 | AB78: 110201 | AC78: 1 | AD78: 3 | AE78: =IFERROR(VLOOKUP(AB78,'[4]英雄技能-过程'!$A:$P,14,0)*T78/10000*Q78*(1+(AD78-1)*30%)*[4]战斗节奏!$C$28+VLOOKUP(AB78,'[4]英雄技能-过程'!$A:$P,15,0)*T78/10000*R78*(1+(AD78-1)*30%)*[4]战斗节奏!$D$28+VLOOKUP(AB78,'[4]英雄技能-过程'!$A:$P,16,0)*T78/10000*S78*(1+(AD78-1)*30%)*[4]战斗节奏!$E$28,0) -> 3363.304 | AF78: 17 | AG78: 430301 | AH78: 1 | AI78: 2 | AJ78: =IFERROR(VLOOKUP(AG78,'[4]英雄技能-过程'!$A:$P,14,0)*T78/10000*Q78*(1+(AI78-1)*30%)*[4]战斗节奏!$C$28+VLOOKUP(AG78,'[4]英雄技能-过程'!$A:$P,15,0)*T78/10000*R78*(1+(AI78-1)*30%)*[4]战斗节奏!$D$28+VLOOKUP(AG78,'[4]英雄技能-过程'!$A:$P,16,0)*T78/10000*S78*(1+(AI78-1)*30%)*[4]战斗节奏!$E$28,0) -> 3836.9474 | AK78: 11 | AL78: 110501 | AM78: 1 | AN78: 2 | AO78: =IFERROR(VLOOKUP(AL78,'[4]英雄技能-过程'!$A:$P,14,0)*T78/10000*Q78*(1+(AN78-1)*30%)*[4]战斗节奏!$C$28+VLOOKUP(AL78,'[4]英雄技能-过程'!$A:$P,15,0)*T78/10000*R78*(1+(AN78-1)*30%)*[4]战斗节奏!$D$28+VLOOKUP(AL78,'[4]英雄技能-过程'!$A:$P,16,0)*T78/10000*S78*(1+(AN78-1)*30%)*[4]战斗节奏!$E$28,0) -> 3176.0989 | AP78: 2 | AQ78: 120401 | AR78: 1 | AS78: 2 | AT78: =IFERROR(VLOOKUP(AQ78,'[4]英雄技能-过程'!$A:$P,14,0)*T78/10000*Q78*(1+(AS78-1)*30%)*[4]战斗节奏!$C$28+VLOOKUP(AQ78,'[4]英雄技能-过程'!$A:$P,15,0)*T78/10000*R78*(1+(AS78-1)*30%)*[4]战斗节奏!$D$28+VLOOKUP(AQ78,'[4]英雄技能-过程'!$A:$P,16,0)*T78/10000*S78*(1+(AS78-1)*30%)*[4]战斗节奏!$E$28,0) -> 5374.1025 | AU78: 1 | AV78: 130401 | AW78: 1 | AX78: 2 | AY78: =IFERROR(VLOOKUP(AV78,'[4]英雄技能-过程'!$A:$P,14,0)*T78/10000*Q78*(1+(AX78-1)*30%)*[4]战斗节奏!$C$28+VLOOKUP(AV78,'[4]英雄技能-过程'!$A:$P,15,0)*T78/10000*R78*(1+(AX78-1)*30%)*[4]战斗节奏!$D$28+VLOOKUP(AV78,'[4]英雄技能-过程'!$A:$P,16,0)*T78/10000*S78*(1+(AX78-1)*30%)*[4]战斗节奏!$E$28,0) -> 5298.15 | BC78: 0 | BD78: =IFERROR(VLOOKUP(BA78,'[4]英雄技能-过程'!$A:$P,14,0)*T78/10000*Q78*(1+(BC78-1)*30%)*[4]战斗节奏!$C$28+VLOOKUP(BA78,'[4]英雄技能-过程'!$A:$P,15,0)*T78/10000*R78*(1+(BC78-1)*30%)*[4]战斗节奏!$D$28+VLOOKUP(BA78,'[4]英雄技能-过程'!$A:$P,16,0)*T78/10000*S78*(1+(BC78-1)*30%)*[4]战斗节奏!$E$28,0) -> 0 | BH78: 0 | BI78: =IFERROR(VLOOKUP(BF78,'[4]英雄技能-过程'!$A:$P,14,0)*T78/10000*Q78*(1+(BH78-1)*30%)*[4]战斗节奏!$C$28+VLOOKUP(BF78,'[4]英雄技能-过程'!$A:$P,15,0)*T78/10000*R78*(1+(BH78-1)*30%)*[4]战斗节奏!$D$28+VLOOKUP(BF78,'[4]英雄技能-过程'!$A:$P,16,0)*T78/10000*S78*(1+(BH78-1)*30%)*[4]战斗节奏!$E$28,0) -> 0 | BJ78: 12&110402&1&3 | BK78: 15&110201&1&3 | BL78: 17&430301&1&2 | BM78: 11&110501&1&2 | BN78: 2&120401&1&2 | BO78: 1&130401&1&2
B79: 人口 | C79: 消耗 | E79: 刷新 | F79: 消耗 | N79: 30485.33 | O79: 4 | P79: 15 | Q79: 9 | R79: 9 | S79: 10.6 | T79: 20000 | U79: 16&110201&1&3;14&140403&1&3;12&430301&1&2;11&110501&1&2;13&110402&1&2;4&120602&1&2;2&120401&1&1 | V79: 16 | W79: 110201 | X79: 1 | Y79: 3 | Z79: =IFERROR(VLOOKUP(W79,'[4]英雄技能-过程'!$A:$P,14,0)*T79/10000*Q79*(1+(Y79-1)*30%)*[4]战斗节奏!$C$28+VLOOKUP(W79,'[4]英雄技能-过程'!$A:$P,15,0)*T79/10000*R79*(1+(Y79-1)*30%)*[4]战斗节奏!$D$28+VLOOKUP(W79,'[4]英雄技能-过程'!$A:$P,16,0)*T79/10000*S79*(1+(Y79-1)*30%)*[4]战斗节奏!$E$28,0) -> 3540.32 | AA79: 14 | AB79: 140403 | AC79: 1 | AD79: 3 | AE79: =IFERROR(VLOOKUP(AB79,'[4]英雄技能-过程'!$A:$P,14,0)*T79/10000*Q79*(1+(AD79-1)*30%)*[4]战斗节奏!$C$28+VLOOKUP(AB79,'[4]英雄技能-过程'!$A:$P,15,0)*T79/10000*R79*(1+(AD79-1)*30%)*[4]战斗节奏!$D$28+VLOOKUP(AB79,'[4]英雄技能-过程'!$A:$P,16,0)*T79/10000*S79*(1+(AD79-1)*30%)*[4]战斗节奏!$E$28,0) -> 4970.944 | AF79: 12 | AG79: 430301 | AH79: 1 | AI79: 2 | AJ79: =IFERROR(VLOOKUP(AG79,'[4]英雄技能-过程'!$A:$P,14,0)*T79/10000*Q79*(1+(AI79-1)*30%)*[4]战斗节奏!$C$28+VLOOKUP(AG79,'[4]英雄技能-过程'!$A:$P,15,0)*T79/10000*R79*(1+(AI79-1)*30%)*[4]战斗节奏!$D$28+VLOOKUP(AG79,'[4]英雄技能-过程'!$A:$P,16,0)*T79/10000*S79*(1+(AI79-1)*30%)*[4]战斗节奏!$E$28,0) -> 4038.892 | AK79: 11 | AL79: 110501 | AM79: 1 | AN79: 2 | AO79: =IFERROR(VLOOKUP(AL79,'[4]英雄技能-过程'!$A:$P,14,0)*T79/10000*Q79*(1+(AN79-1)*30%)*[4]战斗节奏!$C$28+VLOOKUP(AL79,'[4]英雄技能-过程'!$A:$P,15,0)*T79/10000*R79*(1+(AN79-1)*30%)*[4]战斗节奏!$D$28+VLOOKUP(AL79,'[4]英雄技能-过程'!$A:$P,16,0)*T79/10000*S79*(1+(AN79-1)*30%)*[4]战斗节奏!$E$28,0) -> 3343.262 | AP79: 13 | AQ79: 110402 | AR79: 1 | AS79: 2 | AT79: =IFERROR(VLOOKUP(AQ79,'[4]英雄技能-过程'!$A:$P,14,0)*T79/10000*Q79*(1+(AS79-1)*30%)*[4]战斗节奏!$C$28+VLOOKUP(AQ79,'[4]英雄技能-过程'!$A:$P,15,0)*T79/10000*R79*(1+(AS79-1)*30%)*[4]战斗节奏!$D$28+VLOOKUP(AQ79,'[4]英雄技能-过程'!$A:$P,16,0)*T79/10000*S79*(1+(AS79-1)*30%)*[4]战斗节奏!$E$28,0) -> 3343.262 | AU79: 4 | AV79: 120602 | AW79: 1 | AX79: 2 | AY79: =IFERROR(VLOOKUP(AV79,'[4]英雄技能-过程'!$A:$P,14,0)*T79/10000*Q79*(1+(AX79-1)*30%)*[4]战斗节奏!$C$28+VLOOKUP(AV79,'[4]英雄技能-过程'!$A:$P,15,0)*T79/10000*R79*(1+(AX79-1)*30%)*[4]战斗节奏!$D$28+VLOOKUP(AV79,'[4]英雄技能-过程'!$A:$P,16,0)*T79/10000*S79*(1+(AX79-1)*30%)*[4]战斗节奏!$E$28,0) -> 6897.15 | AZ79: 2 | BA79: 120401 | BB79: 1 | BC79: 1 | BD79: =IFERROR(VLOOKUP(BA79,'[4]英雄技能-过程'!$A:$P,14,0)*T79/10000*Q79*(1+(BC79-1)*30%)*[4]战斗节奏!$C$28+VLOOKUP(BA79,'[4]英雄技能-过程'!$A:$P,15,0)*T79/10000*R79*(1+(BC79-1)*30%)*[4]战斗节奏!$D$28+VLOOKUP(BA79,'[4]英雄技能-过程'!$A:$P,16,0)*T79/10000*S79*(1+(BC79-1)*30%)*[4]战斗节奏!$E$28,0) -> 4351.5 | BH79: 0 | BI79: =IFERROR(VLOOKUP(BF79,'[4]英雄技能-过程'!$A:$P,14,0)*T79/10000*Q79*(1+(BH79-1)*30%)*[4]战斗节奏!$C$28+VLOOKUP(BF79,'[4]英雄技能-过程'!$A:$P,15,0)*T79/10000*R79*(1+(BH79-1)*30%)*[4]战斗节奏!$D$28+VLOOKUP(BF79,'[4]英雄技能-过程'!$A:$P,16,0)*T79/10000*S79*(1+(BH79-1)*30%)*[4]战斗节奏!$E$28,0) -> 0 | BJ79: 16&110201&1&3 | BK79: 14&140403&1&3 | BL79: 12&430301&1&2 | BM79: 11&110501&1&2 | BN79: 13&110402&1&2 | BO79: 4&120602&1&2 | BP79: 2&120401&1&1
E80: 1 | F80: 2 | N80: 38882.9637 | O80: 4 | P80: 16 | Q80: 9 | R80: 9 | S80: 10.6 | T80: 21000 | U80: 16&140201&1&3;15&110201&1&3;12&430301&1&2;11&110402&1&2;4&120602&1&2;2&120401&1&2;5&130603&1&1;1&130401&1&1 | V80: 16 | W80: 140201 | X80: 1 | Y80: 3 | Z80: =IFERROR(VLOOKUP(W80,'[4]英雄技能-过程'!$A:$P,14,0)*T80/10000*Q80*(1+(Y80-1)*30%)*[4]战斗节奏!$C$28+VLOOKUP(W80,'[4]英雄技能-过程'!$A:$P,15,0)*T80/10000*R80*(1+(Y80-1)*30%)*[4]战斗节奏!$D$28+VLOOKUP(W80,'[4]英雄技能-过程'!$A:$P,16,0)*T80/10000*S80*(1+(Y80-1)*30%)*[4]战斗节奏!$E$28,0) -> 3717.336 | AA80: 15 | AB80: 110201 | AC80: 1 | AD80: 3 | AE80: =IFERROR(VLOOKUP(AB80,'[4]英雄技能-过程'!$A:$P,14,0)*T80/10000*Q80*(1+(AD80-1)*30%)*[4]战斗节奏!$C$28+VLOOKUP(AB80,'[4]英雄技能-过程'!$A:$P,15,0)*T80/10000*R80*(1+(AD80-1)*30%)*[4]战斗节奏!$D$28+VLOOKUP(AB80,'[4]英雄技能-过程'!$A:$P,16,0)*T80/10000*S80*(1+(AD80-1)*30%)*[4]战斗节奏!$E$28,0) -> 3717.336 | AF80: 12 | AG80: 430301 | AH80: 1 | AI80: 2 | AJ80: =IFERROR(VLOOKUP(AG80,'[4]英雄技能-过程'!$A:$P,14,0)*T80/10000*Q80*(1+(AI80-1)*30%)*[4]战斗节奏!$C$28+VLOOKUP(AG80,'[4]英雄技能-过程'!$A:$P,15,0)*T80/10000*R80*(1+(AI80-1)*30%)*[4]战斗节奏!$D$28+VLOOKUP(AG80,'[4]英雄技能-过程'!$A:$P,16,0)*T80/10000*S80*(1+(AI80-1)*30%)*[4]战斗节奏!$E$28,0) -> 4240.8366 | AK80: 11 | AL80: 110402 | AM80: 1 | AN80: 2 | AO80: =IFERROR(VLOOKUP(AL80,'[4]英雄技能-过程'!$A:$P,14,0)*T80/10000*Q80*(1+(AN80-1)*30%)*[4]战斗节奏!$C$28+VLOOKUP(AL80,'[4]英雄技能-过程'!$A:$P,15,0)*T80/10000*R80*(1+(AN80-1)*30%)*[4]战斗节奏!$D$28+VLOOKUP(AL80,'[4]英雄技能-过程'!$A:$P,16,0)*T80/10000*S80*(1+(AN80-1)*30%)*[4]战斗节奏!$E$28,0) -> 3510.4251 | AP80: 4 | AQ80: 120602 | AR80: 1 | AS80: 2 | AT80: =IFERROR(VLOOKUP(AQ80,'[4]英雄技能-过程'!$A:$P,14,0)*T80/10000*Q80*(1+(AS80-1)*30%)*[4]战斗节奏!$C$28+VLOOKUP(AQ80,'[4]英雄技能-过程'!$A:$P,15,0)*T80/10000*R80*(1+(AS80-1)*30%)*[4]战斗节奏!$D$28+VLOOKUP(AQ80,'[4]英雄技能-过程'!$A:$P,16,0)*T80/10000*S80*(1+(AS80-1)*30%)*[4]战斗节奏!$E$28,0) -> 7242.0075 | AU80: 2 | AV80: 120401 | AW80: 1 | AX80: 2 | AY80: =IFERROR(VLOOKUP(AV80,'[4]英雄技能-过程'!$A:$P,14,0)*T80/10000*Q80*(1+(AX80-1)*30%)*[4]战斗节奏!$C$28+VLOOKUP(AV80,'[4]英雄技能-过程'!$A:$P,15,0)*T80/10000*R80*(1+(AX80-1)*30%)*[4]战斗节奏!$D$28+VLOOKUP(AV80,'[4]英雄技能-过程'!$A:$P,16,0)*T80/10000*S80*(1+(AX80-1)*30%)*[4]战斗节奏!$E$28,0) -> 5939.7975 | AZ80: 5 | BA80: 130603 | BB80: 1 | BC80: 1 | BD80: =IFERROR(VLOOKUP(BA80,'[4]英雄技能-过程'!$A:$P,14,0)*T80/10000*Q80*(1+(BC80-1)*30%)*[4]战斗节奏!$C$28+VLOOKUP(BA80,'[4]英雄技能-过程'!$A:$P,15,0)*T80/10000*R80*(1+(BC80-1)*30%)*[4]战斗节奏!$D$28+VLOOKUP(BA80,'[4]英雄技能-过程'!$A:$P,16,0)*T80/10000*S80*(1+(BC80-1)*30%)*[4]战斗节奏!$E$28,0) -> 6010.725 | BE80: 1 | BF80: 130401 | BG80: 1 | BH80: 1 | BI80: =IFERROR(VLOOKUP(BF80,'[4]英雄技能-过程'!$A:$P,14,0)*T80/10000*Q80*(1+(BH80-1)*30%)*[4]战斗节奏!$C$28+VLOOKUP(BF80,'[4]英雄技能-过程'!$A:$P,15,0)*T80/10000*R80*(1+(BH80-1)*30%)*[4]战斗节奏!$D$28+VLOOKUP(BF80,'[4]英雄技能-过程'!$A:$P,16,0)*T80/10000*S80*(1+(BH80-1)*30%)*[4]战斗节奏!$E$28,0) -> 4504.5 | BJ80: 16&140201&1&3 | BK80: 15&110201&1&3 | BL80: 12&430301&1&2 | BM80: 11&110402&1&2 | BN80: 4&120602&1&2 | BO80: 2&120401&1&2 | BP80: 5&130603&1&1 | BQ80: 1&130401&1&1
D81: 0 | E81: 2 | F81: 2 | N81: 40836.862 | O81: 4 | P81: 17 | Q81: 9 | R81: 9 | S81: 10.6 | T81: 22000 | U81: 16&140201&1&3;15&110501&1&3;12&430301&1&3;11&110201&1&2;14&110402&1&2;4&120602&1&2;2&120401&1&2;5&130603&1&1 | V81: 16 | W81: 140201 | X81: 1 | Y81: 3 | Z81: =IFERROR(VLOOKUP(W81,'[4]英雄技能-过程'!$A:$P,14,0)*T81/10000*Q81*(1+(Y81-1)*30%)*[4]战斗节奏!$C$28+VLOOKUP(W81,'[4]英雄技能-过程'!$A:$P,15,0)*T81/10000*R81*(1+(Y81-1)*30%)*[4]战斗节奏!$D$28+VLOOKUP(W81,'[4]英雄技能-过程'!$A:$P,16,0)*T81/10000*S81*(1+(Y81-1)*30%)*[4]战斗节奏!$E$28,0) -> 3894.352 | AA81: 15 | AB81: 110501 | AC81: 1 | AD81: 3 | AE81: =IFERROR(VLOOKUP(AB81,'[4]英雄技能-过程'!$A:$P,14,0)*T81/10000*Q81*(1+(AD81-1)*30%)*[4]战斗节奏!$C$28+VLOOKUP(AB81,'[4]英雄技能-过程'!$A:$P,15,0)*T81/10000*R81*(1+(AD81-1)*30%)*[4]战斗节奏!$D$28+VLOOKUP(AB81,'[4]英雄技能-过程'!$A:$P,16,0)*T81/10000*S81*(1+(AD81-1)*30%)*[4]战斗节奏!$E$28,0) -> 4526.2624 | AF81: 12 | AG81: 430301 | AH81: 1 | AI81: 3 | AJ81: =IFERROR(VLOOKUP(AG81,'[4]英雄技能-过程'!$A:$P,14,0)*T81/10000*Q81*(1+(AI81-1)*30%)*[4]战斗节奏!$C$28+VLOOKUP(AG81,'[4]英雄技能-过程'!$A:$P,15,0)*T81/10000*R81*(1+(AI81-1)*30%)*[4]战斗节奏!$D$28+VLOOKUP(AG81,'[4]英雄技能-过程'!$A:$P,16,0)*T81/10000*S81*(1+(AI81-1)*30%)*[4]战斗节奏!$E$28,0) -> 5468.0384 | AK81: 11 | AL81: 110201 | AM81: 1 | AN81: 2 | AO81: =IFERROR(VLOOKUP(AL81,'[4]英雄技能-过程'!$A:$P,14,0)*T81/10000*Q81*(1+(AN81-1)*30%)*[4]战斗节奏!$C$28+VLOOKUP(AL81,'[4]英雄技能-过程'!$A:$P,15,0)*T81/10000*R81*(1+(AN81-1)*30%)*[4]战斗节奏!$D$28+VLOOKUP(AL81,'[4]英雄技能-过程'!$A:$P,16,0)*T81/10000*S81*(1+(AN81-1)*30%)*[4]战斗节奏!$E$28,0) -> 3164.161 | AP81: 14 | AQ81: 110402 | AR81: 1 | AS81: 2 | AT81: =IFERROR(VLOOKUP(AQ81,'[4]英雄技能-过程'!$A:$P,14,0)*T81/10000*Q81*(1+(AS81-1)*30%)*[4]战斗节奏!$C$28+VLOOKUP(AQ81,'[4]英雄技能-过程'!$A:$P,15,0)*T81/10000*R81*(1+(AS81-1)*30%)*[4]战斗节奏!$D$28+VLOOKUP(AQ81,'[4]英雄技能-过程'!$A:$P,16,0)*T81/10000*S81*(1+(AS81-1)*30%)*[4]战斗节奏!$E$28,0) -> 3677.5882 | AU81: 4 | AV81: 120602 | AW81: 1 | AX81: 2 | AY81: =IFERROR(VLOOKUP(AV81,'[4]英雄技能-过程'!$A:$P,14,0)*T81/10000*Q81*(1+(AX81-1)*30%)*[4]战斗节奏!$C$28+VLOOKUP(AV81,'[4]英雄技能-过程'!$A:$P,15,0)*T81/10000*R81*(1+(AX81-1)*30%)*[4]战斗节奏!$D$28+VLOOKUP(AV81,'[4]英雄技能-过程'!$A:$P,16,0)*T81/10000*S81*(1+(AX81-1)*30%)*[4]战斗节奏!$E$28,0) -> 7586.865 | AZ81: 2 | BA81: 120401 | BB81: 1 | BC81: 2 | BD81: =IFERROR(VLOOKUP(BA81,'[4]英雄技能-过程'!$A:$P,14,0)*T81/10000*Q81*(1+(BC81-1)*30%)*[4]战斗节奏!$C$28+VLOOKUP(BA81,'[4]英雄技能-过程'!$A:$P,15,0)*T81/10000*R81*(1+(BC81-1)*30%)*[4]战斗节奏!$D$28+VLOOKUP(BA81,'[4]英雄技能-过程'!$A:$P,16,0)*T81/10000*S81*(1+(BC81-1)*30%)*[4]战斗节奏!$E$28,0) -> 6222.645 | BE81: 5 | BF81: 130603 | BG81: 1 | BH81: 1 | BI81: =IFERROR(VLOOKUP(BF81,'[4]英雄技能-过程'!$A:$P,14,0)*T81/10000*Q81*(1+(BH81-1)*30%)*[4]战斗节奏!$C$28+VLOOKUP(BF81,'[4]英雄技能-过程'!$A:$P,15,0)*T81/10000*R81*(1+(BH81-1)*30%)*[4]战斗节奏!$D$28+VLOOKUP(BF81,'[4]英雄技能-过程'!$A:$P,16,0)*T81/10000*S81*(1+(BH81-1)*30%)*[4]战斗节奏!$E$28,0) -> 6296.95 | BJ81: 16&140201&1&3 | BK81: 15&110501&1&3 | BL81: 12&430301&1&3 | BM81: 11&110201&1&2 | BN81: 14&110402&1&2 | BO81: 4&120602&1&2 | BP81: 2&120401&1&2 | BQ81: 5&130603&1&1
B82: 2 | C82: 15 | D82: =D81+C82 -> 15 | E82: 3 | F82: 2 | N82: 42399.5892 | O82: 4 | P82: 18 | Q82: 9 | R82: 9 | S82: 10.6 | T82: 23000 | U82: 16&140201&1&3;13&110201&1&3;12&430301&1&3;11&110402&1&2;1&110501&1&2;2&120401&1&2;3&120602&1&2;1&130401&1&2 | V82: 16 | W82: 140201 | X82: 1 | Y82: 3 | Z82: =IFERROR(VLOOKUP(W82,'[4]英雄技能-过程'!$A:$P,14,0)*T82/10000*Q82*(1+(Y82-1)*30%)*[4]战斗节奏!$C$28+VLOOKUP(W82,'[4]英雄技能-过程'!$A:$P,15,0)*T82/10000*R82*(1+(Y82-1)*30%)*[4]战斗节奏!$D$28+VLOOKUP(W82,'[4]英雄技能-过程'!$A:$P,16,0)*T82/10000*S82*(1+(Y82-1)*30%)*[4]战斗节奏!$E$28,0) -> 4071.368 | AA82: 13 | AB82: 110201 | AC82: 1 | AD82: 3 | AE82: =IFERROR(VLOOKUP(AB82,'[4]英雄技能-过程'!$A:$P,14,0)*T82/10000*Q82*(1+(AD82-1)*30%)*[4]战斗节奏!$C$28+VLOOKUP(AB82,'[4]英雄技能-过程'!$A:$P,15,0)*T82/10000*R82*(1+(AD82-1)*30%)*[4]战斗节奏!$D$28+VLOOKUP(AB82,'[4]英雄技能-过程'!$A:$P,16,0)*T82/10000*S82*(1+(AD82-1)*30%)*[4]战斗节奏!$E$28,0) -> 4071.368 | AF82: 12 | AG82: 430301 | AH82: 1 | AI82: 3 | AJ82: =IFERROR(VLOOKUP(AG82,'[4]英雄技能-过程'!$A:$P,14,0)*T82/10000*Q82*(1+(AI82-1)*30%)*[4]战斗节奏!$C$28+VLOOKUP(AG82,'[4]英雄技能-过程'!$A:$P,15,0)*T82/10000*R82*(1+(AI82-1)*30%)*[4]战斗节奏!$D$28+VLOOKUP(AG82,'[4]英雄技能-过程'!$A:$P,16,0)*T82/10000*S82*(1+(AI82-1)*30%)*[4]战斗节奏!$E$28,0) -> 5716.5856 | AK82: 11 | AL82: 110402 | AM82: 1 | AN82: 2 | AO82: =IFERROR(VLOOKUP(AL82,'[4]英雄技能-过程'!$A:$P,14,0)*T82/10000*Q82*(1+(AN82-1)*30%)*[4]战斗节奏!$C$28+VLOOKUP(AL82,'[4]英雄技能-过程'!$A:$P,15,0)*T82/10000*R82*(1+(AN82-1)*30%)*[4]战斗节奏!$D$28+VLOOKUP(AL82,'[4]英雄技能-过程'!$A:$P,16,0)*T82/10000*S82*(1+(AN82-1)*30%)*[4]战斗节奏!$E$28,0) -> 3844.7513 | AP82: 1 | AQ82: 110501 | AR82: 1 | AS82: 2 | AT82: =IFERROR(VLOOKUP(AQ82,'[4]英雄技能-过程'!$A:$P,14,0)*T82/10000*Q82*(1+(AS82-1)*30%)*[4]战斗节奏!$C$28+VLOOKUP(AQ82,'[4]英雄技能-过程'!$A:$P,15,0)*T82/10000*R82*(1+(AS82-1)*30%)*[4]战斗节奏!$D$28+VLOOKUP(AQ82,'[4]英雄技能-过程'!$A:$P,16,0)*T82/10000*S82*(1+(AS82-1)*30%)*[4]战斗节奏!$E$28,0) -> 3844.7513 | AU82: 2 | AV82: 120401 | AW82: 1 | AX82: 2 | AY82: =IFERROR(VLOOKUP(AV82,'[4]英雄技能-过程'!$A:$P,14,0)*T82/10000*Q82*(1+(AX82-1)*30%)*[4]战斗节奏!$C$28+VLOOKUP(AV82,'[4]英雄技能-过程'!$A:$P,15,0)*T82/10000*R82*(1+(AX82-1)*30%)*[4]战斗节奏!$D$28+VLOOKUP(AV82,'[4]英雄技能-过程'!$A:$P,16,0)*T82/10000*S82*(1+(AX82-1)*30%)*[4]战斗节奏!$E$28,0) -> 6505.4925 | AZ82: 3 | BA82: 120602 | BB82: 1 | BC82: 2 | BD82: =IFERROR(VLOOKUP(BA82,'[4]英雄技能-过程'!$A:$P,14,0)*T82/10000*Q82*(1+(BC82-1)*30%)*[4]战斗节奏!$C$28+VLOOKUP(BA82,'[4]英雄技能-过程'!$A:$P,15,0)*T82/10000*R82*(1+(BC82-1)*30%)*[4]战斗节奏!$D$28+VLOOKUP(BA82,'[4]英雄技能-过程'!$A:$P,16,0)*T82/10000*S82*(1+(BC82-1)*30%)*[4]战斗节奏!$E$28,0) -> 7931.7225 | BE82: 1 | BF82: 130401 | BG82: 1 | BH82: 2 | BI82: =IFERROR(VLOOKUP(BF82,'[4]英雄技能-过程'!$A:$P,14,0)*T82/10000*Q82*(1+(BH82-1)*30%)*[4]战斗节奏!$C$28+VLOOKUP(BF82,'[4]英雄技能-过程'!$A:$P,15,0)*T82/10000*R82*(1+(BH82-1)*30%)*[4]战斗节奏!$D$28+VLOOKUP(BF82,'[4]英雄技能-过程'!$A:$P,16,0)*T82/10000*S82*(1+(BH82-1)*30%)*[4]战斗节奏!$E$28,0) -> 6413.55 | BJ82: 16&140201&1&3 | BK82: 13&110201&1&3 | BL82: 12&430301&1&3 | BM82: 11&110402&1&2 | BN82: 1&110501&1&2 | BO82: 2&120401&1&2 | BP82: 3&120602&1&2 | BQ82: 1&130401&1&2
B83: 3 | C83: 20 | D83: 35 | E83: 4 | F83: 4 | N83: 50754.4992 | O83: 4 | P83: 19 | Q83: 9 | R83: 9 | S83: 10.6 | T83: 24000 | U83: 17&140201&1&4;13&110201&1&4;12&430301&1&3;1&110402&1&2;2&120401&1&2;3&120602&1&2;5&130603&1&2;1&130401&1&2 | V83: 17 | W83: 140201 | X83: 1 | Y83: 4 | Z83: =IFERROR(VLOOKUP(W83,'[4]英雄技能-过程'!$A:$P,14,0)*T83/10000*Q83*(1+(Y83-1)*30%)*[4]战斗节奏!$C$28+VLOOKUP(W83,'[4]英雄技能-过程'!$A:$P,15,0)*T83/10000*R83*(1+(Y83-1)*30%)*[4]战斗节奏!$D$28+VLOOKUP(W83,'[4]英雄技能-过程'!$A:$P,16,0)*T83/10000*S83*(1+(Y83-1)*30%)*[4]战斗节奏!$E$28,0) -> 5044.956 | AA83: 13 | AB83: 110201 | AC83: 1 | AD83: 4 | AE83: =IFERROR(VLOOKUP(AB83,'[4]英雄技能-过程'!$A:$P,14,0)*T83/10000*Q83*(1+(AD83-1)*30%)*[4]战斗节奏!$C$28+VLOOKUP(AB83,'[4]英雄技能-过程'!$A:$P,15,0)*T83/10000*R83*(1+(AD83-1)*30%)*[4]战斗节奏!$D$28+VLOOKUP(AB83,'[4]英雄技能-过程'!$A:$P,16,0)*T83/10000*S83*(1+(AD83-1)*30%)*[4]战斗节奏!$E$28,0) -> 5044.956 | AF83: 12 | AG83: 430301 | AH83: 1 | AI83: 3 | AJ83: =IFERROR(VLOOKUP(AG83,'[4]英雄技能-过程'!$A:$P,14,0)*T83/10000*Q83*(1+(AI83-1)*30%)*[4]战斗节奏!$C$28+VLOOKUP(AG83,'[4]英雄技能-过程'!$A:$P,15,0)*T83/10000*R83*(1+(AI83-1)*30%)*[4]战斗节奏!$D$28+VLOOKUP(AG83,'[4]英雄技能-过程'!$A:$P,16,0)*T83/10000*S83*(1+(AI83-1)*30%)*[4]战斗节奏!$E$28,0) -> 5965.1328 | AK83: 1 | AL83: 110402 | AM83: 1 | AN83: 2 | AO83: =IFERROR(VLOOKUP(AL83,'[4]英雄技能-过程'!$A:$P,14,0)*T83/10000*Q83*(1+(AN83-1)*30%)*[4]战斗节奏!$C$28+VLOOKUP(AL83,'[4]英雄技能-过程'!$A:$P,15,0)*T83/10000*R83*(1+(AN83-1)*30%)*[4]战斗节奏!$D$28+VLOOKUP(AL83,'[4]英雄技能-过程'!$A:$P,16,0)*T83/10000*S83*(1+(AN83-1)*30%)*[4]战斗节奏!$E$28,0) -> 4011.9144 | AP83: 2 | AQ83: 120401 | AR83: 1 | AS83: 2 | AT83: =IFERROR(VLOOKUP(AQ83,'[4]英雄技能-过程'!$A:$P,14,0)*T83/10000*Q83*(1+(AS83-1)*30%)*[4]战斗节奏!$C$28+VLOOKUP(AQ83,'[4]英雄技能-过程'!$A:$P,15,0)*T83/10000*R83*(1+(AS83-1)*30%)*[4]战斗节奏!$D$28+VLOOKUP(AQ83,'[4]英雄技能-过程'!$A:$P,16,0)*T83/10000*S83*(1+(AS83-1)*30%)*[4]战斗节奏!$E$28,0) -> 6788.34 | AU83: 3 | AV83: 120602 | AW83: 1 | AX83: 2 | AY83: =IFERROR(VLOOKUP(AV83,'[4]英雄技能-过程'!$A:$P,14,0)*T83/10000*Q83*(1+(AX83-1)*30%)*[4]战斗节奏!$C$28+VLOOKUP(AV83,'[4]英雄技能-过程'!$A:$P,15,0)*T83/10000*R83*(1+(AX83-1)*30%)*[4]战斗节奏!$D$28+VLOOKUP(AV83,'[4]英雄技能-过程'!$A:$P,16,0)*T83/10000*S83*(1+(AX83-1)*30%)*[4]战斗节奏!$E$28,0) -> 8276.58 | AZ83: 5 | BA83: 130603 | BB83: 1 | BC83: 2 | BD83: =IFERROR(VLOOKUP(BA83,'[4]英雄技能-过程'!$A:$P,14,0)*T83/10000*Q83*(1+(BC83-1)*30%)*[4]战斗节奏!$C$28+VLOOKUP(BA83,'[4]英雄技能-过程'!$A:$P,15,0)*T83/10000*R83*(1+(BC83-1)*30%)*[4]战斗节奏!$D$28+VLOOKUP(BA83,'[4]英雄技能-过程'!$A:$P,16,0)*T83/10000*S83*(1+(BC83-1)*30%)*[4]战斗节奏!$E$28,0) -> 8930.22 | BE83: 1 | BF83: 130401 | BG83: 1 | BH83: 2 | BI83: =IFERROR(VLOOKUP(BF83,'[4]英雄技能-过程'!$A:$P,14,0)*T83/10000*Q83*(1+(BH83-1)*30%)*[4]战斗节奏!$C$28+VLOOKUP(BF83,'[4]英雄技能-过程'!$A:$P,15,0)*T83/10000*R83*(1+(BH83-1)*30%)*[4]战斗节奏!$D$28+VLOOKUP(BF83,'[4]英雄技能-过程'!$A:$P,16,0)*T83/10000*S83*(1+(BH83-1)*30%)*[4]战斗节奏!$E$28,0) -> 6692.4 | BJ83: 17&140201&1&4 | BK83: 13&110201&1&4 | BL83: 12&430301&1&3 | BM83: 1&110402&1&2 | BN83: 2&120401&1&2 | BO83: 3&120602&1&2 | BP83: 5&130603&1&2 | BQ83: 1&130401&1&2
B84: 4 | C84: 40 | D84: 75 | E84: 5 | F84: 6 | N84: 50906.86 | O84: 4 | P84: 20 | Q84: 9 | R84: 9 | S84: 10.6 | T84: 25000 | U84: 16&140201&1&4;13&110201&1&5;12&430301&1&3;11&110402&1&2;1&110501&1&2;2&120401&1&2;3&120602&1&2;1&130603&1&2 | V84: 16 | W84: 140201 | X84: 1 | Y84: 4 | Z84: =IFERROR(VLOOKUP(W84,'[4]英雄技能-过程'!$A:$P,14,0)*T84/10000*Q84*(1+(Y84-1)*30%)*[4]战斗节奏!$C$28+VLOOKUP(W84,'[4]英雄技能-过程'!$A:$P,15,0)*T84/10000*R84*(1+(Y84-1)*30%)*[4]战斗节奏!$D$28+VLOOKUP(W84,'[4]英雄技能-过程'!$A:$P,16,0)*T84/10000*S84*(1+(Y84-1)*30%)*[4]战斗节奏!$E$28,0) -> 5255.1625 | AA84: 13 | AB84: 110201 | AC84: 1 | AD84: 5 | AE84: =IFERROR(VLOOKUP(AB84,'[4]英雄技能-过程'!$A:$P,14,0)*T84/10000*Q84*(1+(AD84-1)*30%)*[4]战斗节奏!$C$28+VLOOKUP(AB84,'[4]英雄技能-过程'!$A:$P,15,0)*T84/10000*R84*(1+(AD84-1)*30%)*[4]战斗节奏!$D$28+VLOOKUP(AB84,'[4]英雄技能-过程'!$A:$P,16,0)*T84/10000*S84*(1+(AD84-1)*30%)*[4]战斗节奏!$E$28,0) -> 6084.925 | AF84: 12 | AG84: 430301 | AH84: 1 | AI84: 3 | AJ84: =IFERROR(VLOOKUP(AG84,'[4]英雄技能-过程'!$A:$P,14,0)*T84/10000*Q84*(1+(AI84-1)*30%)*[4]战斗节奏!$C$28+VLOOKUP(AG84,'[4]英雄技能-过程'!$A:$P,15,0)*T84/10000*R84*(1+(AI84-1)*30%)*[4]战斗节奏!$D$28+VLOOKUP(AG84,'[4]英雄技能-过程'!$A:$P,16,0)*T84/10000*S84*(1+(AI84-1)*30%)*[4]战斗节奏!$E$28,0) -> 6213.68 | AK84: 11 | AL84: 110402 | AM84: 1 | AN84: 2 | AO84: =IFERROR(VLOOKUP(AL84,'[4]英雄技能-过程'!$A:$P,14,0)*T84/10000*Q84*(1+(AN84-1)*30%)*[4]战斗节奏!$C$28+VLOOKUP(AL84,'[4]英雄技能-过程'!$A:$P,15,0)*T84/10000*R84*(1+(AN84-1)*30%)*[4]战斗节奏!$D$28+VLOOKUP(AL84,'[4]英雄技能-过程'!$A:$P,16,0)*T84/10000*S84*(1+(AN84-1)*30%)*[4]战斗节奏!$E$28,0) -> 4179.0775 | AP84: 1 | AQ84: 110501 | AR84: 1 | AS84: 2 | AT84: =IFERROR(VLOOKUP(AQ84,'[4]英雄技能-过程'!$A:$P,14,0)*T84/10000*Q84*(1+(AS84-1)*30%)*[4]战斗节奏!$C$28+VLOOKUP(AQ84,'[4]英雄技能-过程'!$A:$P,15,0)*T84/10000*R84*(1+(AS84-1)*30%)*[4]战斗节奏!$D$28+VLOOKUP(AQ84,'[4]英雄技能-过程'!$A:$P,16,0)*T84/10000*S84*(1+(AS84-1)*30%)*[4]战斗节奏!$E$28,0) -> 4179.0775 | AU84: 2 | AV84: 120401 | AW84: 1 | AX84: 2 | AY84: =IFERROR(VLOOKUP(AV84,'[4]英雄技能-过程'!$A:$P,14,0)*T84/10000*Q84*(1+(AX84-1)*30%)*[4]战斗节奏!$C$28+VLOOKUP(AV84,'[4]英雄技能-过程'!$A:$P,15,0)*T84/10000*R84*(1+(AX84-1)*30%)*[4]战斗节奏!$D$28+VLOOKUP(AV84,'[4]英雄技能-过程'!$A:$P,16,0)*T84/10000*S84*(1+(AX84-1)*30%)*[4]战斗节奏!$E$28,0) -> 7071.1875 | AZ84: 3 | BA84: 120602 | BB84: 1 | BC84: 2 | BD84: =IFERROR(VLOOKUP(BA84,'[4]英雄技能-过程'!$A:$P,14,0)*T84/10000*Q84*(1+(BC84-1)*30%)*[4]战斗节奏!$C$28+VLOOKUP(BA84,'[4]英雄技能-过程'!$A:$P,15,0)*T84/10000*R84*(1+(BC84-1)*30%)*[4]战斗节奏!$D$28+VLOOKUP(BA84,'[4]英雄技能-过程'!$A:$P,16,0)*T84/10000*S84*(1+(BC84-1)*30%)*[4]战斗节奏!$E$28,0) -> 8621.4375 | BE84: 1 | BF84: 130603 | BG84: 1 | BH84: 2 | BI84: =IFERROR(VLOOKUP(BF84,'[4]英雄技能-过程'!$A:$P,14,0)*T84/10000*Q84*(1+(BH84-1)*30%)*[4]战斗节奏!$C$28+VLOOKUP(BF84,'[4]英雄技能-过程'!$A:$P,15,0)*T84/10000*R84*(1+(BH84-1)*30%)*[4]战斗节奏!$D$28+VLOOKUP(BF84,'[4]英雄技能-过程'!$A:$P,16,0)*T84/10000*S84*(1+(BH84-1)*30%)*[4]战斗节奏!$E$28,0) -> 9302.3125 | BJ84: 16&140201&1&4 | BK84: 13&110201&1&5 | BL84: 12&430301&1&3 | BM84: 11&110402&1&2 | BN84: 1&110501&1&2 | BO84: 2&120401&1&2 | BP84: 3&120602&1&2 | BQ84: 1&130603&1&2
B85: 5 | C85: 50 | D85: 125 | E85: 6 | F85: 8 | N85: 5147.328 | O85: 5 | P85: 1 | Q85: 17 | R85: 17 | S85: 20.2 | T85: 10000 | U85: 2&120201&1&4 | V85: 2 | W85: 120201 | X85: 1 | Y85: 4 | Z85: =IFERROR(VLOOKUP(W85,'[4]英雄技能-过程'!$A:$P,14,0)*T85/10000*Q85*(1+(Y85-1)*30%)*[4]战斗节奏!$C$28+VLOOKUP(W85,'[4]英雄技能-过程'!$A:$P,15,0)*T85/10000*R85*(1+(Y85-1)*30%)*[4]战斗节奏!$D$28+VLOOKUP(W85,'[4]英雄技能-过程'!$A:$P,16,0)*T85/10000*S85*(1+(Y85-1)*30%)*[4]战斗节奏!$E$28,0) -> 5147.328 | AD85: 0 | AE85: =IFERROR(VLOOKUP(AB85,'[4]英雄技能-过程'!$A:$P,14,0)*T85/10000*Q85*(1+(AD85-1)*30%)*[4]战斗节奏!$C$28+VLOOKUP(AB85,'[4]英雄技能-过程'!$A:$P,15,0)*T85/10000*R85*(1+(AD85-1)*30%)*[4]战斗节奏!$D$28+VLOOKUP(AB85,'[4]英雄技能-过程'!$A:$P,16,0)*T85/10000*S85*(1+(AD85-1)*30%)*[4]战斗节奏!$E$28,0) -> 0 | AI85: 0 | AJ85: =IFERROR(VLOOKUP(AG85,'[4]英雄技能-过程'!$A:$P,14,0)*T85/10000*Q85*(1+(AI85-1)*30%)*[4]战斗节奏!$C$28+VLOOKUP(AG85,'[4]英雄技能-过程'!$A:$P,15,0)*T85/10000*R85*(1+(AI85-1)*30%)*[4]战斗节奏!$D$28+VLOOKUP(AG85,'[4]英雄技能-过程'!$A:$P,16,0)*T85/10000*S85*(1+(AI85-1)*30%)*[4]战斗节奏!$E$28,0) -> 0 | AN85: 0 | AO85: =IFERROR(VLOOKUP(AL85,'[4]英雄技能-过程'!$A:$P,14,0)*T85/10000*Q85*(1+(AN85-1)*30%)*[4]战斗节奏!$C$28+VLOOKUP(AL85,'[4]英雄技能-过程'!$A:$P,15,0)*T85/10000*R85*(1+(AN85-1)*30%)*[4]战斗节奏!$D$28+VLOOKUP(AL85,'[4]英雄技能-过程'!$A:$P,16,0)*T85/10000*S85*(1+(AN85-1)*30%)*[4]战斗节奏!$E$28,0) -> 0 | AS85: 0 | AT85: =IFERROR(VLOOKUP(AQ85,'[4]英雄技能-过程'!$A:$P,14,0)*T85/10000*Q85*(1+(AS85-1)*30%)*[4]战斗节奏!$C$28+VLOOKUP(AQ85,'[4]英雄技能-过程'!$A:$P,15,0)*T85/10000*R85*(1+(AS85-1)*30%)*[4]战斗节奏!$D$28+VLOOKUP(AQ85,'[4]英雄技能-过程'!$A:$P,16,0)*T85/10000*S85*(1+(AS85-1)*30%)*[4]战斗节奏!$E$28,0) -> 0 | AX85: 0 | AY85: =IFERROR(VLOOKUP(AV85,'[4]英雄技能-过程'!$A:$P,14,0)*T85/10000*Q85*(1+(AX85-1)*30%)*[4]战斗节奏!$C$28+VLOOKUP(AV85,'[4]英雄技能-过程'!$A:$P,15,0)*T85/10000*R85*(1+(AX85-1)*30%)*[4]战斗节奏!$D$28+VLOOKUP(AV85,'[4]英雄技能-过程'!$A:$P,16,0)*T85/10000*S85*(1+(AX85-1)*30%)*[4]战斗节奏!$E$28,0) -> 0 | BC85: 0 | BD85: =IFERROR(VLOOKUP(BA85,'[4]英雄技能-过程'!$A:$P,14,0)*T85/10000*Q85*(1+(BC85-1)*30%)*[4]战斗节奏!$C$28+VLOOKUP(BA85,'[4]英雄技能-过程'!$A:$P,15,0)*T85/10000*R85*(1+(BC85-1)*30%)*[4]战斗节奏!$D$28+VLOOKUP(BA85,'[4]英雄技能-过程'!$A:$P,16,0)*T85/10000*S85*(1+(BC85-1)*30%)*[4]战斗节奏!$E$28,0) -> 0 | BH85: 0 | BI85: =IFERROR(VLOOKUP(BF85,'[4]英雄技能-过程'!$A:$P,14,0)*T85/10000*Q85*(1+(BH85-1)*30%)*[4]战斗节奏!$C$28+VLOOKUP(BF85,'[4]英雄技能-过程'!$A:$P,15,0)*T85/10000*R85*(1+(BH85-1)*30%)*[4]战斗节奏!$D$28+VLOOKUP(BF85,'[4]英雄技能-过程'!$A:$P,16,0)*T85/10000*S85*(1+(BH85-1)*30%)*[4]战斗节奏!$E$28,0) -> 0 | BJ85: 2&120201&1&4
B86: 6 | C86: 60 | D86: 185 | E86: 7 | F86: 10 | N86: 10403.3937 | O86: 5 | P86: 2 | Q86: 17 | R86: 17 | S86: 20.2 | T86: 10500 | U86: 3&120101&1&4;2&140303&1&1 | V86: 3 | W86: 120101 | X86: 1 | Y86: 4 | Z86: =IFERROR(VLOOKUP(W86,'[4]英雄技能-过程'!$A:$P,14,0)*T86/10000*Q86*(1+(Y86-1)*30%)*[4]战斗节奏!$C$28+VLOOKUP(W86,'[4]英雄技能-过程'!$A:$P,15,0)*T86/10000*R86*(1+(Y86-1)*30%)*[4]战斗节奏!$D$28+VLOOKUP(W86,'[4]英雄技能-过程'!$A:$P,16,0)*T86/10000*S86*(1+(Y86-1)*30%)*[4]战斗节奏!$E$28,0) -> 6135.1437 | AA86: 2 | AB86: 140303 | AC86: 1 | AD86: 1 | AE86: =IFERROR(VLOOKUP(AB86,'[4]英雄技能-过程'!$A:$P,14,0)*T86/10000*Q86*(1+(AD86-1)*30%)*[4]战斗节奏!$C$28+VLOOKUP(AB86,'[4]英雄技能-过程'!$A:$P,15,0)*T86/10000*R86*(1+(AD86-1)*30%)*[4]战斗节奏!$D$28+VLOOKUP(AB86,'[4]英雄技能-过程'!$A:$P,16,0)*T86/10000*S86*(1+(AD86-1)*30%)*[4]战斗节奏!$E$28,0) -> 4268.25 | AI86: 0 | AJ86: =IFERROR(VLOOKUP(AG86,'[4]英雄技能-过程'!$A:$P,14,0)*T86/10000*Q86*(1+(AI86-1)*30%)*[4]战斗节奏!$C$28+VLOOKUP(AG86,'[4]英雄技能-过程'!$A:$P,15,0)*T86/10000*R86*(1+(AI86-1)*30%)*[4]战斗节奏!$D$28+VLOOKUP(AG86,'[4]英雄技能-过程'!$A:$P,16,0)*T86/10000*S86*(1+(AI86-1)*30%)*[4]战斗节奏!$E$28,0) -> 0 | AN86: 0 | AO86: =IFERROR(VLOOKUP(AL86,'[4]英雄技能-过程'!$A:$P,14,0)*T86/10000*Q86*(1+(AN86-1)*30%)*[4]战斗节奏!$C$28+VLOOKUP(AL86,'[4]英雄技能-过程'!$A:$P,15,0)*T86/10000*R86*(1+(AN86-1)*30%)*[4]战斗节奏!$D$28+VLOOKUP(AL86,'[4]英雄技能-过程'!$A:$P,16,0)*T86/10000*S86*(1+(AN86-1)*30%)*[4]战斗节奏!$E$28,0) -> 0 | AS86: 0 | AT86: =IFERROR(VLOOKUP(AQ86,'[4]英雄技能-过程'!$A:$P,14,0)*T86/10000*Q86*(1+(AS86-1)*30%)*[4]战斗节奏!$C$28+VLOOKUP(AQ86,'[4]英雄技能-过程'!$A:$P,15,0)*T86/10000*R86*(1+(AS86-1)*30%)*[4]战斗节奏!$D$28+VLOOKUP(AQ86,'[4]英雄技能-过程'!$A:$P,16,0)*T86/10000*S86*(1+(AS86-1)*30%)*[4]战斗节奏!$E$28,0) -> 0 | AX86: 0 | AY86: =IFERROR(VLOOKUP(AV86,'[4]英雄技能-过程'!$A:$P,14,0)*T86/10000*Q86*(1+(AX86-1)*30%)*[4]战斗节奏!$C$28+VLOOKUP(AV86,'[4]英雄技能-过程'!$A:$P,15,0)*T86/10000*R86*(1+(AX86-1)*30%)*[4]战斗节奏!$D$28+VLOOKUP(AV86,'[4]英雄技能-过程'!$A:$P,16,0)*T86/10000*S86*(1+(AX86-1)*30%)*[4]战斗节奏!$E$28,0) -> 0 | BC86: 0 | BD86: =IFERROR(VLOOKUP(BA86,'[4]英雄技能-过程'!$A:$P,14,0)*T86/10000*Q86*(1+(BC86-1)*30%)*[4]战斗节奏!$C$28+VLOOKUP(BA86,'[4]英雄技能-过程'!$A:$P,15,0)*T86/10000*R86*(1+(BC86-1)*30%)*[4]战斗节奏!$D$28+VLOOKUP(BA86,'[4]英雄技能-过程'!$A:$P,16,0)*T86/10000*S86*(1+(BC86-1)*30%)*[4]战斗节奏!$E$28,0) -> 0 | BH86: 0 | BI86: =IFERROR(VLOOKUP(BF86,'[4]英雄技能-过程'!$A:$P,14,0)*T86/10000*Q86*(1+(BH86-1)*30%)*[4]战斗节奏!$C$28+VLOOKUP(BF86,'[4]英雄技能-过程'!$A:$P,15,0)*T86/10000*R86*(1+(BH86-1)*30%)*[4]战斗节奏!$D$28+VLOOKUP(BF86,'[4]英雄技能-过程'!$A:$P,16,0)*T86/10000*S86*(1+(BH86-1)*30%)*[4]战斗节奏!$E$28,0) -> 0 | BJ86: 3&120101&1&4 | BK86: 2&140303&1&1
B87: 7 | C87: 80 | D87: 265 | E87: 8+ | F87: =F86 -> 10 | N87: 13516.3468 | O87: 5 | P87: 3 | Q87: 17 | R87: 17 | S87: 20.2 | T87: 11000 | U87: 4&120201&1&4;3&120101&1&1;2&140303&1&1 | V87: 4 | W87: 120201 | X87: 1 | Y87: 4 | Z87: =IFERROR(VLOOKUP(W87,'[4]英雄技能-过程'!$A:$P,14,0)*T87/10000*Q87*(1+(Y87-1)*30%)*[4]战斗节奏!$C$28+VLOOKUP(W87,'[4]英雄技能-过程'!$A:$P,15,0)*T87/10000*R87*(1+(Y87-1)*30%)*[4]战斗节奏!$D$28+VLOOKUP(W87,'[4]英雄技能-过程'!$A:$P,16,0)*T87/10000*S87*(1+(Y87-1)*30%)*[4]战斗节奏!$E$28,0) -> 5662.0608 | AA87: 3 | AB87: 120101 | AC87: 1 | AD87: 1 | AE87: =IFERROR(VLOOKUP(AB87,'[4]英雄技能-过程'!$A:$P,14,0)*T87/10000*Q87*(1+(AD87-1)*30%)*[4]战斗节奏!$C$28+VLOOKUP(AB87,'[4]英雄技能-过程'!$A:$P,15,0)*T87/10000*R87*(1+(AD87-1)*30%)*[4]战斗节奏!$D$28+VLOOKUP(AB87,'[4]英雄技能-过程'!$A:$P,16,0)*T87/10000*S87*(1+(AD87-1)*30%)*[4]战斗节奏!$E$28,0) -> 3382.786 | AF87: 2 | AG87: 140303 | AH87: 1 | AI87: 1 | AJ87: =IFERROR(VLOOKUP(AG87,'[4]英雄技能-过程'!$A:$P,14,0)*T87/10000*Q87*(1+(AI87-1)*30%)*[4]战斗节奏!$C$28+VLOOKUP(AG87,'[4]英雄技能-过程'!$A:$P,15,0)*T87/10000*R87*(1+(AI87-1)*30%)*[4]战斗节奏!$D$28+VLOOKUP(AG87,'[4]英雄技能-过程'!$A:$P,16,0)*T87/10000*S87*(1+(AI87-1)*30%)*[4]战斗节奏!$E$28,0) -> 4471.5 | AN87: 0 | AO87: =IFERROR(VLOOKUP(AL87,'[4]英雄技能-过程'!$A:$P,14,0)*T87/10000*Q87*(1+(AN87-1)*30%)*[4]战斗节奏!$C$28+VLOOKUP(AL87,'[4]英雄技能-过程'!$A:$P,15,0)*T87/10000*R87*(1+(AN87-1)*30%)*[4]战斗节奏!$D$28+VLOOKUP(AL87,'[4]英雄技能-过程'!$A:$P,16,0)*T87/10000*S87*(1+(AN87-1)*30%)*[4]战斗节奏!$E$28,0) -> 0 | AS87: 0 | AT87: =IFERROR(VLOOKUP(AQ87,'[4]英雄技能-过程'!$A:$P,14,0)*T87/10000*Q87*(1+(AS87-1)*30%)*[4]战斗节奏!$C$28+VLOOKUP(AQ87,'[4]英雄技能-过程'!$A:$P,15,0)*T87/10000*R87*(1+(AS87-1)*30%)*[4]战斗节奏!$D$28+VLOOKUP(AQ87,'[4]英雄技能-过程'!$A:$P,16,0)*T87/10000*S87*(1+(AS87-1)*30%)*[4]战斗节奏!$E$28,0) -> 0 | AX87: 0 | AY87: =IFERROR(VLOOKUP(AV87,'[4]英雄技能-过程'!$A:$P,14,0)*T87/10000*Q87*(1+(AX87-1)*30%)*[4]战斗节奏!$C$28+VLOOKUP(AV87,'[4]英雄技能-过程'!$A:$P,15,0)*T87/10000*R87*(1+(AX87-1)*30%)*[4]战斗节奏!$D$28+VLOOKUP(AV87,'[4]英雄技能-过程'!$A:$P,16,0)*T87/10000*S87*(1+(AX87-1)*30%)*[4]战斗节奏!$E$28,0) -> 0 | BC87: 0 | BD87: =IFERROR(VLOOKUP(BA87,'[4]英雄技能-过程'!$A:$P,14,0)*T87/10000*Q87*(1+(BC87-1)*30%)*[4]战斗节奏!$C$28+VLOOKUP(BA87,'[4]英雄技能-过程'!$A:$P,15,0)*T87/10000*R87*(1+(BC87-1)*30%)*[4]战斗节奏!$D$28+VLOOKUP(BA87,'[4]英雄技能-过程'!$A:$P,16,0)*T87/10000*S87*(1+(BC87-1)*30%)*[4]战斗节奏!$E$28,0) -> 0 | BH87: 0 | BI87: =IFERROR(VLOOKUP(BF87,'[4]英雄技能-过程'!$A:$P,14,0)*T87/10000*Q87*(1+(BH87-1)*30%)*[4]战斗节奏!$C$28+VLOOKUP(BF87,'[4]英雄技能-过程'!$A:$P,15,0)*T87/10000*R87*(1+(BH87-1)*30%)*[4]战斗节奏!$D$28+VLOOKUP(BF87,'[4]英雄技能-过程'!$A:$P,16,0)*T87/10000*S87*(1+(BH87-1)*30%)*[4]战斗节奏!$E$28,0) -> 0 | BJ87: 4&120201&1&4 | BK87: 3&120101&1&1 | BL87: 2&140303&1&1
N88: 18064.8578 | O88: 5 | P88: 4 | Q88: 17 | R88: 17 | S88: 20.2 | T88: 11500 | U88: 3&120101&1&5;4&140303&1&1;2&420101&1&1 | V88: 3 | W88: 120101 | X88: 1 | Y88: 5 | Z88: =IFERROR(VLOOKUP(W88,'[4]英雄技能-过程'!$A:$P,14,0)*T88/10000*Q88*(1+(Y88-1)*30%)*[4]战斗节奏!$C$28+VLOOKUP(W88,'[4]英雄技能-过程'!$A:$P,15,0)*T88/10000*R88*(1+(Y88-1)*30%)*[4]战斗节奏!$D$28+VLOOKUP(W88,'[4]英雄技能-过程'!$A:$P,16,0)*T88/10000*S88*(1+(Y88-1)*30%)*[4]战斗节奏!$E$28,0) -> 7780.4078 | AA88: 4 | AB88: 140303 | AC88: 1 | AD88: 1 | AE88: =IFERROR(VLOOKUP(AB88,'[4]英雄技能-过程'!$A:$P,14,0)*T88/10000*Q88*(1+(AD88-1)*30%)*[4]战斗节奏!$C$28+VLOOKUP(AB88,'[4]英雄技能-过程'!$A:$P,15,0)*T88/10000*R88*(1+(AD88-1)*30%)*[4]战斗节奏!$D$28+VLOOKUP(AB88,'[4]英雄技能-过程'!$A:$P,16,0)*T88/10000*S88*(1+(AD88-1)*30%)*[4]战斗节奏!$E$28,0) -> 4674.75 | AF88: 2 | AG88: 420101 | AH88: 1 | AI88: 1 | AJ88: =IFERROR(VLOOKUP(AG88,'[4]英雄技能-过程'!$A:$P,14,0)*T88/10000*Q88*(1+(AI88-1)*30%)*[4]战斗节奏!$C$28+VLOOKUP(AG88,'[4]英雄技能-过程'!$A:$P,15,0)*T88/10000*R88*(1+(AI88-1)*30%)*[4]战斗节奏!$D$28+VLOOKUP(AG88,'[4]英雄技能-过程'!$A:$P,16,0)*T88/10000*S88*(1+(AI88-1)*30%)*[4]战斗节奏!$E$28,0) -> 5609.7 | AN88: 0 | AO88: =IFERROR(VLOOKUP(AL88,'[4]英雄技能-过程'!$A:$P,14,0)*T88/10000*Q88*(1+(AN88-1)*30%)*[4]战斗节奏!$C$28+VLOOKUP(AL88,'[4]英雄技能-过程'!$A:$P,15,0)*T88/10000*R88*(1+(AN88-1)*30%)*[4]战斗节奏!$D$28+VLOOKUP(AL88,'[4]英雄技能-过程'!$A:$P,16,0)*T88/10000*S88*(1+(AN88-1)*30%)*[4]战斗节奏!$E$28,0) -> 0 | AS88: 0 | AT88: =IFERROR(VLOOKUP(AQ88,'[4]英雄技能-过程'!$A:$P,14,0)*T88/10000*Q88*(1+(AS88-1)*30%)*[4]战斗节奏!$C$28+VLOOKUP(AQ88,'[4]英雄技能-过程'!$A:$P,15,0)*T88/10000*R88*(1+(AS88-1)*30%)*[4]战斗节奏!$D$28+VLOOKUP(AQ88,'[4]英雄技能-过程'!$A:$P,16,0)*T88/10000*S88*(1+(AS88-1)*30%)*[4]战斗节奏!$E$28,0) -> 0 | AX88: 0 | AY88: =IFERROR(VLOOKUP(AV88,'[4]英雄技能-过程'!$A:$P,14,0)*T88/10000*Q88*(1+(AX88-1)*30%)*[4]战斗节奏!$C$28+VLOOKUP(AV88,'[4]英雄技能-过程'!$A:$P,15,0)*T88/10000*R88*(1+(AX88-1)*30%)*[4]战斗节奏!$D$28+VLOOKUP(AV88,'[4]英雄技能-过程'!$A:$P,16,0)*T88/10000*S88*(1+(AX88-1)*30%)*[4]战斗节奏!$E$28,0) -> 0 | BC88: 0 | BD88: =IFERROR(VLOOKUP(BA88,'[4]英雄技能-过程'!$A:$P,14,0)*T88/10000*Q88*(1+(BC88-1)*30%)*[4]战斗节奏!$C$28+VLOOKUP(BA88,'[4]英雄技能-过程'!$A:$P,15,0)*T88/10000*R88*(1+(BC88-1)*30%)*[4]战斗节奏!$D$28+VLOOKUP(BA88,'[4]英雄技能-过程'!$A:$P,16,0)*T88/10000*S88*(1+(BC88-1)*30%)*[4]战斗节奏!$E$28,0) -> 0 | BH88: 0 | BI88: =IFERROR(VLOOKUP(BF88,'[4]英雄技能-过程'!$A:$P,14,0)*T88/10000*Q88*(1+(BH88-1)*30%)*[4]战斗节奏!$C$28+VLOOKUP(BF88,'[4]英雄技能-过程'!$A:$P,15,0)*T88/10000*R88*(1+(BH88-1)*30%)*[4]战斗节奏!$D$28+VLOOKUP(BF88,'[4]英雄技能-过程'!$A:$P,16,0)*T88/10000*S88*(1+(BH88-1)*30%)*[4]战斗节奏!$E$28,0) -> 0 | BJ88: 3&120101&1&5 | BK88: 4&140303&1&1 | BL88: 2&420101&1&1
N89: 17711.0304 | O89: =O69+1 -> 5 | P89: =P69 -> 5 | Q89: 17 | R89: 17 | S89: 20.2 | T89: =T69 -> 12000 | U89: 2&120101&1&5;5&140303&1&2;12&120201&1&1 | V89: 2 | W89: 120101 | X89: 1 | Y89: =Y66 -> 5 | Z89: =IFERROR(VLOOKUP(W89,'[4]英雄技能-过程'!$A:$P,14,0)*T89/10000*Q89*(1+(Y89-1)*30%)*[4]战斗节奏!$C$28+VLOOKUP(W89,'[4]英雄技能-过程'!$A:$P,15,0)*T89/10000*R89*(1+(Y89-1)*30%)*[4]战斗节奏!$D$28+VLOOKUP(W89,'[4]英雄技能-过程'!$A:$P,16,0)*T89/10000*S89*(1+(Y89-1)*30%)*[4]战斗节奏!$E$28,0) -> 8118.6864 | AA89: 5 | AB89: 140303 | AC89: 1 | AD89: =AD69 -> 2 | AE89: =IFERROR(VLOOKUP(AB89,'[4]英雄技能-过程'!$A:$P,14,0)*T89/10000*Q89*(1+(AD89-1)*30%)*[4]战斗节奏!$C$28+VLOOKUP(AB89,'[4]英雄技能-过程'!$A:$P,15,0)*T89/10000*R89*(1+(AD89-1)*30%)*[4]战斗节奏!$D$28+VLOOKUP(AB89,'[4]英雄技能-过程'!$A:$P,16,0)*T89/10000*S89*(1+(AD89-1)*30%)*[4]战斗节奏!$E$28,0) -> 6341.4 | AF89: 12 | AG89: 120201 | AH89: 1 | AI89: =AI69 -> 1 | AJ89: =IFERROR(VLOOKUP(AG89,'[4]英雄技能-过程'!$A:$P,14,0)*T89/10000*Q89*(1+(AI89-1)*30%)*[4]战斗节奏!$C$28+VLOOKUP(AG89,'[4]英雄技能-过程'!$A:$P,15,0)*T89/10000*R89*(1+(AI89-1)*30%)*[4]战斗节奏!$D$28+VLOOKUP(AG89,'[4]英雄技能-过程'!$A:$P,16,0)*T89/10000*S89*(1+(AI89-1)*30%)*[4]战斗节奏!$E$28,0) -> 3250.944 | AN89: =AN69 -> 0 | AO89: =IFERROR(VLOOKUP(AL89,'[4]英雄技能-过程'!$A:$P,14,0)*T89/10000*Q89*(1+(AN89-1)*30%)*[4]战斗节奏!$C$28+VLOOKUP(AL89,'[4]英雄技能-过程'!$A:$P,15,0)*T89/10000*R89*(1+(AN89-1)*30%)*[4]战斗节奏!$D$28+VLOOKUP(AL89,'[4]英雄技能-过程'!$A:$P,16,0)*T89/10000*S89*(1+(AN89-1)*30%)*[4]战斗节奏!$E$28,0) -> 0 | AS89: =AS69 -> 0 | AT89: =IFERROR(VLOOKUP(AQ89,'[4]英雄技能-过程'!$A:$P,14,0)*T89/10000*Q89*(1+(AS89-1)*30%)*[4]战斗节奏!$C$28+VLOOKUP(AQ89,'[4]英雄技能-过程'!$A:$P,15,0)*T89/10000*R89*(1+(AS89-1)*30%)*[4]战斗节奏!$D$28+VLOOKUP(AQ89,'[4]英雄技能-过程'!$A:$P,16,0)*T89/10000*S89*(1+(AS89-1)*30%)*[4]战斗节奏!$E$28,0) -> 0 | AX89: =AX69 -> 0 | AY89: =IFERROR(VLOOKUP(AV89,'[4]英雄技能-过程'!$A:$P,14,0)*T89/10000*Q89*(1+(AX89-1)*30%)*[4]战斗节奏!$C$28+VLOOKUP(AV89,'[4]英雄技能-过程'!$A:$P,15,0)*T89/10000*R89*(1+(AX89-1)*30%)*[4]战斗节奏!$D$28+VLOOKUP(AV89,'[4]英雄技能-过程'!$A:$P,16,0)*T89/10000*S89*(1+(AX89-1)*30%)*[4]战斗节奏!$E$28,0) -> 0 | BC89: =BC69 -> 0 | BD89: =IFERROR(VLOOKUP(BA89,'[4]英雄技能-过程'!$A:$P,14,0)*T89/10000*Q89*(1+(BC89-1)*30%)*[4]战斗节奏!$C$28+VLOOKUP(BA89,'[4]英雄技能-过程'!$A:$P,15,0)*T89/10000*R89*(1+(BC89-1)*30%)*[4]战斗节奏!$D$28+VLOOKUP(BA89,'[4]英雄技能-过程'!$A:$P,16,0)*T89/10000*S89*(1+(BC89-1)*30%)*[4]战斗节奏!$E$28,0) -> 0 | BH89: =BH69 -> 0 | BI89: =IFERROR(VLOOKUP(BF89,'[4]英雄技能-过程'!$A:$P,14,0)*T89/10000*Q89*(1+(BH89-1)*30%)*[4]战斗节奏!$C$28+VLOOKUP(BF89,'[4]英雄技能-过程'!$A:$P,15,0)*T89/10000*R89*(1+(BH89-1)*30%)*[4]战斗节奏!$D$28+VLOOKUP(BF89,'[4]英雄技能-过程'!$A:$P,16,0)*T89/10000*S89*(1+(BH89-1)*30%)*[4]战斗节奏!$E$28,0) -> 0 | BJ89: 2&120101&1&5 | BK89: 5&140303&1&2 | BL89: 12&120201&1&1
N90: 20102.2575 | O90: 5 | P90: 6 | Q90: 17 | R90: 17 | S90: 20.2 | T90: 12500 | U90: 14&140201&1&5;13&120201&1&2;2&120101&1&1;4&120603&1&1 | V90: 14 | W90: 140201 | X90: 1 | Y90: 5 | Z90: =IFERROR(VLOOKUP(W90,'[4]英雄技能-过程'!$A:$P,14,0)*T90/10000*Q90*(1+(Y90-1)*30%)*[4]战斗节奏!$C$28+VLOOKUP(W90,'[4]英雄技能-过程'!$A:$P,15,0)*T90/10000*R90*(1+(Y90-1)*30%)*[4]战斗节奏!$D$28+VLOOKUP(W90,'[4]英雄技能-过程'!$A:$P,16,0)*T90/10000*S90*(1+(Y90-1)*30%)*[4]战斗节奏!$E$28,0) -> 5758.3625 | AA90: 13 | AB90: 120201 | AC90: 1 | AD90: 2 | AE90: =IFERROR(VLOOKUP(AB90,'[4]英雄技能-过程'!$A:$P,14,0)*T90/10000*Q90*(1+(AD90-1)*30%)*[4]战斗节奏!$C$28+VLOOKUP(AB90,'[4]英雄技能-过程'!$A:$P,15,0)*T90/10000*R90*(1+(AD90-1)*30%)*[4]战斗节奏!$D$28+VLOOKUP(AB90,'[4]英雄技能-过程'!$A:$P,16,0)*T90/10000*S90*(1+(AD90-1)*30%)*[4]战斗节奏!$E$28,0) -> 4402.32 | AF90: 2 | AG90: 120101 | AH90: 1 | AI90: 1 | AJ90: =IFERROR(VLOOKUP(AG90,'[4]英雄技能-过程'!$A:$P,14,0)*T90/10000*Q90*(1+(AI90-1)*30%)*[4]战斗节奏!$C$28+VLOOKUP(AG90,'[4]英雄技能-过程'!$A:$P,15,0)*T90/10000*R90*(1+(AI90-1)*30%)*[4]战斗节奏!$D$28+VLOOKUP(AG90,'[4]英雄技能-过程'!$A:$P,16,0)*T90/10000*S90*(1+(AI90-1)*30%)*[4]战斗节奏!$E$28,0) -> 3844.075 | AK90: 4 | AL90: 120603 | AM90: 1 | AN90: 1 | AO90: =IFERROR(VLOOKUP(AL90,'[4]英雄技能-过程'!$A:$P,14,0)*T90/10000*Q90*(1+(AN90-1)*30%)*[4]战斗节奏!$C$28+VLOOKUP(AL90,'[4]英雄技能-过程'!$A:$P,15,0)*T90/10000*R90*(1+(AN90-1)*30%)*[4]战斗节奏!$D$28+VLOOKUP(AL90,'[4]英雄技能-过程'!$A:$P,16,0)*T90/10000*S90*(1+(AN90-1)*30%)*[4]战斗节奏!$E$28,0) -> 6097.5 | AS90: 0 | AT90: =IFERROR(VLOOKUP(AQ90,'[4]英雄技能-过程'!$A:$P,14,0)*T90/10000*Q90*(1+(AS90-1)*30%)*[4]战斗节奏!$C$28+VLOOKUP(AQ90,'[4]英雄技能-过程'!$A:$P,15,0)*T90/10000*R90*(1+(AS90-1)*30%)*[4]战斗节奏!$D$28+VLOOKUP(AQ90,'[4]英雄技能-过程'!$A:$P,16,0)*T90/10000*S90*(1+(AS90-1)*30%)*[4]战斗节奏!$E$28,0) -> 0 | AX90: 0 | AY90: =IFERROR(VLOOKUP(AV90,'[4]英雄技能-过程'!$A:$P,14,0)*T90/10000*Q90*(1+(AX90-1)*30%)*[4]战斗节奏!$C$28+VLOOKUP(AV90,'[4]英雄技能-过程'!$A:$P,15,0)*T90/10000*R90*(1+(AX90-1)*30%)*[4]战斗节奏!$D$28+VLOOKUP(AV90,'[4]英雄技能-过程'!$A:$P,16,0)*T90/10000*S90*(1+(AX90-1)*30%)*[4]战斗节奏!$E$28,0) -> 0 | BC90: 0 | BD90: =IFERROR(VLOOKUP(BA90,'[4]英雄技能-过程'!$A:$P,14,0)*T90/10000*Q90*(1+(BC90-1)*30%)*[4]战斗节奏!$C$28+VLOOKUP(BA90,'[4]英雄技能-过程'!$A:$P,15,0)*T90/10000*R90*(1+(BC90-1)*30%)*[4]战斗节奏!$D$28+VLOOKUP(BA90,'[4]英雄技能-过程'!$A:$P,16,0)*T90/10000*S90*(1+(BC90-1)*30%)*[4]战斗节奏!$E$28,0) -> 0 | BH90: 0 | BI90: =IFERROR(VLOOKUP(BF90,'[4]英雄技能-过程'!$A:$P,14,0)*T90/10000*Q90*(1+(BH90-1)*30%)*[4]战斗节奏!$C$28+VLOOKUP(BF90,'[4]英雄技能-过程'!$A:$P,15,0)*T90/10000*R90*(1+(BH90-1)*30%)*[4]战斗节奏!$D$28+VLOOKUP(BF90,'[4]英雄技能-过程'!$A:$P,16,0)*T90/10000*S90*(1+(BH90-1)*30%)*[4]战斗节奏!$E$28,0) -> 0 | BJ90: 14&140201&1&5 | BK90: 13&120201&1&2 | BL90: 2&120101&1&1 | BM90: 4&120603&1&1
B91: 人口 | C91: 消耗 | N91: 22406.7402 | O91: 5 | P91: 7 | Q91: 17 | R91: 17 | S91: 20.2 | T91: 13000 | U91: 13&110402&1&5;1&120201&1&2;4&140303&1&2;2&120101&1&1 | V91: 13 | W91: 110402 | X91: 1 | Y91: 5 | Z91: =IFERROR(VLOOKUP(W91,'[4]英雄技能-过程'!$A:$P,14,0)*T91/10000*Q91*(1+(Y91-1)*30%)*[4]战斗节奏!$C$28+VLOOKUP(W91,'[4]英雄技能-过程'!$A:$P,15,0)*T91/10000*R91*(1+(Y91-1)*30%)*[4]战斗节奏!$D$28+VLOOKUP(W91,'[4]英雄技能-过程'!$A:$P,16,0)*T91/10000*S91*(1+(Y91-1)*30%)*[4]战斗节奏!$E$28,0) -> 6960.6394 | AA91: 1 | AB91: 120201 | AC91: 1 | AD91: 2 | AE91: =IFERROR(VLOOKUP(AB91,'[4]英雄技能-过程'!$A:$P,14,0)*T91/10000*Q91*(1+(AD91-1)*30%)*[4]战斗节奏!$C$28+VLOOKUP(AB91,'[4]英雄技能-过程'!$A:$P,15,0)*T91/10000*R91*(1+(AD91-1)*30%)*[4]战斗节奏!$D$28+VLOOKUP(AB91,'[4]英雄技能-过程'!$A:$P,16,0)*T91/10000*S91*(1+(AD91-1)*30%)*[4]战斗节奏!$E$28,0) -> 4578.4128 | AF91: 4 | AG91: 140303 | AH91: 1 | AI91: 2 | AJ91: =IFERROR(VLOOKUP(AG91,'[4]英雄技能-过程'!$A:$P,14,0)*T91/10000*Q91*(1+(AI91-1)*30%)*[4]战斗节奏!$C$28+VLOOKUP(AG91,'[4]英雄技能-过程'!$A:$P,15,0)*T91/10000*R91*(1+(AI91-1)*30%)*[4]战斗节奏!$D$28+VLOOKUP(AG91,'[4]英雄技能-过程'!$A:$P,16,0)*T91/10000*S91*(1+(AI91-1)*30%)*[4]战斗节奏!$E$28,0) -> 6869.85 | AK91: 2 | AL91: 120101 | AM91: 1 | AN91: 1 | AO91: =IFERROR(VLOOKUP(AL91,'[4]英雄技能-过程'!$A:$P,14,0)*T91/10000*Q91*(1+(AN91-1)*30%)*[4]战斗节奏!$C$28+VLOOKUP(AL91,'[4]英雄技能-过程'!$A:$P,15,0)*T91/10000*R91*(1+(AN91-1)*30%)*[4]战斗节奏!$D$28+VLOOKUP(AL91,'[4]英雄技能-过程'!$A:$P,16,0)*T91/10000*S91*(1+(AN91-1)*30%)*[4]战斗节奏!$E$28,0) -> 3997.838 | AS91: 0 | AT91: =IFERROR(VLOOKUP(AQ91,'[4]英雄技能-过程'!$A:$P,14,0)*T91/10000*Q91*(1+(AS91-1)*30%)*[4]战斗节奏!$C$28+VLOOKUP(AQ91,'[4]英雄技能-过程'!$A:$P,15,0)*T91/10000*R91*(1+(AS91-1)*30%)*[4]战斗节奏!$D$28+VLOOKUP(AQ91,'[4]英雄技能-过程'!$A:$P,16,0)*T91/10000*S91*(1+(AS91-1)*30%)*[4]战斗节奏!$E$28,0) -> 0 | AX91: 0 | AY91: =IFERROR(VLOOKUP(AV91,'[4]英雄技能-过程'!$A:$P,14,0)*T91/10000*Q91*(1+(AX91-1)*30%)*[4]战斗节奏!$C$28+VLOOKUP(AV91,'[4]英雄技能-过程'!$A:$P,15,0)*T91/10000*R91*(1+(AX91-1)*30%)*[4]战斗节奏!$D$28+VLOOKUP(AV91,'[4]英雄技能-过程'!$A:$P,16,0)*T91/10000*S91*(1+(AX91-1)*30%)*[4]战斗节奏!$E$28,0) -> 0 | BC91: 0 | BD91: =IFERROR(VLOOKUP(BA91,'[4]英雄技能-过程'!$A:$P,14,0)*T91/10000*Q91*(1+(BC91-1)*30%)*[4]战斗节奏!$C$28+VLOOKUP(BA91,'[4]英雄技能-过程'!$A:$P,15,0)*T91/10000*R91*(1+(BC91-1)*30%)*[4]战斗节奏!$D$28+VLOOKUP(BA91,'[4]英雄技能-过程'!$A:$P,16,0)*T91/10000*S91*(1+(BC91-1)*30%)*[4]战斗节奏!$E$28,0) -> 0 | BH91: 0 | BI91: =IFERROR(VLOOKUP(BF91,'[4]英雄技能-过程'!$A:$P,14,0)*T91/10000*Q91*(1+(BH91-1)*30%)*[4]战斗节奏!$C$28+VLOOKUP(BF91,'[4]英雄技能-过程'!$A:$P,15,0)*T91/10000*R91*(1+(BH91-1)*30%)*[4]战斗节奏!$D$28+VLOOKUP(BF91,'[4]英雄技能-过程'!$A:$P,16,0)*T91/10000*S91*(1+(BH91-1)*30%)*[4]战斗节奏!$E$28,0) -> 0 | BJ91: 13&110402&1&5 | BK91: 1&120201&1&2 | BL91: 4&140303&1&2 | BM91: 2&120101&1&1
B92: 2 | C92: 15 | N92: 22726.1052 | O92: 5 | P92: 8 | Q92: 17 | R92: 17 | S92: 20.2 | T92: 13500 | U92: 14&140201&1&5;12&110402&1&2;15&110201&1&2;2&420101&1&2 | V92: 14 | W92: 140201 | X92: 1 | Y92: 5 | Z92: =IFERROR(VLOOKUP(W92,'[4]英雄技能-过程'!$A:$P,14,0)*T92/10000*Q92*(1+(Y92-1)*30%)*[4]战斗节奏!$C$28+VLOOKUP(W92,'[4]英雄技能-过程'!$A:$P,15,0)*T92/10000*R92*(1+(Y92-1)*30%)*[4]战斗节奏!$D$28+VLOOKUP(W92,'[4]英雄技能-过程'!$A:$P,16,0)*T92/10000*S92*(1+(Y92-1)*30%)*[4]战斗节奏!$E$28,0) -> 6219.0315 | AA92: 12 | AB92: 110402 | AC92: 1 | AD92: 2 | AE92: =IFERROR(VLOOKUP(AB92,'[4]英雄技能-过程'!$A:$P,14,0)*T92/10000*Q92*(1+(AD92-1)*30%)*[4]战斗节奏!$C$28+VLOOKUP(AB92,'[4]英雄技能-过程'!$A:$P,15,0)*T92/10000*R92*(1+(AD92-1)*30%)*[4]战斗节奏!$D$28+VLOOKUP(AB92,'[4]英雄技能-过程'!$A:$P,16,0)*T92/10000*S92*(1+(AD92-1)*30%)*[4]战斗节奏!$E$28,0) -> 4271.30145 | AF92: 15 | AG92: 110201 | AH92: 1 | AI92: 2 | AJ92: =IFERROR(VLOOKUP(AG92,'[4]英雄技能-过程'!$A:$P,14,0)*T92/10000*Q92*(1+(AI92-1)*30%)*[4]战斗节奏!$C$28+VLOOKUP(AG92,'[4]英雄技能-过程'!$A:$P,15,0)*T92/10000*R92*(1+(AI92-1)*30%)*[4]战斗节奏!$D$28+VLOOKUP(AG92,'[4]英雄技能-过程'!$A:$P,16,0)*T92/10000*S92*(1+(AI92-1)*30%)*[4]战斗节奏!$E$28,0) -> 3674.88225 | AK92: 2 | AL92: 420101 | AM92: 1 | AN92: 2 | AO92: =IFERROR(VLOOKUP(AL92,'[4]英雄技能-过程'!$A:$P,14,0)*T92/10000*Q92*(1+(AN92-1)*30%)*[4]战斗节奏!$C$28+VLOOKUP(AL92,'[4]英雄技能-过程'!$A:$P,15,0)*T92/10000*R92*(1+(AN92-1)*30%)*[4]战斗节奏!$D$28+VLOOKUP(AL92,'[4]英雄技能-过程'!$A:$P,16,0)*T92/10000*S92*(1+(AN92-1)*30%)*[4]战斗节奏!$E$28,0) -> 8560.89 | AS92: 0 | AT92: =IFERROR(VLOOKUP(AQ92,'[4]英雄技能-过程'!$A:$P,14,0)*T92/10000*Q92*(1+(AS92-1)*30%)*[4]战斗节奏!$C$28+VLOOKUP(AQ92,'[4]英雄技能-过程'!$A:$P,15,0)*T92/10000*R92*(1+(AS92-1)*30%)*[4]战斗节奏!$D$28+VLOOKUP(AQ92,'[4]英雄技能-过程'!$A:$P,16,0)*T92/10000*S92*(1+(AS92-1)*30%)*[4]战斗节奏!$E$28,0) -> 0 | AX92: 0 | AY92: =IFERROR(VLOOKUP(AV92,'[4]英雄技能-过程'!$A:$P,14,0)*T92/10000*Q92*(1+(AX92-1)*30%)*[4]战斗节奏!$C$28+VLOOKUP(AV92,'[4]英雄技能-过程'!$A:$P,15,0)*T92/10000*R92*(1+(AX92-1)*30%)*[4]战斗节奏!$D$28+VLOOKUP(AV92,'[4]英雄技能-过程'!$A:$P,16,0)*T92/10000*S92*(1+(AX92-1)*30%)*[4]战斗节奏!$E$28,0) -> 0 | BC92: 0 | BD92: =IFERROR(VLOOKUP(BA92,'[4]英雄技能-过程'!$A:$P,14,0)*T92/10000*Q92*(1+(BC92-1)*30%)*[4]战斗节奏!$C$28+VLOOKUP(BA92,'[4]英雄技能-过程'!$A:$P,15,0)*T92/10000*R92*(1+(BC92-1)*30%)*[4]战斗节奏!$D$28+VLOOKUP(BA92,'[4]英雄技能-过程'!$A:$P,16,0)*T92/10000*S92*(1+(BC92-1)*30%)*[4]战斗节奏!$E$28,0) -> 0 | BH92: 0 | BI92: =IFERROR(VLOOKUP(BF92,'[4]英雄技能-过程'!$A:$P,14,0)*T92/10000*Q92*(1+(BH92-1)*30%)*[4]战斗节奏!$C$28+VLOOKUP(BF92,'[4]英雄技能-过程'!$A:$P,15,0)*T92/10000*R92*(1+(BH92-1)*30%)*[4]战斗节奏!$D$28+VLOOKUP(BF92,'[4]英雄技能-过程'!$A:$P,16,0)*T92/10000*S92*(1+(BH92-1)*30%)*[4]战斗节奏!$E$28,0) -> 0 | BJ92: 14&140201&1&5 | BK92: 12&110402&1&2 | BL92: 15&110201&1&2 | BM92: 2&420101&1&2
B93: 3 | C93: 20 | N93: 32507.195 | O93: 5 | P93: 9 | Q93: 17 | R93: 17 | S93: 20.2 | T93: 14000 | U93: 14&110501&1&5;12&110402&1&2;3&140303&1&2;4&120603&1&2;2&120101&1&1 | V93: 14 | W93: 110501 | X93: 1 | Y93: 5 | Z93: =IFERROR(VLOOKUP(W93,'[4]英雄技能-过程'!$A:$P,14,0)*T93/10000*Q93*(1+(Y93-1)*30%)*[4]战斗节奏!$C$28+VLOOKUP(W93,'[4]英雄技能-过程'!$A:$P,15,0)*T93/10000*R93*(1+(Y93-1)*30%)*[4]战斗节奏!$D$28+VLOOKUP(W93,'[4]英雄技能-过程'!$A:$P,16,0)*T93/10000*S93*(1+(Y93-1)*30%)*[4]战斗节奏!$E$28,0) -> 7496.0732 | AA93: 12 | AB93: 110402 | AC93: 1 | AD93: 2 | AE93: =IFERROR(VLOOKUP(AB93,'[4]英雄技能-过程'!$A:$P,14,0)*T93/10000*Q93*(1+(AD93-1)*30%)*[4]战斗节奏!$C$28+VLOOKUP(AB93,'[4]英雄技能-过程'!$A:$P,15,0)*T93/10000*R93*(1+(AD93-1)*30%)*[4]战斗节奏!$D$28+VLOOKUP(AB93,'[4]英雄技能-过程'!$A:$P,16,0)*T93/10000*S93*(1+(AD93-1)*30%)*[4]战斗节奏!$E$28,0) -> 4429.4978 | AF93: 3 | AG93: 140303 | AH93: 1 | AI93: 2 | AJ93: =IFERROR(VLOOKUP(AG93,'[4]英雄技能-过程'!$A:$P,14,0)*T93/10000*Q93*(1+(AI93-1)*30%)*[4]战斗节奏!$C$28+VLOOKUP(AG93,'[4]英雄技能-过程'!$A:$P,15,0)*T93/10000*R93*(1+(AI93-1)*30%)*[4]战斗节奏!$D$28+VLOOKUP(AG93,'[4]英雄技能-过程'!$A:$P,16,0)*T93/10000*S93*(1+(AI93-1)*30%)*[4]战斗节奏!$E$28,0) -> 7398.3 | AK93: 4 | AL93: 120603 | AM93: 1 | AN93: 2 | AO93: =IFERROR(VLOOKUP(AL93,'[4]英雄技能-过程'!$A:$P,14,0)*T93/10000*Q93*(1+(AN93-1)*30%)*[4]战斗节奏!$C$28+VLOOKUP(AL93,'[4]英雄技能-过程'!$A:$P,15,0)*T93/10000*R93*(1+(AN93-1)*30%)*[4]战斗节奏!$D$28+VLOOKUP(AL93,'[4]英雄技能-过程'!$A:$P,16,0)*T93/10000*S93*(1+(AN93-1)*30%)*[4]战斗节奏!$E$28,0) -> 8877.96 | AP93: 2 | AQ93: 120101 | AR93: 1 | AS93: 1 | AT93: =IFERROR(VLOOKUP(AQ93,'[4]英雄技能-过程'!$A:$P,14,0)*T93/10000*Q93*(1+(AS93-1)*30%)*[4]战斗节奏!$C$28+VLOOKUP(AQ93,'[4]英雄技能-过程'!$A:$P,15,0)*T93/10000*R93*(1+(AS93-1)*30%)*[4]战斗节奏!$D$28+VLOOKUP(AQ93,'[4]英雄技能-过程'!$A:$P,16,0)*T93/10000*S93*(1+(AS93-1)*30%)*[4]战斗节奏!$E$28,0) -> 4305.364 | AX93: 0 | AY93: =IFERROR(VLOOKUP(AV93,'[4]英雄技能-过程'!$A:$P,14,0)*T93/10000*Q93*(1+(AX93-1)*30%)*[4]战斗节奏!$C$28+VLOOKUP(AV93,'[4]英雄技能-过程'!$A:$P,15,0)*T93/10000*R93*(1+(AX93-1)*30%)*[4]战斗节奏!$D$28+VLOOKUP(AV93,'[4]英雄技能-过程'!$A:$P,16,0)*T93/10000*S93*(1+(AX93-1)*30%)*[4]战斗节奏!$E$28,0) -> 0 | BC93: 0 | BD93: =IFERROR(VLOOKUP(BA93,'[4]英雄技能-过程'!$A:$P,14,0)*T93/10000*Q93*(1+(BC93-1)*30%)*[4]战斗节奏!$C$28+VLOOKUP(BA93,'[4]英雄技能-过程'!$A:$P,15,0)*T93/10000*R93*(1+(BC93-1)*30%)*[4]战斗节奏!$D$28+VLOOKUP(BA93,'[4]英雄技能-过程'!$A:$P,16,0)*T93/10000*S93*(1+(BC93-1)*30%)*[4]战斗节奏!$E$28,0) -> 0 | BH93: 0 | BI93: =IFERROR(VLOOKUP(BF93,'[4]英雄技能-过程'!$A:$P,14,0)*T93/10000*Q93*(1+(BH93-1)*30%)*[4]战斗节奏!$C$28+VLOOKUP(BF93,'[4]英雄技能-过程'!$A:$P,15,0)*T93/10000*R93*(1+(BH93-1)*30%)*[4]战斗节奏!$D$28+VLOOKUP(BF93,'[4]英雄技能-过程'!$A:$P,16,0)*T93/10000*S93*(1+(BH93-1)*30%)*[4]战斗节奏!$E$28,0) -> 0 | BJ93: 14&110501&1&5 | BK93: 12&110402&1&2 | BL93: 3&140303&1&2 | BM93: 4&120603&1&2 | BN93: 2&120101&1&1
B94: 4 | C94: 40 | N94: 37011.387 | O94: 5 | P94: 10 | Q94: 17 | R94: 17 | S94: 20.2 | T94: 15000 | U94: 12&120201&1&1;1&120603&1&2;3&420101&1&2;2&120101&1&2;5&140303&1&2 | V94: 12 | W94: 120201 | X94: 1 | Y94: 1 | Z94: =IFERROR(VLOOKUP(W94,'[4]英雄技能-过程'!$A:$P,14,0)*T94/10000*Q94*(1+(Y94-1)*30%)*[4]战斗节奏!$C$28+VLOOKUP(W94,'[4]英雄技能-过程'!$A:$P,15,0)*T94/10000*R94*(1+(Y94-1)*30%)*[4]战斗节奏!$D$28+VLOOKUP(W94,'[4]英雄技能-过程'!$A:$P,16,0)*T94/10000*S94*(1+(Y94-1)*30%)*[4]战斗节奏!$E$28,0) -> 4063.68 | AA94: 1 | AB94: 120603 | AC94: 1 | AD94: 2 | AE94: =IFERROR(VLOOKUP(AB94,'[4]英雄技能-过程'!$A:$P,14,0)*T94/10000*Q94*(1+(AD94-1)*30%)*[4]战斗节奏!$C$28+VLOOKUP(AB94,'[4]英雄技能-过程'!$A:$P,15,0)*T94/10000*R94*(1+(AD94-1)*30%)*[4]战斗节奏!$D$28+VLOOKUP(AB94,'[4]英雄技能-过程'!$A:$P,16,0)*T94/10000*S94*(1+(AD94-1)*30%)*[4]战斗节奏!$E$28,0) -> 9512.1 | AF94: 3 | AG94: 420101 | AH94: 1 | AI94: 2 | AJ94: =IFERROR(VLOOKUP(AG94,'[4]英雄技能-过程'!$A:$P,14,0)*T94/10000*Q94*(1+(AI94-1)*30%)*[4]战斗节奏!$C$28+VLOOKUP(AG94,'[4]英雄技能-过程'!$A:$P,15,0)*T94/10000*R94*(1+(AI94-1)*30%)*[4]战斗节奏!$D$28+VLOOKUP(AG94,'[4]英雄技能-过程'!$A:$P,16,0)*T94/10000*S94*(1+(AI94-1)*30%)*[4]战斗节奏!$E$28,0) -> 9512.1 | AK94: 2 | AL94: 120101 | AM94: 1 | AN94: 2 | AO94: =IFERROR(VLOOKUP(AL94,'[4]英雄技能-过程'!$A:$P,14,0)*T94/10000*Q94*(1+(AN94-1)*30%)*[4]战斗节奏!$C$28+VLOOKUP(AL94,'[4]英雄技能-过程'!$A:$P,15,0)*T94/10000*R94*(1+(AN94-1)*30%)*[4]战斗节奏!$D$28+VLOOKUP(AL94,'[4]英雄技能-过程'!$A:$P,16,0)*T94/10000*S94*(1+(AN94-1)*30%)*[4]战斗节奏!$E$28,0) -> 5996.757 | AP94: 5 | AQ94: 140303 | AR94: 1 | AS94: 2 | AT94: =IFERROR(VLOOKUP(AQ94,'[4]英雄技能-过程'!$A:$P,14,0)*T94/10000*Q94*(1+(AS94-1)*30%)*[4]战斗节奏!$C$28+VLOOKUP(AQ94,'[4]英雄技能-过程'!$A:$P,15,0)*T94/10000*R94*(1+(AS94-1)*30%)*[4]战斗节奏!$D$28+VLOOKUP(AQ94,'[4]英雄技能-过程'!$A:$P,16,0)*T94/10000*S94*(1+(AS94-1)*30%)*[4]战斗节奏!$E$28,0) -> 7926.75 | AX94: 0 | AY94: =IFERROR(VLOOKUP(AV94,'[4]英雄技能-过程'!$A:$P,14,0)*T94/10000*Q94*(1+(AX94-1)*30%)*[4]战斗节奏!$C$28+VLOOKUP(AV94,'[4]英雄技能-过程'!$A:$P,15,0)*T94/10000*R94*(1+(AX94-1)*30%)*[4]战斗节奏!$D$28+VLOOKUP(AV94,'[4]英雄技能-过程'!$A:$P,16,0)*T94/10000*S94*(1+(AX94-1)*30%)*[4]战斗节奏!$E$28,0) -> 0 | BC94: 0 | BD94: =IFERROR(VLOOKUP(BA94,'[4]英雄技能-过程'!$A:$P,14,0)*T94/10000*Q94*(1+(BC94-1)*30%)*[4]战斗节奏!$C$28+VLOOKUP(BA94,'[4]英雄技能-过程'!$A:$P,15,0)*T94/10000*R94*(1+(BC94-1)*30%)*[4]战斗节奏!$D$28+VLOOKUP(BA94,'[4]英雄技能-过程'!$A:$P,16,0)*T94/10000*S94*(1+(BC94-1)*30%)*[4]战斗节奏!$E$28,0) -> 0 | BH94: 0 | BI94: =IFERROR(VLOOKUP(BF94,'[4]英雄技能-过程'!$A:$P,14,0)*T94/10000*Q94*(1+(BH94-1)*30%)*[4]战斗节奏!$C$28+VLOOKUP(BF94,'[4]英雄技能-过程'!$A:$P,15,0)*T94/10000*R94*(1+(BH94-1)*30%)*[4]战斗节奏!$D$28+VLOOKUP(BF94,'[4]英雄技能-过程'!$A:$P,16,0)*T94/10000*S94*(1+(BH94-1)*30%)*[4]战斗节奏!$E$28,0) -> 0 | BJ94: 12&120201&1&1 | BK94: 1&120603&1&2 | BL94: 3&420101&1&2 | BM94: 2&120101&1&2 | BN94: 5&140303&1&2
N95: 35424.56 | O95: 5 | P95: 11 | Q95: 17 | R95: 17 | S95: 20.2 | T95: 16000 | U95: 12&110201&1&1;16&110501&1&2;18&140201&1&2;4&140303&1&2;2&120101&1&2;5&120603&1&1 | V95: 12 | W95: 110201 | X95: 1 | Y95: 1 | Z95: =IFERROR(VLOOKUP(W95,'[4]英雄技能-过程'!$A:$P,14,0)*T95/10000*Q95*(1+(Y95-1)*30%)*[4]战斗节奏!$C$28+VLOOKUP(W95,'[4]英雄技能-过程'!$A:$P,15,0)*T95/10000*R95*(1+(Y95-1)*30%)*[4]战斗节奏!$D$28+VLOOKUP(W95,'[4]英雄技能-过程'!$A:$P,16,0)*T95/10000*S95*(1+(Y95-1)*30%)*[4]战斗节奏!$E$28,0) -> 3350.32 | AA95: 16 | AB95: 110501 | AC95: 1 | AD95: 2 | AE95: =IFERROR(VLOOKUP(AB95,'[4]英雄技能-过程'!$A:$P,14,0)*T95/10000*Q95*(1+(AD95-1)*30%)*[4]战斗节奏!$C$28+VLOOKUP(AB95,'[4]英雄技能-过程'!$A:$P,15,0)*T95/10000*R95*(1+(AD95-1)*30%)*[4]战斗节奏!$D$28+VLOOKUP(AB95,'[4]英雄技能-过程'!$A:$P,16,0)*T95/10000*S95*(1+(AD95-1)*30%)*[4]战斗节奏!$E$28,0) -> 5062.2832 | AF95: 18 | AG95: 140201 | AH95: 1 | AI95: 2 | AJ95: =IFERROR(VLOOKUP(AG95,'[4]英雄技能-过程'!$A:$P,14,0)*T95/10000*Q95*(1+(AI95-1)*30%)*[4]战斗节奏!$C$28+VLOOKUP(AG95,'[4]英雄技能-过程'!$A:$P,15,0)*T95/10000*R95*(1+(AI95-1)*30%)*[4]战斗节奏!$D$28+VLOOKUP(AG95,'[4]英雄技能-过程'!$A:$P,16,0)*T95/10000*S95*(1+(AI95-1)*30%)*[4]战斗节奏!$E$28,0) -> 4355.416 | AK95: 4 | AL95: 140303 | AM95: 1 | AN95: 2 | AO95: =IFERROR(VLOOKUP(AL95,'[4]英雄技能-过程'!$A:$P,14,0)*T95/10000*Q95*(1+(AN95-1)*30%)*[4]战斗节奏!$C$28+VLOOKUP(AL95,'[4]英雄技能-过程'!$A:$P,15,0)*T95/10000*R95*(1+(AN95-1)*30%)*[4]战斗节奏!$D$28+VLOOKUP(AL95,'[4]英雄技能-过程'!$A:$P,16,0)*T95/10000*S95*(1+(AN95-1)*30%)*[4]战斗节奏!$E$28,0) -> 8455.2 | AP95: 2 | AQ95: 120101 | AR95: 1 | AS95: 2 | AT95: =IFERROR(VLOOKUP(AQ95,'[4]英雄技能-过程'!$A:$P,14,0)*T95/10000*Q95*(1+(AS95-1)*30%)*[4]战斗节奏!$C$28+VLOOKUP(AQ95,'[4]英雄技能-过程'!$A:$P,15,0)*T95/10000*R95*(1+(AS95-1)*30%)*[4]战斗节奏!$D$28+VLOOKUP(AQ95,'[4]英雄技能-过程'!$A:$P,16,0)*T95/10000*S95*(1+(AS95-1)*30%)*[4]战斗节奏!$E$28,0) -> 6396.5408 | AU95: 5 | AV95: 120603 | AW95: 1 | AX95: 1 | AY95: =IFERROR(VLOOKUP(AV95,'[4]英雄技能-过程'!$A:$P,14,0)*T95/10000*Q95*(1+(AX95-1)*30%)*[4]战斗节奏!$C$28+VLOOKUP(AV95,'[4]英雄技能-过程'!$A:$P,15,0)*T95/10000*R95*(1+(AX95-1)*30%)*[4]战斗节奏!$D$28+VLOOKUP(AV95,'[4]英雄技能-过程'!$A:$P,16,0)*T95/10000*S95*(1+(AX95-1)*30%)*[4]战斗节奏!$E$28,0) -> 7804.8 | BC95: 0 | BD95: =IFERROR(VLOOKUP(BA95,'[4]英雄技能-过程'!$A:$P,14,0)*T95/10000*Q95*(1+(BC95-1)*30%)*[4]战斗节奏!$C$28+VLOOKUP(BA95,'[4]英雄技能-过程'!$A:$P,15,0)*T95/10000*R95*(1+(BC95-1)*30%)*[4]战斗节奏!$D$28+VLOOKUP(BA95,'[4]英雄技能-过程'!$A:$P,16,0)*T95/10000*S95*(1+(BC95-1)*30%)*[4]战斗节奏!$E$28,0) -> 0 | BH95: 0 | BI95: =IFERROR(VLOOKUP(BF95,'[4]英雄技能-过程'!$A:$P,14,0)*T95/10000*Q95*(1+(BH95-1)*30%)*[4]战斗节奏!$C$28+VLOOKUP(BF95,'[4]英雄技能-过程'!$A:$P,15,0)*T95/10000*R95*(1+(BH95-1)*30%)*[4]战斗节奏!$D$28+VLOOKUP(BF95,'[4]英雄技能-过程'!$A:$P,16,0)*T95/10000*S95*(1+(BH95-1)*30%)*[4]战斗节奏!$E$28,0) -> 0 | BJ95: 12&110201&1&1 | BK95: 16&110501&1&2 | BL95: 18&140201&1&2 | BM95: 4&140303&1&2 | BN95: 2&120101&1&2 | BO95: 5&120603&1&1
N96: 39953.0566 | O96: 5 | P96: 12 | Q96: 17 | R96: 17 | S96: 20.2 | T96: 17000 | U96: 12&110402&1&1;18&110201&1&2;13&140201&1&2;4&420101&1&2;2&140303&1&2;5&120101&1&2 | V96: 12 | W96: 110402 | X96: 1 | Y96: 1 | Z96: =IFERROR(VLOOKUP(W96,'[4]英雄技能-过程'!$A:$P,14,0)*T96/10000*Q96*(1+(Y96-1)*30%)*[4]战斗节奏!$C$28+VLOOKUP(W96,'[4]英雄技能-过程'!$A:$P,15,0)*T96/10000*R96*(1+(Y96-1)*30%)*[4]战斗节奏!$D$28+VLOOKUP(W96,'[4]英雄技能-过程'!$A:$P,16,0)*T96/10000*S96*(1+(Y96-1)*30%)*[4]战斗节奏!$E$28,0) -> 4137.443 | AA96: 18 | AB96: 110201 | AC96: 1 | AD96: 2 | AE96: =IFERROR(VLOOKUP(AB96,'[4]英雄技能-过程'!$A:$P,14,0)*T96/10000*Q96*(1+(AD96-1)*30%)*[4]战斗节奏!$C$28+VLOOKUP(AB96,'[4]英雄技能-过程'!$A:$P,15,0)*T96/10000*R96*(1+(AD96-1)*30%)*[4]战斗节奏!$D$28+VLOOKUP(AB96,'[4]英雄技能-过程'!$A:$P,16,0)*T96/10000*S96*(1+(AD96-1)*30%)*[4]战斗节奏!$E$28,0) -> 4627.6295 | AF96: 13 | AG96: 140201 | AH96: 1 | AI96: 2 | AJ96: =IFERROR(VLOOKUP(AG96,'[4]英雄技能-过程'!$A:$P,14,0)*T96/10000*Q96*(1+(AI96-1)*30%)*[4]战斗节奏!$C$28+VLOOKUP(AG96,'[4]英雄技能-过程'!$A:$P,15,0)*T96/10000*R96*(1+(AI96-1)*30%)*[4]战斗节奏!$D$28+VLOOKUP(AG96,'[4]英雄技能-过程'!$A:$P,16,0)*T96/10000*S96*(1+(AI96-1)*30%)*[4]战斗节奏!$E$28,0) -> 4627.6295 | AK96: 4 | AL96: 420101 | AM96: 1 | AN96: 2 | AO96: =IFERROR(VLOOKUP(AL96,'[4]英雄技能-过程'!$A:$P,14,0)*T96/10000*Q96*(1+(AN96-1)*30%)*[4]战斗节奏!$C$28+VLOOKUP(AL96,'[4]英雄技能-过程'!$A:$P,15,0)*T96/10000*R96*(1+(AN96-1)*30%)*[4]战斗节奏!$D$28+VLOOKUP(AL96,'[4]英雄技能-过程'!$A:$P,16,0)*T96/10000*S96*(1+(AN96-1)*30%)*[4]战斗节奏!$E$28,0) -> 10780.38 | AP96: 2 | AQ96: 140303 | AR96: 1 | AS96: 2 | AT96: =IFERROR(VLOOKUP(AQ96,'[4]英雄技能-过程'!$A:$P,14,0)*T96/10000*Q96*(1+(AS96-1)*30%)*[4]战斗节奏!$C$28+VLOOKUP(AQ96,'[4]英雄技能-过程'!$A:$P,15,0)*T96/10000*R96*(1+(AS96-1)*30%)*[4]战斗节奏!$D$28+VLOOKUP(AQ96,'[4]英雄技能-过程'!$A:$P,16,0)*T96/10000*S96*(1+(AS96-1)*30%)*[4]战斗节奏!$E$28,0) -> 8983.65 | AU96: 5 | AV96: 120101 | AW96: 1 | AX96: 2 | AY96: =IFERROR(VLOOKUP(AV96,'[4]英雄技能-过程'!$A:$P,14,0)*T96/10000*Q96*(1+(AX96-1)*30%)*[4]战斗节奏!$C$28+VLOOKUP(AV96,'[4]英雄技能-过程'!$A:$P,15,0)*T96/10000*R96*(1+(AX96-1)*30%)*[4]战斗节奏!$D$28+VLOOKUP(AV96,'[4]英雄技能-过程'!$A:$P,16,0)*T96/10000*S96*(1+(AX96-1)*30%)*[4]战斗节奏!$E$28,0) -> 6796.3246 | BC96: 0 | BD96: =IFERROR(VLOOKUP(BA96,'[4]英雄技能-过程'!$A:$P,14,0)*T96/10000*Q96*(1+(BC96-1)*30%)*[4]战斗节奏!$C$28+VLOOKUP(BA96,'[4]英雄技能-过程'!$A:$P,15,0)*T96/10000*R96*(1+(BC96-1)*30%)*[4]战斗节奏!$D$28+VLOOKUP(BA96,'[4]英雄技能-过程'!$A:$P,16,0)*T96/10000*S96*(1+(BC96-1)*30%)*[4]战斗节奏!$E$28,0) -> 0 | BH96: 0 | BI96: =IFERROR(VLOOKUP(BF96,'[4]英雄技能-过程'!$A:$P,14,0)*T96/10000*Q96*(1+(BH96-1)*30%)*[4]战斗节奏!$C$28+VLOOKUP(BF96,'[4]英雄技能-过程'!$A:$P,15,0)*T96/10000*R96*(1+(BH96-1)*30%)*[4]战斗节奏!$D$28+VLOOKUP(BF96,'[4]英雄技能-过程'!$A:$P,16,0)*T96/10000*S96*(1+(BH96-1)*30%)*[4]战斗节奏!$E$28,0) -> 0 | BJ96: 12&110402&1&1 | BK96: 18&110201&1&2 | BL96: 13&140201&1&2 | BM96: 4&420101&1&2 | BN96: 2&140303&1&2 | BO96: 5&120101&1&2
N97: 50257.4112 | O97: 5 | P97: 13 | Q97: 17 | R97: 17 | S97: 20.2 | T97: 18000 | U97: 12&110402&1&1;17&120201&1&2;4&120603&1&2;2&120101&1&2;5&140303&1&2;6&420101&1&2 | V97: 12 | W97: 110402 | X97: 1 | Y97: 1 | Z97: =IFERROR(VLOOKUP(W97,'[4]英雄技能-过程'!$A:$P,14,0)*T97/10000*Q97*(1+(Y97-1)*30%)*[4]战斗节奏!$C$28+VLOOKUP(W97,'[4]英雄技能-过程'!$A:$P,15,0)*T97/10000*R97*(1+(Y97-1)*30%)*[4]战斗节奏!$D$28+VLOOKUP(W97,'[4]英雄技能-过程'!$A:$P,16,0)*T97/10000*S97*(1+(Y97-1)*30%)*[4]战斗节奏!$E$28,0) -> 4380.822 | AA97: 17 | AB97: 120201 | AC97: 1 | AD97: 2 | AE97: =IFERROR(VLOOKUP(AB97,'[4]英雄技能-过程'!$A:$P,14,0)*T97/10000*Q97*(1+(AD97-1)*30%)*[4]战斗节奏!$C$28+VLOOKUP(AB97,'[4]英雄技能-过程'!$A:$P,15,0)*T97/10000*R97*(1+(AD97-1)*30%)*[4]战斗节奏!$D$28+VLOOKUP(AB97,'[4]英雄技能-过程'!$A:$P,16,0)*T97/10000*S97*(1+(AD97-1)*30%)*[4]战斗节奏!$E$28,0) -> 6339.3408 | AF97: 4 | AG97: 120603 | AH97: 1 | AI97: 2 | AJ97: =IFERROR(VLOOKUP(AG97,'[4]英雄技能-过程'!$A:$P,14,0)*T97/10000*Q97*(1+(AI97-1)*30%)*[4]战斗节奏!$C$28+VLOOKUP(AG97,'[4]英雄技能-过程'!$A:$P,15,0)*T97/10000*R97*(1+(AI97-1)*30%)*[4]战斗节奏!$D$28+VLOOKUP(AG97,'[4]英雄技能-过程'!$A:$P,16,0)*T97/10000*S97*(1+(AI97-1)*30%)*[4]战斗节奏!$E$28,0) -> 11414.52 | AK97: 2 | AL97: 120101 | AM97: 1 | AN97: 2 | AO97: =IFERROR(VLOOKUP(AL97,'[4]英雄技能-过程'!$A:$P,14,0)*T97/10000*Q97*(1+(AN97-1)*30%)*[4]战斗节奏!$C$28+VLOOKUP(AL97,'[4]英雄技能-过程'!$A:$P,15,0)*T97/10000*R97*(1+(AN97-1)*30%)*[4]战斗节奏!$D$28+VLOOKUP(AL97,'[4]英雄技能-过程'!$A:$P,16,0)*T97/10000*S97*(1+(AN97-1)*30%)*[4]战斗节奏!$E$28,0) -> 7196.1084 | AP97: 5 | AQ97: 140303 | AR97: 1 | AS97: 2 | AT97: =IFERROR(VLOOKUP(AQ97,'[4]英雄技能-过程'!$A:$P,14,0)*T97/10000*Q97*(1+(AS97-1)*30%)*[4]战斗节奏!$C$28+VLOOKUP(AQ97,'[4]英雄技能-过程'!$A:$P,15,0)*T97/10000*R97*(1+(AS97-1)*30%)*[4]战斗节奏!$D$28+VLOOKUP(AQ97,'[4]英雄技能-过程'!$A:$P,16,0)*T97/10000*S97*(1+(AS97-1)*30%)*[4]战斗节奏!$E$28,0) -> 9512.1 | AU97: 6 | AV97: 420101 | AW97: 1 | AX97: 2 | AY97: =IFERROR(VLOOKUP(AV97,'[4]英雄技能-过程'!$A:$P,14,0)*T97/10000*Q97*(1+(AX97-1)*30%)*[4]战斗节奏!$C$28+VLOOKUP(AV97,'[4]英雄技能-过程'!$A:$P,15,0)*T97/10000*R97*(1+(AX97-1)*30%)*[4]战斗节奏!$D$28+VLOOKUP(AV97,'[4]英雄技能-过程'!$A:$P,16,0)*T97/10000*S97*(1+(AX97-1)*30%)*[4]战斗节奏!$E$28,0) -> 11414.52 | BC97: 0 | BD97: =IFERROR(VLOOKUP(BA97,'[4]英雄技能-过程'!$A:$P,14,0)*T97/10000*Q97*(1+(BC97-1)*30%)*[4]战斗节奏!$C$28+VLOOKUP(BA97,'[4]英雄技能-过程'!$A:$P,15,0)*T97/10000*R97*(1+(BC97-1)*30%)*[4]战斗节奏!$D$28+VLOOKUP(BA97,'[4]英雄技能-过程'!$A:$P,16,0)*T97/10000*S97*(1+(BC97-1)*30%)*[4]战斗节奏!$E$28,0) -> 0 | BH97: 0 | BI97: =IFERROR(VLOOKUP(BF97,'[4]英雄技能-过程'!$A:$P,14,0)*T97/10000*Q97*(1+(BH97-1)*30%)*[4]战斗节奏!$C$28+VLOOKUP(BF97,'[4]英雄技能-过程'!$A:$P,15,0)*T97/10000*R97*(1+(BH97-1)*30%)*[4]战斗节奏!$D$28+VLOOKUP(BF97,'[4]英雄技能-过程'!$A:$P,16,0)*T97/10000*S97*(1+(BH97-1)*30%)*[4]战斗节奏!$E$28,0) -> 0 | BJ97: 12&110402&1&1 | BK97: 17&120201&1&2 | BL97: 4&120603&1&2 | BM97: 2&120101&1&2 | BN97: 5&140303&1&2 | BO97: 6&420101&1&2
N98: 45846.9677 | O98: 5 | P98: 14 | Q98: 17 | R98: 17 | S98: 20.2 | T98: 19000 | U98: 12&110402&1&1;15&110201&1&3;17&140201&1&2;4&140303&1&2;2&120603&1&2;1&120101&1&2 | V98: 12 | W98: 110402 | X98: 1 | Y98: 1 | Z98: =IFERROR(VLOOKUP(W98,'[4]英雄技能-过程'!$A:$P,14,0)*T98/10000*Q98*(1+(Y98-1)*30%)*[4]战斗节奏!$C$28+VLOOKUP(W98,'[4]英雄技能-过程'!$A:$P,15,0)*T98/10000*R98*(1+(Y98-1)*30%)*[4]战斗节奏!$D$28+VLOOKUP(W98,'[4]英雄技能-过程'!$A:$P,16,0)*T98/10000*S98*(1+(Y98-1)*30%)*[4]战斗节奏!$E$28,0) -> 4624.201 | AA98: 15 | AB98: 110201 | AC98: 1 | AD98: 3 | AE98: =IFERROR(VLOOKUP(AB98,'[4]英雄技能-过程'!$A:$P,14,0)*T98/10000*Q98*(1+(AD98-1)*30%)*[4]战斗节奏!$C$28+VLOOKUP(AB98,'[4]英雄技能-过程'!$A:$P,15,0)*T98/10000*R98*(1+(AD98-1)*30%)*[4]战斗节奏!$D$28+VLOOKUP(AB98,'[4]英雄技能-过程'!$A:$P,16,0)*T98/10000*S98*(1+(AD98-1)*30%)*[4]战斗节奏!$E$28,0) -> 6365.608 | AF98: 17 | AG98: 140201 | AH98: 1 | AI98: 2 | AJ98: =IFERROR(VLOOKUP(AG98,'[4]英雄技能-过程'!$A:$P,14,0)*T98/10000*Q98*(1+(AI98-1)*30%)*[4]战斗节奏!$C$28+VLOOKUP(AG98,'[4]英雄技能-过程'!$A:$P,15,0)*T98/10000*R98*(1+(AI98-1)*30%)*[4]战斗节奏!$D$28+VLOOKUP(AG98,'[4]英雄技能-过程'!$A:$P,16,0)*T98/10000*S98*(1+(AI98-1)*30%)*[4]战斗节奏!$E$28,0) -> 5172.0565 | AK98: 4 | AL98: 140303 | AM98: 1 | AN98: 2 | AO98: =IFERROR(VLOOKUP(AL98,'[4]英雄技能-过程'!$A:$P,14,0)*T98/10000*Q98*(1+(AN98-1)*30%)*[4]战斗节奏!$C$28+VLOOKUP(AL98,'[4]英雄技能-过程'!$A:$P,15,0)*T98/10000*R98*(1+(AN98-1)*30%)*[4]战斗节奏!$D$28+VLOOKUP(AL98,'[4]英雄技能-过程'!$A:$P,16,0)*T98/10000*S98*(1+(AN98-1)*30%)*[4]战斗节奏!$E$28,0) -> 10040.55 | AP98: 2 | AQ98: 120603 | AR98: 1 | AS98: 2 | AT98: =IFERROR(VLOOKUP(AQ98,'[4]英雄技能-过程'!$A:$P,14,0)*T98/10000*Q98*(1+(AS98-1)*30%)*[4]战斗节奏!$C$28+VLOOKUP(AQ98,'[4]英雄技能-过程'!$A:$P,15,0)*T98/10000*R98*(1+(AS98-1)*30%)*[4]战斗节奏!$D$28+VLOOKUP(AQ98,'[4]英雄技能-过程'!$A:$P,16,0)*T98/10000*S98*(1+(AS98-1)*30%)*[4]战斗节奏!$E$28,0) -> 12048.66 | AU98: 1 | AV98: 120101 | AW98: 1 | AX98: 2 | AY98: =IFERROR(VLOOKUP(AV98,'[4]英雄技能-过程'!$A:$P,14,0)*T98/10000*Q98*(1+(AX98-1)*30%)*[4]战斗节奏!$C$28+VLOOKUP(AV98,'[4]英雄技能-过程'!$A:$P,15,0)*T98/10000*R98*(1+(AX98-1)*30%)*[4]战斗节奏!$D$28+VLOOKUP(AV98,'[4]英雄技能-过程'!$A:$P,16,0)*T98/10000*S98*(1+(AX98-1)*30%)*[4]战斗节奏!$E$28,0) -> 7595.8922 | BC98: 0 | BD98: =IFERROR(VLOOKUP(BA98,'[4]英雄技能-过程'!$A:$P,14,0)*T98/10000*Q98*(1+(BC98-1)*30%)*[4]战斗节奏!$C$28+VLOOKUP(BA98,'[4]英雄技能-过程'!$A:$P,15,0)*T98/10000*R98*(1+(BC98-1)*30%)*[4]战斗节奏!$D$28+VLOOKUP(BA98,'[4]英雄技能-过程'!$A:$P,16,0)*T98/10000*S98*(1+(BC98-1)*30%)*[4]战斗节奏!$E$28,0) -> 0 | BH98: 0 | BI98: =IFERROR(VLOOKUP(BF98,'[4]英雄技能-过程'!$A:$P,14,0)*T98/10000*Q98*(1+(BH98-1)*30%)*[4]战斗节奏!$C$28+VLOOKUP(BF98,'[4]英雄技能-过程'!$A:$P,15,0)*T98/10000*R98*(1+(BH98-1)*30%)*[4]战斗节奏!$D$28+VLOOKUP(BF98,'[4]英雄技能-过程'!$A:$P,16,0)*T98/10000*S98*(1+(BH98-1)*30%)*[4]战斗节奏!$E$28,0) -> 0 | BJ98: 12&110402&1&1 | BK98: 15&110201&1&3 | BL98: 17&140201&1&2 | BM98: 4&140303&1&2 | BN98: 2&120603&1&2 | BO98: 1&120101&1&2
N99: 60023.216 | O99: 5 | P99: 15 | Q99: 17 | R99: 17 | S99: 20.2 | T99: 20000 | U99: 16&110201&1&1;14&110501&1&3;12&120201&1&2;1&140303&1&2;5&120603&1&2;4&120101&1&2;2&420101&1&1 | V99: 16 | W99: 110201 | X99: 1 | Y99: 1 | Z99: =IFERROR(VLOOKUP(W99,'[4]英雄技能-过程'!$A:$P,14,0)*T99/10000*Q99*(1+(Y99-1)*30%)*[4]战斗节奏!$C$28+VLOOKUP(W99,'[4]英雄技能-过程'!$A:$P,15,0)*T99/10000*R99*(1+(Y99-1)*30%)*[4]战斗节奏!$D$28+VLOOKUP(W99,'[4]英雄技能-过程'!$A:$P,16,0)*T99/10000*S99*(1+(Y99-1)*30%)*[4]战斗节奏!$E$28,0) -> 4187.9 | AA99: 14 | AB99: 110501 | AC99: 1 | AD99: 3 | AE99: =IFERROR(VLOOKUP(AB99,'[4]英雄技能-过程'!$A:$P,14,0)*T99/10000*Q99*(1+(AD99-1)*30%)*[4]战斗节奏!$C$28+VLOOKUP(AB99,'[4]英雄技能-过程'!$A:$P,15,0)*T99/10000*R99*(1+(AD99-1)*30%)*[4]战斗节奏!$D$28+VLOOKUP(AB99,'[4]英雄技能-过程'!$A:$P,16,0)*T99/10000*S99*(1+(AD99-1)*30%)*[4]战斗节奏!$E$28,0) -> 7788.128 | AF99: 12 | AG99: 120201 | AH99: 1 | AI99: 2 | AJ99: =IFERROR(VLOOKUP(AG99,'[4]英雄技能-过程'!$A:$P,14,0)*T99/10000*Q99*(1+(AI99-1)*30%)*[4]战斗节奏!$C$28+VLOOKUP(AG99,'[4]英雄技能-过程'!$A:$P,15,0)*T99/10000*R99*(1+(AI99-1)*30%)*[4]战斗节奏!$D$28+VLOOKUP(AG99,'[4]英雄技能-过程'!$A:$P,16,0)*T99/10000*S99*(1+(AI99-1)*30%)*[4]战斗节奏!$E$28,0) -> 7043.712 | AK99: 1 | AL99: 140303 | AM99: 1 | AN99: 2 | AO99: =IFERROR(VLOOKUP(AL99,'[4]英雄技能-过程'!$A:$P,14,0)*T99/10000*Q99*(1+(AN99-1)*30%)*[4]战斗节奏!$C$28+VLOOKUP(AL99,'[4]英雄技能-过程'!$A:$P,15,0)*T99/10000*R99*(1+(AN99-1)*30%)*[4]战斗节奏!$D$28+VLOOKUP(AL99,'[4]英雄技能-过程'!$A:$P,16,0)*T99/10000*S99*(1+(AN99-1)*30%)*[4]战斗节奏!$E$28,0) -> 10569 | AP99: 5 | AQ99: 120603 | AR99: 1 | AS99: 2 | AT99: =IFERROR(VLOOKUP(AQ99,'[4]英雄技能-过程'!$A:$P,14,0)*T99/10000*Q99*(1+(AS99-1)*30%)*[4]战斗节奏!$C$28+VLOOKUP(AQ99,'[4]英雄技能-过程'!$A:$P,15,0)*T99/10000*R99*(1+(AS99-1)*30%)*[4]战斗节奏!$D$28+VLOOKUP(AQ99,'[4]英雄技能-过程'!$A:$P,16,0)*T99/10000*S99*(1+(AS99-1)*30%)*[4]战斗节奏!$E$28,0) -> 12682.8 | AU99: 4 | AV99: 120101 | AW99: 1 | AX99: 2 | AY99: =IFERROR(VLOOKUP(AV99,'[4]英雄技能-过程'!$A:$P,14,0)*T99/10000*Q99*(1+(AX99-1)*30%)*[4]战斗节奏!$C$28+VLOOKUP(AV99,'[4]英雄技能-过程'!$A:$P,15,0)*T99/10000*R99*(1+(AX99-1)*30%)*[4]战斗节奏!$D$28+VLOOKUP(AV99,'[4]英雄技能-过程'!$A:$P,16,0)*T99/10000*S99*(1+(AX99-1)*30%)*[4]战斗节奏!$E$28,0) -> 7995.676 | AZ99: 2 | BA99: 420101 | BB99: 1 | BC99: 1 | BD99: =IFERROR(VLOOKUP(BA99,'[4]英雄技能-过程'!$A:$P,14,0)*T99/10000*Q99*(1+(BC99-1)*30%)*[4]战斗节奏!$C$28+VLOOKUP(BA99,'[4]英雄技能-过程'!$A:$P,15,0)*T99/10000*R99*(1+(BC99-1)*30%)*[4]战斗节奏!$D$28+VLOOKUP(BA99,'[4]英雄技能-过程'!$A:$P,16,0)*T99/10000*S99*(1+(BC99-1)*30%)*[4]战斗节奏!$E$28,0) -> 9756 | BH99: 0 | BI99: =IFERROR(VLOOKUP(BF99,'[4]英雄技能-过程'!$A:$P,14,0)*T99/10000*Q99*(1+(BH99-1)*30%)*[4]战斗节奏!$C$28+VLOOKUP(BF99,'[4]英雄技能-过程'!$A:$P,15,0)*T99/10000*R99*(1+(BH99-1)*30%)*[4]战斗节奏!$D$28+VLOOKUP(BF99,'[4]英雄技能-过程'!$A:$P,16,0)*T99/10000*S99*(1+(BH99-1)*30%)*[4]战斗节奏!$E$28,0) -> 0 | BJ99: 16&110201&1&1 | BK99: 14&110501&1&3 | BL99: 12&120201&1&2 | BM99: 1&140303&1&2 | BN99: 5&120603&1&2 | BO99: 4&120101&1&2 | BP99: 2&420101&1&1
N100: 69050.3982 | O100: 5 | P100: 16 | Q100: 17 | R100: 17 | S100: 20.2 | T100: 21000 | U100: 16&110501&1&2;15&110402&1&3;12&110201&1&2;11&120201&1&2;4&120603&1&2;2&140303&1&2;5&120101&1&1;1&420101&1&1 | V100: 16 | W100: 110501 | X100: 1 | Y100: 2 | Z100: =IFERROR(VLOOKUP(W100,'[4]英雄技能-过程'!$A:$P,14,0)*T100/10000*Q100*(1+(Y100-1)*30%)*[4]战斗节奏!$C$28+VLOOKUP(W100,'[4]英雄技能-过程'!$A:$P,15,0)*T100/10000*R100*(1+(Y100-1)*30%)*[4]战斗节奏!$D$28+VLOOKUP(W100,'[4]英雄技能-过程'!$A:$P,16,0)*T100/10000*S100*(1+(Y100-1)*30%)*[4]战斗节奏!$E$28,0) -> 6644.2467 | AA100: 15 | AB100: 110402 | AC100: 1 | AD100: 3 | AE100: =IFERROR(VLOOKUP(AB100,'[4]英雄技能-过程'!$A:$P,14,0)*T100/10000*Q100*(1+(AD100-1)*30%)*[4]战斗节奏!$C$28+VLOOKUP(AB100,'[4]英雄技能-过程'!$A:$P,15,0)*T100/10000*R100*(1+(AD100-1)*30%)*[4]战斗节奏!$D$28+VLOOKUP(AB100,'[4]英雄技能-过程'!$A:$P,16,0)*T100/10000*S100*(1+(AD100-1)*30%)*[4]战斗节奏!$E$28,0) -> 8177.5344 | AF100: 12 | AG100: 110201 | AH100: 1 | AI100: 2 | AJ100: =IFERROR(VLOOKUP(AG100,'[4]英雄技能-过程'!$A:$P,14,0)*T100/10000*Q100*(1+(AI100-1)*30%)*[4]战斗节奏!$C$28+VLOOKUP(AG100,'[4]英雄技能-过程'!$A:$P,15,0)*T100/10000*R100*(1+(AI100-1)*30%)*[4]战斗节奏!$D$28+VLOOKUP(AG100,'[4]英雄技能-过程'!$A:$P,16,0)*T100/10000*S100*(1+(AI100-1)*30%)*[4]战斗节奏!$E$28,0) -> 5716.4835 | AK100: 11 | AL100: 120201 | AM100: 1 | AN100: 2 | AO100: =IFERROR(VLOOKUP(AL100,'[4]英雄技能-过程'!$A:$P,14,0)*T100/10000*Q100*(1+(AN100-1)*30%)*[4]战斗节奏!$C$28+VLOOKUP(AL100,'[4]英雄技能-过程'!$A:$P,15,0)*T100/10000*R100*(1+(AN100-1)*30%)*[4]战斗节奏!$D$28+VLOOKUP(AL100,'[4]英雄技能-过程'!$A:$P,16,0)*T100/10000*S100*(1+(AN100-1)*30%)*[4]战斗节奏!$E$28,0) -> 7395.8976 | AP100: 4 | AQ100: 120603 | AR100: 1 | AS100: 2 | AT100: =IFERROR(VLOOKUP(AQ100,'[4]英雄技能-过程'!$A:$P,14,0)*T100/10000*Q100*(1+(AS100-1)*30%)*[4]战斗节奏!$C$28+VLOOKUP(AQ100,'[4]英雄技能-过程'!$A:$P,15,0)*T100/10000*R100*(1+(AS100-1)*30%)*[4]战斗节奏!$D$28+VLOOKUP(AQ100,'[4]英雄技能-过程'!$A:$P,16,0)*T100/10000*S100*(1+(AS100-1)*30%)*[4]战斗节奏!$E$28,0) -> 13316.94 | AU100: 2 | AV100: 140303 | AW100: 1 | AX100: 2 | AY100: =IFERROR(VLOOKUP(AV100,'[4]英雄技能-过程'!$A:$P,14,0)*T100/10000*Q100*(1+(AX100-1)*30%)*[4]战斗节奏!$C$28+VLOOKUP(AV100,'[4]英雄技能-过程'!$A:$P,15,0)*T100/10000*R100*(1+(AX100-1)*30%)*[4]战斗节奏!$D$28+VLOOKUP(AV100,'[4]英雄技能-过程'!$A:$P,16,0)*T100/10000*S100*(1+(AX100-1)*30%)*[4]战斗节奏!$E$28,0) -> 11097.45 | AZ100: 5 | BA100: 120101 | BB100: 1 | BC100: 1 | BD100: =IFERROR(VLOOKUP(BA100,'[4]英雄技能-过程'!$A:$P,14,0)*T100/10000*Q100*(1+(BC100-1)*30%)*[4]战斗节奏!$C$28+VLOOKUP(BA100,'[4]英雄技能-过程'!$A:$P,15,0)*T100/10000*R100*(1+(BC100-1)*30%)*[4]战斗节奏!$D$28+VLOOKUP(BA100,'[4]英雄技能-过程'!$A:$P,16,0)*T100/10000*S100*(1+(BC100-1)*30%)*[4]战斗节奏!$E$28,0) -> 6458.046 | BE100: 1 | BF100: 420101 | BG100: 1 | BH100: 1 | BI100: =IFERROR(VLOOKUP(BF100,'[4]英雄技能-过程'!$A:$P,14,0)*T100/10000*Q100*(1+(BH100-1)*30%)*[4]战斗节奏!$C$28+VLOOKUP(BF100,'[4]英雄技能-过程'!$A:$P,15,0)*T100/10000*R100*(1+(BH100-1)*30%)*[4]战斗节奏!$D$28+VLOOKUP(BF100,'[4]英雄技能-过程'!$A:$P,16,0)*T100/10000*S100*(1+(BH100-1)*30%)*[4]战斗节奏!$E$28,0) -> 10243.8 | BJ100: 16&110501&1&2 | BK100: 15&110402&1&3 | BL100: 12&110201&1&2 | BM100: 11&120201&1&2 | BN100: 4&120603&1&2 | BO100: 2&140303&1&2 | BP100: 5&120101&1&1 | BQ100: 1&420101&1&1
N101: 77756.0762 | O101: 5 | P101: 17 | Q101: 17 | R101: 17 | S101: 20.2 | T101: 22000 | U101: 16&140201&1&3;15&110501&1&3;12&120201&1&3;11&110201&1&2;1&140303&1&2;4&120603&1&2;2&420101&1&2;5&120101&1&1 | V101: 16 | W101: 140201 | X101: 1 | Y101: 3 | Z101: =IFERROR(VLOOKUP(W101,'[4]英雄技能-过程'!$A:$P,14,0)*T101/10000*Q101*(1+(Y101-1)*30%)*[4]战斗节奏!$C$28+VLOOKUP(W101,'[4]英雄技能-过程'!$A:$P,15,0)*T101/10000*R101*(1+(Y101-1)*30%)*[4]战斗节奏!$D$28+VLOOKUP(W101,'[4]英雄技能-过程'!$A:$P,16,0)*T101/10000*S101*(1+(Y101-1)*30%)*[4]战斗节奏!$E$28,0) -> 7370.704 | AA101: 15 | AB101: 110501 | AC101: 1 | AD101: 3 | AE101: =IFERROR(VLOOKUP(AB101,'[4]英雄技能-过程'!$A:$P,14,0)*T101/10000*Q101*(1+(AD101-1)*30%)*[4]战斗节奏!$C$28+VLOOKUP(AB101,'[4]英雄技能-过程'!$A:$P,15,0)*T101/10000*R101*(1+(AD101-1)*30%)*[4]战斗节奏!$D$28+VLOOKUP(AB101,'[4]英雄技能-过程'!$A:$P,16,0)*T101/10000*S101*(1+(AD101-1)*30%)*[4]战斗节奏!$E$28,0) -> 8566.9408 | AF101: 12 | AG101: 120201 | AH101: 1 | AI101: 3 | AJ101: =IFERROR(VLOOKUP(AG101,'[4]英雄技能-过程'!$A:$P,14,0)*T101/10000*Q101*(1+(AI101-1)*30%)*[4]战斗节奏!$C$28+VLOOKUP(AG101,'[4]英雄技能-过程'!$A:$P,15,0)*T101/10000*R101*(1+(AI101-1)*30%)*[4]战斗节奏!$D$28+VLOOKUP(AG101,'[4]英雄技能-过程'!$A:$P,16,0)*T101/10000*S101*(1+(AI101-1)*30%)*[4]战斗节奏!$E$28,0) -> 9536.1024 | AK101: 11 | AL101: 110201 | AM101: 1 | AN101: 2 | AO101: =IFERROR(VLOOKUP(AL101,'[4]英雄技能-过程'!$A:$P,14,0)*T101/10000*Q101*(1+(AN101-1)*30%)*[4]战斗节奏!$C$28+VLOOKUP(AL101,'[4]英雄技能-过程'!$A:$P,15,0)*T101/10000*R101*(1+(AN101-1)*30%)*[4]战斗节奏!$D$28+VLOOKUP(AL101,'[4]英雄技能-过程'!$A:$P,16,0)*T101/10000*S101*(1+(AN101-1)*30%)*[4]战斗节奏!$E$28,0) -> 5988.697 | AP101: 1 | AQ101: 140303 | AR101: 1 | AS101: 2 | AT101: =IFERROR(VLOOKUP(AQ101,'[4]英雄技能-过程'!$A:$P,14,0)*T101/10000*Q101*(1+(AS101-1)*30%)*[4]战斗节奏!$C$28+VLOOKUP(AQ101,'[4]英雄技能-过程'!$A:$P,15,0)*T101/10000*R101*(1+(AS101-1)*30%)*[4]战斗节奏!$D$28+VLOOKUP(AQ101,'[4]英雄技能-过程'!$A:$P,16,0)*T101/10000*S101*(1+(AS101-1)*30%)*[4]战斗节奏!$E$28,0) -> 11625.9 | AU101: 4 | AV101: 120603 | AW101: 1 | AX101: 2 | AY101: =IFERROR(VLOOKUP(AV101,'[4]英雄技能-过程'!$A:$P,14,0)*T101/10000*Q101*(1+(AX101-1)*30%)*[4]战斗节奏!$C$28+VLOOKUP(AV101,'[4]英雄技能-过程'!$A:$P,15,0)*T101/10000*R101*(1+(AX101-1)*30%)*[4]战斗节奏!$D$28+VLOOKUP(AV101,'[4]英雄技能-过程'!$A:$P,16,0)*T101/10000*S101*(1+(AX101-1)*30%)*[4]战斗节奏!$E$28,0) -> 13951.08 | AZ101: 2 | BA101: 420101 | BB101: 1 | BC101: 2 | BD101: =IFERROR(VLOOKUP(BA101,'[4]英雄技能-过程'!$A:$P,14,0)*T101/10000*Q101*(1+(BC101-1)*30%)*[4]战斗节奏!$C$28+VLOOKUP(BA101,'[4]英雄技能-过程'!$A:$P,15,0)*T101/10000*R101*(1+(BC101-1)*30%)*[4]战斗节奏!$D$28+VLOOKUP(BA101,'[4]英雄技能-过程'!$A:$P,16,0)*T101/10000*S101*(1+(BC101-1)*30%)*[4]战斗节奏!$E$28,0) -> 13951.08 | BE101: 5 | BF101: 120101 | BG101: 1 | BH101: 1 | BI101: =IFERROR(VLOOKUP(BF101,'[4]英雄技能-过程'!$A:$P,14,0)*T101/10000*Q101*(1+(BH101-1)*30%)*[4]战斗节奏!$C$28+VLOOKUP(BF101,'[4]英雄技能-过程'!$A:$P,15,0)*T101/10000*R101*(1+(BH101-1)*30%)*[4]战斗节奏!$D$28+VLOOKUP(BF101,'[4]英雄技能-过程'!$A:$P,16,0)*T101/10000*S101*(1+(BH101-1)*30%)*[4]战斗节奏!$E$28,0) -> 6765.572 | BJ101: 16&140201&1&3 | BK101: 15&110501&1&3 | BL101: 12&120201&1&3 | BM101: 11&110201&1&2 | BN101: 1&140303&1&2 | BO101: 4&120603&1&2 | BP101: 2&420101&1&2 | BQ101: 5&120101&1&1
N102: 82164.6687 | O102: 5 | P102: 18 | Q102: 17 | R102: 17 | S102: 20.2 | T102: 23000 | U102: 16&140201&1&3;13&110201&1&3;12&110501&1&3;11&110402&1&2;4&120101&1&2;2&140303&1&2;3&420101&1&2;1&120603&1&2 | V102: 16 | W102: 140201 | X102: 1 | Y102: 3 | Z102: =IFERROR(VLOOKUP(W102,'[4]英雄技能-过程'!$A:$P,14,0)*T102/10000*Q102*(1+(Y102-1)*30%)*[4]战斗节奏!$C$28+VLOOKUP(W102,'[4]英雄技能-过程'!$A:$P,15,0)*T102/10000*R102*(1+(Y102-1)*30%)*[4]战斗节奏!$D$28+VLOOKUP(W102,'[4]英雄技能-过程'!$A:$P,16,0)*T102/10000*S102*(1+(Y102-1)*30%)*[4]战斗节奏!$E$28,0) -> 7705.736 | AA102: 13 | AB102: 110201 | AC102: 1 | AD102: 3 | AE102: =IFERROR(VLOOKUP(AB102,'[4]英雄技能-过程'!$A:$P,14,0)*T102/10000*Q102*(1+(AD102-1)*30%)*[4]战斗节奏!$C$28+VLOOKUP(AB102,'[4]英雄技能-过程'!$A:$P,15,0)*T102/10000*R102*(1+(AD102-1)*30%)*[4]战斗节奏!$D$28+VLOOKUP(AB102,'[4]英雄技能-过程'!$A:$P,16,0)*T102/10000*S102*(1+(AD102-1)*30%)*[4]战斗节奏!$E$28,0) -> 7705.736 | AF102: 12 | AG102: 110501 | AH102: 1 | AI102: 3 | AJ102: =IFERROR(VLOOKUP(AG102,'[4]英雄技能-过程'!$A:$P,14,0)*T102/10000*Q102*(1+(AI102-1)*30%)*[4]战斗节奏!$C$28+VLOOKUP(AG102,'[4]英雄技能-过程'!$A:$P,15,0)*T102/10000*R102*(1+(AI102-1)*30%)*[4]战斗节奏!$D$28+VLOOKUP(AG102,'[4]英雄技能-过程'!$A:$P,16,0)*T102/10000*S102*(1+(AI102-1)*30%)*[4]战斗节奏!$E$28,0) -> 8956.3472 | AK102: 11 | AL102: 110402 | AM102: 1 | AN102: 2 | AO102: =IFERROR(VLOOKUP(AL102,'[4]英雄技能-过程'!$A:$P,14,0)*T102/10000*Q102*(1+(AN102-1)*30%)*[4]战斗节奏!$C$28+VLOOKUP(AL102,'[4]英雄技能-过程'!$A:$P,15,0)*T102/10000*R102*(1+(AN102-1)*30%)*[4]战斗节奏!$D$28+VLOOKUP(AL102,'[4]英雄技能-过程'!$A:$P,16,0)*T102/10000*S102*(1+(AN102-1)*30%)*[4]战斗节奏!$E$28,0) -> 7277.0321 | AP102: 4 | AQ102: 120101 | AR102: 1 | AS102: 2 | AT102: =IFERROR(VLOOKUP(AQ102,'[4]英雄技能-过程'!$A:$P,14,0)*T102/10000*Q102*(1+(AS102-1)*30%)*[4]战斗节奏!$C$28+VLOOKUP(AQ102,'[4]英雄技能-过程'!$A:$P,15,0)*T102/10000*R102*(1+(AS102-1)*30%)*[4]战斗节奏!$D$28+VLOOKUP(AQ102,'[4]英雄技能-过程'!$A:$P,16,0)*T102/10000*S102*(1+(AS102-1)*30%)*[4]战斗节奏!$E$28,0) -> 9195.0274 | AU102: 2 | AV102: 140303 | AW102: 1 | AX102: 2 | AY102: =IFERROR(VLOOKUP(AV102,'[4]英雄技能-过程'!$A:$P,14,0)*T102/10000*Q102*(1+(AX102-1)*30%)*[4]战斗节奏!$C$28+VLOOKUP(AV102,'[4]英雄技能-过程'!$A:$P,15,0)*T102/10000*R102*(1+(AX102-1)*30%)*[4]战斗节奏!$D$28+VLOOKUP(AV102,'[4]英雄技能-过程'!$A:$P,16,0)*T102/10000*S102*(1+(AX102-1)*30%)*[4]战斗节奏!$E$28,0) -> 12154.35 | AZ102: 3 | BA102: 420101 | BB102: 1 | BC102: 2 | BD102: =IFERROR(VLOOKUP(BA102,'[4]英雄技能-过程'!$A:$P,14,0)*T102/10000*Q102*(1+(BC102-1)*30%)*[4]战斗节奏!$C$28+VLOOKUP(BA102,'[4]英雄技能-过程'!$A:$P,15,0)*T102/10000*R102*(1+(BC102-1)*30%)*[4]战斗节奏!$D$28+VLOOKUP(BA102,'[4]英雄技能-过程'!$A:$P,16,0)*T102/10000*S102*(1+(BC102-1)*30%)*[4]战斗节奏!$E$28,0) -> 14585.22 | BE102: 1 | BF102: 120603 | BG102: 1 | BH102: 2 | BI102: =IFERROR(VLOOKUP(BF102,'[4]英雄技能-过程'!$A:$P,14,0)*T102/10000*Q102*(1+(BH102-1)*30%)*[4]战斗节奏!$C$28+VLOOKUP(BF102,'[4]英雄技能-过程'!$A:$P,15,0)*T102/10000*R102*(1+(BH102-1)*30%)*[4]战斗节奏!$D$28+VLOOKUP(BF102,'[4]英雄技能-过程'!$A:$P,16,0)*T102/10000*S102*(1+(BH102-1)*30%)*[4]战斗节奏!$E$28,0) -> 14585.22 | BJ102: 16&140201&1&3 | BK102: 13&110201&1&3 | BL102: 12&110501&1&3 | BM102: 11&110402&1&2 | BN102: 4&120101&1&2 | BO102: 2&140303&1&2 | BP102: 3&420101&1&2 | BQ102: 1&120603&1&2
